Workbook

Sheet Menu

Sheet Profit Calculator
B1: Scenario : Sandplain Block | H1: Soil Amelioration Profit Calculator | O1: Lime Use
B2: Assumptions | G2: Costs | K2: Total Cost | M2: Profit | O2: Exported | P2: Fert & N Leach | Q2: Total
B3: Code | C3: Name | D3: Base Yield | E3: FIS Price | F3: Income | G3: Fertiliser | H3: Herbicide | I3: Other Variable | J3: Fixed | K3: $/ha | L3: $/t | M3: $/ha | N3: $/t | O3: kg/t | P3: kg/t | Q3: kg/t
B4: W | C4: Wheat | D4: 1.8 | E4: 290 | F4: =E4*D4 -> 522 | G4: 86 | H4: 47 | I4: 114 | J4: 115 | K4: =SUM(G4:J4) -> 362 | L4: =IF(D4=0,0,K4/D4) -> 201.1111111 | M4: =E4*D4-K4 -> 160 | N4: =IF(D4=0,0,M4/D4) -> 88.88888889 | O4: 2.3 | P4: ='Lime Requirements from Fert Use'!D14 -> 37.69 | Q4: =SUM(O4:P4) -> 39.99
B5: B | C5: Barley | D5: 2 | E5: 260 | F5: =E5*D5 -> 520 | G5: 86 | H5: 47 | I5: 114 | J5: 115 | K5: =SUM(G5:J5) -> 362 | L5: =IF(D5=0,0,K5/D5) -> 181 | M5: =E5*D5-K5 -> 158 | N5: =IF(D5=0,0,M5/D5) -> 79 | O5: 3 | P5: ='Lime Requirements from Fert Use'!E14 -> 33.921 | Q5: =SUM(O5:P5) -> 36.921
B6: Cn | C6: Canola | D6: 0.8 | E6: 550 | F6: 440 | G6: 86 | H6: 47 | I6: 114 | J6: 115 | K6: 362 | L6: 452.5 | M6: 78 | N6: 97.5 | O6: 2.3 | P6: ='Lime Requirements from Fert Use'!F14 -> 189.1485 | Q6: 191.4485
B7: L | C7: Lupins | D7: 1 | E7: 300 | F7: 300 | G7: 30 | H7: 55 | I7: 114 | J7: 115 | K7: 314 | L7: 314 | M7: -14 | N7: -14 | O7: 12.5 | P7: ='Lime Requirements from Fert Use'!G14 -> 86.967 | Q7: 99.467
B8: H | C8: Hay | D8: 4 | E8: 180 | F8: 720 | G8: 100 | H8: 40 | I8: 220 | J8: 115 | K8: 475 | L8: 118.75 | M8: 245 | N8: 61.25 | O8: 30 | P8: ='Lime Requirements from Fert Use'!H14 -> 22.93065 | Q8: 52.93065
B9: O | C9: Other | D9: 1 | F9: 0 | K9: 0 | L9: 0 | M9: 0 | N9: 0 | P9: ='Lime Requirements from Fert Use'!I14 -> 10.9296 | Q9: 10.9296
B10: O | C10: Other | D10: 1 | F10: 0 | K10: 0 | L10: 0 | M10: 0 | N10: 0 | P10: ='Lime Requirements from Fert Use'!J14 -> 21.8592 | Q10: 21.8592
B11: O | C11: Other | D11: 1 | F11: 0 | K11: 0 | L11: 0 | M11: 0 | N11: 0 | P11: ='Lime Requirements from Fert Use'!K14 -> 27.324 | Q11: 27.324
B12: O | C12: Other | D12: 1 | F12: 0 | K12: 0 | L12: 0 | M12: 0 | N12: 0 | P12: ='Lime Requirements from Fert Use'!L14 -> 32.7888 | Q12: 32.7888
D13: DSE | E13: Income | F13: Income | I13: Total Variable | J13: Fixed | K13: Total Cost | M13: Profit
D14: DSE | E14: $/DSE | F14: $/ha | I14: $/DSE | J14: $/ha | K14: $/ha | L14: $/DSE | M14: $/ha | N14: $/DSE | O14: Kg/DSE | P14: Kg/DSE | Q14: Kg/DSE
B15: P | C15: Pasture | D15: 2.5 | E15: 73 | F15: =E15*D15 -> 182.5 | I15: 30 | J15: 90 | K15: =J15+I15*D15 -> 165 | L15: =IF(D15=0,0,K15/D15) -> 66 | M15: =F15-K15 -> 17.5 | N15: =IF(D15=0,0,M15/D15) -> 7 | O15: 3 | P15: 12 | Q15: =SUM(O15:P15) -> 15
B17: NO Lime/Amelioration Profit Forecast | D17: Years | F17: 1 | G17: 2 | H17: 3 | I17: 4 | J17: 5 | K17: 6 | L17: 7 | M17: 8 | N17: 9 | O17: 10 | P17: 10yr Tot. | Q17: 10Yr Av.
D18: Rotation | F18: W | G18: W | H18: B | I18: L | J18: W | K18: CN | L18: W | M18: L | N18: W | O18: W
D19: Base Yield | F19: =VLOOKUP(F$18,CropLookup,3,FALSE) -> 1.8 | G19: =VLOOKUP(G18,CropLookup,3,FALSE) -> 1.8 | H19: 2 | I19: 1 | J19: 1.8 | K19: 0.8 | L19: 1.8 | M19: 1 | N19: 1.8 | O19: 1.8
D20: Yield Decline % | F20: 0 | G20: -2 | H20: -6 | I20: 0 | J20: -5 | K20: -10 | L20: -7 | M20: 0 | N20: -9 | O20: -10 | P20: See Response Tables
D21: Status Quo Yield | F21: =F19*(100+F20)/100 -> 1.8 | G21: =G19*(100+G20)/100 -> 1.764 | H21: 1.88 | I21: 1 | J21: 1.71 | K21: 0.72 | L21: 1.674 | M21: 1 | N21: 1.638 | O21: 1.62
D22: Price | F22: =VLOOKUP(F$18,CropLookup,4,FALSE) -> 290 | G22: 290 | H22: 260 | I22: 300 | J22: 290 | K22: 550 | L22: 290 | M22: 300 | N22: 290 | O22: 290
D23: Status Quo Income | F23: =F22*F21 -> 522 | G23: =G22*G21 -> 511.56 | H23: 488.8 | I23: 300 | J23: 495.9 | K23: 396 | L23: 485.46 | M23: 300 | N23: 475.02 | O23: 469.8
D24: Status Quo Costs | F24: =IF($F18="p",VLOOKUP(F$18,CropLookup,9,FALSE)+VLOOKUP(F$18,CropLookup,8,FALSE)*F19,VLOOKUP(F$18,CropLookup,10,FALSE)) -> 362 | G24: 362 | H24: 362 | I24: 314 | J24: 362 | K24: 362 | L24: 362 | M24: 314 | N24: 362 | O24: 362
D25: Status Quo Profit | F25: =F23-F24 -> 160 | G25: =G23-G24 -> 149.56 | H25: 126.8 | I25: -14 | J25: 133.9 | K25: 34 | L25: 123.46 | M25: -14 | N25: 113.02 | O25: 107.8 | P25: =SUM(F25:O25) -> 920.54 | Q25: =P25/10 -> 92.054
B26: Lime/Amelioration Investment | D26: Lime Top Dress | F26: =VLOOKUP(F33,TreatmentCosts,11,FALSE) -> 2 | G26: 0 | H26: 0 | I26: 0 | J26: 0 | K26: 0 | L26: 0 | M26: 0 | N26: 0 | O26: 0
D27: Deep Band | F27: =VLOOKUP(F33,TreatmentCosts,12,FALSE) -> 1 | G27: 0 | H27: 0 | I27: 0 | J27: 0 | K27: 0 | L27: 0 | M27: 0 | N27: 0 | O27: 0
D28: % Banded into 10 - 20 | F28: =VLOOKUP(F33,TreatmentCosts,13,FALSE) -> 0.5 | G28: 0 | H28: 0 | I28: 0 | J28: 0 | K28: 0 | L28: 0 | M28: 0 | N28: 0 | O28: 0
D29: Lime Removal | F29: =F36*VLOOKUP(F$18,CropLookup,16,FALSE)/1000/'Quantity of Lime to Apply'!$E4 -> 0.1002281013 | G29: =G36*VLOOKUP(G$18,CropLookup,16,FALSE)/1000/'Quantity of Lime to Apply'!$E4 -> 0.1002281013 | H29: =H36*VLOOKUP(H$18,CropLookup,16,FALSE)/1000/'Quantity of Lime to Apply'!$E4 -> 0.1028179747 | I29: =I36*VLOOKUP(I$18,CropLookup,16,FALSE)/1000/'Quantity of Lime to Apply'!$E4 -> 0.1259075949 | J29: =J36*VLOOKUP(J$18,CropLookup,16,FALSE)/1000/'Quantity of Lime to Apply'!$E4 -> 0.1002281013 | K29: =K36*VLOOKUP(K$18,CropLookup,16,FALSE)/1000/'Quantity of Lime to Apply'!$E4 -> 0.2132590886 | L29: =L36*VLOOKUP(L$18,CropLookup,16,FALSE)/1000/'Quantity of Lime to Apply'!$E4 -> 0.1002281013 | M29: =M36*VLOOKUP(M$18,CropLookup,16,FALSE)/1000/'Quantity of Lime to Apply'!$E4 -> 0.1259075949 | N29: =N36*VLOOKUP(N$18,CropLookup,16,FALSE)/1000/'Quantity of Lime to Apply'!$E4 -> 0.1002281013 | O29: =O36*VLOOKUP(O$18,CropLookup,16,FALSE)/1000/'Quantity of Lime to Apply'!$E4 -> 0.1002281013
D30: pH 0 - 10 | E30: =Soil_Model!H$9 -> 5.9 | F30: =Soil_Model!H$20 -> 6.112627153 | G30: =Soil_Model!H$32 -> 6.174315424 | H30: =Soil_Model!H$44 -> 6.184130748 | I30: =Soil_Model!H$56 -> 6.169973588 | J30: =Soil_Model!H$68 -> 6.165270692 | K30: =Soil_Model!H$80 -> 6.112587138 | L30: =Soil_Model!H$92 -> 6.122983545 | M30: =Soil_Model!H$104 -> 6.10895674 | N30: =Soil_Model!H$116 -> 6.103360604 | O30: =Soil_Model!H$128 -> 6.092347084
D31: pH 10 - 20 | E31: =Soil_Model!Z$9 -> 4.4 | F31: =Soil_Model!Z$20 -> 4.926780174 | G31: =Soil_Model!Z$32 -> 5.011901682 | H31: =Soil_Model!Z$44 -> 5.091526558 | I31: =Soil_Model!Z$56 -> 5.154862576 | J31: =Soil_Model!Z$68 -> 5.216235228 | K31: =Soil_Model!Z$80 -> 5.221462965 | L31: =Soil_Model!Z$92 -> 5.253835123 | M31: =Soil_Model!Z$104 -> 5.27180265 | N31: =Soil_Model!Z$116 -> 5.29142964 | O31: =Soil_Model!Z$128 -> 5.304526389
D32: pH 20 - 30 | E32: =Soil_Model!AR$9 -> 4.7 | F32: =Soil_Model!AR$20 -> 5.203613013 | G32: =Soil_Model!AR$32 -> 5.253252233 | H32: =Soil_Model!AR$44 -> 5.258902184 | I32: =Soil_Model!AR$56 -> 5.258151072 | J32: =Soil_Model!AR$68 -> 5.258317503 | K32: =Soil_Model!AR$80 -> 5.261326195 | L32: =Soil_Model!AR$92 -> 5.263848294 | M32: =Soil_Model!AR$104 -> 5.268307324 | N32: =Soil_Model!AR$116 -> 5.273461557 | O32: =Soil_Model!AR$128 -> 5.279459812
D33: Select Treatment Option | F33: 4 | G33: 1 | H33: 1 | I33: 1 | J33: 1 | K33: 1 | L33: 1 | M33: 1 | N33: 1 | O33: 1
F34: =-VLOOKUP(F33,TreatmentCosts,16,FALSE) -> -310.5 | G34: 0 | H34: 0 | I34: 0 | J34: 0 | K34: 0 | L34: 0 | M34: 0 | N34: 0 | O34: 0 | P34: =SUM(F34:O34) -> -310.5 | Q34: =P34/10 -> -31.05
B35: LIMING Profit Forecast | D35: % Change from Base | F35: 10 | G35: 10 | H35: 10 | I35: 0 | J35: 10 | K35: 10 | L35: 10 | M35: 0 | N35: 10 | O35: 10 | P35: See Response Tables
D36: Est. Yield | F36: =(100+F35)/100*F19 -> 1.98 | G36: 1.98 | H36: 2.2 | I36: 1 | J36: 1.98 | K36: 0.88 | L36: 1.98 | M36: 1 | N36: 1.98 | O36: 1.98
D37: Price | F37: =VLOOKUP(F$18,CropLookup,4,FALSE) -> 290 | G37: 290 | H37: 260 | I37: 300 | J37: 290 | K37: 550 | L37: 290 | M37: 300 | N37: 290 | O37: 290
D38: Income | F38: =F37*F36 -> 574.2 | G38: =G37*G36 -> 574.2 | H38: 572 | I38: 300 | J38: 574.2 | K38: 484 | L38: 574.2 | M38: 300 | N38: 574.2 | O38: 574.2
D39: Est. Costs | F39: =IF($F35="p",VLOOKUP(F$18,CropLookup,9,FALSE)+VLOOKUP(F$18,CropLookup,8,FALSE)*F36,VLOOKUP(F$18,CropLookup,10,FALSE)) -> 362 | G39: 362 | H39: 362 | I39: 314 | J39: 362 | K39: 362 | L39: 362 | M39: 314 | N39: 362 | O39: 362
D40: Est. Profit | F40: =F38-F39 -> 212.2 | G40: =G38-G39 -> 212.2 | H40: 210 | I40: -14 | J40: 212.2 | K40: 122 | L40: 212.2 | M40: -14 | N40: 212.2 | O40: 212.2 | P40: =SUM(F40:O40) -> 1577.2 | Q40: =P40/10 -> 157.72
B41: Lime Benefit | D41: Extra Profit | F41: =F40-F25 -> 52.2 | G41: 62.64 | H41: 83.2 | I41: 0 | J41: 78.3 | K41: 88 | L41: 88.74 | M41: 0 | N41: 99.18 | O41: 104.4 | P41: =SUM(F41:O41) -> 656.66 | Q41: =P41/10 -> 65.666
D42: Net Cashflow | F42: =F41+F34 -> -258.3 | G42: =G41+G34 -> 62.64 | H42: 83.2 | I42: 0 | J42: 78.3 | K42: 88 | L42: 88.74 | M42: 0 | N42: 99.18 | O42: 104.4 | P42: =SUM(F42:O42) -> 346.16 | Q42: =P42/10 -> 34.616
D43: Cumulative Cashflow | F43: =F42 -> -258.3 | G43: =F43+G42 -> -195.66 | H43: =G43+H42 -> -112.46 | I43: -112.46 | J43: -34.16 | K43: 53.84 | L43: 142.58 | M43: 142.58 | N43: 241.76 | O43: 346.16
B44: Net Benefit $/ha | D44: ='Profit Calculator'!P42 -> 346.16
B45: Av. Benefit $/ha/yr | D45: ='Profit Calculator'!Q42 -> 34.616 | E45: Equals | F45: =('Profit Calculator'!Q42)/'Profit Calculator'!Q25 -> 0.3760401503
B46: Benefit/Cost | D46: =-('Profit Calculator'!P42-'Profit Calculator'!F34)/'Profit Calculator'!F34 -> 2.114847021 | F46: increase in Av. Profit
B47: IRR | D47: =IRR('Profit Calculator'!F42:O42,0.1) -> 0.1975055799
B48: Payback Period (yrs) | D48: =IF('Profit Calculator'!F43>0,1,IF('Profit Calculator'!G43>0,2,IF('Profit Calculator'!H43>0,3,IF('Profit Calculator'!I43>0,4,IF('Profit Calculator'!J43>0,5,IF('Profit Calculator'!K43>0,6,IF('Profit Calculator'!L43>0,7,IF('Profit Calculator'!M43>0,8,IF('Profit Calculator'!N43>0,9,"10"))))))))) -> 6
B49: NPV $ | D49: =NPV(F49,'Profit Calculator'!F42:O42) -> 178.4913711 | E49: @ | F49: 0.06
D63: Profit $/ha
D64: Year | F64: =F17 -> 1 | G64: =G17 -> 2 | H64: 3 | I64: 4 | J64: 5 | K64: 6 | L64: 7 | M64: 8 | N64: 9 | O64: 10
D65: No Treatment | F65: =F25 -> 160 | G65: =G25 -> 149.56 | H65: 126.8 | I65: -14 | J65: 133.9 | K65: 34 | L65: 123.46 | M65: -14 | N65: 113.02 | O65: 107.8
D66: With Treatment | F66: =F40 -> 212.2 | G66: =G40 -> 212.2 | H66: 210 | I66: -14 | J66: 212.2 | K66: 122 | L66: 212.2 | M66: -14 | N66: 212.2 | O66: 212.2
D67: Cumulative Cashflow $/ha
D68: Year | F68: =F17 -> 1 | G68: =G17 -> 2 | H68: 3 | I68: 4 | J68: 5 | K68: 6 | L68: 7 | M68: 8 | N68: 9 | O68: 10
D69: No Treatment | F69: =F25 -> 160 | G69: =F69+G25 -> 309.56 | H69: =G69+H25 -> 436.36 | I69: 422.36 | J69: 556.26 | K69: 590.26 | L69: 713.72 | M69: 699.72 | N69: 812.74 | O69: 920.54
D70: With Treatment | F70: =F40+F34 -> -98.3 | G70: =F70+G34+G40 -> 113.9 | H70: =G70+H34+H40 -> 323.9 | I70: 309.9 | J70: 522.1 | K70: 644.1 | L70: 856.3 | M70: 842.3 | N70: 1054.5 | O70: 1266.7
D71: Net Cashflow Effect of Investment
D72: Year | F72: =F17 -> 1 | G72: =G17 -> 2 | H72: 3 | I72: 4 | J72: 5 | K72: 6 | L72: 7 | M72: 8 | N72: 9 | O72: 10
D73: Net Cashflow | F73: =F42 -> -258.3 | G73: =G42 -> 62.64 | H73: 83.2 | I73: 0 | J73: 78.3 | K73: 88 | L73: 88.74 | M73: 0 | N73: 99.18 | O73: 104.4
D74: Cumulative Cashflow | F74: =F43 -> -258.3 | G74: =G43 -> -195.66 | H74: -112.46 | I74: -112.46 | J74: -34.16 | K74: 53.84 | L74: 142.58 | M74: 142.58 | N74: 241.76 | O74: 346.16

Sheet Results
B1: ='Profit Calculator'!B1:E1 -> Scenario : Sandplain Block | F1: Soil Amelioration - Results
B3: Net Benefit $/ha | D3: ='Profit Calculator'!D44 -> 346.16
B4: Av. Benefit $/ha/yr | D4: ='Profit Calculator'!D45 -> 34.616 | F4: ='Profit Calculator'!F45 -> 0.3760401503
B5: Benefit/Cost | D5: ='Profit Calculator'!D46 -> 2.114847021
B6: IRR | D6: ='Profit Calculator'!D47 -> 0.1975055799
B7: Payback Period (yrs) | D7: ='Profit Calculator'!D48 -> 6
B8: NPV $ | D8: ='Profit Calculator'!D49 -> 178.4913711 | F8: ='Profit Calculator'!F49 -> 0.06

Sheet Lime and Amelioration Costs
B1: ='Profit Calculator'!B1:E1 -> Scenario : Sandplain Block | F1: Lime and Amelioration Cost Calculator
B4: Soil Amelioration Costs | D4: Op. 1 | E4: Op. 2 | F4: Op. 3 | G4: Op.4 | H4: Total | I4: Lime Costing
D5: Spread Once | E5: Eg Deep Rip | F5: Grizzly | G5: Eg Clay and Spade | H5: Operation Cost | I5: Lime Cost | J5: Freight Cost | K5: Landed Cost | L5: Top Dresssed | M5: Deep Banded | N5: % of Deep Band in 10-20cm | O5: % of Deep Band in 20-30cm | P5: Sub Total Lime Cost | Q5: Total Soil Amelioration Cost
D6: $/ha | E6: $/ha | F6: $/ha | G6: $/ha | H6: $/ha | I6: $/t | J6: $/t | K6: $/t | L6: t/ha | M6: t/ha | N6: Band | O6: Band | P6: $/ha | Q6: $/ha
B7: 1 | C7: None | H7: 0 | Q7: 0
B8: 2 | C8: 1t Lime | D8: 8 | H8: =SUM(D8:G8) -> 8 | I8: 7.5 | J8: 22 | K8: =J8+I8 -> 29.5 | L8: 1 | O8: =1-N8 -> 1 | P8: =(L8+M8)*K8 -> 29.5 | Q8: =P8+H8 -> 37.5
B9: 3 | C9: 2t Lime | D9: 10 | H9: =SUM(D9:G9) -> 10 | I9: 7.5 | J9: 22 | K9: =J9+I9 -> 29.5 | L9: 2 | O9: =1-N9 -> 1 | P9: =(L9+M9)*K9 -> 59 | Q9: =P9+H9 -> 69
B10: 4 | C10: 3t Rip & SP | D10: 12 | E10: 70 | G10: 140 | H10: =SUM(D10:G10) -> 222 | I10: 7.5 | J10: 22 | K10: =J10+I10 -> 29.5 | L10: 2 | M10: 1 | N10: 0.5 | O10: 0.5 | P10: =(L10+M10)*K10 -> 88.5 | Q10: =P10+H10 -> 310.5
B11: 5 | C11: 4t Rip | D11: 14 | E11: 0 | H11: =SUM(D11:G11) -> 14 | I11: 7.5 | J11: 22 | K11: =J11+I11 -> 29.5 | L11: 1 | M11: 2 | N11: 0.5 | O11: 0.5 | P11: =(L11+M11)*K11 -> 88.5 | Q11: =P11+H11 -> 102.5
B12: 6 | C12: 5.5t GRZ | D12: 15 | F12: 80 | H12: =SUM(D12:G12) -> 95 | I12: 8.5 | J12: 18 | K12: =J12+I12 -> 26.5 | L12: 2 | M12: 3.5 | N12: 0.5 | O12: 0.5 | P12: =(L12+M12)*K12 -> 145.75 | Q12: =P12+H12 -> 240.75
B15: Enter the Characteristics for the lime source to be used
B17: Lime product characteristics
B18: Sieve (mm) | C18: % Weight | D18: % NV
B19: 0.000-0.125 | C19: 0.05 | D19: 0.9
B20: 0.125-0.250 | C20: 0.6 | D20: 0.9
B21: 0.250-0.500 | C21: 0.3 | D21: 0.9
B22: 0.500-1.000 | C22: 0.04 | D22: 0.8
B23: > 1.000 | C23: =1-SUM(C19:C22) -> 0.01 | D23: 0.6
C24: Weighted average NV | D24: =SUMPRODUCT(C19:C23,D19:D23) -> 0.893

Sheet Quantity of Lime to Apply
B1: ='Profit Calculator'!B1:E1 -> Scenario : Sandplain Block | F1: Lime to Apply
B3: Total Lime Required to change Top 30cm of Soil to a target pH
D4: Weighted average Neutralising Value of Lime Source | E4: 0.79 | G4: Tonnes/ha needed | H4: =H14+H24+H34 -> 3.164556962
B6: Lime Required to change Top 10cm
B7: Assumptions | H7: Percentage of
B8: Current pH | C8: 5.9 | E8: Organic Carbon | F8: 0.007 | H8: Acidification
B9: Target pH | C9: 5.5 | E9: Gravel Percentage | F9: 0.05 | H9: 0.4
B10: Change Needed | C10: =C9-C8 -> -0.4 | E10: Bulk Density | F10: 1.5
B11: Soil Type | C11: Clay | D11: Clay Loam | E11: Sandy Clay Loam | F11: Sandy Loam | G11: Sand | H11: Your Soil
B12: Soil Conversion Factor | C12: 0.26 | D12: 0.37 | E12: 0.47 | F12: 0.57 | G12: 0.67 | H12: 0.57
B13: Pure CaCo3 required | C13: =IF($F$8>2,($C$10/C12+0.4+$F7*0.5)*(1-$F9),($C$10/C12+$F7*0.5)*(1-$F9)) -> -1.461538462 | D13: =IF($F$8>2,($C$10/D12+0.4+$F7*0.5)*(1-$F9),($C$10/D12+$F7*0.5)*(1-$F9)) -> -1.027027027 | E13: =IF($F$8>2,($C$10/E12+0.4+$F7*0.5)*(1-$F9),($C$10/E12+$F7*0.5)*(1-$F9)) -> -0.8085106383 | F13: =IF($F$8>2,($C$10/F12+0.4+$F7*0.5)*(1-$F9),($C$10/F12+$F7*0.5)*(1-$F9)) -> -0.6666666667 | G13: =IF($F$8>2,($C$10/G12+0.4+$F7*0.5)*(1-$F9),($C$10/G12+$F7*0.5)*(1-$F9)) -> -0.5671641791 | H13: =IF($F$8>0.02,($C$10/H12+0.4)*(1-$F9),($C$10/H12)*(1-$F9)) -> -0.6666666667
B14: Lime Needed | C14: =(C13/$E$4+0.5*F7)*(1-F9) -> -1.757546251 | D14: =D13/$E$4 -> -1.300034211 | E14: =E13/$E$4 -> -1.023431188 | F14: =F13/$E$4 -> -0.8438818565 | G14: =G13/$E$4 -> -0.7179293406 | H14: =H13/$E$4 -> -0.8438818565
B16: Lime Required to change 10cm - 20 cm
B17: Assumptions | H17: Percentage of
B18: Current pH | C18: 4.4 | E18: Organic Carbon | F18: 0.01 | H18: Acidification
B19: Target pH | C19: 5.5 | E19: Gravel Percentage | F19: 0.05 | H19: 0.4
B20: Change Needed | C20: =C19-C18 -> 1.1 | E20: Bulk Density | F20: 1.5
B21: Soil Type | C21: Clay | D21: Clay Loam | E21: Sandy Clay Loam | F21: Sandy Loam | G21: Sand | H21: Your Soil
B22: Soil Conversion Factor | C22: 0.26 | D22: 0.37 | E22: 0.47 | F22: 0.57 | G22: 0.67 | H22: 0.57
B23: Pure CaCo3 required | C23: =IF($F$8>2,($C$10/C22+0.4+$F17*0.5)*(1-$F19),($C$10/C22+$F17*0.5)*(1-$F19)) -> -1.461538462 | D23: =IF($F$8>2,($C$10/D22+0.4+$F17*0.5)*(1-$F19),($C$10/D22+$F17*0.5)*(1-$F19)) -> -1.027027027 | E23: =IF($F$8>2,($C$10/E22+0.4+$F17*0.5)*(1-$F19),($C$10/E22+$F17*0.5)*(1-$F19)) -> -0.8085106383 | F23: =IF($F$8>2,($C$10/F22+0.4+$F17*0.5)*(1-$F19),($C$10/F22+$F17*0.5)*(1-$F19)) -> -0.6666666667 | G23: =IF($F$8>2,($C$10/G22+0.4+$F17*0.5)*(1-$F19),($C$10/G22+$F17*0.5)*(1-$F19)) -> -0.5671641791 | H23: =IF($F$18>0.02,($C$20/H22+0.4)*(1-$F19),($C$20/H22)*(1-$F19)) -> 1.833333333
B24: Lime Needed | C24: =(C23/$E$4+0.5*F17)*(1-F19) -> -1.757546251 | D24: =D23/$E$4 -> -1.300034211 | E24: =E23/$E$4 -> -1.023431188 | F24: =F23/$E$4 -> -0.8438818565 | G24: =G23/$E$4 -> -0.7179293406 | H24: =H23/$E$4 -> 2.320675105
B26: Lime Required to change 20cm - 30 cm
B27: Assumptions | H27: Percentage of
B28: Current pH | C28: 4.7 | E28: Organic Carbon | F28: 0.008 | H28: Acidification
B29: Target pH | C29: 5.5 | E29: Gravel Percentage | F29: 0.05 | H29: 0.2
B30: Change Needed | C30: =C29-C28 -> 0.8 | E30: Bulk Density | F30: 1.5
B31: Soil Type | C31: Clay | D31: Clay Loam | E31: Sandy Clay Loam | F31: Sandy Loam | G31: Sand | H31: Your Soil
B32: Soil Conversion Factor | C32: 0.26 | D32: 0.37 | E32: 0.47 | F32: 0.57 | G32: 0.67 | H32: 0.57
B33: Pure CaCo3 required | C33: =IF($F$8>2,($C$10/C32+0.4+$F27*0.5)*(1-$F29),($C$10/C32+$F27*0.5)*(1-$F29)) -> -1.461538462 | D33: =IF($F$8>2,($C$10/D32+0.4+$F27*0.5)*(1-$F29),($C$10/D32+$F27*0.5)*(1-$F29)) -> -1.027027027 | E33: =IF($F$8>2,($C$10/E32+0.4+$F27*0.5)*(1-$F29),($C$10/E32+$F27*0.5)*(1-$F29)) -> -0.8085106383 | F33: =IF($F$8>2,($C$10/F32+0.4+$F27*0.5)*(1-$F29),($C$10/F32+$F27*0.5)*(1-$F29)) -> -0.6666666667 | G33: =IF($F$8>2,($C$10/G32+0.4+$F27*0.5)*(1-$F29),($C$10/G32+$F27*0.5)*(1-$F29)) -> -0.5671641791 | H33: =IF($F$28>0.02,($C$30/H32+0.4)*(1-$F29),($C$30/H32)*(1-$F29)) -> 1.333333333
B34: Lime Needed | C34: =(C33/$E$4+0.5*F27)*(1-F29) -> -1.757546251 | D34: =D33/$E$4 -> -1.300034211 | E34: =E33/$E$4 -> -1.023431188 | F34: =F33/$E$4 -> -0.8438818565 | G34: =G33/$E$4 -> -0.7179293406 | H34: =H33/$E$4 -> 1.687763713
B36: Note: Aluminium Levels
B37: There is research which shows the aluminium content of the soil will increase
B38: the lime required at higher levels, unfortunately the method of testing through
B39: most commercial Labs isn't sophisticated enough to be relied on. So we are ignoring this effect.

Sheet Lime Requirements from Fert Use
B1: Calculation of Lime Required from Fertiliser Use and N Leaching
D2: Yield in t/ha | M2: Dse/ha | P2: Leaching Percentage | Q2: 0.33
B3: Grain Yield or Stocking Rate | D3: ='Profit Calculator'!D4 -> 1.8 | E3: ='Profit Calculator'!D5 -> 2 | F3: ='Profit Calculator'!D6 -> 0.8 | G3: ='Profit Calculator'!$D7 -> 1 | H3: ='Profit Calculator'!$D8 -> 4 | I3: ='Profit Calculator'!$D9 -> 1 | J3: ='Profit Calculator'!$D10 -> 1 | K3: ='Profit Calculator'!$D11 -> 1 | L3: ='Profit Calculator'!$D12 -> 1 | M3: ='Profit Calculator'!$D15 -> 2.5 | O3: Acidification due to N cycle (kg CaCO3/kg N)
B4: Enter your typical fertiliser strategies for each crop | D4: ='Profit Calculator'!C4 -> Wheat | E4: ='Profit Calculator'!C5 -> Barley | F4: ='Profit Calculator'!C6 -> Canola | G4: ='Profit Calculator'!$C7 -> Lupins | H4: ='Profit Calculator'!$C8 -> Hay | I4: ='Profit Calculator'!$C9 -> Other | J4: ='Profit Calculator'!$C10 -> Other | K4: ='Profit Calculator'!$C11 -> Other | L4: ='Profit Calculator'!$C12 -> Other | M4: ='Profit Calculator'!$C15 -> Pasture | N4: kg of N per kg or L of product | O4: 0% nitrogen leaching | P4: 100% nitrogen leaching | Q4: ="This scenario ("&TEXT(Q2,"0%")&" leaching)" -> This scenario (33% leaching)
D5: ='Profit Calculator'!B4 -> W | E5: ='Profit Calculator'!B5 -> B | F5: ='Profit Calculator'!B6 -> Cn | G5: ='Profit Calculator'!$B7 -> L | H5: ='Profit Calculator'!$B8 -> H | I5: ='Profit Calculator'!$B9 -> O | J5: ='Profit Calculator'!$B10 -> O | K5: ='Profit Calculator'!$B11 -> O | L5: ='Profit Calculator'!$B12 -> O | M5: ='Profit Calculator'!$B15 -> P
B6: Ammonium sulphate (kg/ha) | F6: 100 | N6: 0.22 | O6: 3.6 | P6: 7.2 | Q6: =O6+((P6-O6)*$Q$2) -> 4.788
B7: DAP based fertilisers (kg/ha) | D7: 40 | E7: 40 | F7: 40 | G7: 30 | H7: 50 | N7: 0.175 | O7: 1.8 | P7: 5.4 | Q7: =O7+((P7-O7)*$Q$2) -> 2.988
B8: MAP based compunds (kg/ha) | N8: 0.11 | O8: 3.6 | P8: 7.2 | Q8: 4.788
B9: Potassium Nitrate (kg/ha) | N9: 0.11 | O9: -3.6 | P9: 0 | Q9: -2.412
B10: Urea (kg/ha) | D10: 40 | E10: 40 | H10: 120 | I10: 20 | J10: 40 | K10: 50 | L10: 60 | N10: 0.46 | O10: 0 | P10: 3.6 | Q10: 1.188
B11: CAN (kg/ha) | N11: 0.27 | O11: =-0.7 -> -0.7 | P11: 2.9 | Q11: =O11+((P11-O11)*$Q$2) -> 0.488
B12: Liquid UAN (litres/ha) | D12: 50 | E12: 50 | F12: 50 | N12: 0.422 | O12: 0 | P12: 3.6 | Q12: 1.188
B13: Legume-fixed nitrogen (kg/ha) | G13: =G3*60 -> 60 | M13: 30 | N13: 1 | O13: 0 | P13: 3.6 | Q13: 1.188
B14: Acidification (kg CaCO3/ha/t) | D14: =IF(D3=0,0,SUMPRODUCT(D6:D13,$N$6:$N$13,$Q$6:$Q$13)/D3) -> 37.69 | E14: 33.921 | F14: 189.1485 | G14: 86.967 | H14: 22.93065 | I14: 10.9296 | J14: 21.8592 | K14: 27.324 | L14: 32.7888 | M14: 14.256
B16: Nitrate leaching estimates reference table
C17: Soil texture
B18: Rainfall zone | C18: Sand | D18: Sandy loam | E18: Loam | G18: Clay loam | H18: Clay
B19: Less than 325mm | C19: 0.5 | D19: 0.3 | E19: 0.1 | G19: 0 | H19: 0
B20: 325 - 450 mm | C20: 0.65 | D20: 0.45 | E20: 0.25 | G20: 0.05 | H20: 0
B21: 450 - 750 mm | C21: 0.8 | D21: 0.6 | E21: 0.4 | G21: 0.2 | H21: 0
B22: Greater than 750 mm | C22: 0.95 | D22: 0.75 | E22: 0.55 | G22: 0.35 | H22: 0.15
B23: Saturated soil scenario | C23: 0.95 | D23: 0.75 | E23: 0.55 | G23: 0.35 | H23: 0.15
B27: Derivation of stocking rate, wool and meat production
B28: Pasture intake per dry sheep equiv (kg DM/DSE/day) | G28: 1.5
B29: Pasture utlisation | G29: 0.6
B30: Pasture growth required per DSE (t DM/ha) | G30: =(G28*365)/G29/1000 -> 0.9125
B31: Average weight of greasy wool per DSE (kg) | G31: 4
B32: Average liveweight (kg/DSE) | G32: 50
B34: Notes on calculation of residue organic nitrogen from legumes
B35: For legume crops, Optlime assumes 60kg N / t grain produced.
B36: This is based on ready reckoners from Bowden & Burgess (1993) and assumes a harvest index of 0.25.
B38: For legume pasture, Optlime assumes 50% legume content, which results in 20kg N / t DM produced.
B39: Following Bowden & Burgess, a 'run down factor' of 2/3 is assumed to allow for losses.
B41: Reference: | C41: Bowden & Burgess (1993), 'Estimating Soil Nitrogen Status: Ready Reckoners', Dept Agric Technote 6/93.

Sheet Lime Export Table
B1: Lime Export Data
B3: Acidification due to product removal
C4: kg CaCO3 equiv / t or kg
B5: Wheat | C5: 2.25
B6: Barley | C6: 3
B7: Canola | C7: 2.25
B8: Lupins | C8: 12.5
B9: Grain legumes | C9: 10
B10: Hay | C10: 30
B11: Source : Optilime
B13: Other Lime Export Data
B14: Produce removed | C14: Lime requirement (kg lime/tonne product)
B15: Hay – grass dominant | C15: 30
B16: Mixed clover/grass hay | C16: 35
B17: Annual legume dominant hay | C17: 45
B18: Clean lucerne hay | C18: 70
B19: Cereal hay | C19: 25
B20: Maize silage | C20: 40
B21: Wheat grain | C21: 9
B22: Triticale | C22: 7
B23: Barley | C23: 8
B24: Canola | C24: 25
B25: Lupins | C25: 20
B27: Animal product | C27: kg lime required/ha
B28: Meat (assume stocking rate of 10 DSE/ha largely set stocked) | C28: 30A,B
B29: Wool (10 DSE/ha at 6 kg/wool/sheep) | C29: 25A,B
B31: AMost of the lime requirement, 24 kg, is due to net transfer of urine and dung to stock camp areas.
B32: BFor every DSE/ha over 10 DSE/ha add a further lime requirement of 3 kg lime/ha/DSE.

Sheet Wheat Response Tables
B1: Wheat
B2: Wheat Yield Response compared to the Control Plots
B3: Years after | C3: Liming Rates
B4: Liming | C4: High | D4: Med | E4: Low | F4: Low | G4: None | H4: Notes | I4: Location
I5: Liebe Area
B6: 2 | E6: 0.9925925926 | F6: 0.9703703704 | G6: 1 | H6: High Yield | I6: Helliwell
B7: 3 | C7: Deep Ripped | E7: 1.162650602 | G7: 1 | H7: High Yield | I7: Helliwell
B8: 3 | C8: Not Deep Ripped | E8: 1.06 | H8: High Yield | I8: Helliwell
B9: 12 | D9: 1.102272727 | E9: 1.056818182 | G9: 1 | H9: High Yield | I9: King
B10: 1 | D10: 1.153153153 | E10: 1.144144144 | G10: 1 | H10: Low Yield | I10: Bryant 1
B11: 1 | C11: 1.174193548 | D11: 1.064516129 | G11: 1 | H11: Average | I11: Bryant 2
B12: 3 | C12: 1.512820513 | D12: 1.128205128 | G12: 1 | H12: Drought | I12: Bryant 2
B13: 2 | D13: 1.32885906 | E13: 1.228187919 | G13: 1 | H13: Average | I13: Holt Rock
B14: 5 | D14: 1 | E14: 1 | G14: 1 | H14: Drought | I14: Holt Rock
B15: 1 | D15: 1 | G15: 1 | H15: Average | I15: Bindi Bindi
B16: 3 | D16: 1.125 | G16: 1 | H16: Low Yield | I16: Bindi Bindi
B17: 9 | D17: 1.28 | G17: 1 | H17: High Yield | I17: Bindi Bindi
B18: 12 | D18: 1.115384615 | G18: 1 | H18: High Yield | I18: Bindi Bindi
B19: 18 | C19: 1.2069 | D19: 1.1034 | E19: 1.1379 | F19: 1.137931034 | G19: 1 | H19: High Yield | I19: Kellerberrin
B20: 1 | D20: 1.02 | E20: 1.01 | G20: 1 | H20: 19 Trials | I20: DAFWA
B21: 3 | D21: 1.13 | E21: 1.08 | G21: 1 | H21: 35 trials | I21: DAFWA
B22: 6 | D22: 1.12 | E22: 1.06 | G22: 1 | H22: 18 Trials | I22: DAFWA
B26: Years | C26: > 2.5t | D26: 1.5t -2.5t | E26: < 1.5t | H26: No Lime
B27: 1 | C27: 1.08 | D27: 1.05 | E27: 1.01 | G27: 1 | H27: 1 | I27: Typical
B28: 3 | C28: 1.25 | D28: 1.13 | E28: 1.08 | G28: 1 | H28: 1 | I28: Response
B29: 6 | C29: 1.23 | D29: 1.12 | E29: 1.0675 | G29: 1 | H29: 1 | I29: Compared
B30: 10 | C30: 1.2 | D30: 1.1 | E30: 1.06 | H30: 1 | I30: to Control
B31: 15 | C31: 1.2 | D31: 1.1 | E31: 1.06 | H31: 1
B34: Years | C34: > 2.5t | D34: Likely pH (0-30cm) | E34: 1.5t -2.5t | H34: Likely pH (0-30cm) | I34: < 1.5t | J34: Likely pH (0-30cm) | K34: No Lime | L34: Likely pH (0-30cm)
B35: 0 | C35: 1 | D35: 4.6 | E35: 1 | H35: 4.6 | I35: 1 | J35: 4.6 | K35: 1 | L35: 4.6
B36: 1 | C36: 1.08 | D36: 5.2 | E36: 1.05 | H36: 4.9 | I36: 1.01 | J36: 4.8 | K36: 0.99 | L36: 4.6
B37: 2 | C37: 1.15 | D37: 5.5 | E37: 1.08 | H37: 5.2 | I37: 1.04 | J37: 5 | K37: 0.98 | L37: 4.5
B38: 3 | C38: 1.22 | D38: 5.6 | E38: 1.1 | H38: 5.2 | I38: 1.06 | J38: 5 | K38: 0.97 | L38: 4.5
B39: 4 | C39: 1.21 | D39: 5.6 | E39: 1.08 | H39: 5.1 | I39: 1.04 | J39: 4.9 | K39: 0.96 | L39: 4.5
B40: 5 | C40: 1.19 | D40: 5.5 | E40: 1.06 | H40: 5 | I40: 1.02 | J40: 4.8 | K40: 0.95 | L40: 4.4
B41: 6 | C41: 1.17 | D41: 5.4 | E41: 1.04 | H41: 4.9 | I41: 1 | J41: 4.7 | K41: 0.94 | L41: 4.4
B42: 7 | C42: 1.15 | D42: 5.3 | E42: 1.03 | H42: 4.8 | I42: 0.98 | J42: 4.6 | K42: 0.93 | L42: 4.4
B43: 8 | C43: 1.13 | D43: 5.3 | E43: 1.02 | H43: 4.7 | I43: 0.97 | J43: 4.5 | K43: 0.92 | L43: 4.4
B44: 9 | C44: 1.11 | D44: 5.3 | E44: 1.01 | H44: 4.6 | I44: 0.96 | J44: 4.5 | K44: 0.91 | L44: 4.3
B45: 10 | C45: 1.1 | D45: 5.2 | E45: 1 | H45: 4.6 | I45: 0.95 | J45: 4.4 | K45: 0.9 | L45: 4.3
B46: 11 | C46: 1.09 | D46: 5.2 | E46: 0.99 | H46: 4.6 | I46: 0.94 | J46: 4.4 | K46: 0.89 | L46: 4.3
B47: 12 | C47: 1.08 | D47: 5.2 | E47: 0.98 | H47: 4.5 | I47: 0.93 | J47: 4.4 | K47: 0.88 | L47: 4.3
B48: 13 | C48: 1.07 | D48: 5.2 | E48: 0.97 | H48: 4.5 | I48: 0.92 | J48: 4.3 | K48: 0.87 | L48: 4.2
B49: 14 | C49: 1.06 | D49: 5.1 | E49: 0.96 | H49: 4.5 | I49: 0.91 | J49: 4.3 | K49: 0.86 | L49: 4.2
B50: 15 | C50: 1.05 | D50: 5.1 | E50: 0.95 | H50: 4.4 | I50: 0.9 | J50: 4.3 | K50: 0.85 | L50: 4.1
B51: 16

Sheet Help
C1: Cell Comments
C2: Any Cell which has a red triangle in the top right hand corner will have a comment to
C3: help with the data that is required for the cell or row/column associated with the cells.
C5: If you put your cursor over the cell the comment will appear as shown in the screen shot below.

Sheet Site&Soil (hidden)
C6: 1. Initial soil characteristics
E8: 0-10 cm | F8: 10-20 cm | G8: 20-30 cm
C9: Soil texture | E9: 5 | F9: 1 | G9: 1
C10: Gravel % | E10: ='Quantity of Lime to Apply'!F9 -> 0.05 | F10: ='Quantity of Lime to Apply'!F19 -> 0.05 | G10: ='Quantity of Lime to Apply'!F29 -> 0.05
C11: Initial pH (CaCl2) | E11: ='Quantity of Lime to Apply'!C8 -> 5.9 | F11: ='Quantity of Lime to Apply'!C18 -> 4.4 | G11: ='Quantity of Lime to Apply'!C28 -> 4.7
C12: Organic carbon % | E12: ='Quantity of Lime to Apply'!F8 -> 0.007 | F12: ='Quantity of Lime to Apply'!F18 -> 0.01 | G12: ='Quantity of Lime to Apply'!F28 -> 0.008
C14: Bulk density (g/cm3) | E14: ='Quantity of Lime to Apply'!F10 -> 1.5 | F14: ='Quantity of Lime to Apply'!F20 -> 1.5 | G14: ='Quantity of Lime to Apply'!F30 -> 1.5
C15: Saturated water content | E15: =(2.6-E14)/2.6 -> 0.4230769231 | F15: =(2.6-F14)/2.6 -> 0.4230769231 | G15: =(2.6-G14)/2.6 -> 0.4230769231
C20: 2. Rainfall zone and nitrate leaching assumptions
C23: Average annual rainfall | F23: 3
C25: Enter user-defined nitrate leaching here | G25: ='Lime Requirements from Fert Use'!Q2 -> 0.33
C26: or use this default nitrate leaching value | G26: =E195 -> 0.5333333333 | H26: FALSE
C27: Model input nitrate leaching | G27: =IF(H26=TRUE,G26,G25) -> 0.33
C83: 6. Cost of surface application of lime
C89: Cost of spreading 1 t/ha of lime | F89: 10
C91: The reference cost must be at least $5.
C97: 7. Cost of deep banding lime
H99: Calculation of cash costs | M99: Calculation of variable depreciation
H100: Deep ripper width | J100: 7 | K100: m | M100: Current value of tractor | O100: =0.5*J109 -> 65000
H101: Working speed | J101: 5 | K101: km/hr | M101: Dep'n if used to rip 200 ha | O101: 0.1
H102: Field efficiency | J102: 0.6 | M102: Dep'n if left in shed | O102: 0.025
H103: Work rate | J103: =10000/(J100*J101*1000*J102) -> 0.4761904762 | K103: hr/ha | M103: Variable dep'n of tractor | O103: =(O100*(O101-O102))/200 -> 24.375 | P103: /ha
H104: Working depth | J104: 25 | K104: cm
H105: Tractor engine load | J105: 110 | K105: kW | M105: Current value of ripper | O105: 10000
H106: Tractor fuel use | J106: =1/3*J105 -> 36.66666667 | K106: L/hr | M106: Dep'n if used to treat 200 ha | O106: 0.1
H107: Fuel price (net) | J107: 1.1 | K107: /L | M107: Dep'n if left in shed | O107: 0.025
H108: Total fuel cost | J108: =J103*J106*J107 -> 19.20634921 | K108: /ha | M108: Variable dep'n of ripper | O108: =(O105*(O106-O107))/200 -> 3.75 | P108: /ha
H109: Tractor purchase price new | J109: 130000
H110: Annual usage | J110: 300 | K110: hr | M110: Total variable depreciation | O110: =O103+O108 -> 28.125 | P110: /ha
H111: Tractor repairs & maint. | J111: =0.035*J109/J110*J103 -> 7.222222222 | K111: /ha
H112: Ripper repairs & maint. | J112: 3 | K112: /ha
H113: Spreader repairs & maint. | J113: 1 | K113: /ha
H114: Total cash costs | J114: =J108+SUM(J111:J113) -> 30.42857143 | K114: /ha
C156: List of soil types | E156: List of rainfall zones
C157: Sand | E157: Less than 325mm
C158: Sand-loam | E158: 325 - 450 mm
C159: Loam | E159: 450 - 750 mm
C160: Clay loam | E160: Greater than 750 mm
C161: Clay | E161: Saturated soil scenario
C164: Parameter values for exch Al (me%) curve calculation
D165: a | E165: b
C166: Low | D166: 160000 | E166: -2.8
C167: Moderate | D167: 155000 | E167: -2.65
C168: High | D168: 150000 | E168: -2.5
C177: Nitrate leaching estimates reference table
D178: Soil texture
C179: Rainfall zone | D179: Sand | E179: Sandy loam | F179: Loam | G179: Clay loam | H179: Clay
C180: Less than 325mm | D180: 0.5 | E180: 0.3 | F180: 0.1 | G180: 0 | H180: 0
C181: 325 - 450 mm | D181: 0.65 | E181: 0.45 | F181: 0.25 | G181: 0.05 | H181: 0
C182: 450 - 750 mm | D182: 0.8 | E182: 0.6 | F182: 0.4 | G182: 0.2 | H182: 0
C183: Greater than 750 mm | D183: 0.95 | E183: 0.75 | F183: 0.55 | G183: 0.35 | H183: 0.15
C184: Saturated soil scenario | D184: 0.95 | E184: 0.75 | F184: 0.55 | G184: 0.35 | H184: 0.15
C187: Calculation of default nitrate leaching
C188: Selected rainfall zone # | E188: =F23 -> 3
D190: Selected soil texture # | E190: Leaching factor
C191: 0-10 cm | D191: =E9 -> 5 | E191: =OFFSET($C$179,$E$188,D191) -> 0
C192: 10-20 cm | D192: =F9 -> 1 | E192: =OFFSET($C$179,$E$188,D192) -> 0.8
C193: 20-30 cm | D193: =G9 -> 1 | E193: =OFFSET($C$179,$E$188,D193) -> 0.8
C195: Overall average | E195: =AVERAGE(E191:E193) -> 0.5333333333 | F195: (this value becomes the default nitrate leaching figure)
C198: Parameter values for lime dissolution calculation
C199: Parameter | D199: Description | I199: Value | J199: Units
C200: k | D200: Rate constant | I200: 1 | J200: Constant
C201: pH_Equilibrium | D201: Equilibrium pH | I201: 7.5 | J201: pH, CaCl2
C202: pH_Leach_A | D202: Min pH before dissolved lime or excess alkali can leach out of 0-10 cm layer | I202: 5 | J202: pH, CaCl2
C203: pH_Leach_B | D203: Min pH before dissolved lime or excess alkali can leach out of 10-20 cm layer | I203: 5 | J203: pH, CaCl2
C204: pH_Leach_B | D204: Min pH before dissolved lime or excess alkali can leach out of 20-30 cm layer | I204: 5 | J204: pH, CaCl2
C205: Lime_Leach_Max | D205: Max prop'n of dissolved lime that can leach in any month | I205: 0.1 | J205: scalar, 0 - 1
C206: Lime_Leak | D206: Prop'n of dissolved lime that moves down regardless of pH | I206: 0.1 | J206: scalar, 0 - 1
C207: Alkali_Leach_Max | D207: Max prop'n of excess alkali that can leach in any month | I207: 0.1 | J207: scalar, 0 - 1
C210: Soil water content scalars
C211: 0-10cm horizon
C212: Mean | E212: 8 | F212: 8 | G212: 8 | H212: 8
C213: Std deviation | E213: 1.5 | F213: 2.5 | G213: 4 | H213: 6
E215: Average annual rainfall zone
C216: Month | D216: Monthref | E216: Less than 325mm | F216: 325 - 450 mm | G216: 450 - 750 mm | H216: Greater than 750 mm | I216: Saturated soil scenario | J216: Selected volumetric water content | K216: Soil water content scalar (0 - 1)
C217: Jan | D217: 1 | E217: =(NORMDIST($D217,E$212,E$213,FALSE)/NORMDIST(E$212,E$212,E$213,FALSE))*Soil_SWC_A -> 7.896506163e-06 | F217: 0.008394309315 | G217: 0.09149680135 | H217: 0.2142189147 | I217: =Soil_SWC_A -> 0.4230769231 | J217: =OFFSET(D217,0,$F$23) -> 0.09149680135 | K217: =(J217/Soil_SWC_A)^2 -> 0.04677062238
C218: Feb | D218: 2 | E218: 0.0001419264964 | F218: 0.02374932274 | G218: 0.137352967 | H218: 0.2566091253 | I218: 0.4230769231 | J218: 0.137352967 | K218: 0.1053992246
C219: Mar | D219: 3 | E219: 0.001635581597 | F219: 0.05725723522 | G219: 0.19369873 | H219: 0.2989665791 | I219: 0.4230769231 | J219: 0.19369873 | K219: 0.2096113872
C220: Apr | D220: 4 | E220: 0.01208540418 | F220: 0.1176311656 | G220: 0.2566091253 | H220: 0.3387735166 | I220: 0.4230769231 | J220: 0.2566091253 | K220: 0.3678794412
C221: May | D221: 5 | E221: 0.05725723522 | F221: 0.2059336468 | G221: 0.3193552162 | H221: 0.3733640742 | I221: 0.4230769231 | J221: 0.3193552162 | K221: 0.5697828247
C222: Jun | D222: 6 | E222: 0.1739321229 | F222: 0.3072169003 | G222: 0.3733640742 | H222: 0.4002136215 | I222: 0.4230769231 | J222: 0.3733640742 | K222: 0.7788007831
C223: Jul | D223: 7 | E223: 0.3387735166 | F223: 0.3905492235 | G223: 0.4100602146 | H223: 0.4172414725 | I223: 0.4230769231 | J223: 0.4100602146 | K223: 0.9394130628
C224: Aug | D224: 8 | E224: 0.4230769231 | F224: 0.4230769231 | G224: 0.4230769231 | H224: 0.4230769231 | I224: 0.4230769231 | J224: 0.4230769231 | K224: 1
C225: Sep | D225: 9 | E225: 0.3387735166 | F225: 0.3905492235 | G225: 0.4100602146 | H225: 0.4172414725 | I225: 0.4230769231 | J225: 0.4100602146 | K225: 0.9394130628
C226: Oct | D226: 10 | E226: 0.1739321229 | F226: 0.3072169003 | G226: 0.3733640742 | H226: 0.4002136215 | I226: 0.4230769231 | J226: 0.3733640742 | K226: 0.7788007831
C227: Nov | D227: 11 | E227: 0.05725723522 | F227: 0.2059336468 | G227: 0.3193552162 | H227: 0.3733640742 | I227: 0.4230769231 | J227: 0.3193552162 | K227: 0.5697828247
C228: Dec | D228: 12 | E228: 0.01208540418 | F228: 0.1176311656 | G228: 0.2566091253 | H228: 0.3387735166 | I228: 0.4230769231 | J228: 0.2566091253 | K228: 0.3678794412
C232: 10-20cm horizon
C233: Mean | E233: 8 | F233: 8 | G233: 8 | H233: 8
C234: Std deviation | E234: 2.5 | F234: 3.5 | G234: 5 | H234: 7
E236: Average annual rainfall zone
C237: Month | D237: Monthref | E237: Less than 325mm | F237: 325 - 450 mm | G237: 450 - 750 mm | H237: Greater than 750 mm | I237: Saturated soil scenario | J237: Selected volumetric water content | K237: Soil water content scalar (0 - 1)
C238: Jan | D238: 1 | E238: =(NORMDIST($D238,E$233,E$234,FALSE)/NORMDIST(E$233,E$233,E$234,FALSE))*Soil_SWC_B -> 0.008394309315 | F238: 0.05725723522 | G238: 0.1587854649 | H238: 0.2566091253 | I238: =Soil_SWC_B -> 0.4230769231 | J238: =OFFSET(D238,0,$F$23) -> 0.1587854649 | K238: =(J238/Soil_SWC_B)^2 -> 0.1408584209
C239: Feb | D239: 2 | E239: 0.02374932274 | F239: 0.09733574188 | G239: 0.2059336468 | H239: 0.2930100987 | I239: 0.4230769231 | J239: 0.2059336468 | K239: 0.2369277587
C240: Mar | D240: 3 | E240: 0.05725723522 | F240: 0.1524971413 | G240: 0.2566091253 | H240: 0.3278158353 | I240: 0.4230769231 | J240: 0.2566091253 | K240: 0.3678794412
C241: Apr | D241: 4 | E241: 0.1176311656 | F241: 0.2201904358 | G241: 0.3072169003 | H241: 0.3593470762 | I241: 0.4230769231 | J241: 0.3072169003 | K241: 0.527292424
C242: May | D242: 5 | E242: 0.2059336468 | F242: 0.2930100987 | G242: 0.353383551 | H242: 0.3859536479 | I242: 0.4230769231 | J242: 0.353383551 | K242: 0.6976763261
C243: Jun | D243: 6 | E243: 0.3072169003 | F243: 0.3593470762 | G243: 0.3905492235 | H243: 0.4061561482 | I243: 0.4230769231 | J243: 0.3905492235 | K243: 0.852143789
C244: Jul | D244: 7 | E244: 0.3905492235 | F244: 0.4061561482 | G244: 0.4146994387 | H244: 0.418781763 | I244: 0.4230769231 | J244: 0.4146994387 | K244: 0.9607894392
C245: Aug | D245: 8 | E245: 0.4230769231 | F245: 0.4230769231 | G245: 0.4230769231 | H245: 0.4230769231 | I245: 0.4230769231 | J245: 0.4230769231 | K245: 1
C246: Sep | D246: 9 | E246: 0.3905492235 | F246: 0.4061561482 | G246: 0.4146994387 | H246: 0.418781763 | I246: 0.4230769231 | J246: 0.4146994387 | K246: 0.9607894392
C247: Oct | D247: 10 | E247: 0.3072169003 | F247: 0.3593470762 | G247: 0.3905492235 | H247: 0.4061561482 | I247: 0.4230769231 | J247: 0.3905492235 | K247: 0.852143789
C248: Nov | D248: 11 | E248: 0.2059336468 | F248: 0.2930100987 | G248: 0.353383551 | H248: 0.3859536479 | I248: 0.4230769231 | J248: 0.353383551 | K248: 0.6976763261
C249: Dec | D249: 12 | E249: 0.1176311656 | F249: 0.2201904358 | G249: 0.3072169003 | H249: 0.3593470762 | I249: 0.4230769231 | J249: 0.3072169003 | K249: 0.527292424
C253: 20-30cm horizon
C254: Mean | E254: 8 | F254: 8 | G254: 8 | H254: 8
C255: Std deviation | E255: 3 | F255: 4.5 | G255: 7 | H255: 9
E257: Average annual rainfall zone
C258: Month | D258: Monthref | E258: Less than 325mm | F258: 325 - 450 mm | G258: 450 - 750 mm | H258: Greater than 750 mm | I258: Saturated soil scenario | J258: Selected volumetric water content | K258: Soil water content scalar (0 - 1)
C259: Jan | D259: 1 | E259: =(NORMDIST($D259,E$254,E$255,FALSE)/NORMDIST(E$254,E$254,E$255,FALSE))*Soil_SWC_C -> 0.02780822365 | F259: 0.1261759638 | G259: 0.2566091253 | H259: 0.3126501638 | I259: =Soil_SWC_C -> 0.4230769231 | J259: =OFFSET(D259,0,$F$23) -> 0.2566091253 | K259: =(J259/Soil_SWC_C)^2 -> 0.3678794412
C260: Feb | D260: 2 | E260: 0.05725723522 | F260: 0.1739321229 | G260: 0.2930100987 | H260: 0.3387735166 | I260: 0.4230769231 | J260: 0.2930100987 | K260: 0.4796522688
C261: Mar | D261: 3 | E261: 0.1054951653 | F261: 0.2282108684 | G261: 0.3278158353 | H261: 0.3625756079 | I261: 0.4230769231 | J261: 0.3278158353 | K261: 0.6003730412
C262: Apr | D262: 4 | E262: 0.1739321229 | F262: 0.285000885 | G262: 0.3593470762 | H262: 0.3832887347 | I262: 0.4230769231 | J262: 0.3593470762 | K262: 0.7214222904
C263: May | D263: 5 | E263: 0.2566091253 | F263: 0.3387735166 | G263: 0.3859536479 | H263: 0.4002136215 | I263: 0.4230769231 | J263: 0.3859536479 | K263: 0.8322075007
C264: Jun | D264: 6 | E264: 0.3387735166 | F264: 0.3832887347 | G264: 0.4061561482 | H264: 0.4127584916 | I264: 0.4230769231 | J264: 0.4061561482 | K264: 0.9216104473
C265: Jul | D265: 7 | E265: 0.4002136215 | F265: 0.4127584916 | G265: 0.418781763 | H265: 0.420473381 | I265: 0.4230769231 | J265: 0.418781763 | K265: 0.9797986739
C266: Aug | D266: 8 | E266: 0.4230769231 | F266: 0.4230769231 | G266: 0.4230769231 | H266: 0.4230769231 | I266: 0.4230769231 | J266: 0.4230769231 | K266: 1
C267: Sep | D267: 9 | E267: 0.4002136215 | F267: 0.4127584916 | G267: 0.418781763 | H267: 0.420473381 | I267: 0.4230769231 | J267: 0.418781763 | K267: 0.9797986739
C268: Oct | D268: 10 | E268: 0.3387735166 | F268: 0.3832887347 | G268: 0.4061561482 | H268: 0.4127584916 | I268: 0.4230769231 | J268: 0.4061561482 | K268: 0.9216104473
C269: Nov | D269: 11 | E269: 0.2566091253 | F269: 0.3387735166 | G269: 0.3859536479 | H269: 0.4002136215 | I269: 0.4230769231 | J269: 0.3859536479 | K269: 0.8322075007
C270: Dec | D270: 12 | E270: 0.1739321229 | F270: 0.285000885 | G270: 0.3593470762 | H270: 0.3832887347 | I270: 0.4230769231 | J270: 0.3593470762 | K270: 0.7214222904
C273: Calculation of default yields using French-Schultz approach
F274: Wheat (t/ha) | G274: Barley (t/ha) | H274: Canola (t/ha) | I274: Lupins (t/ha) | J274: Grain legume (t/ha) | K274: Hay (t/ha) | L274: Pasture (t DM/ha) | M274: Stocking rate (DSE/ha) | N274: Wool (greasy kg/ha) | O274: Meat (live kg/ha)
E275: Water loss | F275: 110 | G275: 90 | H275: 110 | I275: 130 | J275: 130 | K275: 70 | L275: 70
E276: WUE | F276: 15 | G276: 15 | H276: 10 | I276: 10 | J276: 10 | K276: 40 | L276: 45
D277: Ann RF | E277: GSR | F277: 0.75 | G277: 0.75 | H277: 0.75 | I277: 0.75 | J277: 0.75 | K277: 0.75 | L277: 0.5 | M277: <- scaling factor to adjust from theoretical potential to realistic field observation
C278: Less than 325mm | D278: 300 | E278: =0.7*D278 -> 210 | F278: =(($E278-1/3*$E278)*F$276*F277)/1000 -> 1.575 | G278: =(($E278-1/3*$E278)*G$276*G277)/1000 -> 1.575 | H278: 1.05 | I278: 1.05 | J278: 1.05 | K278: 4.2 | L278: 3.15 | M278: =$L278/$M$287 -> 3.452054795 | N278: =M278*$M$288 -> 13.80821918 | O278: =M278*$M$289 -> 172.6027397
C279: 325 - 450 mm | D279: 387.5 | E279: =0.7*D279 -> 271.25 | F279: =(($E279-F$275)*F$276*F$277)/1000 -> 1.8140625 | G279: =(($E279-G$275)*G$276*G$277)/1000 -> 2.0390625 | H279: 1.209375 | I279: 1.059375 | J279: 1.059375 | K279: 6.0375 | L279: 4.528125 | M279: =$L279/$M$287 -> 4.962328767 | N279: =M279*$M$288 -> 19.84931507 | O279: =M279*$M$289 -> 248.1164384
C280: 450 - 750 mm | D280: 600 | E280: =0.7*D280 -> 420 | F280: =(($E280-F$275)*F$276*F$277)/1000 -> 3.4875 | G280: 3.7125 | H280: 2.325 | I280: 2.175 | J280: 2.175 | K280: 10.5 | L280: 7.875 | M280: =$L280/$M$287 -> 8.630136986 | N280: =M280*$M$288 -> 34.52054795 | O280: =M280*$M$289 -> 431.5068493
C281: Greater than 750 mm | D281: 800 | E281: =0.7*D281 -> 560 | F281: 5.0625 | G281: 5.2875 | H281: 3.375 | I281: 3.225 | J281: 3.225 | K281: 14.7 | L281: 11.025 | M281: =$L281/$M$287 -> 12.08219178 | N281: =M281*$M$288 -> 48.32876712 | O281: =M281*$M$289 -> 604.109589
C282: Saturated soil scenario | D282: 800 | E282: =0.7*D282 -> 560 | F282: 5.0625 | G282: 5.2875 | H282: 3.375 | I282: 3.225 | J282: 3.225 | K282: 14.7 | L282: 11.025 | M282: =$L282/$M$287 -> 12.08219178 | N282: =M282*$M$288 -> 48.32876712 | O282: =M282*$M$289 -> 604.109589
I284: Derivation of stocking rate, wool and meat production
I285: Pasture intake per dry sheep equiv (kg DM/DSE/day) | M285: 1.5
I286: Pasture utlisation | M286: 0.6
I287: Pasture growth required per DSE (t DM/ha) | M287: =(M285*365)/M286/1000 -> 0.9125
I288: Average weight of greasy wool per DSE (kg) | M288: 4
I289: Average liveweight per DSE (kg) | M289: 50
I291: Notes on calculation of residue organic nitrogen from legumes
I292: For legume crops, Optlime assumes 60kg N / t grain produced.
I293: This is based on ready reckoners from Bowden & Burgess (1993) and assumes a harvest index of 0.25.
I295: For legume pasture, Optlime assumes 50% legume content, which results in 20kg N / t DM produced.
I296: Following Bowden & Burgess, a 'run down factor' of 2/3 is assumed to allow for losses.
I298: Reference: | J298: Bowden & Burgess (1993), 'Estimating Soil Nitrogen Status: Ready Reckoners', Dept Agric Technote 6/93.
C303: Parameter values for yield index curves
E304: 0 - 10 cm yield index | G304: 10 - 20 cm yield index | I304: 20 - 30 cm yield index
C305: Tolerance class | D305: Description | E305: a | F305: b | G305: a | H305: b | I305: a | J305: b
C306: 1 | D306: Most tolerant | E306: 6 | F306: 3.4 | G306: 0.0638 | H306: 39.99 | I306: 0.2598 | J306: 28.85
C307: 2 | E307: 5.25 | F307: 3.475 | G307: 0.3041 | H307: 15.3 | I307: 0.2625 | J307: 28.5
C308: 3 | E308: 4.5 | F308: 3.55 | G308: 0.2031 | H308: 12.6 | I308: 0.2878 | J308: 19.01
C309: 4 | E309: 3.75 | F309: 3.625 | G309: 0.1836 | H309: 9.17 | I309: 0.2781 | J309: 14.89
C310: 5 | E310: 3 | F310: 3.7 | G310: 0.1642 | H310: 7.58 | I310: 0.2642 | J310: 12.52
C311: 6 | E311: 2.25 | F311: 3.775 | G311: 0.1405 | H311: 6.29 | I311: 0.2594 | J311: 10.24
C312: 7 | E312: 1.7 | F312: 3.85 | G312: 0.1242 | H312: 4.92 | I312: 0.2697 | J312: 8.44
C313: 8 | D313: Least tolerant | E313: 1.4 | F313: 3.925 | G313: 0.0999 | H313: 4.04 | I313: 0.243 | J313: 7.8
C316: Functional form of topsoil yield index is: | G316: Y = 1 - exp(-a * max(0,pH - b))
C317: Functional form of subsoil yield indicies is: | G317: Y = a * 1 / (a + (1 - a) * exp(-b * 1 / [Al]))
C320: Acidification due to product removal
D321: kmol H+ / t or kg | E321: kg CaCO3 equiv / t or kg
C322: Wheat | D322: 0.045 | E322: =D322/2*100 -> 2.25
C323: Barley | D323: 0.06 | E323: =D323/2*100 -> 3
C324: Canola | D324: 0.045 | E324: 2.25
C325: Lupins | D325: 0.25 | E325: 12.5
C326: Grain legumes | D326: 0.2 | E326: 10
C327: Hay | D327: 0.6 | E327: 30
C328: Wool | D328: 0.025 | E328: 1.25
C329: Meat | D329: 0.0035 | E329: 0.175
C332: Distribution of acidity through profile
C333: Soil category | D333: =IF(AND(E9<=2,F9<=2,G9<=2),1,IF(AND(E9<=2,F9>2),2,3)) -> 3 | E333: (1 = deep sand, 2= duplex, 3 = loams & clays)
D335: 0 - 10 cm | E335: 10 - 20 cm | F335: 20 - 30 cm | G335: below 30 cm
C336: Deep sand | D336: 0.15 | E336: 0.18 | F336: 0.17 | G336: 0.5
C337: Duplex | D337: 0.5 | E337: 0.25 | F337: 0.1 | G337: 0.15
C338: Loams & clays | D338: 0.5 | E338: 0.25 | F338: 0.1 | G338: 0.15
C339: Model input | D339: =OFFSET(D335,$D$333,0) -> 0.5 | E339: =OFFSET(E335,$D$333,0) -> 0.25 | F339: =OFFSET(F335,$D$333,0) -> 0.1 | G339: =OFFSET(G335,$D$333,0) -> 0.15
C342: Lime spreading cost function
C343: Lime spreading cost ($/t) = (A + B * R ^ rate + C * rate) + D, where:
C344: A = | D344: 8.134
C345: B = | D345: 72.84
C346: R = | D346: 0.01619
C347: C = | D347: -0.5403
C348: D = | D348: =MAX(3,F89)-8.75 -> 1.25 | E348: D is the difference between the default cost for spreading 1 t/ha and the inputed cost
C351: Data for chart
C352: Lime rate (t/ha) | D352: $/t | E352: $/ha
C353: 0 | D353: =($D$344+$D$345*$D$346^C353+$D$347*C353)+$D$348 -> 82.224 | E353: =C353*D353 -> 0
C354: 0.05 | D354: 68.62662366 | E354: 3.431331183
C355: 0.1 | D355: 57.55745582 | E355: 5.755745582
C356: 0.15 | D356: 48.54548188 | E356: 7.281822282
C357: 0.2 | D357: 41.20743902 | E357: 8.241487803
C358: 0.25 | D358: 35.23146768 | E358: 8.807866919
C359: 0.3 | D359: 30.3638089 | E359: 9.109142671
C360: 0.35 | D360: 26.39797996 | E360: 9.239292986
C361: 0.4 | D361: 23.16596662 | E361: 9.266386648
C362: 0.45 | D362: 20.53105632 | E362: 9.238975345
C363: 0.5 | D363: 18.38200656 | E363: 9.191003281
C364: 0.6 | D364: 15.19628196 | E364: 9.117769176
C365: 0.7 | D365: 13.06875173 | E365: 9.148126209
C366: 0.8 | D366: 11.64185375 | E366: 9.313483003
C367: 0.9 | D367: 10.67884557 | E367: 9.610961016
C368: 1 | D368: 10.0229796 | E368: 10.0229796
C369: 1.2 | D369: 9.252610969 | E369: 11.10313316
C370: 1.4 | D370: 8.854209022 | E370: 12.39589263
... 18 more rows

Sheet Soil_Model (hidden)
A1: Sheet name: | B1: Soil model
A2: Purpose: | B2: Representation of monthly lime dissolution, leaching and acidity amelioration
B4: Overview | D4: Lime source & strategy A | H4: Lime source & strategy A | L4: Lime source & strategy A | P4: Lime source & strategy A | T4: Lime source & strategy A | X4: Lime source & strategy A | AB4: Lime source & strategy A | AF4: Lime source & strategy A | AJ4: Lime source & strategy A | AN4: Lime source & strategy A | AR4: Lime source & strategy A | AV4: Lime source & strategy A | AZ4: Lime source & strategy A | BD4: Lime source & strategy A | BH4: Lime source & strategy A | BL4: Lime source & strategy A | BP4: Lime source & strategy A | BT4: Lime source & strategy A | BZ4: Lime source & strategy B | CD4: Lime source & strategy B | CH4: Lime source & strategy B | CL4: Lime source & strategy B | CP4: Lime source & strategy B | CT4: Lime source & strategy B | CX4: Lime source & strategy B | DB4: Lime source & strategy B | DF4: Lime source & strategy B | DJ4: Lime source & strategy B | DN4: Lime source & strategy B | DR4: Lime source & strategy B | DV4: Lime source & strategy B | DZ4: Lime source & strategy B | ED4: Lime source & strategy B | EH4: Lime source & strategy B | EL4: Lime source & strategy B | EP4: Lime source & strategy B
B5: Site & soil
B6: Apply lime | D6: Product applied (t/ha) | BZ6: Product applied (t/ha)
D7: Deep band | E7: =Apply_Lime!E37 -> 1 | F7: =1-E7 -> 0 | G7: % in 10-20 | H7: Lime dissolution & leaching model, 0-10 cm soil horizon | X7: Removal | Z7: Lime dissolution & leaching model, 10-20 cm soil horizon | AR7: Lime dissolution & leaching model, 20-30 cm soil horizon | BJ7: Growing season (May-Oct) avg pH values for limed soil | BP7: pH profile chart data | BZ7: Deep band | CA7: =Apply_Lime!K37 -> 0 | CB7: =1-CA7 -> 1 | CD7: Lime dissolution & leaching model, 0-10 cm soil horizon | CV7: Lime dissolution & leaching model, 10-20 cm soil horizon | DN7: Lime dissolution & leaching model, 20-30 cm soil horizon | EF7: Growing season (May-Oct) avg pH values for limed soil | EL7: pH profile chart data
A8: Year ref | B8: Month ref | C8: Month | D8: 0-10 cm | E8: 10-20 cm | F8: 20-30 cm | H8: Starting pH (CaCl2) | I8: Exch Al (me%) | J8: pHBC (t CaCO3 / pH unit / 10 cm) | K8: Soil water content scalar (0 - 1) | L8: CaCO3 dissolution rate (moles/m2) | M8: Weight of CaCO3 applied (t/ha) | N8: Surface area of CaCO3 applied (m2/ha) | O8: Surface area of CaCO3 available (m2/ha) | P8: Weight of CaCO3 available (t/ha) | Q8: Weight of CaCO3 dissolved (t/ha) | R8: Weight of CaCO3 leached (t/ha) | S8: Change in pH due to liming (CaCl2) | T8: Interim pH (CaCl2) | U8: Excess alkalinity (t CaCO3 equiv/ha) | V8: Leaching of excess alkali (t CaCO3 equiv/ha) | W8: Change in pH due to alkali leach (CaCl2) | X8: Change in pH due to acid'n (CaCl2) | Z8: Starting pH (CaCl2) | AA8: Exch Al (me%) | AB8: pHBC (t CaCO3 / pH unit / 10 cm) | AC8: Soil water content scalar (0 - 1) | AD8: CaCO3 dissolution rate (moles/m2) | AE8: Weight of CaCO3 applied (t/ha) | AF8: Surface area of CaCO3 applied (m2/ha) | AG8: Surface area of CaCO3 available (m2/ha) | AH8: Weight of CaCO3 available (t/ha) | AI8: Weight of CaCO3 dissolved (t/ha) | AJ8: Weight of CaCO3 leached (t/ha) | AK8: Change in pH due to liming (CaCl2) | AL8: Interim pH (CaCl2) | AM8: Excess alkalinity (t CaCO3 equiv/ha) | AN8: Leaching of excess alkali (t CaCO3 equiv/ha) | AO8: Net change in pH due to alkali leach (CaCl2) | AP8: Change in pH due to acid'n (CaCl2) | AR8: Starting pH (CaCl2) | AS8: Exch Al (me%) | AT8: pHBC (t CaCO3 / pH unit / 10 cm) | AU8: Soil water content scalar (0 - 1) | AV8: CaCO3 dissolution rate (moles/m2) | AW8: Weight of CaCO3 applied (t/ha) | AX8: Surface area of CaCO3 applied (m2/ha) | AY8: Surface area of CaCO3 available (m2/ha) | AZ8: Weight of CaCO3 available (t/ha) | BA8: Weight of CaCO3 dissolved (t/ha) | BB8: Weight of CaCO3 leached (t/ha) | BC8: Change in pH due to liming (CaCl2) | BD8: Interim pH (CaCl2) | BE8: Excess alkalinity (t CaCO3 equiv/ha) | BF8: Leaching of excess alkali (t CaCO3 equiv/ha) | BG8: Net change in pH due to alkali leach (CaCl2) | BH8: Change in pH due to acid'n (CaCl2) | BJ8: Year | BK8: 0-10 cm avg pH (CaCl2) | BL8: 10-20 cm avg pH (CaCl2) | BM8: 20-30 cm avg pH (CaCl2) | BP8: Lookup year | BQ8: pH | BR8: Start | BS8: 1 year | BT8: 2 years | BU8: 5 years | BV8: 10 years | BW8: 15 years | BX8: 20 years | BZ8: 0-10 cm | CA8: 10-20 cm | CB8: 20-30 cm | CD8: Starting pH (CaCl2) | CE8: Exch Al (me%) | CF8: pHBC (t CaCO3 / pH unit / 10 cm) | CG8: Soil water content scalar (0 - 1) | CH8: CaCO3 dissolution rate (moles/m2) | CI8: Weight of CaCO3 applied (t/ha) | CJ8: Surface area of CaCO3 applied (m2/ha) | CK8: Surface area of CaCO3 available (m2/ha) | CL8: Weight of CaCO3 available (t/ha) | CM8: Weight of CaCO3 dissolved (t/ha) | CN8: Weight of CaCO3 leached (t/ha) | CO8: Change in pH due to liming (CaCl2) | CP8: Interim pH (CaCl2) | CQ8: Excess alkalinity (t CaCO3 equiv/ha) | CR8: Leaching of excess alkali (t CaCO3 equiv/ha) | CS8: Change in pH due to alkali leach (CaCl2) | CT8: Change in pH due to acid'n (CaCl2) | CV8: Starting pH (CaCl2) | CW8: Exch Al (me%) | CX8: pHBC (t CaCO3 / pH unit / 10 cm) | CY8: Soil water content scalar (0 - 1) | CZ8: CaCO3 dissolution rate (moles/m2) | DA8: Weight of CaCO3 applied (t/ha) | DB8: Surface area of CaCO3 applied (m2/ha) | DC8: Surface area of CaCO3 available (m2/ha) | DD8: Weight of CaCO3 available (t/ha) | DE8: Weight of CaCO3 dissolved (t/ha) | DF8: Weight of CaCO3 leached (t/ha) | DG8: Change in pH due to liming (CaCl2) | DH8: Interim pH (CaCl2) | DI8: Excess alkalinity (t CaCO3 equiv/ha) | DJ8: Leaching of excess alkali (t CaCO3 equiv/ha) | DK8: Net change in pH due to alkali leach (CaCl2) | DL8: Change in pH due to acid'n (CaCl2) | DN8: Starting pH (CaCl2) | DO8: Exch Al (me%) | DP8: pHBC (t CaCO3 / pH unit / 10 cm) | DQ8: Soil water content scalar (0 - 1) | DR8: CaCO3 dissolution rate (moles/m2) | DS8: Weight of CaCO3 applied (t/ha) | DT8: Surface area of CaCO3 applied (m2/ha) | DU8: Surface area of CaCO3 available (m2/ha) | DV8: Weight of CaCO3 available (t/ha) | DW8: Weight of CaCO3 dissolved (t/ha) | DX8: Weight of CaCO3 leached (t/ha) | DY8: Change in pH due to liming (CaCl2) | DZ8: Interim pH (CaCl2) | EA8: Excess alkalinity (t CaCO3 equiv/ha) | EB8: Leaching of excess alkali (t CaCO3 equiv/ha) | EC8: Net change in pH due to alkali leach (CaCl2) | ED8: Change in pH due to acid'n (CaCl2) | EF8: Year | EG8: 0-10 cm avg pH (CaCl2) | EH8: 10-20 cm avg pH (CaCl2) | EI8: 20-30 cm avg pH (CaCl2) | EL8: Lookup year | EM8: pH | EN8: Start | EO8: 1 year | EP8: 2 years | EQ8: 5 years | ER8: 10 years | ES8: 15 years | ET8: 20 years
A9: 1 | B9: 1 | C9: Jan | D9: =OFFSET(Apply_Lime!$H$16,$A9,0) -> 2 | E9: =OFFSET(Apply_Lime!$I$16,$A9,0)*G9 -> 0.5 | F9: =OFFSET(Apply_Lime!$I$16,$A9,0)*(1-G9) -> 0.5 | G9: ='Profit Calculator'!F28 -> 0.5 | H9: =pH_Initial_A -> 5.9 | I9: ='Site&Soil'!$F$173*EXP('Site&Soil'!$F$174*H9) -> 0 | J9: =((0.66+45*Soil_OC_A+0.63*I9)*0.5)*Soil_BD_A*(1-Gravel_Pct_A) -> 0.6946875 | K9: ='Site&Soil'!K217 -> 0.04677062238 | L9: =k*(10^-H9-10^-pH_Equil)*K9*10000 -> 0.000574017081 | M9: =D9*Lime_NV_A -> 1.786 | N9: =D9*CaCO3_SA_A -> 43674.66667 | O9: =N9 -> 43674.66667 | P9: =M9 -> 1.786 | Q9: =MAX(0,MIN(L9*O9*0.0001,(pH_Equil-H9)*J9,P9)) -> 0.002507000467 | R9: =(Lime_Leak*Q9)+MIN(Lime_Leach_Max,10^(H9-pH_Leach_A)/10^(pH_Equil-pH_Leach_A))*Q9 -> 0.0003136730513 | S9: =(Q9-R9)/J9 -> 0.003157286429 | T9: =H9+S9 -> 5.903157286 | U9: =MAX(0,(T9-MAX(pH_Leach_A,pH_Initial_A))*J9) -> 0.002193327416 | V9: =K9*(MIN(Alkali_Leach_Max,(10^(T9-pH_Leach_A)/10^(pH_Equil-pH_Leach_A)))*U9) -> 2.595576915e-06 | W9: =-V9/J9 -> -3.736323044e-06 | Z9: =pH_Initial_B -> 4.4 | AA9: ='Site&Soil'!$G$173*EXP('Site&Soil'!$G$174*Z9) -> 0 | AB9: =((0.66+45*Soil_OC_B+0.63*AA9)*0.5)*Soil_BD_B*(1-Gravel_Pct_B) -> 0.790875 | AC9: ='Site&Soil'!K238 -> 0.1408584209 | AD9: =k*(10^-Z9-10^-pH_Equil)*AC9*10000 -> 0.05603220406 | AE9: =E9*Lime_NV_A -> 0.4465 | AF9: =E9*CaCO3_SA_A -> 10918.66667 | AG9: =AF9 -> 10918.66667 | AH9: =AE9 -> 0.4465 | AI9: =MAX(0,MIN(AD9*AG9*0.0001,(pH_Equil-Z9)*AB9,AH9)) -> 0.06117969587 | AJ9: =(Lime_Leak*AI9)+MIN(Lime_Leach_Max,10^(Z9-pH_Leach_B)/10^(pH_Equil-pH_Leach_B))*AI9 -> 0.006166566347 | AK9: =(R9+AI9-AJ9)/AB9 -> 0.06995644391 | AL9: =Z9+AK9 -> 4.469956444 | AM9: =MAX(0,(AL9-MAX(pH_Leach_B,pH_Initial_B))*AB9) -> 0 | AN9: =AC9*(MIN(Alkali_Leach_Max,(10^(AL9-pH_Leach_B)/10^(pH_Equil-pH_Leach_B)))*AM9) -> 0 | AO9: =(V9-AN9)/AB9 -> 3.281905377e-06 | AR9: =pH_Initial_C -> 4.7 | AS9: ='Site&Soil'!$H$173*EXP('Site&Soil'!$H$174*AR9) -> 0 | AT9: =((0.66+45*Soil_OC_C+0.63*AS9)*0.5)*Soil_BD_C*(1-Gravel_Pct_C) -> 0.72675 | AU9: ='Site&Soil'!K259 -> 0.3678794412 | AV9: =k*(10^-AR9-10^-pH_Equil)*AU9*10000 -> 0.07328526485 | AW9: =F9*Lime_NV_A -> 0.4465 | AX9: =F9*CaCO3_SA_A -> 10918.66667 | AY9: =AX9 -> 10918.66667 | AZ9: =AW9 -> 0.4465 | BA9: =MAX(0,MIN(AV9*AY9*0.0001,(pH_Equil-AR9)*AT9,AZ9)) -> 0.08001773785 | BB9: =(Lime_Leak*BA9)+MIN(Lime_Leach_Max,10^(AR9-pH_Leach_C)/10^(pH_Equil-pH_Leach_C))*BA9 -> 0.008128593353 | BC9: =(AJ9+BA9-BB9)/AT9 -> 0.1074037989 | BD9: =AR9+BC9 -> 4.807403799 | BE9: =MAX(0,(BD9-MAX(pH_Leach_C,pH_Initial_C))*AT9) -> 0.07805571084 | BF9: =AU9*(MIN(Alkali_Leach_Max,(10^(BD9-pH_Leach_C)/10^(pH_Equil-pH_Leach_C)))*BE9) -> 5.827925617e-05 | BG9: =(AN9-BF9)/AT9 -> -8.019161495e-05 | BQ9: =pH_Initial_A -> 5.9 | BR9: 5 | BZ9: =OFFSET(Apply_Lime!$O$16,$A9,0) -> 0 | CA9: =OFFSET(Apply_Lime!$P$16,$A9,0)*CA$7 -> 0 | CB9: =OFFSET(Apply_Lime!$P$16,$A9,0)*CB$7 -> 0 | CD9: =pH_Initial_A -> 5.9 | CE9: ='Site&Soil'!$F$173*EXP('Site&Soil'!$F$174*CD9) -> 0 | CF9: =((0.66+45*Soil_OC_A+0.63*CE9)*0.5)*Soil_BD_A*(1-Gravel_Pct_A) -> 0.6946875 | CG9: ='Site&Soil'!M217 -> 0 | CH9: =k*(10^-CD9-10^-pH_Equil)*CG9*10000 -> 0 | CI9: =BZ9*Lime_NV_B -> 0 | CJ9: =BZ9*CaCO3_SA_B -> 0 | CK9: =CJ9 -> 0 | CL9: =CI9 -> 0 | CM9: =MAX(0,MIN(CH9*CK9*0.0001,(pH_Equil-CD9)*CF9,CL9)) -> 0 | CN9: =(Lime_Leak*CM9)+MIN(Lime_Leach_Max,10^(CD9-pH_Leach_A)/10^(pH_Equil-pH_Leach_A))*CM9 -> 0 | CO9: =(CM9-CN9)/CF9 -> 0 | CP9: =CD9+CO9 -> 5.9 | CQ9: =MAX(0,(CP9-MAX(pH_Leach_A,pH_Initial_A))*CF9) -> 0 | CR9: =CG9*(MIN(Alkali_Leach_Max,(10^(CP9-pH_Leach_A)/10^(pH_Equil-pH_Leach_A)))*CQ9) -> 0 | CS9: =-CR9/CF9 -> 0 | CV9: =pH_Initial_B -> 4.4 | CW9: ='Site&Soil'!$G$173*EXP('Site&Soil'!$G$174*CV9) -> 0 | CX9: =((0.66+45*Soil_OC_B+0.63*CW9)*0.5)*Soil_BD_B*(1-Gravel_Pct_B) -> 0.790875 | CY9: ='Site&Soil'!M238 -> 0 | CZ9: =k*(10^-CV9-10^-pH_Equil)*CY9*10000 -> 0 | DA9: =CA9*Lime_NV_B -> 0 | DB9: =CA9*CaCO3_SA_B -> 0 | DC9: =DB9 -> 0 | DD9: =DA9 -> 0 | DE9: =MAX(0,MIN(CZ9*DC9*0.0001,(pH_Equil-CV9)*CX9,DD9)) -> 0 | DF9: =(Lime_Leak*DE9)+MIN(Lime_Leach_Max,10^(CV9-pH_Leach_B)/10^(pH_Equil-pH_Leach_B))*DE9 -> 0 | DG9: =(CN9+DE9-DF9)/CX9 -> 0 | DH9: =CV9+DG9 -> 4.4 | DI9: =MAX(0,(DH9-MAX(pH_Leach_B,pH_Initial_B))*CX9) -> 0 | DJ9: =CY9*(MIN(Alkali_Leach_Max,(10^(DH9-pH_Leach_B)/10^(pH_Equil-pH_Leach_B)))*DI9) -> 0 | DK9: =(CR9-DJ9)/CX9 -> 0 | DN9: =pH_Initial_C -> 4.7 | DO9: ='Site&Soil'!$H$173*EXP('Site&Soil'!$H$174*DN9) -> 0 | DP9: =((0.66+45*Soil_OC_C+0.63*DO9)*0.5)*Soil_BD_C*(1-Gravel_Pct_C) -> 0.72675 | DQ9: ='Site&Soil'!M259 -> 0 | DR9: =k*(10^-DN9-10^-pH_Equil)*DQ9*10000 -> 0 | DS9: =CB9*Lime_NV_B -> 0 | DT9: =CB9*CaCO3_SA_B -> 0 | DU9: =DT9 -> 0 | DV9: =DS9 -> 0 | DW9: =MAX(0,MIN(DR9*DU9*0.0001,(pH_Equil-DN9)*DP9,DV9)) -> 0 | DX9: =(Lime_Leak*DW9)+MIN(Lime_Leach_Max,10^(DN9-pH_Leach_C)/10^(pH_Equil-pH_Leach_C))*DW9 -> 0 | DY9: =(DF9+DW9-DX9)/DP9 -> 0 | DZ9: =DN9+DY9 -> 4.7 | EA9: =MAX(0,(DZ9-MAX(pH_Leach_C,pH_Initial_C))*DP9) -> 0 | EB9: =DQ9*(MIN(Alkali_Leach_Max,(10^(DZ9-pH_Leach_C)/10^(pH_Equil-pH_Leach_C)))*EA9) -> 0 | EC9: =(DJ9-EB9)/DP9 -> 0 | EM9: =pH_Initial_A -> 5.9 | EN9: 5
B10: 2 | C10: Feb | H10: =T9+W9+X9 -> 5.90315355 | I10: ='Site&Soil'!$F$173*EXP('Site&Soil'!$F$174*H10) -> 0 | J10: =((0.66+45*Soil_OC_A+0.63*I10)*0.5)*Soil_BD_A*(1-Gravel_Pct_A) -> 0.6946875 | K10: ='Site&Soil'!K218 -> 0.1053992246 | L10: 0.001283967333 | M10: 0 | N10: 0 | O10: =N10+IF(P9-Q9=0,0,(O9*(1-Q9/P9))) -> 43613.36073 | P10: =P9-Q9+M10 -> 1.783493 | Q10: 0.005599813044 | R10: 0.0007016673495 | S10: 0.007050861998 | T10: 5.910204412 | U10: 0.007088877534 | V10: 1.921406703e-05 | W10: -2.765857602e-05 | Z10: =AL9+AO9+AP9 -> 4.469959726 | AA10: ='Site&Soil'!$G$173*EXP('Site&Soil'!$G$174*Z10) -> 0 | AB10: 0.790875 | AC10: ='Site&Soil'!K239 -> 0.2369277587 | AD10: 0.08021410856 | AE10: 0 | AF10: 0 | AG10: =AF10+IF(AH9-AI9=0,0,(AG9*(1-AI9/AH9))) -> 9422.584458 | AH10: =AH9-AI9+AE10 -> 0.3853203041 | AI10: 0.07558242126 | AJ10: 0.007628773205 | AK10: 0.08680931299 | AL10: 4.556769039 | AM10: 0 | AN10: 0 | AO10: 2.429469515e-05 | AR10: =BD9+BG9+BH9 -> 4.807323607 | AS10: ='Site&Soil'!$H$173*EXP('Site&Soil'!$H$174*AR10) -> 0 | AT10: 0.72675 | AU10: ='Site&Soil'!K260 -> 0.4796522688 | AV10: 0.07459689186 | AW10: 0 | AX10: 0 | AY10: =AX10+IF(AZ9-BA9=0,0,(AY9*(1-BA9/AZ9))) -> 8961.92085 | AZ10: =AZ9-BA9+AW10 -> 0.3664822622 | BA10: 0.06685314406 | BB10: 0.006820972416 | BC10: 0.0931007153 | BD10: 4.900424323 | BE10: 0.1456583764 | BF10: 0.0001756654249 | BG10: -0.0002417136909 | BQ10: =pH_Initial_B -> 4.4 | BR10: 15 | CD10: =CP9+CS9+CT9 -> 5.9 | CE10: ='Site&Soil'!$F$173*EXP('Site&Soil'!$F$174*CD10) -> 0 | CF10: 0.6946875 | CG10: ='Site&Soil'!M218 -> 0 | CH10: 0 | CI10: 0 | CJ10: 0 | CK10: =CJ10+IF(CL9-CM9=0,0,(CK9*(1-CM9/CL9))) -> 0 | CL10: =CL9-CM9+CI10 -> 0 | CM10: 0 | CN10: 0 | CO10: 0 | CP10: 5.9 | CQ10: 0 | CR10: 0 | CS10: 0 | CV10: =DH9+DK9+DL9 -> 4.4 | CW10: ='Site&Soil'!$G$173*EXP('Site&Soil'!$G$174*CV10) -> 0 | CX10: 0.790875 | CY10: ='Site&Soil'!M239 -> 0 | CZ10: 0 | DA10: 0 | DB10: 0 | DC10: =DB10+IF(DD9-DE9=0,0,(DC9*(1-DE9/DD9))) -> 0 | DD10: =DD9-DE9+DA10 -> 0 | DE10: 0 | DF10: 0 | DG10: 0 | DH10: 4.4 | DI10: 0 | DJ10: 0 | DK10: 0 | DN10: =DZ9+EC9+ED9 -> 4.7 | DO10: ='Site&Soil'!$H$173*EXP('Site&Soil'!$H$174*DN10) -> 0 | DP10: 0.72675 | DQ10: ='Site&Soil'!M260 -> 0 | DR10: 0 | DS10: 0 | DT10: 0 | DU10: =DT10+IF(DV9-DW9=0,0,(DU9*(1-DW9/DV9))) -> 0 | DV10: =DV9-DW9+DS10 -> 0 | DW10: 0 | DX10: 0 | DY10: 0 | DZ10: 4.7 | EA10: 0 | EB10: 0 | EC10: 0 | EM10: =pH_Initial_B -> 4.4 | EN10: 15
B11: 3 | C11: Mar | H11: =T10+W10+X10 -> 5.910176754 | I11: ='Site&Soil'!$F$173*EXP('Site&Soil'!$F$174*H11) -> 0 | J11: 0.6946875 | K11: ='Site&Soil'!K219 -> 0.2096113872 | L11: 0.00251144917 | M11: 0 | N11: 0 | O11: 43476.42345 | P11: 1.777893186 | Q11: 0.01091888276 | R11: 0.001372661026 | S11: 0.01374174968 | T11: 5.923918503 | U11: 0.0166158852 | V11: 9.243934472e-05 | W11: -0.0001330660833 | Z11: =AL10+AO10+AP10 -> 4.556793333 | AA11: ='Site&Soil'!$G$173*EXP('Site&Soil'!$G$174*Z11) -> 0 | AB11: 0.790875 | AC11: ='Site&Soil'!K240 -> 0.3678794412 | AD11: 0.1019569731 | AE11: 0 | AF11: 0 | AG11: 7574.299433 | AH11: 0.3097378829 | AI11: 0.07722526437 | AJ11: 0.007810540636 | AK11: 0.08950514906 | AL11: 4.646298483 | AM11: 0 | AN11: 0 | AO11: 0.0001168823704 | AR11: =BD10+BG10+BH10 -> 4.900182609 | AS11: ='Site&Soil'!$H$173*EXP('Site&Soil'!$H$174*AR11) -> 0 | AT11: 0.72675 | AU11: ='Site&Soil'!K261 -> 0.6003730412 | AV11: 0.07536085951 | AW11: 0 | AX11: 0 | AY11: 7327.100704 | AZ11: 0.2996291181 | BA11: 0.05521766067 | BB11: 0.005660524892 | BC11: 0.07893729125 | BD11: 4.9791199 | BE11: 0.2028503874 | BF11: 0.0003670429818 | BG11: -0.0005050471025 | BQ11: =pH_Initial_C -> 4.7 | BR11: 25 | CD11: 5.9 | CE11: ='Site&Soil'!$F$173*EXP('Site&Soil'!$F$174*CD11) -> 0 | CF11: 0.6946875 | CG11: ='Site&Soil'!M219 -> 0 | CH11: 0 | CI11: 0 | CJ11: 0 | CK11: 0 | CL11: 0 | CM11: 0 | CN11: 0 | CO11: 0 | CP11: 5.9 | CQ11: 0 | CR11: 0 | CS11: 0 | CV11: 4.4 | CW11: ='Site&Soil'!$G$173*EXP('Site&Soil'!$G$174*CV11) -> 0 | CX11: 0.790875 | CY11: ='Site&Soil'!M240 -> 0 | CZ11: 0 | DA11: 0 | DB11: 0 | DC11: 0 | DD11: 0 | DE11: 0 | DF11: 0 | DG11: 0 | DH11: 4.4 | DI11: 0 | DJ11: 0 | DK11: 0 | DN11: 4.7 | DO11: ='Site&Soil'!$H$173*EXP('Site&Soil'!$H$174*DN11) -> 0 | DP11: 0.72675 | DQ11: ='Site&Soil'!M261 -> 0 | DR11: 0 | DS11: 0 | DT11: 0 | DU11: 0 | DV11: 0 | DW11: 0 | DX11: 0 | DY11: 0 | DZ11: 4.7 | EA11: 0 | EB11: 0 | EC11: 0 | EM11: =pH_Initial_C -> 4.7 | EN11: 25
B12: 4 | C12: Apr | H12: 5.923785437 | I12: ='Site&Soil'!$F$173*EXP('Site&Soil'!$F$174*H12) -> 0 | J12: 0.6946875 | K12: ='Site&Soil'!K220 -> 0.3678794412 | L12: 0.004268166372 | M12: 0 | N12: 0 | O12: 43209.41418 | P12: 1.766974304 | Q12: 0.01844249686 | R12: 0.002333583418 | S12: 0.0231887193 | T12: 5.946974156 | U12: 0.03263235929 | V12: 0.0003359913901 | W12: -0.0004836583213 | Z12: 4.646415365 | AA12: ='Site&Soil'!$G$173*EXP('Site&Soil'!$G$174*Z12) -> 0 | AB12: 0.790875 | AC12: ='Site&Soil'!K241 -> 0.527292424 | AD12: 0.1188577009 | AE12: 0 | AF12: 0 | AG12: 5685.840486 | AH12: 0.2325126185 | AI12: 0.0675805928 | AJ12: 0.006852734727 | AK12: 0.07973629397 | AL12: 4.726151659 | AM12: 0 | AN12: 0 | AO12: 0.000424835012 | AR12: 4.978614853 | AS12: ='Site&Soil'!$H$173*EXP('Site&Soil'!$H$174*AR12) -> 0 | AT12: 0.72675 | AU12: ='Site&Soil'!K262 -> 0.7214222904 | AV12: 0.07555537409 | AW12: 0 | AX12: 0 | AY12: 5976.813512 | AZ12: 0.2444114574 | BA12: 0.04515803807 | BB12: 0.004651744638 | BC12: 0.06516550143 | BD12: 5.043780354 | BE12: 0.2498423726 | BF12: 0.0006304287448 | BG12: -0.0008674630131 | BP12: 1 | BQ12: =VLOOKUP(BP12,$BJ$9:$BM$248,2,FALSE) -> 6.034863402 | BS12: 5 | CD12: 5.9 | CE12: ='Site&Soil'!$F$173*EXP('Site&Soil'!$F$174*CD12) -> 0 | CF12: 0.6946875 | CG12: ='Site&Soil'!M220 -> 0 | CH12: 0 | CI12: 0 | CJ12: 0 | CK12: 0 | CL12: 0 | CM12: 0 | CN12: 0 | CO12: 0 | CP12: 5.9 | CQ12: 0 | CR12: 0 | CS12: 0 | CV12: 4.4 | CW12: ='Site&Soil'!$G$173*EXP('Site&Soil'!$G$174*CV12) -> 0 | CX12: 0.790875 | CY12: ='Site&Soil'!M241 -> 0 | CZ12: 0 | DA12: 0 | DB12: 0 | DC12: 0 | DD12: 0 | DE12: 0 | DF12: 0 | DG12: 0 | DH12: 4.4 | DI12: 0 | DJ12: 0 | DK12: 0 | DN12: 4.7 | DO12: ='Site&Soil'!$H$173*EXP('Site&Soil'!$H$174*DN12) -> 0 | DP12: 0.72675 | DQ12: ='Site&Soil'!M262 -> 0 | DR12: 0 | DS12: 0 | DT12: 0 | DU12: 0 | DV12: 0 | DW12: 0 | DX12: 0 | DY12: 0 | DZ12: 4.7 | EA12: 0 | EB12: 0 | EC12: 0 | EL12: 1 | EM12: =VLOOKUP(EL12,$EF$9:$EI$248,2,FALSE) -> 5.9 | EO12: 5
B13: 5 | C13: May | H13: 5.946490498 | I13: ='Site&Soil'!$F$173*EXP('Site&Soil'!$F$174*H13) -> 0 | J13: 0.6946875 | K13: ='Site&Soil'!K221 -> 0.5697828247 | L13: 0.006264758512 | M13: 0 | N13: 0 | O13: 42758.42319 | P13: 1.748531807 | Q13: 0.02678711957 | R13: 0.003427599341 | S13: 0.03362594005 | T13: 5.980116438 | U13: 0.05565588813 | V13: 0.0009579369149 | W13: -0.001378946526 | Z13: 4.726576494 | AA13: ='Site&Soil'!$G$173*EXP('Site&Soil'!$G$174*Z13) -> 0 | AB13: 0.790875 | AC13: ='Site&Soil'!K242 -> 0.6976763261 | AD13: 0.1307209299 | AE13: 0 | AF13: 0 | AG13: 4033.23138 | AH13: 0.1649320257 | AI13: 0.05272277566 | AJ13: 0.005361110654 | AK13: 0.06421907931 | AL13: 4.790795573 | AM13: 0 | AN13: 0 | AO13: 0.001211236814 | AR13: 5.042912891 | AS13: ='Site&Soil'!$H$173*EXP('Site&Soil'!$H$174*AR13) -> 0 | AT13: 0.72675 | AU13: ='Site&Soil'!K263 -> 0.8322075007 | AV13: 0.07512769929 | AW13: 0 | AX13: 0 | AY13: 4872.523333 | AZ13: 0.1992534193 | BA13: 0.03660614677 | BB13: 0.003788395861 | BC13: 0.05253369324 | BD13: 5.095446585 | BE13: 0.2873908054 | BF13: 0.0009422173129 | BG13: -0.001296480651 | BP13: 1 | BQ13: =VLOOKUP(BP13,$BJ$9:$BM$248,3,FALSE) -> 4.849073519 | BS13: 15 | CD13: 5.9 | CE13: ='Site&Soil'!$F$173*EXP('Site&Soil'!$F$174*CD13) -> 0 | CF13: 0.6946875 | CG13: ='Site&Soil'!M221 -> 0 | CH13: 0 | CI13: 0 | CJ13: 0 | CK13: 0 | CL13: 0 | CM13: 0 | CN13: 0 | CO13: 0 | CP13: 5.9 | CQ13: 0 | CR13: 0 | CS13: 0 | CV13: 4.4 | CW13: ='Site&Soil'!$G$173*EXP('Site&Soil'!$G$174*CV13) -> 0 | CX13: 0.790875 | CY13: ='Site&Soil'!M242 -> 0 | CZ13: 0 | DA13: 0 | DB13: 0 | DC13: 0 | DD13: 0 | DE13: 0 | DF13: 0 | DG13: 0 | DH13: 4.4 | DI13: 0 | DJ13: 0 | DK13: 0 | DN13: 4.7 | DO13: ='Site&Soil'!$H$173*EXP('Site&Soil'!$H$174*DN13) -> 0 | DP13: 0.72675 | DQ13: ='Site&Soil'!M263 -> 0 | DR13: 0 | DS13: 0 | DT13: 0 | DU13: 0 | DV13: 0 | DW13: 0 | DX13: 0 | DY13: 0 | DZ13: 4.7 | EA13: 0 | EB13: 0 | EC13: 0 | EL13: 1 | EM13: =VLOOKUP(EL13,$EF$9:$EI$248,3,FALSE) -> 4.4 | EO13: 15
B14: 6 | C14: Jun | H14: 5.978737492 | I14: ='Site&Soil'!$F$173*EXP('Site&Soil'!$F$174*H14) -> 0 | J14: 0.6946875 | K14: ='Site&Soil'!K222 -> 0.7788007831 | L14: 0.007932508378 | M14: 0 | N14: 0 | O14: 42103.37363 | P14: 1.721744687 | Q14: 0.0333985364 | R14: 0.004345545482 | S14: 0.04182166934 | T14: 6.020559161 | U14: 0.08375094214 | V14: 0.002162595235 | W14: -0.003113047572 | Z14: 4.79200681 | AA14: ='Site&Soil'!$G$173*EXP('Site&Soil'!$G$174*Z14) -> 0 | AB14: 0.790875 | AC14: ='Site&Soil'!K243 -> 0.852143789 | AD14: 0.1372949331 | AE14: 0 | AF14: 0 | AG14: 2743.953859 | AH14: 0.11220925 | AI14: 0.03767309615 | AJ14: 0.003841106515 | AK14: 0.04827252741 | AL14: 4.840279337 | AM14: 0 | AN14: 0 | AO14: 0.002734433678 | AR14: 5.094150104 | AS14: ='Site&Soil'!$H$173*EXP('Site&Soil'!$H$174*AR14) -> 0 | AT14: 0.72675 | AU14: ='Site&Soil'!K264 -> 0.9216104473 | AV14: 0.07390743014 | AW14: 0 | AX14: 0 | AY14: 3977.360254 | AZ14: 0.1626472726 | BA14: 0.02939564751 | BB14: 0.003055025172 | BC14: 0.04152972667 | BD14: 5.135679831 | BE14: 0.316630317 | BF14: 0.001261187668 | BG14: -0.001735380349 | BP14: 1 | BQ14: =VLOOKUP(BP14,$BJ$9:$BM$248,4,FALSE) -> 5.137434731 | BS14: 25 | CD14: 5.9 | CE14: ='Site&Soil'!$F$173*EXP('Site&Soil'!$F$174*CD14) -> 0 | CF14: 0.6946875 | CG14: ='Site&Soil'!M222 -> 0 | CH14: 0 | CI14: 0 | CJ14: 0 | CK14: 0 | CL14: 0 | CM14: 0 | CN14: 0 | CO14: 0 | CP14: 5.9 | CQ14: 0 | CR14: 0 | CS14: 0 | CV14: 4.4 | CW14: ='Site&Soil'!$G$173*EXP('Site&Soil'!$G$174*CV14) -> 0 | CX14: 0.790875 | CY14: ='Site&Soil'!M243 -> 0 | CZ14: 0 | DA14: 0 | DB14: 0 | DC14: 0 | DD14: 0 | DE14: 0 | DF14: 0 | DG14: 0 | DH14: 4.4 | DI14: 0 | DJ14: 0 | DK14: 0 | DN14: 4.7 | DO14: ='Site&Soil'!$H$173*EXP('Site&Soil'!$H$174*DN14) -> 0 | DP14: 0.72675 | DQ14: ='Site&Soil'!M264 -> 0 | DR14: 0 | DS14: 0 | DT14: 0 | DU14: 0 | DV14: 0 | DW14: 0 | DX14: 0 | DY14: 0 | DZ14: 4.7 | EA14: 0 | EB14: 0 | EC14: 0 | EL14: 1 | EM14: =VLOOKUP(EL14,$EF$9:$EI$248,4,FALSE) -> 4.7 | EO14: 25
B15: 7 | C15: Jul | H15: 6.017446113 | I15: ='Site&Soil'!$F$173*EXP('Site&Soil'!$F$174*H15) -> 0 | J15: 0.6946875 | K15: ='Site&Soil'!K223 -> 0.9394130628 | L15: 0.008727168277 | M15: 0 | N15: 0 | O15: 41286.64914 | P15: 1.688346151 | Q15: 0.03603155346 | R15: 0.004789276633 | S15: 0.04497313803 | T15: 6.062419251 | U15: 0.1128306237 | V15: 0.003869927556 | W15: -0.00557074592 | Z15: 4.843013771 | AA15: ='Site&Soil'!$G$173*EXP('Site&Soil'!$G$174*Z15) -> 0 | AB15: 0.790875 | AC15: ='Site&Soil'!K244 -> 0.9607894392 | AD15: 0.1376121072 | AE15: 0 | AF15: 0 | AG15: 1822.699706 | AH15: 0.07453615388 | AI15: 0.02508255474 | AJ15: 0.002563512249 | AK15: 0.03452924814 | AL15: 4.877543019 | AM15: 0 | AN15: 0 | AO15: 0.004893222768 | AR15: 5.13394445 | AS15: ='Site&Soil'!$H$173*EXP('Site&Soil'!$H$174*AR15) -> 0 | AT15: 0.72675 | AU15: ='Site&Soil'!K265 -> 0.9797986739 | AV15: 0.07166693765 | AW15: 0 | AX15: 0 | AY15: 3258.522009 | AZ15: 0.1332516251 | BA15: 0.02335282936 | BB15: 0.002435810222 | BC15: 0.03230895272 | BD15: 5.166253403 | BE15: 0.3388496607 | BF15: 0.001539562434 | BG15: -0.002118420961 | BP15: 2 | BQ15: =VLOOKUP(BP15,$BJ$9:$BM$248,2,FALSE) -> 6.170040847 | BT15: 5 | CD15: 5.9 | CE15: ='Site&Soil'!$F$173*EXP('Site&Soil'!$F$174*CD15) -> 0 | CF15: 0.6946875 | CG15: ='Site&Soil'!M223 -> 0 | CH15: 0 | CI15: 0 | CJ15: 0 | CK15: 0 | CL15: 0 | CM15: 0 | CN15: 0 | CO15: 0 | CP15: 5.9 | CQ15: 0 | CR15: 0 | CS15: 0 | CV15: 4.4 | CW15: ='Site&Soil'!$G$173*EXP('Site&Soil'!$G$174*CV15) -> 0 | CX15: 0.790875 | CY15: ='Site&Soil'!M244 -> 0 | CZ15: 0 | DA15: 0 | DB15: 0 | DC15: 0 | DD15: 0 | DE15: 0 | DF15: 0 | DG15: 0 | DH15: 4.4 | DI15: 0 | DJ15: 0 | DK15: 0 | DN15: 4.7 | DO15: ='Site&Soil'!$H$173*EXP('Site&Soil'!$H$174*DN15) -> 0 | DP15: 0.72675 | DQ15: ='Site&Soil'!M265 -> 0 | DR15: 0 | DS15: 0 | DT15: 0 | DU15: 0 | DV15: 0 | DW15: 0 | DX15: 0 | DY15: 0 | DZ15: 4.7 | EA15: 0 | EB15: 0 | EC15: 0 | EL15: 2 | EM15: =VLOOKUP(EL15,$EF$9:$EI$248,2,FALSE) ->  | EP15: 5
B16: 8 | C16: Aug | H16: 6.056848506 | I16: ='Site&Soil'!$F$173*EXP('Site&Soil'!$F$174*H16) -> 0 | J16: 0.6946875 | K16: ='Site&Soil'!K224 -> 1 | L16: 0.008456840212 | M16: 0 | N16: 0 | O16: 40405.53711 | P16: 1.652314597 | Q16: 0.0341703171 | R16: 0.004648710647 | S16: 0.04249623961 | T16: 6.099344745 | U16: 0.1384823026 | V16: 0.005504768014 | W16: -0.007924092507 | Z16: 4.882436242 | AA16: ='Site&Soil'!$G$173*EXP('Site&Soil'!$G$174*Z16) -> 0 | AB16: 0.790875 | AC16: ='Site&Soil'!K245 -> 1 | AD16: 0.1307720199 | AE16: 0 | AF16: 0 | AG16: 1209.333403 | AH16: 0.04945359915 | AI16: 0.01581469719 | AJ16: 0.001619619945 | AK16: 0.02382650594 | AL16: 4.906262748 | AM16: 0 | AN16: 0 | AO16: 0.006960351527 | AR16: 5.164134982 | AS16: ='Site&Soil'!$H$173*EXP('Site&Soil'!$H$174*AR16) -> 0 | AT16: 0.72675 | AU16: ='Site&Soil'!K266 -> 1 | AV16: 0.06821129268 | AW16: 0 | AX16: 0 | AY16: 2687.454238 | AZ16: 0.1098987957 | BA16: 0.01833147276 | BB16: 0.00191773987 | BC16: 0.02481369499 | BD16: 5.188948677 | BE16: 0.3553434511 | BF16: 0.001736188971 | BG16: -0.002388976912 | BP16: 2 | BQ16: =VLOOKUP(BP16,$BJ$9:$BM$248,3,FALSE) -> 4.98472743 | BT16: 15 | CD16: 5.9 | CE16: ='Site&Soil'!$F$173*EXP('Site&Soil'!$F$174*CD16) -> 0 | CF16: 0.6946875 | CG16: ='Site&Soil'!M224 -> 0 | CH16: 0 | CI16: 0 | CJ16: 0 | CK16: 0 | CL16: 0 | CM16: 0 | CN16: 0 | CO16: 0 | CP16: 5.9 | CQ16: 0 | CR16: 0 | CS16: 0 | CV16: 4.4 | CW16: ='Site&Soil'!$G$173*EXP('Site&Soil'!$G$174*CV16) -> 0 | CX16: 0.790875 | CY16: ='Site&Soil'!M245 -> 0 | CZ16: 0 | DA16: 0 | DB16: 0 | DC16: 0 | DD16: 0 | DE16: 0 | DF16: 0 | DG16: 0 | DH16: 4.4 | DI16: 0 | DJ16: 0 | DK16: 0 | DN16: 4.7 | DO16: ='Site&Soil'!$H$173*EXP('Site&Soil'!$H$174*DN16) -> 0 | DP16: 0.72675 | DQ16: ='Site&Soil'!M266 -> 0 | DR16: 0 | DS16: 0 | DT16: 0 | DU16: 0 | DV16: 0 | DW16: 0 | DX16: 0 | DY16: 0 | DZ16: 4.7 | EA16: 0 | EB16: 0 | EC16: 0 | EL16: 2 | EM16: =VLOOKUP(EL16,$EF$9:$EI$248,3,FALSE) ->  | EP16: 15
B17: 9 | C17: Sep | H17: 6.091420653 | I17: ='Site&Soil'!$F$173*EXP('Site&Soil'!$F$174*H17) -> 0 | J17: 0.6946875 | K17: ='Site&Soil'!K225 -> 0.9394130628 | L17: 0.007313830218 | M17: 0 | N17: 0 | O17: 39569.93956 | P17: 1.61814428 | Q17: 0.02894078197 | R17: 0.004023694402 | S17: 0.03586805228 | T17: 6.127288705 | U17: 0.1578946222 | V17: 0.006288001522 | W17: -0.009051554148 | Z17: 4.913223099 | AA17: ='Site&Soil'!$G$173*EXP('Site&Soil'!$G$174*Z17) -> 0 | AB17: 0.790875 | AC17: ='Site&Soil'!K246 -> 0.9607894392 | AD17: 0.1170251047 | AE17: 0 | AF17: 0 | AG17: 822.6023685 | AH17: 0.03363890196 | AI17: 0.009626512832 | AJ17: 0.0009875795505 | AK17: 0.01601090904 | AL17: 4.929234009 | AM17: 0 | AN17: 0 | AO17: 0.007950689454 | AR17: 5.1865597 | AS17: ='Site&Soil'!$H$173*EXP('Site&Soil'!$H$174*AR17) -> 0 | AT17: 0.72675 | AU17: ='Site&Soil'!K267 -> 0.9797986739 | AV17: 0.06345439449 | AW17: 0 | AX17: 0 | AY17: 2239.178223 | AZ17: 0.09156732294 | BA17: 0.01420856983 | BB17: 0.001489898459 | BC17: 0.01885965039 | BD17: 5.205419351 | BE17: 0.367313513 | BF17: 0.001826388247 | BG17: -0.002513090123 | BP17: 2 | BQ17: =VLOOKUP(BP17,$BJ$9:$BM$248,4,FALSE) -> 5.229058066 | BT17: 25 | CD17: 5.9 | CE17: ='Site&Soil'!$F$173*EXP('Site&Soil'!$F$174*CD17) -> 0 | CF17: 0.6946875 | CG17: ='Site&Soil'!M225 -> 0 | CH17: 0 | CI17: 0 | CJ17: 0 | CK17: 0 | CL17: 0 | CM17: 0 | CN17: 0 | CO17: 0 | CP17: 5.9 | CQ17: 0 | CR17: 0 | CS17: 0 | CV17: 4.4 | CW17: ='Site&Soil'!$G$173*EXP('Site&Soil'!$G$174*CV17) -> 0 | CX17: 0.790875 | CY17: ='Site&Soil'!M246 -> 0 | CZ17: 0 | DA17: 0 | DB17: 0 | DC17: 0 | DD17: 0 | DE17: 0 | DF17: 0 | DG17: 0 | DH17: 4.4 | DI17: 0 | DJ17: 0 | DK17: 0 | DN17: 4.7 | DO17: ='Site&Soil'!$H$173*EXP('Site&Soil'!$H$174*DN17) -> 0 | DP17: 0.72675 | DQ17: ='Site&Soil'!M267 -> 0 | DR17: 0 | DS17: 0 | DT17: 0 | DU17: 0 | DV17: 0 | DW17: 0 | DX17: 0 | DY17: 0 | DZ17: 4.7 | EA17: 0 | EB17: 0 | EC17: 0 | EL17: 2 | EM17: =VLOOKUP(EL17,$EF$9:$EI$248,4,FALSE) ->  | EP17: 25
B18: 10 | C18: Oct | H18: 6.118237151 | I18: ='Site&Soil'!$F$173*EXP('Site&Soil'!$F$174*H18) -> 0 | J18: 0.6946875 | K18: ='Site&Soil'!K226 -> 0.7788007831 | L18: 0.005685558844 | M18: 0 | N18: 0 | O18: 38862.22456 | P18: 1.589203498 | Q18: 0.02209534645 | R18: 0.003126890773 | S18: 0.02730501942 | T18: 6.14554217 | U18: 0.1705750763 | V18: 0.005873326228 | W18: -0.008454630648 | X18: =-'Profit Calculator'!$F$29*'Quantity of Lime to Apply'!$H$9 -> -0.04009124051 | Z18: 4.937184698 | AA18: ='Site&Soil'!$G$173*EXP('Site&Soil'!$G$174*Z18) -> 0 | AB18: 0.790875 | AC18: ='Site&Soil'!K247 -> 0.852143789 | AD18: 0.09820602628 | AE18: 0 | AF18: 0 | AG18: 587.1965796 | AH18: 0.02401238913 | AI18: 0.005766624273 | AJ18: 0.0005924424038 | AK18: 0.0104960615 | AL18: 4.947680759 | AM18: 0 | AN18: 0 | AO18: 0.007426364759 | AP18: =-'Profit Calculator'!$F$29*'Quantity of Lime to Apply'!$H$19 -> -0.04009124051 | AR18: 5.20290626 | AS18: ='Site&Soil'!$H$173*EXP('Site&Soil'!$H$174*AR18) -> 0 | AT18: 0.72675 | AU18: ='Site&Soil'!K268 -> 0.9216104473 | AV18: 0.05747041576 | AW18: 0 | AX18: 0 | AY18: 1891.723268 | AZ18: 0.07735875311 | BA18: 0.01087181227 | BB18: 0.001142035215 | BC18: 0.01420326035 | BD18: 5.217109521 | BE18: 0.3758093443 | BF18: 0.001805612216 | BG18: -0.002484502534 | BH18: =-0.02 -> -0.02 | BJ18: 1 | BK18: =AVERAGE(H13:H18) -> 6.034863402 | BL18: =AVERAGE(Z13:Z18) -> 4.849073519 | BM18: =AVERAGE(AR13:AR18) -> 5.137434731 | BP18: 5 | BQ18: =VLOOKUP(BP18,$BJ$9:$BM$248,2,FALSE) -> 6.189461121 | BU18: 5 | CD18: 5.9 | CE18: ='Site&Soil'!$F$173*EXP('Site&Soil'!$F$174*CD18) -> 0 | CF18: 0.6946875 | CG18: ='Site&Soil'!M226 -> 0 | CH18: 0 | CI18: 0 | CJ18: 0 | CK18: 0 | CL18: 0 | CM18: 0 | CN18: 0 | CO18: 0 | CP18: 5.9 | CQ18: 0 | CR18: 0 | CS18: 0 | CV18: 4.4 | CW18: ='Site&Soil'!$G$173*EXP('Site&Soil'!$G$174*CV18) -> 0 | CX18: 0.790875 | CY18: ='Site&Soil'!M247 -> 0 | CZ18: 0 | DA18: 0 | DB18: 0 | DC18: 0 | DD18: 0 | DE18: 0 | DF18: 0 | DG18: 0 | DH18: 4.4 | DI18: 0 | DJ18: 0 | DK18: 0 | DN18: 4.7 | DO18: ='Site&Soil'!$H$173*EXP('Site&Soil'!$H$174*DN18) -> 0 | DP18: 0.72675 | DQ18: ='Site&Soil'!M268 -> 0 | DR18: 0 | DS18: 0 | DT18: 0 | DU18: 0 | DV18: 0 | DW18: 0 | DX18: 0 | DY18: 0 | DZ18: 4.7 | EA18: 0 | EB18: 0 | EC18: 0 | EF18: 1 | EG18: =AVERAGE(CD13:CD18) -> 5.9 | EH18: =AVERAGE(CV13:CV18) -> 4.4 | EI18: =AVERAGE(DN13:DN18) -> 4.7 | EL18: 5 | EM18: =VLOOKUP(EL18,$EF$9:$EI$248,2,FALSE) ->  | EQ18: 5
B19: 11 | C19: Nov | H19: 6.096996299 | I19: ='Site&Soil'!$F$173*EXP('Site&Soil'!$F$174*H19) -> 0 | J19: 0.6946875 | K19: ='Site&Soil'!K227 -> 0.5697828247 | L19: 0.004377175898 | M19: 0 | N19: 0 | O19: 38321.90715 | P19: 1.567108152 | Q19: 0.01677417284 | R19: 0.002340606434 | S19: 0.02077706365 | T19: 6.117773363 | U19: 0.1512844329 | V19: 0.003575007507 | W19: -0.005146209637 | Z19: 4.915015884 | AA19: ='Site&Soil'!$G$173*EXP('Site&Soil'!$G$174*Z19) -> 0 | AB19: 0.790875 | AC19: ='Site&Soil'!K248 -> 0.6976763261 | AD19: 0.08462669022 | AE19: 0 | AF19: 0 | AG19: 446.1801222 | AH19: 0.01824576486 | AI19: 0.003775874698 | AJ19: 0.0003874057056 | AK19: 0.007243970825 | AL19: 4.922259855 | AM19: 0 | AN19: 0 | AO19: 0.004520319276 | AR19: 5.194625018 | AS19: ='Site&Soil'!$H$173*EXP('Site&Soil'!$H$174*AR19) -> 0 | AT19: 0.72675 | AU19: ='Site&Soil'!K269 -> 0.8322075007 | AV19: 0.05289948122 | AW19: 0 | AX19: 0 | AY19: 1625.86505 | AZ19: 0.06648694084 | BA19: 0.008600741766 | BB19: 0.0009026497913 | BC19: 0.0111255558 | BD19: 5.205750574 | BE19: 0.3675542297 | BF19: 0.001553472697 | BG19: -0.002137561331 | BP19: 5 | BQ19: =VLOOKUP(BP19,$BJ$9:$BM$248,3,FALSE) -> 5.200462085 | BU19: 15 | CE19: ='Site&Soil'!$F$173*EXP('Site&Soil'!$F$174*CD19) ->  | CG19: ='Site&Soil'!M227 -> 0 | CI19: 0 | CJ19: 0 | CK19: 0 | CL19: 0 | CW19: ='Site&Soil'!$G$173*EXP('Site&Soil'!$G$174*CV19) ->  | CY19: ='Site&Soil'!M248 -> 0 | DA19: 0 | DB19: 0 | DC19: 0 | DD19: 0 | DO19: ='Site&Soil'!$H$173*EXP('Site&Soil'!$H$174*DN19) ->  | DQ19: ='Site&Soil'!M269 -> 0 | DS19: 0 | DT19: 0 | DU19: 0 | DV19: 0 | EL19: 5 | EM19: =VLOOKUP(EL19,$EF$9:$EI$248,3,FALSE) ->  | EQ19: 15
B20: 12 | C20: Dec | H20: 6.112627153 | I20: ='Site&Soil'!$F$173*EXP('Site&Soil'!$F$174*H20) -> 0 | J20: 0.6946875 | K20: ='Site&Soil'!K228 -> 0.3678794412 | L20: 0.002722097461 | M20: 0 | N20: 0 | O20: 37911.71319 | P20: 1.550333979 | Q20: 0.01031993782 | R20: 0.00145495859 | S20: 0.01276110371 | T20: 6.125388257 | U20: 0.1565744046 | V20: 0.002431165609 | W20: -0.003499653599 | Z20: 4.926780174 | AA20: ='Site&Soil'!$G$173*EXP('Site&Soil'!$G$174*Z20) -> 0 | AB20: 0.790875 | AC20: ='Site&Soil'!K249 -> 0.527292424 | AD20: 0.06224572369 | AE20: 0 | AF20: 0 | AG20: 353.8452572 | AH20: 0.01446989016 | AI20: 0.002202535411 | AJ20: 0.0002261379531 | AK20: 0.004338683164 | AL20: 4.931118857 | AM20: 0 | AN20: 0 | AO20: 0.003074020053 | AR20: 5.203613013 | AS20: ='Site&Soil'!$H$173*EXP('Site&Soil'!$H$174*AR20) -> 0 | AT20: 0.72675 | AU20: ='Site&Soil'!K270 -> 0.7214222904 | AV20: 0.04491342425 | AW20: 0 | AX20: 0 | AY20: 1415.543365 | AZ20: 0.05788619908 | BA20: 0.006357689968 | BB20: 0.0006678991176 | BC20: 0.008140252911 | BD20: 5.211753266 | BE20: 0.3719166858 | BF20: 0.0013816196 | BG20: -0.001901093362 | BP20: 5 | BQ20: =VLOOKUP(BP20,$BJ$9:$BM$248,4,FALSE) -> 5.246132232 | BU20: 25 | CE20: ='Site&Soil'!$F$173*EXP('Site&Soil'!$F$174*CD20) ->  | CG20: ='Site&Soil'!M228 -> 0 | CI20: 0 | CJ20: 0 | CW20: ='Site&Soil'!$G$173*EXP('Site&Soil'!$G$174*CV20) ->  | CY20: ='Site&Soil'!M249 -> 0 | DA20: 0 | DB20: 0 | DO20: ='Site&Soil'!$H$173*EXP('Site&Soil'!$H$174*DN20) ->  | DQ20: ='Site&Soil'!M270 -> 0 | DS20: 0 | DT20: 0 | EL20: 5 | EM20: =VLOOKUP(EL20,$EF$9:$EI$248,4,FALSE) ->  | EQ20: 25
A21: =A9+1 -> 2 | B21: 13 | C21: Jan | D21: =OFFSET(Apply_Lime!$H$16,$A21,0) -> 0 | E21: =OFFSET(Apply_Lime!$I$16,$A21,0)*G21 -> 0 | F21: =OFFSET(Apply_Lime!$I$16,$A21,0)*(1-G21) -> 0 | G21: ='Profit Calculator'!G28 -> 0 | H21: 6.121888603 | I21: ='Site&Soil'!$F$173*EXP('Site&Soil'!$F$174*H21) -> 0 | J21: 0.6946875 | K21: =K9 -> 0.04677062238 | L21: 0.0003384617628 | M21: 0 | N21: 0 | O21: 37659.35046 | P21: 1.540014041 | Q21: 0.001274625014 | R21: 0.0001808292864 | S21: 0.001574514768 | T21: 6.123463118 | U21: 0.1552370347 | V21: 0.0003050925519 | W21: -0.0004391795618 | Z21: 4.934192877 | AA21: ='Site&Soil'!$G$173*EXP('Site&Soil'!$G$174*Z21) -> 0 | AB21: 0.790875 | AC21: =AC9 -> 0.1408584209 | AD21: 0.01634587122 | AE21: 0 | AF21: 0 | AG21: 299.984675 | AH21: 0.01226735475 | AI21: 0.0004903510866 | AJ21: 5.03677093e-05 | AK21: 0.0007849693867 | AL21: 4.934977846 | AM21: 0 | AN21: 0 | AO21: 0.0003857658313 | AR21: 5.209852172 | AS21: ='Site&Soil'!$H$173*EXP('Site&Soil'!$H$174*AR21) -> 0 | AT21: 0.72675 | AU21: =AU9 -> 0.3678794412 | AV21: 0.02257465115 | AW21: 0 | AX21: 0 | AY21: 1260.073045 | AZ21: 0.05152850911 | BA21: 0.002844570943 | BB21: 0.0002990408352 | BC21: 0.003571926821 | BD21: 5.213424099 | BE21: 0.373130964 | BF21: 0.0007095629121 | BG21: -0.0009763507562 | BP21: 10 | BQ21: =VLOOKUP(BP21,$BJ$9:$BM$248,2,FALSE) -> 6.118716036 | BV21: 5 | BZ21: =OFFSET(Apply_Lime!$O$16,$A21,0) -> 0 | CA21: =OFFSET(Apply_Lime!$P$16,$A21,0)*CA$7 -> 0 | CB21: =OFFSET(Apply_Lime!$P$16,$A21,0)*CB$7 -> 0 | CE21: ='Site&Soil'!$F$173*EXP('Site&Soil'!$F$174*CD21) ->  | CG21: =CG9 -> 0 | CI21: 0 | CJ21: 0 | CW21: ='Site&Soil'!$G$173*EXP('Site&Soil'!$G$174*CV21) ->  | CY21: =CY9 -> 0 | DA21: 0 | DB21: 0 | DO21: ='Site&Soil'!$H$173*EXP('Site&Soil'!$H$174*DN21) ->  | DQ21: =DQ9 -> 0 | DS21: 0 | DT21: 0 | EL21: 10 | EM21: =VLOOKUP(EL21,$EF$9:$EI$248,2,FALSE) ->  | ER21: 5
B22: 14 | C22: Feb | H22: 6.123023938 | I22: ='Site&Soil'!$F$173*EXP('Site&Soil'!$F$174*H22) -> 0 | J22: 0.6946875 | K22: 0.1053992246 | L22: 0.0007606569952 | M22: 0 | N22: 0 | O22: 37628.1809 | P22: 1.538739416 | Q22: 0.002862213902 | R22: 0.0004063720127 | S22: 0.003535175009 | T22: 6.126559113 | U22: 0.1573877841 | V22: 0.0007020492016 | W22: -0.001010597141 | Z22: 4.935363612 | AA22: ='Site&Soil'!$G$173*EXP('Site&Soil'!$G$174*Z22) -> 0 | AB22: 0.790875 | AC22: 0.2369277587 | AD22: 0.02741998885 | AE22: 0 | AF22: 0 | AG22: 287.9936782 | AH22: 0.01177700366 | AI22: 0.0007896783445 | AJ22: 8.111969359e-05 | AK22: 0.001409743213 | AL22: 4.936773355 | AM22: 0 | AN22: 0 | AO22: 0.0008876866782 | AR22: 5.212447748 | AS22: ='Site&Soil'!$H$173*EXP('Site&Soil'!$H$174*AR22) -> 0 | AT22: 0.72675 | AU22: 0.4796522688 | AV22: 0.02925721888 | AW22: 0 | AX22: 0 | AY22: 1190.51219 | AZ22: 0.04868393816 | BA22: 0.003483107572 | BB22: 0.0003662752366 | BC22: 0.00440034679 | BD22: 5.216848095 | BE22: 0.3756193532 | BF22: 0.0009386907942 | BG22: -0.0012916282 | BP22: 10 | BQ22: =VLOOKUP(BP22,$BJ$9:$BM$248,3,FALSE) -> 5.314941982 | BV22: 15 | CE22: ='Site&Soil'!$F$173*EXP('Site&Soil'!$F$174*CD22) ->  | CG22: 0 | CI22: 0 | CJ22: 0 | CW22: ='Site&Soil'!$G$173*EXP('Site&Soil'!$G$174*CV22) ->  | CY22: 0 | DA22: 0 | DB22: 0 | DO22: ='Site&Soil'!$H$173*EXP('Site&Soil'!$H$174*DN22) ->  | DQ22: 0 | DS22: 0 | DT22: 0 | EL22: 10 | EM22: =VLOOKUP(EL22,$EF$9:$EI$248,3,FALSE) ->  | ER22: 15
B23: 15 | C23: Mar | H23: 6.125548516 | I23: ='Site&Soil'!$F$173*EXP('Site&Soil'!$F$174*H23) -> 0 | J23: 0.6946875 | K23: 0.2096113872 | L23: 0.001503594695 | M23: 0 | N23: 0 | O23: 37558.18861 | P23: 1.535877202 | Q23: 0.005647229314 | R23: 0.0008031655812 | S23: 0.006973011221 | T23: 6.132521527 | U23: 0.1615297986 | V23: 0.001452743868 | W23: -0.002091219243 | Z23: 4.937661042 | AA23: ='Site&Soil'!$G$173*EXP('Site&Soil'!$G$174*Z23) -> 0 | AB23: 0.790875 | AC23: 0.3678794412 | AD23: 0.04234997144 | AE23: 0 | AF23: 0 | AG23: 268.6829624 | AH23: 0.01098732532 | AI23: 0.001137871578 | AJ23: 0.0001169042833 | AK23: 0.002306474318 | AL23: 4.939967516 | AM23: 0 | AN23: 0 | AO23: 0.001836881768 | AR23: 5.215556467 | AS23: ='Site&Soil'!$H$173*EXP('Site&Soil'!$H$174*AR23) -> 0 | AT23: 0.72675 | AU23: 0.6003730412 | AV23: 0.0363582379 | AW23: 0 | AX23: 0 | AY23: 1105.336623 | AZ23: 0.04520083059 | BA23: 0.004018809191 | BB23: 0.0004227572347 | BC23: 0.005108986914 | BD23: 5.220665454 | BE23: 0.3783936186 | BF23: 0.001194071796 | BG23: -0.001643029646 | BP23: 10 | BQ23: =VLOOKUP(BP23,$BJ$9:$BM$248,4,FALSE) -> 5.264358874 | BV23: 25 | CE23: ='Site&Soil'!$F$173*EXP('Site&Soil'!$F$174*CD23) ->  | CG23: 0 | CI23: 0 | CJ23: 0 | CW23: ='Site&Soil'!$G$173*EXP('Site&Soil'!$G$174*CV23) ->  | CY23: 0 | DA23: 0 | DB23: 0 | DO23: ='Site&Soil'!$H$173*EXP('Site&Soil'!$H$174*DN23) ->  | DQ23: 0 | DS23: 0 | DT23: 0 | EL23: 10 | EM23: =VLOOKUP(EL23,$EF$9:$EI$248,4,FALSE) ->  | ER23: 25
B24: 16 | C24: Apr | H24: 6.130430308 | I24: ='Site&Soil'!$F$173*EXP('Site&Soil'!$F$174*H24) -> 0 | J24: 0.6946875 | K24: 0.3678794412 | L24: 0.002608093521 | M24: 0 | N24: 0 | O24: 37420.09182 | P24: 1.530229973 | Q24: 0.009759509905 | R24: 0.001392684398 | S24: 0.01204401332 | T24: 6.142474322 | U24: 0.1684438802 | V24: 0.002720414473 | W24: -0.003916026232 | Z24: 4.941804398 | AA24: ='Site&Soil'!$G$173*EXP('Site&Soil'!$G$174*Z24) -> 0 | AB24: 0.790875 | AC24: 0.527292424 | AD24: 0.06012351224 | AE24: 0 | AF24: 0 | AG24: 240.8575638 | AH24: 0.009849453739 | AI24: 0.001448120268 | AJ24: 0.0001488170869 | AK24: 0.003403809173 | AL24: 4.945208207 | AM24: 0 | AN24: 0 | AO24: 0.003439752772 | AR24: 5.219022424 | AS24: ='Site&Soil'!$H$173*EXP('Site&Soil'!$H$174*AR24) -> 0 | AT24: 0.72675 | AU24: 0.7214222904 | AV24: 0.04333981695 | AW24: 0 | AX24: 0 | AY24: 1007.061062 | AZ24: 0.0411820214 | BA24: 0.00436458421 | BB24: 0.000459312583 | BC24: 0.005578381444 | BD24: 5.224600806 | BE24: 0.3812536355 | BF24: 0.001458828893 | BG24: -0.002007332499 | BP24: 15 | BQ24: =VLOOKUP(BP24,$BJ$9:$BM$248,2,FALSE) -> 6.138264997 | BW24: 5 | CE24: ='Site&Soil'!$F$173*EXP('Site&Soil'!$F$174*CD24) ->  | CG24: 0 | CI24: 0 | CJ24: 0 | CW24: ='Site&Soil'!$G$173*EXP('Site&Soil'!$G$174*CV24) ->  | CY24: 0 | DA24: 0 | DB24: 0 | DO24: ='Site&Soil'!$H$173*EXP('Site&Soil'!$H$174*DN24) ->  | DQ24: 0 | DS24: 0 | DT24: 0 | EL24: 15 | EM24: =VLOOKUP(EL24,$EF$9:$EI$248,2,FALSE) ->  | ES24: 5
B25: 17 | C25: May | H25: 6.138558295 | I25: ='Site&Soil'!$F$173*EXP('Site&Soil'!$F$174*H25) -> 0 | J25: 0.6946875 | K25: 0.5697828247 | L25: 0.003961255845 | M25: 0 | N25: 0 | O25: 37181.43374 | P25: 1.520470463 | Q25: 0.01472851717 | R25: 0.002113644071 | S25: 0.01815906159 | T25: 6.156717357 | U25: 0.1783383388 | V25: 0.004609686897 | W25: -0.006635626662 | Z25: 4.94864796 | AA25: ='Site&Soil'!$G$173*EXP('Site&Soil'!$G$174*Z25) -> 0 | AB25: 0.790875 | AC25: 0.6976763261 | AD25: 0.07830402845 | AE25: 0 | AF25: 0 | AG25: 205.4453745 | AH25: 0.00840133347 | AI25: 0.001608720045 | AJ25: 0.0001653919004 | AK25: 0.00449751505 | AL25: 4.953145475 | AM25: 0 | AN25: 0 | AO25: 0.005828590987 | AR25: 5.222593473 | AS25: ='Site&Soil'!$H$173*EXP('Site&Soil'!$H$174*AR25) -> 0 | AT25: 0.72675 | AU25: 0.8322075007 | AV25: 0.04958373266 | AW25: 0 | AX25: 0 | AY25: 900.3299534 | AZ25: 0.03681743719 | BA25: 0.004464171972 | BB25: 0.0004699858299 | BC25: 0.005723533598 | BD25: 5.228317007 | BE25: 0.3839543847 | BF25: 0.001709339246 | BG25: -0.002352031986 | BP25: 15 | BQ25: =VLOOKUP(BP25,$BJ$9:$BM$248,3,FALSE) -> 5.54458087 | BW25: 15 | CE25: ='Site&Soil'!$F$173*EXP('Site&Soil'!$F$174*CD25) ->  | CG25: 0 | CI25: 0 | CJ25: 0 | CW25: ='Site&Soil'!$G$173*EXP('Site&Soil'!$G$174*CV25) ->  | CY25: 0 | DA25: 0 | DB25: 0 | DO25: ='Site&Soil'!$H$173*EXP('Site&Soil'!$H$174*DN25) ->  | DQ25: 0 | DS25: 0 | DT25: 0 | EL25: 15 | EM25: =VLOOKUP(EL25,$EF$9:$EI$248,3,FALSE) ->  | ES25: 15
B26: 18 | C26: Jun | H26: 6.15008173 | I26: ='Site&Soil'!$F$173*EXP('Site&Soil'!$F$174*H26) -> 0 | J26: 0.6946875 | K26: 0.7788007831 | L26: 0.005266171391 | M26: 0 | N26: 0 | O26: 36821.26404 | P26: 1.505741946 | Q26: 0.01939070873 | R26: 0.002805385033 | S26: 0.02387451004 | T26: 6.17395624 | U26: 0.1903139756 | V26: 0.006996056393 | W26: -0.01007079643 | Z26: 4.958974066 | AA26: ='Site&Soil'!$G$173*EXP('Site&Soil'!$G$174*Z26) -> 0 | AB26: 0.790875 | AC26: 0.852143789 | AD26: 0.093387221 | AE26: 0 | AF26: 0 | AG26: 166.1058943 | AH26: 0.006792613425 | AI26: 0.001551216786 | AJ26: 0.0001595848808 | AK26: 0.005306801881 | AL26: 4.964280868 | AM26: 0 | AN26: 0 | AO26: 0.008845969834 | AR26: 5.225964975 | AS26: ='Site&Soil'!$H$173*EXP('Site&Soil'!$H$174*AR26) -> 0 | AT26: 0.72675 | AU26: 0.9216104473 | AV26: 0.05448356475 | AW26: 0 | AX26: 0 | AY26: 791.1635353 | AZ26: 0.03235326522 | BA26: 0.00431054097 | BB26: 0.0004539889918 | BC26: 0.005526160109 | BD26: 5.231491135 | BE26: 0.3862611823 | BF26: 0.001918313529 | BG26: -0.002639578299 | BP26: 15 | BQ26: =VLOOKUP(BP26,$BJ$9:$BM$248,4,FALSE) -> 5.340989094 | BW26: 25 | CE26: ='Site&Soil'!$F$173*EXP('Site&Soil'!$F$174*CD26) ->  | CG26: 0 | CI26: 0 | CJ26: 0 | CW26: ='Site&Soil'!$G$173*EXP('Site&Soil'!$G$174*CV26) ->  | CY26: 0 | DA26: 0 | DB26: 0 | DO26: ='Site&Soil'!$H$173*EXP('Site&Soil'!$H$174*DN26) ->  | DQ26: 0 | DS26: 0 | DT26: 0 | EL26: 15 | EM26: =VLOOKUP(EL26,$EF$9:$EI$248,4,FALSE) ->  | ES26: 25
B27: 19 | C27: Jul | H27: 6.163885444 | I27: ='Site&Soil'!$F$173*EXP('Site&Soil'!$F$174*H27) -> 0 | J27: 0.6946875 | K27: 0.9394130628 | L27: 0.006144196272 | M27: 0 | N27: 0 | O27: 36347.08557 | P27: 1.486351237 | Q27: 0.02233236277 | R27: 0.003263195706 | S27: 0.02744999307 | T27: 6.191335437 | U27: 0.2023870863 | V27: 0.009340601194 | W27: -0.0134457597 | Z27: 4.973126838 | AA27: ='Site&Soil'!$G$173*EXP('Site&Soil'!$G$174*Z27) -> 0 | AB27: 0.790875 | AC27: 0.9607894392 | AD27: 0.1019080532 | AE27: 0 | AF27: 0 | AG27: 128.172593 | AH27: 0.00524139664 | AI27: 0.001306181943 | AJ27: 0.0001345008646 | AK27: 0.005607557179 | AL27: 4.978734395 | AM27: 0 | AN27: 0 | AO27: 0.0118104646 | AR27: 5.228851557 | AS27: ='Site&Soil'!$H$173*EXP('Site&Soil'!$H$174*AR27) -> 0 | AT27: 0.72675 | AU27: 0.9797986739 | AV27: 0.05753775316 | AW27: 0 | AX27: 0 | AY27: 685.7539944 | AZ27: 0.02804272425 | BA27: 0.003945674406 | BB27: 0.0004157010074 | BC27: 0.005042276247 | BD27: 5.233893833 | BE27: 0.388007343 | BF27: 0.002060016149 | BG27: -0.002834559544 | BP27: 20 | BQ27: =VLOOKUP(BP27,$BJ$9:$BM$248,2,FALSE) -> 6.103391643 | BX27: 5 | CE27: ='Site&Soil'!$F$173*EXP('Site&Soil'!$F$174*CD27) ->  | CG27: 0 | CI27: 0 | CJ27: 0 | CW27: ='Site&Soil'!$G$173*EXP('Site&Soil'!$G$174*CV27) ->  | CY27: 0 | DA27: 0 | DB27: 0 | DO27: ='Site&Soil'!$H$173*EXP('Site&Soil'!$H$174*DN27) ->  | DQ27: 0 | DS27: 0 | DT27: 0 | EL27: 20 | EM27: =VLOOKUP(EL27,$EF$9:$EI$248,2,FALSE) ->  | ET27: 5
B28: 20 | C28: Aug | H28: 6.177889677 | I28: ='Site&Soil'!$F$173*EXP('Site&Soil'!$F$174*H28) -> 0 | J28: 0.6946875 | K28: 1 | L28: 0.006322889243 | M28: 0 | N28: 0 | O28: 35800.97219 | P28: 1.464018874 | Q28: 0.0226365582 | R28: 0.003341857668 | S28: 0.02777464764 | T28: 6.205664325 | U28: 0.2123411857 | V28: 0.01078198102 | W28: -0.01552062045 | Z28: 4.99054486 | AA28: ='Site&Soil'!$G$173*EXP('Site&Soil'!$G$174*Z28) -> 0 | AB28: 0.790875 | AC28: 1 | AD28: 0.1018847711 | AE28: 0 | AF28: 0 | AG28: 96.23134947 | AH28: 0.003935214697 | AI28: 0.000980450901 | AJ28: 0.0001010787767 | AK28: 0.005337417155 | AL28: 4.995882277 | AM28: 0 | AN28: 0 | AO28: 0.01363297742 | AR28: 5.231059273 | AS28: ='Site&Soil'!$H$173*EXP('Site&Soil'!$H$174*AR28) -> 0 | AT28: 0.72675 | AU28: 1 | AV28: 0.05842468987 | AW28: 0 | AX28: 0 | AY28: 589.2668643 | AZ28: 0.02409704984 | BA28: 0.00344277338 | BB28: 0.0003628112761 | BC28: 0.004377077235 | BD28: 5.235436351 | BE28: 0.3891283678 | BF28: 0.002116066164 | BG28: -0.002911683748 | BP28: 20 | BQ28: =VLOOKUP(BP28,$BJ$9:$BM$248,3,FALSE) -> 5.643710259 | BX28: 15 | CE28: ='Site&Soil'!$F$173*EXP('Site&Soil'!$F$174*CD28) ->  | CG28: 0 | CI28: 0 | CJ28: 0 | CW28: ='Site&Soil'!$G$173*EXP('Site&Soil'!$G$174*CV28) ->  | CY28: 0 | DA28: 0 | DB28: 0 | DO28: ='Site&Soil'!$H$173*EXP('Site&Soil'!$H$174*DN28) ->  | DQ28: 0 | DS28: 0 | DT28: 0 | EL28: 20 | EM28: =VLOOKUP(EL28,$EF$9:$EI$248,3,FALSE) ->  | ET28: 15
B29: 21 | C29: Sep | H29: 6.190143704 | I29: ='Site&Soil'!$F$173*EXP('Site&Soil'!$F$174*H29) -> 0 | J29: 0.6946875 | K29: 0.9394130628 | L29: 0.005766285029 | M29: 0 | N29: 0 | O29: 35247.42005 | P29: 1.441382316 | Q29: 0.02032466705 | R29: 0.003028255292 | S29: 0.0248981186 | T29: 6.215041823 | U29: 0.2188556164 | V29: 0.01066733942 | W29: -0.01535559431 | Z29: 5.009515254 | AA29: ='Site&Soil'!$G$173*EXP('Site&Soil'!$G$174*Z29) -> 0 | AB29: 0.790875 | AC29: 0.9607894392 | AD29: 0.09369294953 | AE29: 0 | AF29: 0 | AG29: 72.25550049 | AH29: 0.002954763796 | AI29: 0.000676983096 | AJ29: 6.988654016e-05 | AK29: 0.004596620007 | AL29: 5.014111874 | AM29: 0.01116072859 | AN29: 3.502939544e-05 | AO29: 0.01344373008 | AR29: 5.232524667 | AS29: ='Site&Soil'!$H$173*EXP('Site&Soil'!$H$174*AR29) -> 0 | AT29: 0.72675 | AU29: 0.9797986739 | AV29: 0.05705056169 | AW29: 0 | AX29: 0 | AY29: 505.0776259 | AZ29: 0.02065427646 | BA29: 0.002881496225 | BB29: 0.000303714393 | BC29: 0.003643162535 | BD29: 5.236167829 | BE29: 0.38965997 | BF29: 0.002079651048 | BG29: -0.002813376887 | BP29: 20 | BQ29: =VLOOKUP(BP29,$BJ$9:$BM$248,4,FALSE) -> 5.494572316 | BX29: 25 | CE29: ='Site&Soil'!$F$173*EXP('Site&Soil'!$F$174*CD29) ->  | CG29: 0 | CI29: 0 | CJ29: 0 | CW29: ='Site&Soil'!$G$173*EXP('Site&Soil'!$G$174*CV29) ->  | CY29: 0 | DA29: 0 | DB29: 0 | DO29: ='Site&Soil'!$H$173*EXP('Site&Soil'!$H$174*DN29) ->  | DQ29: 0 | DS29: 0 | DT29: 0 | EL29: 20 | EM29: =VLOOKUP(EL29,$EF$9:$EI$248,4,FALSE) ->  | ET29: 25
B30: 22 | C30: Oct | H30: 6.199686229 | I30: ='Site&Soil'!$F$173*EXP('Site&Soil'!$F$174*H30) -> 0 | J30: 0.6946875 | K30: 0.7788007831 | L30: 0.004671173811 | M30: 0 | N30: 0 | O30: 34750.40266 | P30: 1.421057649 | Q30: 0.01623251708 | R30: 0.002436217174 | S30: 0.01985972097 | T30: 6.21954595 | U30: 0.2219845769 | V30: 0.009063483127 | W30: -0.01304684931 | X30: =-'Profit Calculator'!G$29*'Quantity of Lime to Apply'!H$9 -> -0.04009124051 | Z30: 5.027555604 | AA30: ='Site&Soil'!$G$173*EXP('Site&Soil'!$G$174*Z30) -> 0 | AB30: 0.790875 | AC30: 0.852143789 | AD30: 0.0797060864 | AE30: 0 | AF30: 0 | AG30: 55.70062307 | AH30: 0.0022777807 | AI30: 0.0004439678675 | AJ30: 4.589270253e-05 | AK30: 0.003583742486 | AL30: 5.031139347 | AM30: 0.02462733096 | AN30: 7.129672425e-05 | AO30: 0.01136992117 | AP30: =-'Profit Calculator'!$G$29*'Quantity of Lime to Apply'!$H$19 -> -0.04009124051 | AR30: 5.233354452 | AS30: ='Site&Soil'!$H$173*EXP('Site&Soil'!$H$174*AR30) -> 0 | AT30: 0.72675 | AU30: 0.9216104473 | AV30: 0.05355945757 | AW30: 0 | AX30: 0 | AY30: 434.6138033 | AZ30: 0.01777278024 | BA30: 0.002327767956 | BB30: 0.000245374579 | BC30: 0.002928498217 | BD30: 5.236282951 | BE30: 0.3897436344 | BF30: 0.001957083568 | BG30: -0.002594821938 | BH30: 0.02 | BJ30: =BJ18+1 -> 2 | BK30: =AVERAGE(H25:H30) -> 6.170040847 | BL30: =AVERAGE(Z25:Z30) -> 4.98472743 | BM30: =AVERAGE(AR25:AR30) -> 5.229058066 | CE30: ='Site&Soil'!$F$173*EXP('Site&Soil'!$F$174*CD30) ->  | CG30: 0 | CI30: 0 | CJ30: 0 | CW30: ='Site&Soil'!$G$173*EXP('Site&Soil'!$G$174*CV30) ->  | CY30: 0 | DA30: 0 | DB30: 0 | DO30: ='Site&Soil'!$H$173*EXP('Site&Soil'!$H$174*DN30) ->  | DQ30: 0 | DS30: 0 | DT30: 0 | EF30: =EF18+1 -> 2 | EG30: =AVERAGE(CD25:CD30) ->  | EH30: =AVERAGE(CV25:CV30) ->  | EI30: =AVERAGE(DN25:DN30) -> 
B31: 23 | C31: Nov | H31: 6.16640786 | I31: ='Site&Soil'!$F$173*EXP('Site&Soil'!$F$174*H31) -> 0 | J31: 0.6946875 | K31: 0.5697828247 | L31: 0.003704018047 | M31: 0 | N31: 0 | O31: 34353.45429 | P31: 1.404825132 | Q31: 0.01272458147 | R31: 0.001862729038 | S31: 0.01563559504 | T31: 6.182043455 | U31: 0.1959320625 | V31: 0.005368566277 | W31: -0.007728030629 | Z31: 5.002418028 | AA31: ='Site&Soil'!$G$173*EXP('Site&Soil'!$G$174*Z31) -> 0 | AB31: 0.790875 | AC31: 0.6976763261 | AD31: 0.06915964112 | AE31: 0 | AF31: 0 | AG31: 44.84387692 | AH31: 0.001833812832 | AI31: 0.0003101386434 | AJ31: 3.200008458e-05 | AK31: 0.002706960767 | AL31: 5.005124988 | AM31: 0.00405322512 | AN31: 9.04856479e-06 | AO31: 0.006776693804 | AR31: 5.253688129 | AS31: ='Site&Soil'!$H$173*EXP('Site&Soil'!$H$174*AR31) -> 0 | AT31: 0.72675 | AU31: 0.8322075007 | AV31: 0.04613955914 | AW31: 0 | AX31: 0 | AY31: 377.6907968 | AZ31: 0.01544501228 | BA31: 0.001742648686 | BB31: 0.0001841480774 | BC31: 0.002188511445 | BD31: 5.25587664 | BE31: 0.4039833482 | BF31: 0.001916336318 | BG31: -0.002624406953 | CE31: ='Site&Soil'!$F$173*EXP('Site&Soil'!$F$174*CD31) ->  | CG31: 0 | CI31: 0 | CJ31: 0 | CW31: ='Site&Soil'!$G$173*EXP('Site&Soil'!$G$174*CV31) ->  | CY31: 0 | DA31: 0 | DB31: 0 | DO31: ='Site&Soil'!$H$173*EXP('Site&Soil'!$H$174*DN31) ->  | DQ31: 0 | DS31: 0 | DT31: 0
B32: 24 | C32: Dec | H32: 6.174315424 | I32: ='Site&Soil'!$F$173*EXP('Site&Soil'!$F$174*H32) -> 0 | J32: 0.6946875 | K32: 0.3678794412 | L32: 0.002346244865 | M32: 0 | N32: 0 | O32: 34042.28864 | P32: 1.392100551 | Q32: 0.007987154493 | R32: 0.001176033437 | S32: 0.009804582717 | T32: 6.184120007 | U32: 0.1973746173 | V32: 0.003508462396 | W32: -0.005050418203 | Z32: 5.011901682 | AA32: ='Site&Soil'!$G$173*EXP('Site&Soil'!$G$174*Z32) -> 0 | AB32: 0.790875 | AC32: 0.527292424 | AD32: 0.05113709278 | AE32: 0 | AF32: 0 | AG32: 37.25977733 | AH32: 0.001523674189 | AI32: 0.000190535669 | AJ32: 1.967283395e-05 | AK32: 0.001703045705 | AL32: 5.013604728 | AM32: 0.0107596391 | AN32: 1.851202653e-05 | AO32: 0.004412771132 | AR32: 5.253252233 | AS32: ='Site&Soil'!$H$173*EXP('Site&Soil'!$H$174*AR32) -> 0 | AT32: 0.72675 | AU32: 0.7214222904 | AV32: 0.04003775818 | AW32: 0 | AX32: 0 | AY32: 335.0762389 | AZ32: 0.0137023636 | BA32: 0.001341570143 | BB32: 0.0001417579247 | BC32: 0.001677998007 | BD32: 5.254930231 | BE32: 0.4032955455 | BF32: 0.00165479124 | BG32: -0.002251502186 | CE32: ='Site&Soil'!$F$173*EXP('Site&Soil'!$F$174*CD32) ->  | CG32: 0 | CI32: 0 | CJ32: 0 | CW32: ='Site&Soil'!$G$173*EXP('Site&Soil'!$G$174*CV32) ->  | CY32: 0 | DA32: 0 | DB32: 0 | DO32: ='Site&Soil'!$H$173*EXP('Site&Soil'!$H$174*DN32) ->  | DQ32: 0 | DS32: 0 | DT32: 0
A33: =A21+1 -> 3 | B33: 25 | C33: Jan | D33: =OFFSET(Apply_Lime!$H$16,$A33,0) -> 0 | E33: =OFFSET(Apply_Lime!$I$16,$A33,0)*G33 -> 0 | F33: =OFFSET(Apply_Lime!$I$16,$A33,0)*(1-G33) -> 0 | G33: ='Profit Calculator'!H28 -> 0 | H33: 6.179069589 | I33: ='Site&Soil'!$F$173*EXP('Site&Soil'!$F$174*H33) -> 0 | J33: 0.6946875 | K33: 0.04677062238 | L33: 0.0002948829867 | M33: 0 | N33: 0 | O33: 33846.97156 | P33: 1.384113396 | Q33: 0.0009980896066 | R33: 0.0001474782988 | S33: 0.001224451725 | T33: 6.18029404 | U33: 0.1947167662 | V33: 0.0004361848107 | W33: -0.0006278863672 | Z33: 5.018017499 | AA33: ='Site&Soil'!$G$173*EXP('Site&Soil'!$G$174*Z33) -> 0 | AB33: 0.790875 | AC33: 0.1408584209 | AD33: 0.01346887795 | AE33: 0 | AF33: 0 | AG33: 32.600437 | AH33: 0.00133313852 | AI33: 4.390913071e-05 | AJ33: 4.535647661e-06 | AK33: 0.0002362595629 | AL33: 5.018253759 | AM33: 0.01443644126 | AN33: 6.706512246e-06 | AO33: 0.0005430419453 | AR33: 5.252678729 | AS33: ='Site&Soil'!$H$173*EXP('Site&Soil'!$H$174*AR33) -> 0 | AT33: 0.72675 | AU33: 0.3678794412 | AV33: 0.02044384046 | AW33: 0 | AX33: 0 | AY33: 302.2696158 | AZ33: 0.01236079345 | BA33: 0.0006179551803 | BB33: 6.529203553e-05 | BC33: 0.0007666994048 | BD33: 5.253445428 | BE33: 0.4022164651 | BF33: 0.0008387080113 | BG33: -0.001144824904 | BZ33: =OFFSET(Apply_Lime!$O$16,$A33,0) -> 0 | CA33: =OFFSET(Apply_Lime!$P$16,$A33,0)*CA$7 -> 0 | CB33: =OFFSET(Apply_Lime!$P$16,$A33,0)*CB$7 -> 0 | CE33: ='Site&Soil'!$F$173*EXP('Site&Soil'!$F$174*CD33) ->  | CG33: 0 | CI33: 0 | CJ33: 0 | CW33: ='Site&Soil'!$G$173*EXP('Site&Soil'!$G$174*CV33) ->  | CY33: 0 | DA33: 0 | DB33: 0 | DO33: ='Site&Soil'!$H$173*EXP('Site&Soil'!$H$174*DN33) ->  | DQ33: 0 | DS33: 0 | DT33: 0
B34: 26 | C34: Feb | H34: 6.179666154 | I34: ='Site&Soil'!$F$173*EXP('Site&Soil'!$F$174*H34) -> 0 | J34: 0.6946875 | K34: 0.1053992246 | L34: 0.0006635711178 | M34: 0 | N34: 0 | O34: 33822.56438 | P34: 1.383115307 | Q34: 0.002244367685 | R34: 0.0003317764151 | S34: 0.00275316782 | T34: 6.182419322 | U34: 0.1961931727 | V34: 0.0009952693457 | W34: -0.001432686417 | Z34: 5.0187968 | AA34: ='Site&Soil'!$G$173*EXP('Site&Soil'!$G$174*Z34) -> 0 | AB34: 0.790875 | AC34: 0.2369277587 | AD34: 0.02261427489 | AE34: 0 | AF34: 0 | AG34: 31.52668748 | AH34: 0.001289229389 | AI34: 7.12953177e-05 | AJ34: 7.364959606e-06 | AK34: 0.000500340475 | AL34: 5.019297141 | AM34: 0.01526162633 | AN34: 1.195401793e-05 | AO34: 0.001243325845 | AR34: 5.252300604 | AS34: ='Site&Soil'!$H$173*EXP('Site&Soil'!$H$174*AR34) -> 0 | AT34: 0.72675 | AU34: 0.4796522688 | AV34: 0.02667864355 | AW34: 0 | AX34: 0 | AY34: 287.1582012 | AZ34: 0.01174283827 | BA34: 0.0007660991291 | BB34: 8.094088687e-05 | BC34: 0.0009529043025 | BD34: 5.253253508 | BE34: 0.4020769868 | BF34: 0.001092670524 | BG34: -0.001487054016 | CE34: ='Site&Soil'!$F$173*EXP('Site&Soil'!$F$174*CD34) ->  | CG34: 0 | CI34: 0 | CJ34: 0 | CW34: ='Site&Soil'!$G$173*EXP('Site&Soil'!$G$174*CV34) ->  | CY34: 0 | DA34: 0 | DB34: 0 | DO34: ='Site&Soil'!$H$173*EXP('Site&Soil'!$H$174*DN34) ->  | DQ34: 0 | DS34: 0 | DT34: 0
B35: 27 | C35: Mar | H35: 6.180986636 | I35: ='Site&Soil'!$F$173*EXP('Site&Soil'!$F$174*H35) -> 0 | J35: 0.6946875 | K35: 0.2096113872 | L35: 0.001315461125 | M35: 0 | N35: 0 | O35: 33767.68083 | P35: 1.380870939 | Q35: 0.00444200714 | R35: 0.0006572920969 | S35: 0.005448082833 | T35: 6.186434718 | U35: 0.1989826184 | V35: 0.002026117986 | W35: -0.002916589093 | Z35: 5.020540467 | AA35: ='Site&Soil'!$G$173*EXP('Site&Soil'!$G$174*Z35) -> 0 | AB35: 0.790875 | AC35: 0.3678794412 | AD35: 0.03497218637 | AE35: 0 | AF35: 0 | AG35: 29.78323886 | AH35: 0.001217934072 | AI35: 0.000104158498 | AJ35: 1.076118049e-05 | AK35: 0.0009491884487 | AL35: 5.021489655 | AM35: 0.01699563107 | AN35: 2.077459033e-05 | AO35: 0.002535600942 | AR35: 5.251766454 | AS35: ='Site&Soil'!$H$173*EXP('Site&Soil'!$H$174*AR35) -> 0 | AT35: 0.72675 | AU35: 0.6003730412 | AV35: 0.03343455973 | AW35: 0 | AX35: 0 | AY35: 268.4240892 | AZ35: 0.01097673915 | BA35: 0.0008974641243 | BB35: 9.481379334e-05 | BC35: 0.001119245286 | BD35: 5.252885699 | BE35: 0.4018096818 | BF35: 0.001365611857 | BG35: -0.001850481275 | CE35: ='Site&Soil'!$F$173*EXP('Site&Soil'!$F$174*CD35) ->  | CG35: 0 | CI35: 0 | CJ35: 0 | CW35: ='Site&Soil'!$G$173*EXP('Site&Soil'!$G$174*CV35) ->  | CY35: 0 | DA35: 0 | DB35: 0 | DO35: ='Site&Soil'!$H$173*EXP('Site&Soil'!$H$174*DN35) ->  | DQ35: 0 | DS35: 0 | DT35: 0
B36: 28 | C36: Apr | H36: 6.183518129 | I36: ='Site&Soil'!$F$173*EXP('Site&Soil'!$F$174*H36) -> 0 | J36: 0.6946875 | K36: 0.3678794412 | L36: 0.002294611782 | M36: 0 | N36: 0 | O36: 33659.05643 | P36: 1.376428932 | Q36: 0.007723446746 | R36: 0.001145018838 | S36: 0.00946962182 | T36: 6.192987751 | U36: 0.2035349283 | V36: 0.003692599595 | W36: -0.005315482998 | Z36: 5.024025256 | AA36: ='Site&Soil'!$G$173*EXP('Site&Soil'!$G$174*Z36) -> 0 | AB36: 0.790875 | AC36: 0.527292424 | AD36: 0.04972472265 | AE36: 0 | AF36: 0 | AG36: 27.23615729 | AH36: 0.001113775574 | AI36: 0.0001354310367 | AJ36: 1.39957338e-05 | AK36: 0.00160133288 | AL36: 5.025626589 | AM36: 0.02026742861 | AN36: 3.584897745e-05 | AO36: 0.004623677089 | AR36: 5.251035218 | AS36: ='Site&Soil'!$H$173*EXP('Site&Soil'!$H$174*AR36) -> 0 | AT36: 0.72675 | AU36: 0.7214222904 | AV36: 0.04024383574 | AW36: 0 | AX36: 0 | AY36: 246.4775906 | AZ36: 0.01007927502 | BA36: 0.0009919203669 | BB36: 0.0001047833268 | BC36: 0.001239948777 | BD36: 5.252275167 | BE36: 0.4013659773 | BF36: 0.001636836419 | BG36: -0.002202941096 | CE36: ='Site&Soil'!$F$173*EXP('Site&Soil'!$F$174*CD36) ->  | CG36: 0 | CI36: 0 | CJ36: 0 | CW36: ='Site&Soil'!$G$173*EXP('Site&Soil'!$G$174*CV36) ->  | CY36: 0 | DA36: 0 | DB36: 0 | DO36: ='Site&Soil'!$H$173*EXP('Site&Soil'!$H$174*DN36) ->  | DQ36: 0 | DS36: 0 | DT36: 0
B37: 29 | C37: May | H37: 6.187672268 | I37: ='Site&Soil'!$F$173*EXP('Site&Soil'!$F$174*H37) -> 0 | J37: 0.6946875 | K37: 0.5697828247 | L37: 0.00351841647 | M37: 0 | N37: 0 | O37: 33470.18803 | P37: 1.368705485 | Q37: 0.01177620608 | R37: 0.001751311117 | S37: 0.01443079797 | T37: 6.202103066 | U37: 0.2098672237 | V37: 0.00602222583 | W37: -0.008668971055 | Z37: 5.030250266 | AA37: ='Site&Soil'!$G$173*EXP('Site&Soil'!$G$174*Z37) -> 0 | AB37: 0.790875 | AC37: 0.6976763261 | AD37: 0.0648528086 | AE37: 0 | AF37: 0 | AG37: 23.92434016 | AH37: 0.0009783445368 | AI37: 0.0001551560653 | AJ37: 1.604164684e-05 | AK37: 0.002390296236 | AL37: 5.032640562 | AM37: 0.02581460476 | AN37: 6.13988206e-05 | AO37: 0.007537002699 | AR37: 5.250072226 | AS37: ='Site&Soil'!$H$173*EXP('Site&Soil'!$H$174*AR37) -> 0 | AT37: 0.72675 | AU37: 0.8322075007 | AV37: 0.04652751757 | AW37: 0 | AX37: 0 | AY37: 222.2212684 | AZ37: 0.009087354654 | BA37: 0.001033940397 | BB37: 0.0001092092809 | BC37: 0.001294492966 | BD37: 5.251366718 | BE37: 0.4007057626 | BF37: 0.00188115219 | BG37: -0.002503960604 | CE37: ='Site&Soil'!$F$173*EXP('Site&Soil'!$F$174*CD37) ->  | CG37: 0 | CI37: 0 | CJ37: 0 | CW37: ='Site&Soil'!$G$173*EXP('Site&Soil'!$G$174*CV37) ->  | CY37: 0 | DA37: 0 | DB37: 0 | DO37: ='Site&Soil'!$H$173*EXP('Site&Soil'!$H$174*DN37) ->  | DQ37: 0 | DS37: 0 | DT37: 0
B38: 30 | C38: Jun | H38: 6.193434095 | I38: ='Site&Soil'!$F$173*EXP('Site&Soil'!$F$174*H38) -> 0 | J38: 0.6946875 | K38: 0.7788007831 | L38: 0.004742477814 | M38: 0 | N38: 0 | O38: 33182.21386 | P38: 1.356929279 | Q38: 0.0157365913 | R38: 0.002350522709 | S38: 0.01926919456 | T38: 6.21270329 | U38: 0.2172310665 | V38: 0.00873075102 | W38: -0.01256788271 | Z38: 5.040177565 | AA38: ='Site&Soil'!$G$173*EXP('Site&Soil'!$G$174*Z38) -> 0 | AB38: 0.790875 | AC38: 0.852143789 | AD38: 0.07741519715 | AE38: 0 | AF38: 0 | AG38: 20.13016915 | AH38: 0.0008231884714 | AI38: 0.0001558381013 | AJ38: 1.612437923e-05 | AK38: 0.003148710518 | AL38: 5.043326276 | AM38: 0.0342656682 | AN38: 0.0001020230643 | AO38: 0.01091035619 | AR38: 5.248862758 | AS38: ='Site&Soil'!$H$173*EXP('Site&Soil'!$H$174*AR38) -> 0 | AT38: 0.72675 | AU38: 0.9216104473 | AV38: 0.05167041436 | AW38: 0 | AX38: 0 | AY38: 196.9373926 | AZ38: 0.008053414257 | BA38: 0.001017583668 | BB38: 0.0001074656955 | BC38: 0.00127449928 | BD38: 5.250137257 | BE38: 0.3998122516 | BF38: 0.002072720509 | BG38: -0.002711657991 | CE38: ='Site&Soil'!$F$173*EXP('Site&Soil'!$F$174*CD38) ->  | CG38: 0 | CI38: 0 | CJ38: 0 | CW38: ='Site&Soil'!$G$173*EXP('Site&Soil'!$G$174*CV38) ->  | CY38: 0 | DA38: 0 | DB38: 0 | DO38: ='Site&Soil'!$H$173*EXP('Site&Soil'!$H$174*DN38) ->  | DQ38: 0 | DS38: 0 | DT38: 0
B39: 31 | C39: Jul | H39: 6.200135407 | I39: ='Site&Soil'!$F$173*EXP('Site&Soil'!$F$174*H39) -> 0 | J39: 0.6946875 | K39: 0.9394130628 | L39: 0.005628379462 | M39: 0 | N39: 0 | O39: 32797.39281 | P39: 1.341192688 | Q39: 0.01845961721 | R39: 0.00277142267 | S39: 0.02258309606 | T39: 6.222718503 | U39: 0.22418851 | V39: 0.01112214233 | W39: -0.01601028135 | Z39: 5.054236632 | AA39: ='Site&Soil'!$G$173*EXP('Site&Soil'!$G$174*Z39) -> 0 | AB39: 0.790875 | AC39: 0.9607894392 | AD39: 0.08449533926 | AE39: 0 | AF39: 0 | AG39: 16.31931969 | AH39: 0.0006673503701 | AI39: 0.0001378906454 | AJ39: 1.428311514e-05 | AK39: 0.003660540794 | AL39: 5.057897173 | AM39: 0.04578942636 | AN39: 0.0001589610036 | AO39: 0.01386209113 | AR39: 5.247425599 | AS39: ='Site&Soil'!$H$173*EXP('Site&Soil'!$H$174*AR39) -> 0 | AT39: 0.72675 | AU39: 0.9797986739 | AV39: 0.05511586829 | AW39: 0 | AX39: 0 | AY39: 172.0535026 | AZ39: 0.007035830589 | BA39: 0.000948287819 | BB39: 0.0001001298791 | BC39: 0.001186709398 | BD39: 5.248612309 | BE39: 0.3987039952 | BF39: 0.002189776261 | BG39: -0.00279437944 | CE39: ='Site&Soil'!$F$173*EXP('Site&Soil'!$F$174*CD39) ->  | CG39: 0 | CI39: 0 | CJ39: 0 | CW39: ='Site&Soil'!$G$173*EXP('Site&Soil'!$G$174*CV39) ->  | CY39: 0 | DA39: 0 | DB39: 0 | DO39: ='Site&Soil'!$H$173*EXP('Site&Soil'!$H$174*DN39) ->  | DQ39: 0 | DS39: 0 | DT39: 0
B40: 32 | C40: Aug | H40: 6.206708222 | I40: ='Site&Soil'!$F$173*EXP('Site&Soil'!$F$174*H40) -> 0 | J40: 0.6946875 | K40: 1 | L40: 0.005896635254 | M40: 0 | N40: 0 | O40: 32345.98317 | P40: 1.32273307 | Q40: 0.01907324647 | R40: 0.00287813152 | S40: 0.02331280604 | T40: 6.230021028 | U40: 0.2292614826 | V40: 0.01231266672 | W40: -0.01772403667 | Z40: 5.071759264 | AA40: ='Site&Soil'!$G$173*EXP('Site&Soil'!$G$174*Z40) -> 0 | AB40: 0.790875 | AC40: 1 | AD40: 0.08445348982 | AE40: 0 | AF40: 0 | AG40: 12.94735554 | AH40: 0.0005294597248 | AI40: 0.0001093449359 | AJ40: 1.134239757e-05 | AK40: 0.003763090322 | AL40: 5.075522354 | AM40: 0.05972874174 | AN40: 0.0002247531151 | AO40: 0.01528422773 | AR40: 5.245817929 | AS40: ='Site&Soil'!$H$173*EXP('Site&Soil'!$H$174*AR40) -> 0 | AT40: 0.72675 | AU40: 1 | AV40: 0.05646203115 | AW40: 0 | AX40: 0 | AY40: 148.8641665 | AZ40: 0.00608754277 | BA40: 0.0008405173204 | BB40: 8.87330118e-05 | BC40: 0.001050053947 | BD40: 5.246867983 | BE40: 0.3974363067 | BF40: 0.002218888715 | BG40: -0.002743908634 | CE40: ='Site&Soil'!$F$173*EXP('Site&Soil'!$F$174*CD40) ->  | CG40: 0 | CI40: 0 | CJ40: 0 | CW40: ='Site&Soil'!$G$173*EXP('Site&Soil'!$G$174*CV40) ->  | CY40: 0 | DA40: 0 | DB40: 0 | DO40: ='Site&Soil'!$H$173*EXP('Site&Soil'!$H$174*DN40) ->  | DQ40: 0 | DS40: 0 | DT40: 0
B41: 33 | C41: Sep | H41: 6.212296991 | I41: ='Site&Soil'!$F$173*EXP('Site&Soil'!$F$174*H41) -> 0 | J41: 0.6946875 | K41: 0.9394130628 | L41: 0.005464750408 | M41: 0 | N41: 0 | O41: 31879.56789 | P41: 1.303659824 | Q41: 0.01742138816 | R41: 0.002640352668 | S41: 0.02127724408 | T41: 6.233574235 | U41: 0.2317298514 | V41: 0.01178725864 | W41: -0.01696771374 | Z41: 5.090806582 | AA41: ='Site&Soil'!$G$173*EXP('Site&Soil'!$G$174*Z41) -> 0 | AB41: 0.790875 | AC41: 0.9607894392 | AD41: 0.07764716237 | AE41: 0 | AF41: 0 | AG41: 10.27344533 | AH41: 0.0004201147888 | AI41: 7.977038779e-05 | AJ41: 8.287958511e-06 | AK41: 0.003428904817 | AL41: 5.094235487 | AM41: 0.07452849044 | AN41: 0.0002813105579 | AO41: 0.01454837753 | AR41: 5.244124074 | AS41: ='Site&Soil'!$H$173*EXP('Site&Soil'!$H$174*AR41) -> 0 | AT41: 0.72675 | AU41: 0.9797986739 | AV41: 0.05553882245 | AW41: 0 | AX41: 0 | AY41: 128.3102394 | AZ41: 0.00524702545 | BA41: 0.0007126199603 | BB41: 7.521549889e-05 | BC41: 0.0008884656621 | BD41: 5.24501254 | BE41: 0.3960878635 | BF41: 0.002157450911 | BG41: -0.002581548473 | CE41: ='Site&Soil'!$F$173*EXP('Site&Soil'!$F$174*CD41) ->  | CG41: 0 | CI41: 0 | CJ41: 0 | CW41: ='Site&Soil'!$G$173*EXP('Site&Soil'!$G$174*CV41) ->  | CY41: 0 | DA41: 0 | DB41: 0 | DO41: ='Site&Soil'!$H$173*EXP('Site&Soil'!$H$174*DN41) ->  | DQ41: 0 | DS41: 0 | DT41: 0
B42: 34 | C42: Oct | H42: 6.216606521 | I42: ='Site&Soil'!$F$173*EXP('Site&Soil'!$F$174*H42) -> 0 | J42: 0.6946875 | K42: 0.7788007831 | L42: 0.004483271973 | M42: 0 | N42: 0 | O42: 31453.547 | P42: 1.286238436 | Q42: 0.01410148057 | R42: 0.002144444179 | S42: 0.01721210816 | T42: 6.233818629 | U42: 0.2318996291 | V42: 0.009784644764 | W42: -0.01408495872 | X42: =-'Profit Calculator'!H$29*'Quantity of Lime to Apply'!H$9 -> -0.04112718987 | Z42: 5.108783864 | AA42: ='Site&Soil'!$G$173*EXP('Site&Soil'!$G$174*Z42) -> 0 | AB42: 0.790875 | AC42: 0.852143789 | AD42: 0.0660634337 | AE42: 0 | AF42: 0 | AG42: 8.32274819 | AH42: 0.0003403444011 | AI42: 5.498293233e-05 | AJ42: 5.721656504e-06 | AK42: 0.002773770134 | AL42: 5.111557634 | AM42: 0.08822814397 | AN42: 0.0003073814538 | AO42: 0.01198326323 | AP42: =-'Profit Calculator'!$H$29*'Quantity of Lime to Apply'!$H$19 -> -0.04112718987 | AR42: 5.242430992 | AS42: ='Site&Soil'!$H$173*EXP('Site&Soil'!$H$174*AR42) -> 0 | AT42: 0.72675 | AU42: 0.9216104473 | AV42: 0.0524456798 | AW42: 0 | AX42: 0 | AY42: 110.8839016 | AZ42: 0.00453440549 | BA42: 0.0005815381599 | BB42: 6.136754468e-05 | BC42: 0.0007236219769 | BD42: 5.243154614 | BE42: 0.3947376154 | BF42: 0.002013773011 | BG42: -0.002347975999 | BH42: 0.02 | BJ42: =BJ30+1 -> 3 | BK42: =AVERAGE(H37:H42) -> 6.202808917 | BL42: =AVERAGE(Z37:Z42) -> 5.066002362 | BM42: =AVERAGE(AR37:AR42) -> 5.246455596 | CE42: ='Site&Soil'!$F$173*EXP('Site&Soil'!$F$174*CD42) ->  | CG42: 0 | CI42: 0 | CJ42: 0 | CW42: ='Site&Soil'!$G$173*EXP('Site&Soil'!$G$174*CV42) ->  | CY42: 0 | DA42: 0 | DB42: 0 | DO42: ='Site&Soil'!$H$173*EXP('Site&Soil'!$H$174*DN42) ->  | DQ42: 0 | DS42: 0 | DT42: 0 | EF42: =EF30+1 -> 3 | EG42: =AVERAGE(CD37:CD42) ->  | EH42: =AVERAGE(CV37:CV42) ->  | EI42: =AVERAGE(DN37:DN42) -> 
B43: 35 | C43: Nov | H43: 6.178606481 | I43: ='Site&Soil'!$F$173*EXP('Site&Soil'!$F$174*H43) -> 0 | J43: 0.6946875 | K43: 0.5697828247 | L43: 0.003596435236 | M43: 0 | N43: 0 | O43: 31108.71079 | P43: 1.272136955 | Q43: 0.01118804636 | R43: 0.00165258272 | S43: 0.01372626345 | T43: 6.192332744 | U43: 0.2030799033 | V43: 0.005697824209 | W43: -0.008201996162 | Z43: 5.082413708 | AA43: ='Site&Soil'!$G$173*EXP('Site&Soil'!$G$174*Z43) -> 0 | AB43: 0.790875 | AC43: 0.6976763261 | AD43: 0.05748794088 | AE43: 0 | AF43: 0 | AG43: 6.978201023 | AH43: 0.0002853614687 | AI43: 4.011624078e-05 | AJ43: 4.16499179e-06 | AK43: 0.002135020034 | AL43: 5.084548728 | AM43: 0.06686747496 | AN43: 0.0001792328613 | AO43: 0.006977830059 | AR43: 5.260806638 | AS43: ='Site&Soil'!$H$173*EXP('Site&Soil'!$H$174*AR43) -> 0 | AT43: 0.72675 | AU43: 0.8322075007 | AV43: 0.04538517279 | AW43: 0 | AX43: 0 | AY43: 96.6630252 | AZ43: 0.00395286733 | BA43: 0.0004387068101 | BB43: 4.639986843e-05 | BC43: 0.0005455410161 | BD43: 5.261352179 | BE43: 0.4079626958 | BF43: 0.001959766174 | BG43: -0.002449994238 | CE43: ='Site&Soil'!$F$173*EXP('Site&Soil'!$F$174*CD43) ->  | CG43: 0 | CI43: 0 | CJ43: 0 | CW43: ='Site&Soil'!$G$173*EXP('Site&Soil'!$G$174*CV43) ->  | CY43: 0 | DA43: 0 | DB43: 0 | DO43: ='Site&Soil'!$H$173*EXP('Site&Soil'!$H$174*DN43) ->  | DQ43: 0 | DS43: 0 | DT43: 0
B44: 36 | C44: Dec | H44: 6.184130748 | I44: ='Site&Soil'!$F$173*EXP('Site&Soil'!$F$174*H44) -> 0 | J44: 0.6946875 | K44: 0.3678794412 | L44: 0.002291213283 | M44: 0 | N44: 0 | O44: 30835.11942 | P44: 1.260948909 | Q44: 0.007064983519 | R44: 0.00104788136 | S44: 0.00866159555 | T44: 6.192792344 | U44: 0.2033991812 | V44: 0.003688476851 | W44: -0.005309548323 | Z44: 5.091526558 | AA44: ='Site&Soil'!$G$173*EXP('Site&Soil'!$G$174*Z44) -> 0 | AB44: 0.790875 | AC44: 0.527292424 | AD44: 0.04254280336 | AE44: 0 | AF44: 0 | AG44: 5.997202454 | AH44: 0.0002452452279 | AI44: 2.551378047e-05 | AJ44: 2.650987687e-06 | AK44: 0.001353872803 | AL44: 5.09288043 | AM44: 0.07345681046 | AN44: 0.0001516924722 | AO44: 0.004471989099 | AR44: 5.258902184 | AS44: ='Site&Soil'!$H$173*EXP('Site&Soil'!$H$174*AR44) -> 0 | AT44: 0.72675 | AU44: 0.7214222904 | AV44: 0.03951731204 | AW44: 0 | AX44: 0 | AY44: 85.93493242 | AZ44: 0.00351416052 | BA44: 0.000339591754 | BB44: 3.590838849e-05 | BC44: 0.0004215126979 | BD44: 5.259323697 | BE44: 0.4064884968 | BF44: 0.001684851055 | BG44: -0.002109609332 | CE44: ='Site&Soil'!$F$173*EXP('Site&Soil'!$F$174*CD44) ->  | CG44: 0 | CI44: 0 | CJ44: 0 | CW44: ='Site&Soil'!$G$173*EXP('Site&Soil'!$G$174*CV44) ->  | CY44: 0 | DA44: 0 | DB44: 0 | DO44: ='Site&Soil'!$H$173*EXP('Site&Soil'!$H$174*DN44) ->  | DQ44: 0 | DS44: 0 | DT44: 0
A45: =A33+1 -> 4 | B45: 37 | C45: Jan | D45: =OFFSET(Apply_Lime!$H$16,$A45,0) -> 0 | E45: =OFFSET(Apply_Lime!$I$16,$A45,0)*G45 -> 0 | F45: =OFFSET(Apply_Lime!$I$16,$A45,0)*(1-G45) -> 0 | G45: ='Profit Calculator'!I28 -> 0 | H45: 6.187482795 | I45: ='Site&Soil'!$F$173*EXP('Site&Soil'!$F$174*H45) -> 0 | J45: 0.6946875 | K45: 0.04677062238 | L45: 0.0002889416935 | M45: 0 | N45: 0 | O45: 30662.35301 | P45: 1.253883925 | Q45: 0.0008859632204 | R45: 0.0001317381446 | S45: 0.001085704113 | T45: 6.188568499 | U45: 0.2004649295 | V45: 0.0004576990955 | W45: -0.0006588560978 | Z45: 5.09735242 | AA45: ='Site&Soil'!$G$173*EXP('Site&Soil'!$G$174*Z45) -> 0 | AB45: 0.790875 | AC45: 0.1408584209 | AD45: 0.01121265702 | AE45: 0 | AF45: 0 | AG45: 5.373290999 | AH45: 0.0002197314475 | AI45: 6.024886902e-06 | AJ45: 6.263284194e-07 | AK45: 0.0001733987079 | AL45: 5.097525818 | AM45: 0.07713073154 | AN45: 4.300669651e-05 | AO45: 0.0005243463239 | AR45: 5.257214088 | AS45: ='Site&Soil'!$H$173*EXP('Site&Soil'!$H$174*AR45) -> 0 | AT45: 0.72675 | AU45: 0.3678794412 | AV45: 0.02023024678 | AW45: 0 | AX45: 0 | AY45: 77.63058939 | AZ45: 0.003174568766 | BA45: 0.0001570485981 | BB45: 1.660280153e-05 | BC45: 0.000194113691 | BD45: 5.257408201 | BE45: 0.4050964104 | BF45: 0.0008524562797 | BG45: -0.001113793716 | BZ45: =OFFSET(Apply_Lime!$O$16,$A45,0) -> 0 | CA45: =OFFSET(Apply_Lime!$P$16,$A45,0)*CA$7 -> 0 | CB45: =OFFSET(Apply_Lime!$P$16,$A45,0)*CB$7 -> 0 | CE45: ='Site&Soil'!$F$173*EXP('Site&Soil'!$F$174*CD45) ->  | CG45: 0 | CI45: 0 | CJ45: 0 | CW45: ='Site&Soil'!$G$173*EXP('Site&Soil'!$G$174*CV45) ->  | CY45: 0 | DA45: 0 | DB45: 0 | DO45: ='Site&Soil'!$H$173*EXP('Site&Soil'!$H$174*DN45) ->  | DQ45: 0 | DS45: 0 | DT45: 0
B46: 38 | C46: Feb | H46: 6.187909643 | I46: ='Site&Soil'!$F$173*EXP('Site&Soil'!$F$174*H46) -> 0 | J46: 0.6946875 | K46: 0.1053992246 | L46: 0.0006504677539 | M46: 0 | N46: 0 | O46: 30640.68775 | P46: 1.252997962 | Q46: 0.001993077934 | R46: 0.0002964558069 | S46: 0.002442281065 | T46: 6.190351924 | U46: 0.2017038525 | V46: 0.001042085933 | W46: -0.001500078716 | Z46: 5.098050165 | AA46: ='Site&Soil'!$G$173*EXP('Site&Soil'!$G$174*Z46) -> 0 | AB46: 0.790875 | AC46: 0.2369277587 | AD46: 0.01882960238 | AE46: 0 | AF46: 0 | AG46: 5.225959013 | AH46: 0.0002137065606 | AI46: 9.840273026e-06 | AJ46: 1.023026648e-06 | AK46: 0.0003859940613 | AL46: 5.098436159 | AM46: 0.077850697 | AN46: 7.316689243e-05 | AO46: 0.001225122858 | AR46: 5.256294408 | AS46: ='Site&Soil'!$H$173*EXP('Site&Soil'!$H$174*AR46) -> 0 | AT46: 0.72675 | AU46: 0.4796522688 | AV46: 0.02643304093 | AW46: 0 | AX46: 0 | AY46: 73.79013857 | AZ46: 0.003017520168 | BA46: 0.0001950497753 | BB46: 2.061783581e-05 | BC46: 0.000241424102 | BD46: 5.256535832 | BE46: 0.4044624158 | BF46: 0.001107491767 | BG46: -0.001423219642 | CE46: ='Site&Soil'!$F$173*EXP('Site&Soil'!$F$174*CD46) ->  | CG46: 0 | CI46: 0 | CJ46: 0 | CW46: ='Site&Soil'!$G$173*EXP('Site&Soil'!$G$174*CV46) ->  | CY46: 0 | DA46: 0 | DB46: 0 | DO46: ='Site&Soil'!$H$173*EXP('Site&Soil'!$H$174*DN46) ->  | DQ46: 0 | DS46: 0 | DT46: 0
B47: 39 | C47: Mar | H47: 6.188851846 | I47: ='Site&Soil'!$F$173*EXP('Site&Soil'!$F$174*H47) -> 0 | J47: 0.6946875 | K47: 0.2096113872 | L47: 0.0012906625 | M47: 0 | N47: 0 | O47: 30591.94922 | P47: 1.251004884 | Q47: 0.003948388167 | R47: 0.0005877119285 | S47: 0.004837680596 | T47: 6.193689526 | U47: 0.2040224428 | V47: 0.002112430073 | W47: -0.003040835012 | Z47: 5.099661282 | AA47: ='Site&Soil'!$G$173*EXP('Site&Soil'!$G$174*Z47) -> 0 | AB47: 0.790875 | AC47: 0.3678794412 | AD47: 0.02912816873 | AE47: 0 | AF47: 0 | AG47: 4.985325954 | AH47: 0.0002038662876 | AI47: 1.452134156e-05 | AJ47: 1.509899587e-06 | AK47: 0.000759568036 | AL47: 5.10042085 | AM47: 0.07942033941 | AN47: 0.0001164281794 | AO47: 0.002523789339 | AR47: 5.255112612 | AS47: ='Site&Soil'!$H$173*EXP('Site&Soil'!$H$174*AR47) -> 0 | AT47: 0.72675 | AU47: 0.6003730412 | AV47: 0.03317648535 | AW47: 0 | AX47: 0 | AY47: 69.02041073 | AZ47: 0.002822470392 | BA47: 0.0002289854645 | BB47: 2.420147478e-05 | BC47: 0.0002838581208 | BD47: 5.25539647 | BE47: 0.4036343848 | BF47: 0.001379767175 | BG47: -0.001738340551 | CE47: ='Site&Soil'!$F$173*EXP('Site&Soil'!$F$174*CD47) ->  | CG47: 0 | CI47: 0 | CJ47: 0 | CW47: ='Site&Soil'!$G$173*EXP('Site&Soil'!$G$174*CV47) ->  | CY47: 0 | DA47: 0 | DB47: 0 | DO47: ='Site&Soil'!$H$173*EXP('Site&Soil'!$H$174*DN47) ->  | DQ47: 0 | DS47: 0 | DT47: 0
B48: 40 | C48: Apr | H48: 6.190648691 | I48: ='Site&Soil'!$F$173*EXP('Site&Soil'!$F$174*H48) -> 0 | J48: 0.6946875 | K48: 0.3678794412 | L48: 0.002255350323 | M48: 0 | N48: 0 | O48: 30495.39573 | P48: 1.247056496 | Q48: 0.006877780061 | R48: 0.001025140637 | S48: 0.008424852072 | T48: 6.199073543 | U48: 0.2077626522 | V48: 0.00382249162 | W48: -0.005502462071 | Z48: 5.102944639 | AA48: ='Site&Soil'!$G$173*EXP('Site&Soil'!$G$174*Z48) -> 0 | AB48: 0.790875 | AC48: 0.527292424 | AD48: 0.04143455459 | AE48: 0 | AF48: 0 | AG48: 4.630222509 | AH48: 0.000189344946 | AI48: 1.918512073e-05 | AJ48: 1.995409034e-06 | AK48: 0.001317945755 | AL48: 5.104262585 | AM48: 0.08245867165 | AN48: 0.0001748036314 | AO48: 0.004612218099 | AR48: 5.25365813 | AS48: ='Site&Soil'!$H$173*EXP('Site&Soil'!$H$174*AR48) -> 0 | AT48: 0.72675 | AU48: 0.7214222904 | AV48: 0.04000014281 | AW48: 0 | AX48: 0 | AY48: 63.42082292 | AZ48: 0.002593484928 | BA48: 0.0002536841973 | BB48: 2.680705779e-05 | BC48: 0.0003149261074 | BD48: 5.253973056 | BE48: 0.4025999183 | BF48: 0.001648300139 | BG48: -0.002027514974 | CE48: ='Site&Soil'!$F$173*EXP('Site&Soil'!$F$174*CD48) ->  | CG48: 0 | CI48: 0 | CJ48: 0 | CW48: ='Site&Soil'!$G$173*EXP('Site&Soil'!$G$174*CV48) ->  | CY48: 0 | DA48: 0 | DB48: 0 | DO48: ='Site&Soil'!$H$173*EXP('Site&Soil'!$H$174*DN48) ->  | DQ48: 0 | DS48: 0 | DT48: 0
B49: 41 | C49: May | H49: 6.193571081 | I49: ='Site&Soil'!$F$173*EXP('Site&Soil'!$F$174*H49) -> 0 | J49: 0.6946875 | K49: 0.5697828247 | L49: 0.003468519824 | M49: 0 | N49: 0 | O49: 30327.20718 | P49: 1.240178716 | Q49: 0.01051905193 | R49: 0.001571359894 | S49: 0.01288016848 | T49: 6.20645125 | U49: 0.2128878526 | V49: 0.006170373951 | W49: -0.008882229708 | Z49: 5.108874803 | AA49: ='Site&Soil'!$G$173*EXP('Site&Soil'!$G$174*Z49) -> 0 | AB49: 0.790875 | AC49: 0.6976763261 | AD49: 0.05407679408 | AE49: 0 | AF49: 0 | AG49: 4.161071472 | AH49: 0.0001701598253 | AI49: 2.250174051e-05 | AJ49: 2.341604513e-06 | AK49: 0.002012353444 | AL49: 5.110887156 | AM49: 0.08769787967 | AN49: 0.0002497642271 | AO49: 0.007486151065 | AR49: 5.251945541 | AS49: ='Site&Soil'!$H$173*EXP('Site&Soil'!$H$174*AR49) -> 0 | AT49: 0.72675 | AU49: 0.8322075007 | AV49: 0.04632612211 | AW49: 0 | AX49: 0 | AY49: 57.21725474 | AZ49: 0.00233980073 | BA49: 0.000265065353 | BB49: 2.800379973e-05 | BC49: 0.0003294161098 | BD49: 5.252274957 | BE49: 0.401365825 | BF49: 0.001888195567 | BG49: -0.002254463488 | CE49: ='Site&Soil'!$F$173*EXP('Site&Soil'!$F$174*CD49) ->  | CG49: 0 | CI49: 0 | CJ49: 0 | CW49: ='Site&Soil'!$G$173*EXP('Site&Soil'!$G$174*CV49) ->  | CY49: 0 | DA49: 0 | DB49: 0 | DO49: ='Site&Soil'!$H$173*EXP('Site&Soil'!$H$174*DN49) ->  | DQ49: 0 | DS49: 0 | DT49: 0
B50: 42 | C50: Jun | H50: 6.19756902 | I50: ='Site&Soil'!$F$173*EXP('Site&Soil'!$F$174*H50) -> 0 | J50: 0.6946875 | K50: 0.7788007831 | L50: 0.004695205181 | M50: 0 | N50: 0 | O50: 30069.97533 | P50: 1.229659664 | Q50: 0.0141184704 | R50: 0.002115497 | S50: 0.01727823431 | T50: 6.214847254 | U50: 0.218720452 | V50: 0.008834114596 | W50: -0.01271667418 | Z50: 5.118373307 | AA50: ='Site&Soil'!$G$173*EXP('Site&Soil'!$G$174*Z50) -> 0 | AB50: 0.790875 | AC50: 0.852143789 | AD50: 0.0646148213 | AE50: 0 | AF50: 0 | AG50: 3.610816143 | AH50: 0.0001476580848 | AI50: 2.333122399e-05 | AJ50: 2.43001951e-06 | AK50: 0.002701309568 | AL50: 5.121074617 | AM50: 0.0957548876 | AN50: 0.0003409953451 | AO50: 0.01073888952 | AR50: 5.250020493 | AS50: ='Site&Soil'!$H$173*EXP('Site&Soil'!$H$174*AR50) -> 0 | AT50: 0.72675 | AU50: 0.9216104473 | AV50: 0.0515320797 | AW50: 0 | AX50: 0 | AY50: 50.73537292 | AZ50: 0.002074735377 | BA50: 0.0002614499281 | BB50: 2.761530318e-05 | BC50: 0.00032509755 | BD50: 5.250345591 | BE50: 0.3999636583 | BF50: 0.002074500349 | BG50: -0.002385283804 | CE50: ='Site&Soil'!$F$173*EXP('Site&Soil'!$F$174*CD50) ->  | CG50: 0 | CI50: 0 | CJ50: 0 | CW50: ='Site&Soil'!$G$173*EXP('Site&Soil'!$G$174*CV50) ->  | CY50: 0 | DA50: 0 | DB50: 0 | DO50: ='Site&Soil'!$H$173*EXP('Site&Soil'!$H$174*DN50) ->  | DQ50: 0 | DS50: 0 | DT50: 0
B51: 43 | C51: Jul | H51: 6.20213058 | I51: ='Site&Soil'!$F$173*EXP('Site&Soil'!$F$174*H51) -> 0 | J51: 0.6946875 | K51: 0.9394130628 | L51: 0.005601220054 | M51: 0 | N51: 0 | O51: 29724.72366 | P51: 1.215541194 | Q51: 0.01664947182 | R51: 0.002503501194 | S51: 0.02036307063 | T51: 6.222493651 | U51: 0.224032308 | V51: 0.01110864016 | W51: -0.01599084503 | Z51: 5.131813506 | AA51: ='Site&Soil'!$G$173*EXP('Site&Soil'!$G$174*Z51) -> 0 | AB51: 0.790875 | AC51: 0.9607894392 | AD51: 0.07062368182 | AE51: 0 | AF51: 0 | AG51: 3.040276709 | AH51: 0.0001243268608 | AI51: 2.147155349e-05 | AJ51: 2.239131869e-06 | AK51: 0.003189800684 | AL51: 5.135003307 | AM51: 0.1067707405 | AN51: 0.000442673763 | AO51: 0.01348628594 | AR51: 5.247960307 | AS51: ='Site&Soil'!$H$173*EXP('Site&Soil'!$H$174*AR51) -> 0 | AT51: 0.72675 | AU51: 0.9797986739 | AV51: 0.05504766955 | AW51: 0 | AX51: 0 | AY51: 44.34190234 | AZ51: 0.001813285449 | BA51: 0.0002440918387 | BB51: 2.577538162e-05 | BC51: 0.0003034820625 | BD51: 5.248263789 | BE51: 0.3984507089 | BF51: 0.002186629689 | BG51: -0.002399664157 | CE51: ='Site&Soil'!$F$173*EXP('Site&Soil'!$F$174*CD51) ->  | CG51: 0 | CI51: 0 | CJ51: 0 | CW51: ='Site&Soil'!$G$173*EXP('Site&Soil'!$G$174*CV51) ->  | CY51: 0 | DA51: 0 | DB51: 0 | DO51: ='Site&Soil'!$H$173*EXP('Site&Soil'!$H$174*DN51) ->  | DQ51: 0 | DS51: 0 | DT51: 0
B52: 44 | C52: Aug | H52: 6.206502806 | I52: ='Site&Soil'!$F$173*EXP('Site&Soil'!$F$174*H52) -> 0 | J52: 0.6946875 | K52: 1 | L52: 0.005899574554 | M52: 0 | N52: 0 | O52: 29317.57913 | P52: 1.198891722 | Q52: 0.01729612438 | R52: 0.002609549491 | S52: 0.0211412684 | T52: 6.227644074 | U52: 0.2276102428 | V52: 0.0121572648 | W52: -0.01750033619 | Z52: 5.148489593 | AA52: ='Site&Soil'!$G$173*EXP('Site&Soil'!$G$174*Z52) -> 0 | AB52: 0.790875 | AC52: 1 | AD52: 0.07072499158 | AE52: 0 | AF52: 0 | AG52: 2.515213472 | AH52: 0.0001028553073 | AI52: 1.778884516e-05 | AJ52: 1.8580685e-06 | AK52: 0.003319715843 | AL52: 5.151809309 | AM52: 0.1200621871 | AN52: 0.0005385370156 | AO52: 0.0146909787 | AR52: 5.245864125 | AS52: ='Site&Soil'!$H$173*EXP('Site&Soil'!$H$174*AR52) -> 0 | AT52: 0.72675 | AU52: 1 | AV52: 0.05645599195 | AW52: 0 | AX52: 0 | AY52: 38.37290475 | AZ52: 0.001569193611 | BA52: 0.0002166380401 | BB52: 2.287050271e-05 | BC52: 0.0002691786803 | BD52: 5.246133304 | BE52: 0.3969023786 | BF52: 0.002212162395 | BG52: -0.002302890099 | CE52: ='Site&Soil'!$F$173*EXP('Site&Soil'!$F$174*CD52) ->  | CG52: 0 | CI52: 0 | CJ52: 0 | CW52: ='Site&Soil'!$G$173*EXP('Site&Soil'!$G$174*CV52) ->  | CY52: 0 | DA52: 0 | DB52: 0 | DO52: ='Site&Soil'!$H$173*EXP('Site&Soil'!$H$174*DN52) ->  | DQ52: 0 | DS52: 0 | DT52: 0
B53: 45 | C53: Sep | H53: 6.210143738 | I53: ='Site&Soil'!$F$173*EXP('Site&Soil'!$F$174*H53) -> 0 | J53: 0.6946875 | K53: 0.9394130628 | L53: 0.005493388719 | M53: 0 | N53: 0 | O53: 28894.62142 | P53: 1.181595597 | Q53: 0.01587293873 | R53: 0.00240162508 | S53: 0.0193919045 | T53: 6.229535642 | U53: 0.2289242916 | V53: 0.01153676686 | W53: -0.01660713179 | Z53: 5.166500288 | AA53: ='Site&Soil'!$G$173*EXP('Site&Soil'!$G$174*Z53) -> 0 | AB53: 0.790875 | AC53: 0.9607894392 | AD53: 0.06517907603 | AE53: 0 | AF53: 0 | AG53: 2.080206818 | AH53: 8.506646212e-05 | AI53: 1.355859584e-05 | AJ53: 1.418768905e-06 | AK53: 0.003052018216 | AL53: 5.169552306 | AM53: 0.1340946798 | AN53: 0.0006019938772 | AO53: 0.01382617099 | AR53: 5.243830414 | AS53: ='Site&Soil'!$H$173*EXP('Site&Soil'!$H$174*AR53) -> 0 | AT53: 0.72675 | AU53: 0.9797986739 | AV53: 0.0555765989 | AW53: 0 | AX53: 0 | AY53: 33.07525962 | AZ53: 0.001352555571 | BA53: 0.0001838210438 | BB53: 1.940122512e-05 | BC53: 0.0002281920709 | BD53: 5.244058606 | BE53: 0.3953945918 | BF53: 0.002148949342 | BG53: -0.002128593691 | CE53: ='Site&Soil'!$F$173*EXP('Site&Soil'!$F$174*CD53) ->  | CG53: 0 | CI53: 0 | CJ53: 0 | CW53: ='Site&Soil'!$G$173*EXP('Site&Soil'!$G$174*CV53) ->  | CY53: 0 | DA53: 0 | DB53: 0 | DO53: ='Site&Soil'!$H$173*EXP('Site&Soil'!$H$174*DN53) ->  | DQ53: 0 | DS53: 0 | DT53: 0
B54: 46 | C54: Oct | H54: 6.212928511 | I54: ='Site&Soil'!$F$173*EXP('Site&Soil'!$F$174*H54) -> 0 | J54: 0.6946875 | K54: 0.7788007831 | L54: 0.004523496303 | M54: 0 | N54: 0 | O54: 28506.46615 | P54: 1.165722659 | Q54: 0.01289488942 | R54: 0.001955292533 | S54: 0.0157475079 | T54: 6.228676019 | U54: 0.2283271217 | V54: 0.009520503127 | W54: -0.01370472785 | X54: =-'Profit Calculator'!I$29*'Quantity of Lime to Apply'!H$9 -> -0.05036303797 | Z54: 5.183378477 | AA54: ='Site&Soil'!$G$173*EXP('Site&Soil'!$G$174*Z54) -> 0 | AB54: 0.790875 | AC54: 0.852143789 | AD54: 0.05559483425 | AE54: 0 | AF54: 0 | AG54: 1.748646262 | AH54: 7.150786628e-05 | AI54: 9.721569909e-06 | AJ54: 1.019050732e-06 | AK54: 0.002483319175 | AL54: 5.185861796 | AM54: 0.1469934479 | AN54: 0.0006076767993 | AO54: 0.01126957652 | AP54: =-'Profit Calculator'!$I$29*'Quantity of Lime to Apply'!$H$19 -> -0.05036303797 | AR54: 5.241930012 | AS54: ='Site&Soil'!$H$173*EXP('Site&Soil'!$H$174*AR54) -> 0 | AT54: 0.72675 | AU54: 0.9216104473 | AV54: 0.05250654969 | AW54: 0 | AX54: 0 | AY54: 28.58011807 | AZ54: 0.001168734527 | BA54: 0.000150064339 | BB54: 1.583477176e-05 | BC54: 0.0001861006095 | BD54: 5.242116113 | BE54: 0.3939828849 | BF54: 0.002005122258 | BG54: -0.001922869568 | BH54: 0.02 | BJ54: =BJ42+1 -> 4 | BK54: =AVERAGE(H49:H54) -> 6.203807623 | BL54: =AVERAGE(Z49:Z54) -> 5.142904996 | BM54: =AVERAGE(AR49:AR54) -> 5.246925149 | CE54: ='Site&Soil'!$F$173*EXP('Site&Soil'!$F$174*CD54) ->  | CG54: 0 | CI54: 0 | CJ54: 0 | CW54: ='Site&Soil'!$G$173*EXP('Site&Soil'!$G$174*CV54) ->  | CY54: 0 | DA54: 0 | DB54: 0 | DO54: ='Site&Soil'!$H$173*EXP('Site&Soil'!$H$174*DN54) ->  | DQ54: 0 | DS54: 0 | DT54: 0 | EF54: =EF42+1 -> 4 | EG54: =AVERAGE(CD49:CD54) ->  | EH54: =AVERAGE(CV49:CV54) ->  | EI54: =AVERAGE(DN49:DN54) -> 
B55: 47 | C55: Nov | H55: 6.164608253 | I55: ='Site&Soil'!$F$173*EXP('Site&Soil'!$F$174*H55) -> 0 | J55: 0.6946875 | K55: 0.5697828247 | L55: 0.003720146584 | M55: 0 | N55: 0 | O55: 28191.1358 | P55: 1.152827769 | Q55: 0.01048751576 | R55: 0.001533237182 | S55: 0.01288964977 | T55: 6.177497903 | U55: 0.1927743242 | V55: 0.005227047488 | W55: -0.007524314873 | Z55: 5.146768334 | AA55: ='Site&Soil'!$G$173*EXP('Site&Soil'!$G$174*Z55) -> 0 | AB55: 0.790875 | AC55: 0.6976763261 | AD55: 0.04953998038 | AE55: 0 | AF55: 0 | AG55: 1.510915957 | AH55: 6.178629637e-05 | AI55: 7.485074686e-06 | AJ55: 7.816941994e-07 | AK55: 0.001947135214 | AL55: 5.14871547 | AM55: 0.1176153471 | AN55: 0.0003654546151 | AO55: 0.006147106525 | AR55: 5.260193243 | AS55: ='Site&Soil'!$H$173*EXP('Site&Soil'!$H$174*AR55) -> 0 | AT55: 0.72675 | AU55: 0.8322075007 | AV55: 0.04544969173 | AW55: 0 | AX55: 0 | AY55: 24.91045963 | AZ55: 0.001018670188 | BA55: 0.0001132172711 | BB55: 1.197351446e-05 | BC55: 0.0001403858973 | BD55: 5.260333629 | BE55: 0.4072224649 | BF55: 0.001951627743 | BG55: -0.002182556764 | CE55: ='Site&Soil'!$F$173*EXP('Site&Soil'!$F$174*CD55) ->  | CG55: 0 | CI55: 0 | CJ55: 0 | CW55: ='Site&Soil'!$G$173*EXP('Site&Soil'!$G$174*CV55) ->  | CY55: 0 | DA55: 0 | DB55: 0 | DO55: ='Site&Soil'!$H$173*EXP('Site&Soil'!$H$174*DN55) ->  | DQ55: 0 | DS55: 0 | DT55: 0
B56: 48 | C56: Dec | H56: 6.169973588 | I56: ='Site&Soil'!$F$173*EXP('Site&Soil'!$F$174*H56) -> 0 | J56: 0.6946875 | K56: 0.3678794412 | L56: 0.002370987844 | M56: 0 | N56: 0 | O56: 27934.67513 | P56: 1.142340253 | Q56: 0.006623277517 | R56: 0.0009721028761 | S56: 0.008134844287 | T56: 6.178108432 | U56: 0.1931984513 | V56: 0.003387018672 | W56: -0.004875600428 | Z56: 5.154862576 | AA56: ='Site&Soil'!$G$173*EXP('Site&Soil'!$G$174*Z56) -> 0 | AB56: 0.790875 | AC56: 0.527292424 | AD56: 0.03674707254 | AE56: 0 | AF56: 0 | AG56: 1.327876683 | AH56: 5.430122169e-05 | AI56: 4.879558081e-06 | AJ56: 5.099974056e-07 | AK56: 0.001234673541 | AL56: 5.15609725 | AM56: 0.1234534124 | AN56: 0.0002948844557 | AO56: 0.00390976351 | AR56: 5.258151072 | AS56: ='Site&Soil'!$H$173*EXP('Site&Soil'!$H$174*AR56) -> 0 | AT56: 0.72675 | AU56: 0.7214222904 | AV56: 0.03958611125 | AW56: 0 | AX56: 0 | AY56: 22.14185572 | AZ56: 0.0009054529167 | BA56: 8.765099638e-05 | BB56: 9.267335742e-06 | BC56: 0.000108556805 | BD56: 5.258259629 | BE56: 0.4057151854 | BF56: 0.001677530593 | BG56: -0.001902505865 | CE56: ='Site&Soil'!$F$173*EXP('Site&Soil'!$F$174*CD56) ->  | CG56: 0 | CI56: 0 | CJ56: 0 | CW56: ='Site&Soil'!$G$173*EXP('Site&Soil'!$G$174*CV56) ->  | CY56: 0 | DA56: 0 | DB56: 0 | DO56: ='Site&Soil'!$H$173*EXP('Site&Soil'!$H$174*DN56) ->  | DQ56: 0 | DS56: 0 | DT56: 0
A57: =A45+1 -> 5 | B57: 49 | C57: Jan | D57: =OFFSET(Apply_Lime!$H$16,$A57,0) -> 0 | E57: =OFFSET(Apply_Lime!$I$16,$A57,0)*G57 -> 0 | F57: =OFFSET(Apply_Lime!$I$16,$A57,0)*(1-G57) -> 0 | G57: ='Profit Calculator'!J28 -> 0 | H57: 6.173232832 | I57: ='Site&Soil'!$F$173*EXP('Site&Soil'!$F$174*H57) -> 0 | J57: 0.6946875 | K57: 0.04677062238 | L57: 0.0002990729723 | M57: 0 | N57: 0 | O57: 27772.71016 | P57: 1.135716976 | Q57: 0.0008306066977 | R57: 0.0001222013402 | S57: 0.001019746803 | T57: 6.174252578 | U57: 0.190519838 | V57: 0.0004208874063 | W57: -0.000605865812 | Z57: 5.160007013 | AA57: ='Site&Soil'!$G$173*EXP('Site&Soil'!$G$174*Z57) -> 0 | AB57: 0.790875 | AC57: 0.1408584209 | AD57: 0.0097003211 | AE57: 0 | AF57: 0 | AG57: 1.208552455 | AH57: 4.94216636e-05 | AI57: 1.172334688e-06 | AJ57: 1.225921587e-07 | AK57: 0.0001558414196 | AL57: 5.160162855 | AM57: 0.1266687977 | AN57: 8.158593941e-05 | AO57: 0.0004290203469 | AR57: 5.256357123 | AS57: ='Site&Soil'!$H$173*EXP('Site&Soil'!$H$174*AR57) -> 0 | AT57: 0.72675 | AU57: 0.3678794412 | AV57: 0.02027043497 | AW57: 0 | AX57: 0 | AY57: 19.99844696 | AZ57: 0.0008178019203 | BA57: 4.053772186e-05 | BB57: 4.285093932e-06 | BC57: 5.005190242e-05 | BD57: 5.256407175 | BE57: 0.4043689145 | BF57: 0.0008489663085 | BG57: -0.001055906941 | BZ57: =OFFSET(Apply_Lime!$O$16,$A57,0) -> 0 | CA57: =OFFSET(Apply_Lime!$P$16,$A57,0)*CA$7 -> 0 | CB57: =OFFSET(Apply_Lime!$P$16,$A57,0)*CB$7 -> 0 | CE57: ='Site&Soil'!$F$173*EXP('Site&Soil'!$F$174*CD57) ->  | CG57: 0 | CI57: 0 | CJ57: 0 | CW57: ='Site&Soil'!$G$173*EXP('Site&Soil'!$G$174*CV57) ->  | CY57: 0 | DA57: 0 | DB57: 0 | DO57: ='Site&Soil'!$H$173*EXP('Site&Soil'!$H$174*DN57) ->  | DQ57: 0 | DS57: 0 | DT57: 0
B58: 50 | C58: Feb | H58: 6.173646713 | I58: ='Site&Soil'!$F$173*EXP('Site&Soil'!$F$174*H58) -> 0 | J58: 0.6946875 | K58: 0.1053992246 | L58: 0.0006732976124 | M58: 0 | N58: 0 | O58: 27752.39859 | P58: 1.134886369 | Q58: 0.001868562371 | R58: 0.0002749924349 | S58: 0.00229393783 | T58: 6.17594065 | U58: 0.1916925205 | V58: 0.0009580390997 | W58: -0.001379093621 | Z58: 5.160591875 | AA58: ='Site&Soil'!$G$173*EXP('Site&Soil'!$G$174*Z58) -> 0 | AB58: 0.790875 | AC58: 0.2369277587 | AD58: 0.01629414932 | AE58: 0 | AF58: 0 | AG58: 1.179884299 | AH58: 4.824932892e-05 | AI58: 1.922521094e-06 | AJ58: 2.010517106e-07 | AK58: 0.0003498832361 | AL58: 5.160941758 | AM58: 0.1272848131 | AN58: 0.0001381447209 | AO58: 0.00103669275 | AR58: 5.255351268 | AS58: ='Site&Soil'!$H$173*EXP('Site&Soil'!$H$174*AR58) -> 0 | AT58: 0.72675 | AU58: 0.4796522688 | AV58: 0.02649083661 | AW58: 0 | AX58: 0 | AY58: 19.00714153 | AZ58: 0.0007772641984 | BA58: 5.035150808e-05 | BB58: 5.3218086e-06 | BC58: 6.223701575e-05 | BD58: 5.255413505 | BE58: 0.4036467649 | BF58: 0.001102405787 | BG58: -0.001326812613 | CE58: ='Site&Soil'!$F$173*EXP('Site&Soil'!$F$174*CD58) ->  | CG58: 0 | CI58: 0 | CJ58: 0 | CW58: ='Site&Soil'!$G$173*EXP('Site&Soil'!$G$174*CV58) ->  | CY58: 0 | DA58: 0 | DB58: 0 | DO58: ='Site&Soil'!$H$173*EXP('Site&Soil'!$H$174*DN58) ->  | DQ58: 0 | DS58: 0 | DT58: 0
B59: 51 | C59: Mar | H59: 6.174561557 | I59: ='Site&Soil'!$F$173*EXP('Site&Soil'!$F$174*H59) -> 0 | J59: 0.6946875 | K59: 0.2096113872 | L59: 0.001336055038 | M59: 0 | N59: 0 | O59: 27706.70495 | P59: 1.133017807 | Q59: 0.003701768274 | R59: 0.0005451497256 | S59: 0.00454394033 | T59: 6.179105497 | U59: 0.1938911 | V59: 0.001941235584 | W59: -0.0027944012 | Z59: 5.161978451 | AA59: ='Site&Soil'!$G$173*EXP('Site&Soil'!$G$174*Z59) -> 0 | AB59: 0.790875 | AC59: 0.3678794412 | AD59: 0.02521902557 | AE59: 0 | AF59: 0 | AG59: 1.132871159 | AH59: 4.632680782e-05 | AI59: 2.856990672e-06 | AJ59: 2.988176606e-07 | AK59: 0.0006925340903 | AL59: 5.162670985 | AM59: 0.1286524153 | AN59: 0.0002176679301 | AO59: 0.002179317407 | AR59: 5.254086693 | AS59: ='Site&Soil'!$H$173*EXP('Site&Soil'!$H$174*AR59) -> 0 | AT59: 0.72675 | AU59: 0.6003730412 | AV59: 0.03325539872 | AW59: 0 | AX59: 0 | AY59: 17.77585075 | AZ59: 0.0007269126904 | BA59: 5.911430045e-05 | BB59: 6.246997046e-06 | BC59: 7.315599734e-05 | BD59: 5.254159849 | BE59: 0.40273567 | BF59: 0.001372780583 | BG59: -0.001589422295 | CE59: ='Site&Soil'!$F$173*EXP('Site&Soil'!$F$174*CD59) ->  | CG59: 0 | CI59: 0 | CJ59: 0 | CW59: ='Site&Soil'!$G$173*EXP('Site&Soil'!$G$174*CV59) ->  | CY59: 0 | DA59: 0 | DB59: 0 | DO59: ='Site&Soil'!$H$173*EXP('Site&Soil'!$H$174*DN59) ->  | DQ59: 0 | DS59: 0 | DT59: 0
B60: 52 | C60: Apr | H60: 6.176311096 | I60: ='Site&Soil'!$F$173*EXP('Site&Soil'!$F$174*H60) -> 0 | J60: 0.6946875 | K60: 0.3678794412 | L60: 0.002334954775 | M60: 0 | N60: 0 | O60: 27616.18228 | P60: 1.129316039 | Q60: 0.006448253668 | R60: 0.0009508477617 | S60: 0.007913494781 | T60: 6.184224591 | U60: 0.1974472703 | V60: 0.003510599145 | W60: -0.005053494046 | Z60: 5.164850303 | AA60: ='Site&Soil'!$G$173*EXP('Site&Soil'!$G$174*Z60) -> 0 | AB60: 0.790875 | AC60: 0.527292424 | AD60: 0.03590783097 | AE60: 0 | AF60: 0 | AG60: 1.063006592 | AH60: 4.346981715e-05 | AI60: 3.817026105e-06 | AJ60: 3.993457323e-07 | AK60: 0.001206594521 | AL60: 5.166056897 | AM60: 0.1313302484 | AN60: 0.0003209764685 | AO60: 0.004033030096 | AR60: 5.252570426 | AS60: ='Site&Soil'!$H$173*EXP('Site&Soil'!$H$174*AR60) -> 0 | AT60: 0.72675 | AU60: 0.7214222904 | AV60: 0.040101022 | AW60: 0 | AX60: 0 | AY60: 16.33027552 | AZ60: 0.0006677983899 | BA60: 6.548607378e-05 | BB60: 6.919048661e-06 | BC60: 8.11370772e-05 | BD60: 5.252651563 | BE60: 0.4016395237 | BF60: 0.001639372191 | BG60: -0.001814098001 | CE60: ='Site&Soil'!$F$173*EXP('Site&Soil'!$F$174*CD60) ->  | CG60: 0 | CI60: 0 | CJ60: 0 | CW60: ='Site&Soil'!$G$173*EXP('Site&Soil'!$G$174*CV60) ->  | CY60: 0 | DA60: 0 | DB60: 0 | DO60: ='Site&Soil'!$H$173*EXP('Site&Soil'!$H$174*DN60) ->  | DQ60: 0 | DS60: 0 | DT60: 0
B61: 53 | C61: May | H61: 6.179171097 | I61: ='Site&Soil'!$F$173*EXP('Site&Soil'!$F$174*H61) -> 0 | J61: 0.6946875 | K61: 0.5697828247 | L61: 0.003591528539 | M61: 0 | N61: 0 | O61: 27458.49732 | P61: 1.122867785 | Q61: 0.009861797676 | R61: 0.001457295042 | S61: 0.01209824941 | T61: 6.191269346 | U61: 0.2023411738 | V61: 0.005663213896 | W61: -0.008152174749 | Z61: 5.170089927 | AA61: ='Site&Soil'!$G$173*EXP('Site&Soil'!$G$174*Z61) -> 0 | AB61: 0.790875 | AC61: 0.6976763261 | AD61: 0.04693831804 | AE61: 0 | AF61: 0 | AG61: 0.9696654151 | AH61: 3.965279105e-05 | AI61: 4.551446365e-06 | AJ61: 4.764377592e-07 | AK61: 0.001847788905 | AL61: 5.171937716 | AM61: 0.1359812412 | AN61: 0.0004457288074 | AO61: 0.006597104585 | AR61: 5.250837465 | AS61: ='Site&Soil'!$H$173*EXP('Site&Soil'!$H$174*AR61) -> 0 | AT61: 0.72675 | AU61: 0.8322075007 | AV61: 0.04644514358 | AW61: 0 | AX61: 0 | AY61: 14.72888557 | AZ61: 0.0006023123161 | BA61: 6.840852052e-05 | BB61: 7.226283959e-06 | BC61: 8.484165714e-05 | BD61: 5.250922307 | BE61: 0.4003827866 | BF61: 0.001877713509 | BG61: -0.001970395186 | CE61: ='Site&Soil'!$F$173*EXP('Site&Soil'!$F$174*CD61) ->  | CG61: 0 | CI61: 0 | CJ61: 0 | CW61: ='Site&Soil'!$G$173*EXP('Site&Soil'!$G$174*CV61) ->  | CY61: 0 | DA61: 0 | DB61: 0 | DO61: ='Site&Soil'!$H$173*EXP('Site&Soil'!$H$174*DN61) ->  | DQ61: 0 | DS61: 0 | DT61: 0
B62: 54 | C62: Jun | H62: 6.183117171 | I62: ='Site&Soil'!$F$173*EXP('Site&Soil'!$F$174*H62) -> 0 | J62: 0.6946875 | K62: 0.7788007831 | L62: 0.004862407547 | M62: 0 | N62: 0 | O62: 27217.3379 | P62: 1.113005987 | Q62: 0.01323417892 | R62: 0.001961408335 | S62: 0.01622711016 | T62: 6.199344281 | U62: 0.2079507305 | V62: 0.008104591154 | W62: -0.01166652798 | Z62: 5.178534821 | AA62: ='Site&Soil'!$G$173*EXP('Site&Soil'!$G$174*Z62) -> 0 | AB62: 0.790875 | AC62: 0.852143789 | AD62: 0.05622137233 | AE62: 0 | AF62: 0 | AG62: 0.8583647976 | AH62: 3.510134468e-05 | AI62: 4.825844689e-06 | AJ62: 5.056046195e-07 | AK62: 0.00248551108 | AL62: 5.181020332 | AM62: 0.1431644548 | AN62: 0.0005852863806 | AO62: 0.009507576764 | AR62: 5.248951912 | AS62: ='Site&Soil'!$H$173*EXP('Site&Soil'!$H$174*AR62) -> 0 | AT62: 0.72675 | AU62: 0.9216104473 | AV62: 0.05165974848 | AW62: 0 | AX62: 0 | AY62: 13.05603041 | AZ62: 0.0005339037956 | BA62: 6.744712469e-05 | BB62: 7.123081299e-06 | BC62: 8.370092606e-05 | BD62: 5.249035613 | BE62: 0.3990116316 | BF62: 0.00206332936 | BG62: -0.002033770869 | CE62: ='Site&Soil'!$F$173*EXP('Site&Soil'!$F$174*CD62) ->  | CG62: 0 | CI62: 0 | CJ62: 0 | CW62: ='Site&Soil'!$G$173*EXP('Site&Soil'!$G$174*CV62) ->  | CY62: 0 | DA62: 0 | DB62: 0 | DO62: ='Site&Soil'!$H$173*EXP('Site&Soil'!$H$174*DN62) ->  | DQ62: 0 | DS62: 0 | DT62: 0
B63: 55 | C63: Jul | H63: 6.187677753 | I63: ='Site&Soil'!$F$173*EXP('Site&Soil'!$F$174*H63) -> 0 | J63: 0.6946875 | K63: 0.9394130628 | L63: 0.005800811054 | M63: 0 | N63: 0 | O63: 26893.7106 | P63: 1.099771808 | Q63: 0.01560053338 | R63: 0.002320059652 | S63: 0.01911719114 | T63: 6.206794945 | U63: 0.2131266131 | V63: 0.01019269955 | W63: -0.01467235203 | Z63: 5.190527908 | AA63: ='Site&Soil'!$G$173*EXP('Site&Soil'!$G$174*Z63) -> 0 | AB63: 0.790875 | AC63: 0.9607894392 | AD63: 0.06165458856 | AE63: 0 | AF63: 0 | AG63: 0.7403540708 | AH63: 3.027549999e-05 | AI63: 4.564622562e-06 | AJ63: 4.788460028e-07 | AK63: 0.002938701347 | AL63: 5.19346661 | AM63: 0.153007905 | AN63: 0.0007257861884 | AO63: 0.01197017653 | AR63: 5.247001842 | AS63: ='Site&Soil'!$H$173*EXP('Site&Soil'!$H$174*AR63) -> 0 | AT63: 0.72675 | AU63: 0.9797986739 | AV63: 0.05516997561 | AW63: 0 | AX63: 0 | AY63: 11.40668512 | AZ63: 0.0004664566709 | BA63: 6.293065396e-05 | BB63: 6.644515832e-06 | BC63: 7.810799329e-05 | BD63: 5.24707995 | BE63: 0.3975903536 | BF63: 0.00217596866 | BG63: -0.001995435118 | CE63: ='Site&Soil'!$F$173*EXP('Site&Soil'!$F$174*CD63) ->  | CG63: 0 | CI63: 0 | CJ63: 0 | CW63: ='Site&Soil'!$G$173*EXP('Site&Soil'!$G$174*CV63) ->  | CY63: 0 | DA63: 0 | DB63: 0 | DO63: ='Site&Soil'!$H$173*EXP('Site&Soil'!$H$174*DN63) ->  | DQ63: 0 | DS63: 0 | DT63: 0
B64: 56 | C64: Aug | H64: 6.192122593 | I64: ='Site&Soil'!$F$173*EXP('Site&Soil'!$F$174*H64) -> 0 | J64: 0.6946875 | K64: 1 | L64: 0.006108835486 | M64: 0 | N64: 0 | O64: 26512.21671 | P64: 1.084171275 | Q64: 0.01619587702 | R64: 0.002416713864 | S64: 0.01983505268 | T64: 6.211957645 | U64: 0.2167130767 | V64: 0.01116458959 | W64: -0.01607138403 | Z64: 5.205436786 | AA64: ='Site&Soil'!$G$173*EXP('Site&Soil'!$G$174*Z64) -> 0 | AB64: 0.790875 | AC64: 1 | AD64: 0.06199455595 | AE64: 0 | AF64: 0 | AG64: 0.6287312439 | AH64: 2.571087743e-05 | AI64: 3.897791428e-06 | AJ64: 4.09560468e-07 | AK64: 0.003060157541 | AL64: 5.208496944 | AM64: 0.1648950205 | AN64: 0.0008427611069 | AO64: 0.01305115029 | AR64: 5.245084515 | AS64: ='Site&Soil'!$H$173*EXP('Site&Soil'!$H$174*AR64) -> 0 | AT64: 0.72675 | AU64: 1 | AV64: 0.05655799638 | AW64: 0 | AX64: 0 | AY64: 9.867785152 | AZ64: 0.0004035260169 | BA64: 5.581021569e-05 | BB64: 5.891333315e-06 | BC64: 6.925138334e-05 | BD64: 5.245153766 | BE64: 0.3961904996 | BF64: 0.002203219787 | BG64: -0.001871976168 | CE64: ='Site&Soil'!$F$173*EXP('Site&Soil'!$F$174*CD64) ->  | CG64: 0 | CI64: 0 | CJ64: 0 | CW64: ='Site&Soil'!$G$173*EXP('Site&Soil'!$G$174*CV64) ->  | CY64: 0 | DA64: 0 | DB64: 0 | DO64: ='Site&Soil'!$H$173*EXP('Site&Soil'!$H$174*DN64) ->  | DQ64: 0 | DS64: 0 | DT64: 0
B65: 57 | C65: Sep | H65: 6.195886261 | I65: ='Site&Soil'!$F$173*EXP('Site&Soil'!$F$174*H65) -> 0 | J65: 0.6946875 | K65: 0.9394130628 | L65: 0.0056866387 | M65: 0 | N65: 0 | O65: 26116.16434 | P65: 1.067975398 | Q65: 0.01485131908 | R65: 0.002222443888 | S65: 0.01817921756 | T65: 6.214065479 | U65: 0.2181773623 | V65: 0.0106104001 | W65: -0.01527363037 | Z65: 5.221548094 | AA65: ='Site&Soil'!$G$173*EXP('Site&Soil'!$G$174*Z65) -> 0 | AB65: 0.790875 | AC65: 0.9607894392 | AD65: 0.05738346026 | AE65: 0 | AF65: 0 | AG65: 0.5334150393 | AH65: 2.1813086e-05 | AI65: 3.060920071e-06 | AJ65: 3.22213308e-07 | AK65: 0.002813570533 | AL65: 5.224361665 | AM65: 0.1774420316 | AN65: 0.0009037459968 | AO65: 0.01227331007 | AR65: 5.24328179 | AS65: ='Site&Soil'!$H$173*EXP('Site&Soil'!$H$174*AR65) -> 0 | AT65: 0.72675 | AU65: 0.9797986739 | AV65: 0.05564724221 | AW65: 0 | AX65: 0 | AY65: 8.503007679 | AZ65: 0.0003477158013 | BA65: 4.731689278e-05 | BB65: 4.993687297e-06 | BC65: 5.867962682e-05 | BD65: 5.24334047 | BE65: 0.3948726863 | BF65: 0.002142566998 | BG65: -0.001704604061 | CE65: ='Site&Soil'!$F$173*EXP('Site&Soil'!$F$174*CD65) ->  | CG65: 0 | CI65: 0 | CJ65: 0 | CW65: ='Site&Soil'!$G$173*EXP('Site&Soil'!$G$174*CV65) ->  | CY65: 0 | DA65: 0 | DB65: 0 | DO65: ='Site&Soil'!$H$173*EXP('Site&Soil'!$H$174*DN65) ->  | DQ65: 0 | DS65: 0 | DT65: 0
B66: 58 | C66: Oct | H66: 6.198791848 | I66: ='Site&Soil'!$F$173*EXP('Site&Soil'!$F$174*H66) -> 0 | J66: 0.6946875 | K66: 0.7788007831 | L66: 0.004681311182 | M66: 0 | N66: 0 | O66: 25752.99166 | P66: 1.053124079 | Q66: 0.01205577678 | R66: 0.001808119292 | S66: 0.01475146377 | T66: 6.213543312 | U66: 0.2178146197 | V66: 0.008771153628 | W66: -0.01262604211 | X66: =-'Profit Calculator'!J$29*'Quantity of Lime to Apply'!H$9 -> -0.04009124051 | Z66: 5.236634975 | AA66: ='Site&Soil'!$G$173*EXP('Site&Soil'!$G$174*Z66) -> 0 | AB66: 0.790875 | AC66: 0.852143789 | AD66: 0.04914770272 | AE66: 0 | AF66: 0 | AG66: 0.4585636038 | AH66: 1.875216593e-05 | AI66: 2.253734768e-06 | AJ66: 2.376630777e-07 | AK66: 0.002288775551 | AL66: 5.23892375 | AM66: 0.188958821 | AN66: 0.0008826810517 | AO66: 0.009974360773 | AP66: =-'Profit Calculator'!$J$29*'Quantity of Lime to Apply'!$H$19 -> -0.04009124051 | AR66: 5.241635866 | AS66: ='Site&Soil'!$H$173*EXP('Site&Soil'!$H$174*AR66) -> 0 | AT66: 0.72675 | AU66: 0.9216104473 | AV66: 0.05254232175 | AW66: 0 | AX66: 0 | AY66: 7.345925081 | AZ66: 0.0003003989085 | BA66: 3.859719592e-05 | BB66: 4.072627415e-06 | BC66: 4.783244799e-05 | BD66: 5.241683698 | BE66: 0.3936686275 | BF66: 0.00200152903 | BG66: -0.001539522501 | BH66: 0.02 | BJ66: =BJ54+1 -> 5 | BK66: =AVERAGE(H61:H66) -> 6.189461121 | BL66: =AVERAGE(Z61:Z66) -> 5.200462085 | BM66: =AVERAGE(AR61:AR66) -> 5.246132232 | CE66: ='Site&Soil'!$F$173*EXP('Site&Soil'!$F$174*CD66) ->  | CG66: 0 | CI66: 0 | CJ66: 0 | CW66: ='Site&Soil'!$G$173*EXP('Site&Soil'!$G$174*CV66) ->  | CY66: 0 | DA66: 0 | DB66: 0 | DO66: ='Site&Soil'!$H$173*EXP('Site&Soil'!$H$174*DN66) ->  | DQ66: 0 | DS66: 0 | DT66: 0 | EF66: =EF54+1 -> 5 | EG66: =AVERAGE(CD61:CD66) ->  | EH66: =AVERAGE(CV61:CV66) ->  | EI66: =AVERAGE(DN61:DN66) -> 
B67: 59 | C67: Nov | H67: 6.16082603 | I67: ='Site&Soil'!$F$173*EXP('Site&Soil'!$F$174*H67) -> 0 | J67: 0.6946875 | K67: 0.5697828247 | L67: 0.003754262453 | M67: 0 | N67: 0 | O67: 25458.18089 | P67: 1.041068302 | Q67: 0.009557669263 | R67: 0.001393468419 | S67: 0.0117523359 | T67: 6.172578365 | U67: 0.1893567832 | V67: 0.005076549049 | W67: -0.007307672945 | Z67: 5.208806871 | AA67: ='Site&Soil'!$G$173*EXP('Site&Soil'!$G$174*Z67) -> 0 | AB67: 0.790875 | AC67: 0.6976763261 | AD67: 0.04291609503 | AE67: 0 | AF67: 0 | AG67: 0.4034509976 | AH67: 1.649843116e-05 | AI67: 1.731454135e-06 | AJ67: 1.820010109e-07 | AK67: 0.00176389173 | AL67: 5.210570762 | AM67: 0.1665351516 | AN67: 0.0005966651408 | AO67: 0.005664465191 | AR67: 5.260144176 | AS67: ='Site&Soil'!$H$173*EXP('Site&Soil'!$H$174*AR67) -> 0 | AT67: 0.72675 | AU67: 0.8322075007 | AV67: 0.04545485677 | AW67: 0 | AX67: 0 | AY67: 6.402073084 | AZ67: 0.0002618017126 | BA67: 2.910053151e-05 | BB67: 3.077564832e-06 | BC67: 3.605774708e-05 | BD67: 5.260180233 | BE67: 0.4071109845 | BF67: 0.001950404452 | BG67: -0.00186273039 | CE67: ='Site&Soil'!$F$173*EXP('Site&Soil'!$F$174*CD67) ->  | CG67: 0 | CI67: 0 | CJ67: 0 | CW67: ='Site&Soil'!$G$173*EXP('Site&Soil'!$G$174*CV67) ->  | CY67: 0 | DA67: 0 | DB67: 0 | DO67: ='Site&Soil'!$H$173*EXP('Site&Soil'!$H$174*DN67) ->  | DQ67: 0 | DS67: 0 | DT67: 0
B68: 60 | C68: Dec | H68: 6.165270692 | I68: ='Site&Soil'!$F$173*EXP('Site&Soil'!$F$174*H68) -> 0 | J68: 0.6946875 | K68: 0.3678794412 | L68: 0.002398068955 | M68: 0 | N68: 0 | O68: 25224.4586 | P68: 1.031510633 | Q68: 0.006048999108 | R68: 0.000884768535 | S68: 0.007433890163 | T68: 6.172704583 | U68: 0.1894444648 | V68: 0.003280137288 | W68: -0.004721745084 | Z68: 5.216235228 | AA68: ='Site&Soil'!$G$173*EXP('Site&Soil'!$G$174*Z68) -> 0 | AB68: 0.790875 | AC68: 0.527292424 | AD68: 0.03188238987 | AE68: 0 | AF68: 0 | AG68: 0.3611101901 | AH68: 1.476697703e-05 | AI68: 1.151305587e-06 | AJ68: 1.211205451e-07 | AK68: 0.00112002367 | AL68: 5.217355251 | AM68: 0.1719008343 | AN68: 0.0004728079465 | AO68: 0.003549649871 | AR68: 5.258317503 | AS68: ='Site&Soil'!$H$173*EXP('Site&Soil'!$H$174*AR68) -> 0 | AT68: 0.72675 | AU68: 0.7214222904 | AV68: 0.03957085653 | AW68: 0 | AX68: 0 | AY68: 5.690451576 | AZ68: 0.000232701181 | BA68: 2.251760429e-05 | BB68: 2.380834702e-06 | BC68: 2.787463383e-05 | BD68: 5.258345377 | BE68: 0.4057775031 | BF68: 0.001678119561 | BG68: -0.001658495514 | CE68: ='Site&Soil'!$F$173*EXP('Site&Soil'!$F$174*CD68) ->  | CG68: 0 | CI68: 0 | CJ68: 0 | CW68: ='Site&Soil'!$G$173*EXP('Site&Soil'!$G$174*CV68) ->  | CY68: 0 | DA68: 0 | DB68: 0 | DO68: ='Site&Soil'!$H$173*EXP('Site&Soil'!$H$174*DN68) ->  | DQ68: 0 | DS68: 0 | DT68: 0
A69: =A57+1 -> 6 | B69: 61 | C69: Jan | D69: =OFFSET(Apply_Lime!$H$16,$A69,0) -> 0 | E69: =OFFSET(Apply_Lime!$I$16,$A69,0)*G69 -> 0 | F69: =OFFSET(Apply_Lime!$I$16,$A69,0)*(1-G69) -> 0 | G69: ='Profit Calculator'!K28 -> 0 | H69: 6.167982838 | I69: ='Site&Soil'!$F$173*EXP('Site&Soil'!$F$174*H69) -> 0 | J69: 0.6946875 | K69: 0.04677062238 | L69: 0.0003028901506 | M69: 0 | N69: 0 | O69: 25076.53697 | P69: 1.025461634 | Q69: 0.0007595436061 | R69: 0.0001113162572 | S69: 0.0009331207901 | T69: 6.168915958 | U69: 0.1868125548 | V69: 0.0004076572471 | W69: -0.0005868210485 | Z69: 5.220904901 | AA69: ='Site&Soil'!$G$173*EXP('Site&Soil'!$G$174*Z69) -> 0 | AB69: 0.790875 | AC69: 0.1408584209 | AD69: 0.008425349471 | AE69: 0 | AF69: 0 | AG69: 0.3329562776 | AH69: 1.361567144e-05 | AI69: 2.805272997e-07 | AJ69: 2.952802892e-08 | AK69: 0.0001410681289 | AL69: 5.221045969 | AM69: 0.1748197309 | AN69: 0.0001295445754 | AO69: 0.0003516518687 | AR69: 5.256686882 | AS69: ='Site&Soil'!$H$173*EXP('Site&Soil'!$H$174*AR69) -> 0 | AT69: 0.72675 | AU69: 0.3678794412 | AV69: 0.02025496122 | AW69: 0 | AX69: 0 | AY69: 5.139808317 | AZ69: 0.0002101835768 | BA69: 1.041066181e-05 | BB69: 1.100518011e-06 | BC69: 1.285128563e-05 | BD69: 5.256699733 | BE69: 0.4045815311 | BF69: 0.0008499850849 | BG69: -0.0009913182105 | BZ69: =OFFSET(Apply_Lime!$O$16,$A69,0) -> 0 | CA69: =OFFSET(Apply_Lime!$P$16,$A69,0)*CA$7 -> 0 | CB69: =OFFSET(Apply_Lime!$P$16,$A69,0)*CB$7 -> 0 | CE69: ='Site&Soil'!$F$173*EXP('Site&Soil'!$F$174*CD69) ->  | CG69: 0 | CI69: 0 | CJ69: 0 | CW69: ='Site&Soil'!$G$173*EXP('Site&Soil'!$G$174*CV69) ->  | CY69: 0 | DA69: 0 | DB69: 0 | DO69: ='Site&Soil'!$H$173*EXP('Site&Soil'!$H$174*DN69) ->  | DQ69: 0 | DS69: 0 | DT69: 0
B70: 62 | C70: Feb | H70: 6.168329137 | I70: ='Site&Soil'!$F$173*EXP('Site&Soil'!$F$174*H70) -> 0 | J70: 0.6946875 | K70: 0.1053992246 | L70: 0.0006820028681 | M70: 0 | N70: 0 | O70: 25057.96317 | P70: 1.02470209 | Q70: 0.001708960275 | R70: 0.0002505231652 | S70: 0.002099414643 | T70: 6.170428552 | U70: 0.1878633347 | V70: 0.0009270603241 | W70: -0.001334499792 | Z70: 5.221397621 | AA70: ='Site&Soil'!$G$173*EXP('Site&Soil'!$G$174*Z70) -> 0 | AB70: 0.790875 | AC70: 0.2369277587 | AD70: 0.01415551675 | AE70: 0 | AF70: 0 | AG70: 0.3260962908 | AH70: 1.333514414e-05 | AI70: 4.616061507e-07 | AJ70: 4.859096723e-08 | AK70: 0.0003172893067 | AL70: 5.22171491 | AM70: 0.1753487797 | AN70: 0.0002188938724 | AO70: 0.0008954214657 | AR70: 5.255708415 | AS70: ='Site&Soil'!$H$173*EXP('Site&Soil'!$H$174*AR70) -> 0 | AT70: 0.72675 | AU70: 0.4796522688 | AV70: 0.02646893585 | AW70: 0 | AX70: 0 | AY70: 4.885227026 | AZ70: 0.0001997729149 | BA70: 1.293067608e-05 | BB70: 1.36674422e-06 | BC70: 1.597870358e-05 | BD70: 5.255724394 | BE70: 0.4038727032 | BF70: 0.001103812729 | BG70: -0.001217638606 | CE70: ='Site&Soil'!$F$173*EXP('Site&Soil'!$F$174*CD70) ->  | CG70: 0 | CI70: 0 | CJ70: 0 | CW70: ='Site&Soil'!$G$173*EXP('Site&Soil'!$G$174*CV70) ->  | CY70: 0 | DA70: 0 | DB70: 0 | DO70: ='Site&Soil'!$H$173*EXP('Site&Soil'!$H$174*DN70) ->  | DQ70: 0 | DS70: 0 | DT70: 0
B71: 63 | C71: Mar | H71: 6.169094052 | I71: ='Site&Soil'!$F$173*EXP('Site&Soil'!$F$174*H71) -> 0 | J71: 0.6946875 | K71: 0.2096113872 | L71: 0.001353821247 | M71: 0 | N71: 0 | O71: 25016.17242 | P71: 1.02299313 | Q71: 0.003386742576 | R71: 0.0004967540072 | S71: 0.004160127494 | T71: 6.17325418 | U71: 0.1898262629 | V71: 0.001875103954 | W71: -0.002699204972 | Z71: 5.222610332 | AA71: ='Site&Soil'!$G$173*EXP('Site&Soil'!$G$174*Z71) -> 0 | AB71: 0.790875 | AC71: 0.3678794412 | AD71: 0.02191775972 | AE71: 0 | AF71: 0 | AG71: 0.3148082198 | AH71: 1.287353799e-05 | AI71: 6.89989092e-07 | AJ71: 7.264185372e-08 | AK71: 0.0006288874405 | AL71: 5.223239219 | AM71: 0.1765543175 | AN71: 0.0003434180199 | AO71: 0.001936697878 | AR71: 5.254506755 | AS71: ='Site&Soil'!$H$173*EXP('Site&Soil'!$H$174*AR71) -> 0 | AT71: 0.72675 | AU71: 0.6003730412 | AV71: 0.03322306512 | AW71: 0 | AX71: 0 | AY71: 4.569021557 | AZ71: 0.0001868422389 | BA71: 1.517969007e-05 | BB71: 1.604221104e-06 | BC71: 1.877965026e-05 | BD71: 5.254525535 | BE71: 0.4030014324 | BF71: 0.001374843635 | BG71: -0.001419230292 | CE71: ='Site&Soil'!$F$173*EXP('Site&Soil'!$F$174*CD71) ->  | CG71: 0 | CI71: 0 | CJ71: 0 | CW71: ='Site&Soil'!$G$173*EXP('Site&Soil'!$G$174*CV71) ->  | CY71: 0 | DA71: 0 | DB71: 0 | DO71: ='Site&Soil'!$H$173*EXP('Site&Soil'!$H$174*DN71) ->  | DQ71: 0 | DS71: 0 | DT71: 0
B72: 64 | C72: Apr | H72: 6.170554975 | I72: ='Site&Soil'!$F$173*EXP('Site&Soil'!$F$174*H72) -> 0 | J72: 0.6946875 | K72: 0.3678794412 | L72: 0.002367660311 | M72: 0 | N72: 0 | O72: 24933.35336 | P72: 1.019606387 | Q72: 0.005903371117 | R72: 0.0008668115987 | S72: 0.007250108169 | T72: 6.177805083 | U72: 0.1929877185 | V72: 0.00338096187 | W72: -0.004866881684 | Z72: 5.225175917 | AA72: ='Site&Soil'!$G$173*EXP('Site&Soil'!$G$174*Z72) -> 0 | AB72: 0.790875 | AC72: 0.527292424 | AD72: 0.03122934904 | AE72: 0 | AF72: 0 | AG72: 0.2979352951 | AH72: 1.21835489e-05 | AI72: 9.304325323e-07 | AJ72: 9.798477604e-08 | AK72: 0.001097068496 | AL72: 5.226272986 | AM72: 0.1789536475 | AN72: 0.0005024178631 | AO72: 0.003639695283 | AR72: 5.253106305 | AS72: ='Site&Soil'!$H$173*EXP('Site&Soil'!$H$174*AR72) -> 0 | AT72: 0.72675 | AU72: 0.7214222904 | AV72: 0.04005129033 | AW72: 0 | AX72: 0 | AY72: 4.197818924 | AZ72: 0.0001716625488 | BA72: 1.681280645e-05 | BB72: 1.776504666e-06 | BC72: 2.08246117e-05 | BD72: 5.253127129 | BE72: 0.4019851411 | BF72: 0.001642580589 | BG72: -0.00156885136 | CE72: ='Site&Soil'!$F$173*EXP('Site&Soil'!$F$174*CD72) ->  | CG72: 0 | CI72: 0 | CJ72: 0 | CW72: ='Site&Soil'!$G$173*EXP('Site&Soil'!$G$174*CV72) ->  | CY72: 0 | DA72: 0 | DB72: 0 | DO72: ='Site&Soil'!$H$173*EXP('Site&Soil'!$H$174*DN72) ->  | DQ72: 0 | DS72: 0 | DT72: 0
B73: 65 | C73: May | H73: 6.172938201 | I73: ='Site&Soil'!$F$173*EXP('Site&Soil'!$F$174*H73) -> 0 | J73: =((0.66+45*Soil_OC_A+0.63*I73)*0.5)*Soil_BD_A*(1-Gravel_Pct_A) -> 0.6946875 | K73: 0.5697828247 | L73: =k*(10^-H73-10^-pH_Equil)*K73*10000 -> 0.003646049557 | M73: =D73*Lime_NV_A -> 0 | N73: =D73*CaCO3_SA_A -> 0 | O73: 24788.99291 | P73: 1.013703016 | Q73: =MAX(0,MIN(L73*O73*0.0001,(pH_Equil-H73)*J73,P73)) -> 0.00903818966 | R73: =(Lime_Leak*Q73)+MIN(Lime_Leach_Max,10^(H73-pH_Leach_A)/10^(pH_Equil-pH_Leach_A))*Q73 -> 0.001329436638 | S73: =(Q73-R73)/J73 -> 0.0110967205 | T73: =H73+S73 -> 6.184034922 | U73: =MAX(0,(T73-MAX(pH_Leach_A,pH_Initial_A))*J73) -> 0.1973155097 | V73: =K73*(MIN(Alkali_Leach_Max,(10^(T73-pH_Leach_A)/10^(pH_Equil-pH_Leach_A)))*U73) -> 0.005431321352 | W73: =-V73/J73 -> -0.007818366318 | Z73: 5.229912681 | AA73: ='Site&Soil'!$G$173*EXP('Site&Soil'!$G$174*Z73) -> 0 | AB73: =((0.66+45*Soil_OC_B+0.63*AA73)*0.5)*Soil_BD_B*(1-Gravel_Pct_B) -> 0.790875 | AC73: 0.6976763261 | AD73: =k*(10^-Z73-10^-pH_Equil)*AC73*10000 -> 0.04086986399 | AE73: =E73*Lime_NV_A -> 0 | AF73: =E73*CaCO3_SA_A -> 0 | AG73: 0.2751825903 | AH73: 1.125311637e-05 | AI73: =MAX(0,MIN(AD73*AG73*0.0001,(pH_Equil-Z73)*AB73,AH73)) -> 1.124667504e-06 | AJ73: =(Lime_Leak*AI73)+MIN(Lime_Leach_Max,10^(Z73-pH_Leach_B)/10^(pH_Equil-pH_Leach_B))*AI73 -> 1.185053583e-07 | AK73: =(R73+AI73-AJ73)/AB73 -> 0.001682241568 | AL73: =Z73+AK73 -> 5.231594922 | AM73: =MAX(0,(AL73-MAX(pH_Leach_B,pH_Initial_B))*AB73) -> 0.1831626343 | AN73: =AC73*(MIN(Alkali_Leach_Max,(10^(AL73-pH_Leach_B)/10^(pH_Equil-pH_Leach_B)))*AM73) -> 0.0006887883454 | AO73: =(V73-AN73)/AB73 -> 0.005996564572 | AR73: 5.251558278 | AS73: ='Site&Soil'!$H$173*EXP('Site&Soil'!$H$174*AR73) -> 0 | AT73: =((0.66+45*Soil_OC_C+0.63*AS73)*0.5)*Soil_BD_C*(1-Gravel_Pct_C) -> 0.72675 | AU73: 0.8322075007 | AV73: =k*(10^-AR73-10^-pH_Equil)*AU73*10000 -> 0.0463676846 | AW73: =F73*Lime_NV_A -> 0 | AX73: =F73*CaCO3_SA_A -> 0 | AY73: 3.786680224 | AZ73: 0.0001548497423 | BA73: =MAX(0,MIN(AV73*AY73*0.0001,(pH_Equil-AR73)*AT73,AZ73)) -> 1.755795943e-05 | BB73: =(Lime_Leak*BA73)+MIN(Lime_Leach_Max,10^(AR73-pH_Leach_C)/10^(pH_Equil-pH_Leach_C))*BA73 -> 1.854886512e-06 | BC73: =(AJ73+BA73-BB73)/AT73 -> 2.177031755e-05 | BD73: =AR73+BC73 -> 5.251580048 | BE73: =MAX(0,(BD73-MAX(pH_Leach_C,pH_Initial_C))*AT73) -> 0.4008607999 | BF73: =AU73*(MIN(Alkali_Leach_Max,(10^(BD73-pH_Leach_C)/10^(pH_Equil-pH_Leach_C)))*BE73) -> 0.001882804652 | BG73: =(AN73-BF73)/AT73 -> -0.001642953294 | CE73: ='Site&Soil'!$F$173*EXP('Site&Soil'!$F$174*CD73) ->  | CF73: =((0.66+45*Soil_OC_A+0.63*CE73)*0.5)*Soil_BD_A*(1-Gravel_Pct_A) ->  | CG73: 0 | CH73: =k*(10^-CD73-10^-pH_Equil)*CG73*10000 ->  | CI73: =BZ73*Lime_NV_B -> 0 | CJ73: =BZ73*CaCO3_SA_B -> 0 | CM73: =MAX(0,MIN(CH73*CK73*0.0001,(pH_Equil-CD73)*CF73,CL73)) ->  | CN73: =(Lime_Leak*CM73)+MIN(Lime_Leach_Max,10^(CD73-pH_Leach_A)/10^(pH_Equil-pH_Leach_A))*CM73 ->  | CO73: =(CM73-CN73)/CF73 ->  | CP73: =CD73+CO73 ->  | CQ73: =MAX(0,(CP73-MAX(pH_Leach_A,pH_Initial_A))*CF73) ->  | CR73: =CG73*(MIN(Alkali_Leach_Max,(10^(CP73-pH_Leach_A)/10^(pH_Equil-pH_Leach_A)))*CQ73) ->  | CS73: =-CR73/CF73 ->  | CW73: ='Site&Soil'!$G$173*EXP('Site&Soil'!$G$174*CV73) ->  | CX73: =((0.66+45*Soil_OC_B+0.63*CW73)*0.5)*Soil_BD_B*(1-Gravel_Pct_B) ->  | CY73: 0 | CZ73: =k*(10^-CV73-10^-pH_Equil)*CY73*10000 ->  | DA73: =CA73*Lime_NV_B -> 0 | DB73: =CA73*CaCO3_SA_B -> 0 | DE73: =MAX(0,MIN(CZ73*DC73*0.0001,(pH_Equil-CV73)*CX73,DD73)) ->  | DF73: =(Lime_Leak*DE73)+MIN(Lime_Leach_Max,10^(CV73-pH_Leach_B)/10^(pH_Equil-pH_Leach_B))*DE73 ->  | DG73: =(CN73+DE73-DF73)/CX73 ->  | DH73: =CV73+DG73 ->  | DI73: =MAX(0,(DH73-MAX(pH_Leach_B,pH_Initial_B))*CX73) ->  | DJ73: =CY73*(MIN(Alkali_Leach_Max,(10^(DH73-pH_Leach_B)/10^(pH_Equil-pH_Leach_B)))*DI73) ->  | DK73: =(CR73-DJ73)/CX73 ->  | DO73: ='Site&Soil'!$H$173*EXP('Site&Soil'!$H$174*DN73) ->  | DP73: =((0.66+45*Soil_OC_C+0.63*DO73)*0.5)*Soil_BD_C*(1-Gravel_Pct_C) ->  | DQ73: 0 | DR73: =k*(10^-DN73-10^-pH_Equil)*DQ73*10000 ->  | DS73: =CB73*Lime_NV_B -> 0 | DT73: =CB73*CaCO3_SA_B -> 0 | DW73: =MAX(0,MIN(DR73*DU73*0.0001,(pH_Equil-DN73)*DP73,DV73)) ->  | DX73: =(Lime_Leak*DW73)+MIN(Lime_Leach_Max,10^(DN73-pH_Leach_C)/10^(pH_Equil-pH_Leach_C))*DW73 ->  | DY73: =(DF73+DW73-DX73)/DP73 ->  | DZ73: =DN73+DY73 ->  | EA73: =MAX(0,(DZ73-MAX(pH_Leach_C,pH_Initial_C))*DP73) ->  | EB73: =DQ73*(MIN(Alkali_Leach_Max,(10^(DZ73-pH_Leach_C)/10^(pH_Equil-pH_Leach_C)))*EA73) ->  | EC73: =(DJ73-EB73)/DP73 -> 
B74: 66 | C74: Jun | H74: 6.176216555 | I74: ='Site&Soil'!$F$173*EXP('Site&Soil'!$F$174*H74) -> 0 | J74: 0.6946875 | K74: 0.7788007831 | L74: 0.004944229083 | M74: 0 | N74: 0 | O74: =N74+IF(P73-Q73=0,0,(O73*(1-Q73/P73))) -> 24567.97391 | P74: =P73-Q73+M74 -> 1.004664826 | Q74: 0.01214696911 | R74: 0.001791044503 | S74: 0.01490731388 | T74: 6.191123869 | U74: 0.2022401129 | V74: 0.007734238279 | W74: -0.01113340643 | Z74: 5.237591487 | AA74: ='Site&Soil'!$G$173*EXP('Site&Soil'!$G$174*Z74) -> 0 | AB74: 0.790875 | AC74: 0.852143789 | AD74: 0.04903898359 | AE74: 0 | AF74: 0 | AG74: =AF74+IF(AH73-AI73=0,0,(AG73*(1-AI73/AH73))) -> 0.2476800829 | AH74: =AH73-AI73+AE74 -> 1.012844886e-05 | AI74: 1.214597952e-06 | AJ74: 1.280975932e-07 | AK74: 0.002266010435 | AL74: 5.239857497 | AM74: 0.1896972983 | AN74: 0.000888037951 | AO74: 0.008656488482 | AR74: 5.249937095 | AS74: ='Site&Soil'!$H$173*EXP('Site&Soil'!$H$174*AR74) -> 0 | AT74: 0.72675 | AU74: 0.9216104473 | AV74: 0.05154203247 | AW74: 0 | AX74: 0 | AY74: =AX74+IF(AZ73-BA73=0,0,(AY73*(1-BA73/AZ73))) -> 3.357319628 | AZ74: =AZ73-BA73+AW74 -> 0.0001372917829 | BA74: 1.730430772e-05 | BB74: 1.827725952e-06 | BC74: 2.147186703e-05 | BD74: 5.249958567 | BE74: 0.3996823883 | BF74: 0.002071194898 | BG74: -0.001628010936 | CD74: =CP73+CS73+CT73 ->  | CE74: ='Site&Soil'!$F$173*EXP('Site&Soil'!$F$174*CD74) ->  | CG74: 0 | CI74: 0 | CJ74: 0 | CK74: =CJ74+IF(CL73-CM73=0,0,(CK73*(1-CM73/CL73))) ->  | CL74: =CL73-CM73+CI74 ->  | CV74: =DH73+DK73+DL73 ->  | CW74: ='Site&Soil'!$G$173*EXP('Site&Soil'!$G$174*CV74) ->  | CY74: 0 | DA74: 0 | DB74: 0 | DC74: =DB74+IF(DD73-DE73=0,0,(DC73*(1-DE73/DD73))) ->  | DD74: =DD73-DE73+DA74 ->  | DN74: =DZ73+EC73+ED73 ->  | DO74: ='Site&Soil'!$H$173*EXP('Site&Soil'!$H$174*DN74) ->  | DQ74: 0 | DS74: 0 | DT74: 0 | DU74: =DT74+IF(DV73-DW73=0,0,(DU73*(1-DW73/DV73))) ->  | DV74: =DV73-DW73+DS74 -> 
B75: 67 | C75: Jul | H75: =T74+W74+X74 -> 6.179990463 | I75: ='Site&Soil'!$F$173*EXP('Site&Soil'!$F$174*H75) -> 0 | J75: 0.6946875 | K75: 0.9394130628 | L75: 0.005909708362 | M75: 0 | N75: 0 | O75: 24270.93314 | P75: 0.9925178574 | Q75: 0.01434341365 | R75: 0.002120845229 | S75: 0.01759434051 | T75: 6.197584803 | U75: 0.2067284431 | V75: 0.009679248325 | W75: -0.01393324095 | Z75: =AL74+AO74+AP74 -> 5.248513986 | AA75: ='Site&Soil'!$G$173*EXP('Site&Soil'!$G$174*Z75) -> 0 | AB75: 0.790875 | AC75: 0.9607894392 | AD75: 0.05391051915 | AE75: 0 | AF75: 0 | AG75: 0.2179784251 | AH75: 8.913850912e-06 | AI75: 1.175133006e-06 | AJ75: 1.240989865e-07 | AK75: 0.00268297299 | AL75: 5.251196959 | AM75: 0.1986653949 | AN75: 0.001076334856 | AO75: 0.01087771578 | AR75: =BD74+BG74+BH74 -> 5.248330556 | AS75: ='Site&Soil'!$H$173*EXP('Site&Soil'!$H$174*AR75) -> 0 | AT75: 0.72675 | AU75: 0.9797986739 | AV75: 0.0550004958 | AW75: 0 | AX75: 0 | AY75: 2.934161805 | AZ75: 0.0001199874752 | BA75: 1.61380354e-05 | BB75: 1.704206202e-06 | BC75: 2.003154893e-05 | BD75: 5.248350587 | BE75: 0.3985137893 | BF75: 0.002187412995 | BG75: -0.00152883129 | CE75: ='Site&Soil'!$F$173*EXP('Site&Soil'!$F$174*CD75) ->  | CG75: 0 | CI75: 0 | CJ75: 0 | CW75: ='Site&Soil'!$G$173*EXP('Site&Soil'!$G$174*CV75) ->  | CY75: 0 | DA75: 0 | DB75: 0 | DO75: ='Site&Soil'!$H$173*EXP('Site&Soil'!$H$174*DN75) ->  | DQ75: 0 | DS75: 0 | DT75: 0
B76: 68 | C76: Aug | H76: 6.183651562 | I76: ='Site&Soil'!$F$173*EXP('Site&Soil'!$F$174*H76) -> 0 | J76: 0.6946875 | K76: 1 | L76: 0.006235388276 | M76: 0 | N76: 0 | O76: 23920.18072 | P76: 0.9781744437 | Q76: 0.01491516144 | R76: 0.002211428324 | S76: 0.01828697525 | T76: 6.201938538 | U76: 0.2097529278 | V76: 0.01055957816 | W76: -0.01520047239 | Z76: 5.262074675 | AA76: ='Site&Soil'!$G$173*EXP('Site&Soil'!$G$174*Z76) -> 0 | AB76: 0.790875 | AC76: 1 | AD76: 0.05437596367 | AE76: 0 | AF76: 0 | AG76: 0.1892418393 | AH76: 7.738717906e-06 | AI76: 1.029020738e-06 | AJ76: 1.088518249e-07 | AK76: 0.002797342807 | AL76: 5.264872018 | AM76: 0.2094806569 | AN76: 0.001219034354 | AO76: 0.01181039205 | AR76: 5.246821756 | AS76: ='Site&Soil'!$H$173*EXP('Site&Soil'!$H$174*AR76) -> 0 | AT76: 0.72675 | AU76: 1 | AV76: 0.05633094562 | AW76: 0 | AX76: 0 | AY76: 2.539523889 | AZ76: 0.0001038494398 | BA76: 1.430537821e-05 | BB76: 1.510396312e-06 | BC76: 1.775553316e-05 | BD76: 5.246839512 | BE76: 0.397415615 | BF76: 0.002218627739 | BG76: -0.001375429495 | CE76: ='Site&Soil'!$F$173*EXP('Site&Soil'!$F$174*CD76) ->  | CG76: 0 | CI76: 0 | CJ76: 0 | CW76: ='Site&Soil'!$G$173*EXP('Site&Soil'!$G$174*CV76) ->  | CY76: 0 | DA76: 0 | DB76: 0 | DO76: ='Site&Soil'!$H$173*EXP('Site&Soil'!$H$174*DN76) ->  | DQ76: 0 | DS76: 0 | DT76: 0
B77: 69 | C77: Sep | H77: 6.186738065 | I77: ='Site&Soil'!$F$173*EXP('Site&Soil'!$F$174*H77) -> 0 | J77: 0.6946875 | K77: 0.9394130628 | L77: 0.005814019394 | M77: 0 | N77: 0 | O77: 23555.44685 | P77: 0.9632592823 | Q77: 0.01369518248 | R77: 0.002035260144 | S77: 0.01678441362 | T77: 6.203522479 | U77: 0.210853272 | V77: 0.01000827934 | W77: -0.01440687984 | Z77: 5.27668241 | AA77: ='Site&Soil'!$G$173*EXP('Site&Soil'!$G$174*Z77) -> 0 | AB77: 0.790875 | AC77: 0.9607894392 | AD77: 0.05050577582 | AE77: 0 | AF77: 0 | AG77: 0.1640782683 | AH77: 6.709697168e-06 | AI77: 8.286900238e-07 | AJ77: 8.78243545e-08 | AK77: 0.002574365114 | AL77: 5.279256775 | AM77: 0.2208572017 | AN77: 0.0012764287 | AO77: 0.01104074682 | AR77: 5.245464082 | AS77: ='Site&Soil'!$H$173*EXP('Site&Soil'!$H$174*AR77) -> 0 | AT77: 0.72675 | AU77: 0.9797986739 | AV77: 0.05536676801 | AW77: 0 | AX77: 0 | AY77: 2.189701591 | AZ77: 8.954406158e-05 | BA77: 1.212367e-05 | BB77: 1.279835055e-06 | BC77: 1.504184286e-05 | BD77: 5.245479124 | BE77: 0.3964269533 | BF77: 0.002161618984 | BG77: -0.001218012087 | CE77: ='Site&Soil'!$F$173*EXP('Site&Soil'!$F$174*CD77) ->  | CG77: 0 | CI77: 0 | CJ77: 0 | CW77: ='Site&Soil'!$G$173*EXP('Site&Soil'!$G$174*CV77) ->  | CY77: 0 | DA77: 0 | DB77: 0 | DO77: ='Site&Soil'!$H$173*EXP('Site&Soil'!$H$174*DN77) ->  | DQ77: 0 | DS77: 0 | DT77: 0
B78: 70 | C78: Oct | H78: 6.189115599 | I78: ='Site&Soil'!$F$173*EXP('Site&Soil'!$F$174*H78) -> 0 | J78: 0.6946875 | K78: 0.7788007831 | L78: 0.004792331989 | M78: 0 | N78: 0 | O78: 23220.54621 | P78: 0.9495640998 | Q78: 0.01112805664 | R78: 0.001656725537 | S78: 0.01363394491 | T78: 6.202749544 | U78: 0.2103163238 | V78: 0.008261309739 | W78: -0.01189212378 | X78: =-'Profit Calculator'!K$29*'Quantity of Lime to Apply'!H$9 -> -0.08530363544 | Z78: 5.290297522 | AA78: ='Site&Soil'!$G$173*EXP('Site&Soil'!$G$174*Z78) -> 0 | AB78: 0.790875 | AC78: 0.852143789 | AD78: 0.04340376336 | AE78: 0 | AF78: 0 | AG78: 0.1438135648 | AH78: 5.881007144e-06 | AI78: 6.242049933e-07 | AJ78: 6.627195373e-08 | AK78: 0.002095506205 | AL78: 5.292393028 | AM78: 0.2312463358 | AN78: 0.001221745563 | AO78: 0.008900982046 | AP78: =-'Profit Calculator'!$K$29*'Quantity of Lime to Apply'!$H$19 -> -0.08530363544 | AR78: 5.244261112 | AS78: ='Site&Soil'!$H$173*EXP('Site&Soil'!$H$174*AR78) -> 0 | AT78: 0.72675 | AU78: 0.9216104473 | AV78: 0.05222391278 | AW78: 0 | AX78: 0 | AY78: 1.893230569 | AZ78: 7.742039158e-05 | BA78: 9.887190808e-06 | BB78: 1.043588963e-06 | BC78: 1.225988827e-05 | BD78: 5.244273372 | BE78: 0.3955506729 | BF78: 0.0020231258 | BG78: -0.001102690385 | BH78: 0.02 | BJ78: =BJ66+1 -> 6 | BK78: =AVERAGE(H73:H78) -> 6.181441741 | BL78: =AVERAGE(Z73:Z78) -> 5.257512127 | BM78: =AVERAGE(AR73:AR78) -> 5.247728813 | CE78: ='Site&Soil'!$F$173*EXP('Site&Soil'!$F$174*CD78) ->  | CG78: 0 | CI78: 0 | CJ78: 0 | CW78: ='Site&Soil'!$G$173*EXP('Site&Soil'!$G$174*CV78) ->  | CY78: 0 | DA78: 0 | DB78: 0 | DO78: ='Site&Soil'!$H$173*EXP('Site&Soil'!$H$174*DN78) ->  | DQ78: 0 | DS78: 0 | DT78: 0 | EF78: =EF66+1 -> 6 | EG78: =AVERAGE(CD73:CD78) ->  | EH78: =AVERAGE(CV73:CV78) ->  | EI78: =AVERAGE(DN73:DN78) -> 
B79: 71 | C79: Nov | H79: 6.105553785 | I79: ='Site&Soil'!$F$173*EXP('Site&Soil'!$F$174*H79) -> 0 | J79: 0.6946875 | K79: 0.5697828247 | L79: 0.00428825513 | M79: 0 | N79: 0 | O79: 22948.42182 | P79: 0.9384360432 | Q79: 0.00984086876 | R79: 0.001380901094 | S79: 0.01217809111 | T79: 6.117731876 | U79: 0.1512556125 | V79: 0.003573985023 | W79: -0.005144737774 | Z79: 5.215990374 | AA79: ='Site&Soil'!$G$173*EXP('Site&Soil'!$G$174*Z79) -> 0 | AB79: 0.790875 | AC79: 0.6976763261 | AD79: 0.0422084551 | AE79: 0 | AF79: 0 | AG79: 0.1285493179 | AH79: 5.256802151e-06 | AI79: 5.425868111e-07 | AJ79: 5.708004827e-08 | AK79: 0.001746656046 | AL79: 5.21773703 | AM79: 0.1722027739 | AN79: 0.0006272362647 | AO79: 0.003725934892 | AR79: 5.263170681 | AS79: ='Site&Soil'!$H$173*EXP('Site&Soil'!$H$174*AR79) -> 0 | AT79: 0.72675 | AU79: 0.8322075007 | AV79: 0.04513736515 | AW79: 0 | AX79: 0 | AY79: 1.651450186 | AZ79: 6.753320077e-05 | BA79: 7.454211008e-06 | BB79: 7.886299166e-07 | BC79: 9.250307726e-06 | BD79: 5.263179932 | BE79: 0.4092910153 | BF79: 0.001974439217 | BG79: -0.001853736432 | CE79: ='Site&Soil'!$F$173*EXP('Site&Soil'!$F$174*CD79) ->  | CG79: 0 | CI79: 0 | CJ79: 0 | CW79: ='Site&Soil'!$G$173*EXP('Site&Soil'!$G$174*CV79) ->  | CY79: 0 | DA79: 0 | DB79: 0 | DO79: ='Site&Soil'!$H$173*EXP('Site&Soil'!$H$174*DN79) ->  | DQ79: 0 | DS79: 0 | DT79: 0
B80: 72 | C80: Dec | H80: 6.112587138 | I80: ='Site&Soil'!$F$173*EXP('Site&Soil'!$F$174*H80) -> 0 | J80: 0.6946875 | K80: 0.3678794412 | L80: 0.002722359001 | M80: 0 | N80: 0 | O80: 22707.77419 | P80: 0.9285951744 | Q80: 0.006181871346 | R80: 0.0008715290796 | S80: 0.007644217387 | T80: 6.120231355 | U80: 0.1529919697 | V80: 0.002347499506 | W80: -0.003379216563 | Z80: 5.221462965 | AA80: ='Site&Soil'!$G$173*EXP('Site&Soil'!$G$174*Z80) -> 0 | AB80: 0.790875 | AC80: 0.527292424 | AD80: 0.0314989171 | AE80: 0 | AF80: 0 | AG80: 0.1152809538 | AH80: 4.71421534e-06 | AI80: 3.631225208e-07 | AJ80: 3.822437651e-08 | AK80: 0.001102391627 | AL80: 5.222565357 | AM80: 0.1760213766 | AN80: 0.0004899844546 | AO80: 0.002348683485 | AR80: 5.261326195 | AS80: ='Site&Soil'!$H$173*EXP('Site&Soil'!$H$174*AR80) -> 0 | AT80: 0.72675 | AU80: 0.7214222904 | AV80: 0.03929609114 | AW80: 0 | AX80: 0 | AY80: 1.46916565 | AZ80: 6.007898976e-05 | BA80: 5.773246729e-06 | BB80: 6.106478432e-07 | BC80: 7.156275558e-06 | BD80: 5.261333351 | BE80: 0.4079490131 | BF80: 0.001698747362 | BG80: -0.001663244454 | CE80: ='Site&Soil'!$F$173*EXP('Site&Soil'!$F$174*CD80) ->  | CG80: 0 | CI80: 0 | CJ80: 0 | CW80: ='Site&Soil'!$G$173*EXP('Site&Soil'!$G$174*CV80) ->  | CY80: 0 | DA80: 0 | DB80: 0 | DO80: ='Site&Soil'!$H$173*EXP('Site&Soil'!$H$174*DN80) ->  | DQ80: 0 | DS80: 0 | DT80: 0
A81: =A69+1 -> 7 | B81: 73 | C81: Jan | D81: =OFFSET(Apply_Lime!$H$16,$A81,0) -> 0 | E81: =OFFSET(Apply_Lime!$I$16,$A81,0)*G81 -> 0 | F81: =OFFSET(Apply_Lime!$I$16,$A81,0)*(1-G81) -> 0 | G81: ='Profit Calculator'!L28 -> 0 | H81: 6.116852139 | I81: ='Site&Soil'!$F$173*EXP('Site&Soil'!$F$174*H81) -> 0 | J81: 0.6946875 | K81: 0.04677062238 | L81: 0.0003425822319 | M81: 0 | N81: 0 | O81: 22556.60333 | P81: 0.922413303 | Q81: 0.0007727491511 | R81: 0.0001092558147 | S81: 0.0009550961208 | T81: 6.117807235 | U81: 0.1513079635 | V81: 0.0002935230221 | W81: -0.000422525268 | Z81: 5.22491404 | AA81: ='Site&Soil'!$G$173*EXP('Site&Soil'!$G$174*Z81) -> 0 | AB81: 0.790875 | AC81: 0.1408584209 | AD81: 0.008347520421 | AE81: 0 | AF81: 0 | AG81: 0.1064011918 | AH81: 4.351092819e-06 | AI81: 8.881861212e-08 | AJ81: 9.353292088e-09 | AK81: 0.0001382459681 | AL81: 5.225052286 | AM81: 0.177988227 | AN81: 0.0001331148106 | AO81: 0.0002028237224 | AR81: 5.259670107 | AS81: ='Site&Soil'!$H$173*EXP('Site&Soil'!$H$174*AR81) -> 0 | AT81: 0.72675 | AU81: 0.3678794412 | AV81: 0.02011550767 | AW81: 0 | AX81: 0 | AY81: 1.327987248 | AZ81: 5.430574303e-05 | BA81: 2.671313768e-06 | BB81: 2.824915109e-07 | BC81: 3.299863156e-06 | BD81: 5.259673407 | BE81: 0.4067426484 | BF81: 0.0008603965039 | BG81: -0.001000731604 | BZ81: =OFFSET(Apply_Lime!$O$16,$A81,0) -> 0 | CA81: =OFFSET(Apply_Lime!$P$16,$A81,0)*CA$7 -> 0 | CB81: =OFFSET(Apply_Lime!$P$16,$A81,0)*CB$7 -> 0 | CE81: ='Site&Soil'!$F$173*EXP('Site&Soil'!$F$174*CD81) ->  | CG81: 0 | CI81: 0 | CJ81: 0 | CW81: ='Site&Soil'!$G$173*EXP('Site&Soil'!$G$174*CV81) ->  | CY81: 0 | DA81: 0 | DB81: 0 | DO81: ='Site&Soil'!$H$173*EXP('Site&Soil'!$H$174*DN81) ->  | DQ81: 0 | DS81: 0 | DT81: 0
B82: 74 | C82: Feb | H82: 6.11738471 | I82: ='Site&Soil'!$F$173*EXP('Site&Soil'!$F$174*H82) -> 0 | J82: 0.6946875 | K82: 0.1053992246 | L82: 0.0007710339885 | M82: 0 | N82: 0 | O82: 22537.70659 | P82: 0.9216405539 | Q82: 0.001737733781 | R82: 0.0002457792566 | S82: 0.002147662833 | T82: 6.119532373 | U82: 0.152506395 | V82: 0.0006693570524 | W82: -0.0009635369176 | Z82: 5.22525511 | AA82: ='Site&Soil'!$G$173*EXP('Site&Soil'!$G$174*Z82) -> 0 | AB82: 0.790875 | AC82: 0.2369277587 | AD82: 0.01402967887 | AE82: 0 | AF82: 0 | AG82: 0.1042292303 | AH82: 4.262274207e-06 | AI82: 1.462302629e-07 | AJ82: 1.539979616e-08 | AK82: 0.000310934202 | AL82: 5.225566044 | AM82: 0.1783945453 | AN82: 0.0002246795582 | AO82: 0.0005622601476 | AR82: 5.258672675 | AS82: ='Site&Soil'!$H$173*EXP('Site&Soil'!$H$174*AR82) -> 0 | AT82: 0.72675 | AU82: 0.4796522688 | AV82: 0.02628785655 | AW82: 0 | AX82: 0 | AY82: 1.262663206 | AZ82: 5.163442926e-05 | BA82: 3.319270924e-06 | BB82: 3.509692159e-07 | BC82: 4.105540426e-06 | BD82: 5.258676781 | BE82: 0.4060183504 | BF82: 0.001117246355 | BG82: -0.001228162086 | CE82: ='Site&Soil'!$F$173*EXP('Site&Soil'!$F$174*CD82) ->  | CG82: 0 | CI82: 0 | CJ82: 0 | CW82: ='Site&Soil'!$G$173*EXP('Site&Soil'!$G$174*CV82) ->  | CY82: 0 | DA82: 0 | DB82: 0 | DO82: ='Site&Soil'!$H$173*EXP('Site&Soil'!$H$174*DN82) ->  | DQ82: 0 | DS82: 0 | DT82: 0
B83: 75 | C83: Mar | H83: 6.118568836 | I83: ='Site&Soil'!$F$173*EXP('Site&Soil'!$F$174*H83) -> 0 | J83: 0.6946875 | K83: 0.2096113872 | L83: 0.001529028545 | M83: 0 | N83: 0 | O83: 22495.21223 | P83: 0.9199028201 | Q83: 0.003439582162 | R83: 0.0004868721335 | S83: 0.004250414795 | T83: 6.12281925 | U83: 0.154789748 | V83: 0.001361370438 | W83: -0.00195968754 | Z83: 5.226128304 | AA83: ='Site&Soil'!$G$173*EXP('Site&Soil'!$G$174*Z83) -> 0 | AB83: 0.790875 | AC83: 0.3678794412 | AD83: 0.02173999502 | AE83: 0 | AF83: 0 | AG83: 0.1006533299 | AH83: 4.116043944e-06 | AI83: 2.188202891e-07 | AJ83: 2.304673378e-08 | AK83: 0.0006158595316 | AL83: 5.226744164 | AM83: 0.1793262907 | AN83: 0.000351636256 | AO83: 0.001276730434 | AR83: 5.257448619 | AS83: ='Site&Soil'!$H$173*EXP('Site&Soil'!$H$174*AR83) -> 0 | AT83: 0.72675 | AU83: 0.6003730412 | AV83: 0.0329974945 | AW83: 0 | AX83: 0 | AY83: 1.181494085 | AZ83: 4.831515834e-05 | BA83: 3.898634456e-06 | BB83: 4.121663353e-07 | BC83: 4.829053808e-06 | BD83: 5.257453448 | BE83: 0.4051292931 | BF83: 0.001391452152 | BG83: -0.001430775226 | CE83: ='Site&Soil'!$F$173*EXP('Site&Soil'!$F$174*CD83) ->  | CG83: 0 | CI83: 0 | CJ83: 0 | CW83: ='Site&Soil'!$G$173*EXP('Site&Soil'!$G$174*CV83) ->  | CY83: 0 | DA83: 0 | DB83: 0 | DO83: ='Site&Soil'!$H$173*EXP('Site&Soil'!$H$174*DN83) ->  | DQ83: 0 | DS83: 0 | DT83: 0
B84: 76 | C84: Apr | H84: 6.120859563 | I84: ='Site&Soil'!$F$173*EXP('Site&Soil'!$F$174*H84) -> 0 | J84: 0.6946875 | K84: 0.3678794412 | L84: 0.00266879941 | M84: 0 | N84: 0 | O84: 22411.10102 | P84: 0.916463238 | Q84: 0.005981073318 | R84: 0.0008479339385 | S84: 0.00738913451 | T84: 6.128248697 | U84: 0.158561517 | V84: 0.002478289333 | W84: -0.003567488018 | Z84: 5.228020894 | AA84: ='Site&Soil'!$G$173*EXP('Site&Soil'!$G$174*Z84) -> 0 | AB84: 0.790875 | AC84: 0.527292424 | AD84: 0.03102435163 | AE84: 0 | AF84: 0 | AG84: 0.0953023203 | AH84: 3.897223655e-06 | AI84: 2.956692696e-07 | AJ84: 3.114754554e-08 | AK84: 0.001072481062 | AL84: 5.229093375 | AM84: 0.1811842233 | AN84: 0.0005119944882 | AO84: 0.002486227083 | AR84: 5.256022673 | AS84: ='Site&Soil'!$H$173*EXP('Site&Soil'!$H$174*AR84) -> 0 | AT84: 0.72675 | AU84: 0.7214222904 | AV84: 0.03978171267 | AW84: 0 | AX84: 0 | AY84: 1.086157265 | AZ84: 4.441652388e-05 | BA84: 4.320919623e-06 | BB84: 4.567295884e-07 | BC84: 5.35994163e-06 | BD84: 5.256028032 | BE84: 0.4040933726 | BF84: 0.001662261389 | BG84: -0.001582754593 | CE84: ='Site&Soil'!$F$173*EXP('Site&Soil'!$F$174*CD84) ->  | CG84: 0 | CI84: 0 | CJ84: 0 | CW84: ='Site&Soil'!$G$173*EXP('Site&Soil'!$G$174*CV84) ->  | CY84: 0 | DA84: 0 | DB84: 0 | DO84: ='Site&Soil'!$H$173*EXP('Site&Soil'!$H$174*DN84) ->  | DQ84: 0 | DS84: 0 | DT84: 0
B85: 77 | C85: May | H85: 6.124681209 | I85: ='Site&Soil'!$F$173*EXP('Site&Soil'!$F$174*H85) -> 0 | J85: 0.6946875 | K85: =K73 -> 0.5697828247 | L85: 0.004095724804 | M85: 0 | N85: 0 | O85: 22264.84045 | P85: 0.9104821646 | Q85: 0.00911906593 | R85: 0.001296172244 | S85: 0.01126102555 | T85: 6.135942235 | U85: 0.1639061213 | V85: 0.004038748057 | W85: -0.005813762385 | Z85: 5.231579603 | AA85: ='Site&Soil'!$G$173*EXP('Site&Soil'!$G$174*Z85) -> 0 | AB85: 0.790875 | AC85: =AC73 -> 0.6976763261 | AD85: 0.04071245158 | AE85: 0 | AF85: 0 | AG85: 0.08807205334 | AH85: 3.601554386e-06 | AI85: 3.585629207e-07 | AJ85: 3.778890544e-08 | AK85: 0.001639314706 | AL85: 5.233218917 | AM85: 0.1844470112 | AN85: 0.0006962168436 | AO85: 0.004226371061 | AR85: 5.254445278 | AS85: ='Site&Soil'!$H$173*EXP('Site&Soil'!$H$174*AR85) -> 0 | AT85: 0.72675 | AU85: =AU73 -> 0.8322075007 | AV85: 0.04605873109 | AW85: 0 | AX85: 0 | AY85: 0.9804939255 | AZ85: 4.009560426e-05 | BA85: 4.516030605e-06 | BB85: 4.772598408e-07 | BC85: 5.609301231e-06 | BD85: 5.254450887 | BE85: 0.4029471822 | BF85: 0.001905156409 | BG85: -0.001663487534 | CE85: ='Site&Soil'!$F$173*EXP('Site&Soil'!$F$174*CD85) ->  | CG85: =CG73 -> 0 | CI85: 0 | CJ85: 0 | CW85: ='Site&Soil'!$G$173*EXP('Site&Soil'!$G$174*CV85) ->  | CY85: =CY73 -> 0 | DA85: 0 | DB85: 0 | DO85: ='Site&Soil'!$H$173*EXP('Site&Soil'!$H$174*DN85) ->  | DQ85: =DQ73 -> 0 | DS85: 0 | DT85: 0
B86: 78 | C86: Jun | H86: 6.130128473 | I86: ='Site&Soil'!$F$173*EXP('Site&Soil'!$F$174*H86) -> 0 | J86: 0.6946875 | K86: 0.7788007831 | L86: 0.005525343925 | M86: 0 | N86: 0 | O86: 22041.84372 | P86: 0.9013630987 | Q86: 0.01217887673 | R86: 0.001737567319 | S86: 0.01503022497 | T86: 6.145158697 | U86: 0.1703086827 | V86: 0.005858977992 | W86: -0.008433976417 | Z86: 5.237445288 | AA86: ='Site&Soil'!$G$173*EXP('Site&Soil'!$G$174*Z86) -> 0 | AB86: 0.790875 | AC86: 0.852143789 | AD86: 0.04905558534 | AE86: 0 | AF86: 0 | AG86: 0.07930379128 | AH86: 3.242991465e-06 | AI86: 3.890293901e-07 | AJ86: 4.102827551e-08 | AK86: 0.002197458915 | AL86: 5.239642747 | AM86: 0.1895274577 | AN86: 0.0008868042529 | AO86: 0.00628692744 | AR86: 5.2527874 | AS86: ='Site&Soil'!$H$173*EXP('Site&Soil'!$H$174*AR86) -> 0 | AT86: 0.72675 | AU86: 0.9216104473 | AV86: 0.05120295969 | AW86: 0 | AX86: 0 | AY86: 0.8700593615 | AZ86: 3.557957366e-05 | BA86: 4.454961441e-06 | BB86: 4.707095404e-07 | BC86: 5.538741213e-06 | BD86: 5.252792938 | BE86: 0.401742268 | BF86: 0.002095500914 | BG86: -0.0016631533 | CE86: ='Site&Soil'!$F$173*EXP('Site&Soil'!$F$174*CD86) ->  | CG86: 0 | CI86: 0 | CJ86: 0 | CW86: ='Site&Soil'!$G$173*EXP('Site&Soil'!$G$174*CV86) ->  | CY86: 0 | DA86: 0 | DB86: 0 | DO86: ='Site&Soil'!$H$173*EXP('Site&Soil'!$H$174*DN86) ->  | DQ86: 0 | DS86: 0 | DT86: 0
B87: 79 | C87: Jul | H87: 6.136724721 | I87: ='Site&Soil'!$F$173*EXP('Site&Soil'!$F$174*H87) -> 0 | J87: 0.6946875 | K87: 0.9394130628 | L87: 0.006559895576 | M87: 0 | N87: 0 | O87: 21744.02268 | P87: 0.889184222 | Q87: 0.01426385182 | R87: 0.002044346853 | S87: 0.01758993067 | T87: 6.154314652 | U87: 0.1766692096 | V87: 0.007487418579 | W87: -0.01077811042 | Z87: 5.245929675 | AA87: ='Site&Soil'!$G$173*EXP('Site&Soil'!$G$174*Z87) -> 0 | AB87: 0.790875 | AC87: 0.9607894392 | AD87: 0.05423408863 | AE87: 0 | AF87: 0 | AG87: 0.0697905052 | AH87: 2.853962075e-06 | AI87: 3.785024445e-07 | AJ87: 3.995886465e-08 | AK87: 0.002585345847 | AL87: 5.248515021 | AM87: 0.1965443168 | AN87: 0.001058287659 | AO87: 0.008129136615 | AR87: 5.251129785 | AS87: ='Site&Soil'!$H$173*EXP('Site&Soil'!$H$174*AR87) -> 0 | AT87: 0.72675 | AU87: 0.9797986739 | AV87: 0.05464514148 | AW87: 0 | AX87: 0 | AY87: 0.7611181767 | AZ87: 3.112461222e-05 | BA87: 4.159141045e-06 | BB87: 4.393635962e-07 | BC87: 5.17335578e-06 | BD87: 5.251134958 | BE87: 0.400537331 | BF87: 0.002212660614 | BG87: -0.001588404478 | CE87: ='Site&Soil'!$F$173*EXP('Site&Soil'!$F$174*CD87) ->  | CG87: 0 | CI87: 0 | CJ87: 0 | CW87: ='Site&Soil'!$G$173*EXP('Site&Soil'!$G$174*CV87) ->  | CY87: 0 | DA87: 0 | DB87: 0 | DO87: ='Site&Soil'!$H$173*EXP('Site&Soil'!$H$174*DN87) ->  | DQ87: 0 | DS87: 0 | DT87: 0
B88: 80 | C88: Aug | H88: 6.143536541 | I88: ='Site&Soil'!$F$173*EXP('Site&Soil'!$F$174*H88) -> 0 | J88: 0.6946875 | K88: 1 | L88: 0.006869379199 | M88: 0 | N88: 0 | O88: 21395.21586 | P88: 0.8749203702 | Q88: 0.01469718508 | R88: 0.00211651954 | S88: 0.01810981994 | T88: 6.161646361 | U88: 0.1817624566 | V88: 0.008339702242 | W88: -0.01200496949 | Z88: 5.256644157 | AA88: ='Site&Soil'!$G$173*EXP('Site&Soil'!$G$174*Z88) -> 0 | AB88: 0.790875 | AC88: 1 | AD88: 0.05506414095 | AE88: 0 | AF88: 0 | AG88: 0.06053464401 | AH88: 2.47545963e-06 | AI88: 3.33328817e-07 | AJ88: 3.523622452e-08 | AK88: 0.002676551456 | AL88: 5.259320709 | AM88: 0.2050902654 | AN88: 0.001178326801 | AO88: 0.009055002929 | AR88: 5.249546554 | AS88: ='Site&Soil'!$H$173*EXP('Site&Soil'!$H$174*AR88) -> 0 | AT88: 0.72675 | AU88: 1 | AV88: 0.05597664937 | AW88: 0 | AX88: 0 | AY88: 0.6594109546 | AZ88: 2.696547117e-05 | BA88: 3.691161579e-06 | BB88: 3.898514239e-07 | BC88: 4.59105109e-06 | BD88: 5.249551145 | BE88: 0.3993862946 | BF88: 0.002243594168 | BG88: -0.001465796172 | CE88: ='Site&Soil'!$F$173*EXP('Site&Soil'!$F$174*CD88) ->  | CG88: 0 | CI88: 0 | CJ88: 0 | CW88: ='Site&Soil'!$G$173*EXP('Site&Soil'!$G$174*CV88) ->  | CY88: 0 | DA88: 0 | DB88: 0 | DO88: ='Site&Soil'!$H$173*EXP('Site&Soil'!$H$174*DN88) ->  | DQ88: 0 | DS88: 0 | DT88: 0
B89: 81 | C89: Sep | H89: 6.149641392 | I89: ='Site&Soil'!$F$173*EXP('Site&Soil'!$F$174*H89) -> 0 | J89: 0.6946875 | K89: 0.9394130628 | L89: 0.006358960469 | M89: 0 | N89: 0 | O89: 21035.81236 | P89: 0.8602231851 | Q89: 0.01337658992 | R89: 0.00193467614 | S89: 0.01647059114 | T89: 6.166111983 | U89: 0.1848646681 | V89: 0.008050493307 | W89: -0.01158865433 | Z89: 5.268375712 | AA89: ='Site&Soil'!$G$173*EXP('Site&Soil'!$G$174*Z89) -> 0 | AB89: 0.790875 | AC89: 0.9607894392 | AD89: 0.05148695855 | AE89: 0 | AF89: 0 | AG89: 0.05238345421 | AH89: 2.142130813e-06 | AI89: 2.697064736e-07 | AJ89: 2.855286813e-08 | AK89: 0.002446552607 | AL89: 5.270822264 | AM89: 0.2141865581 | AN89: 0.001214067118 | AO89: 0.008644129842 | AR89: 5.248085349 | AS89: ='Site&Soil'!$H$173*EXP('Site&Soil'!$H$174*AR89) -> 0 | AT89: 0.72675 | AU89: 0.9797986739 | AV89: 0.05503173337 | AW89: 0 | AX89: 0 | AY89: 0.5691476558 | AZ89: 2.327430959e-05 | BA89: 3.132118204e-06 | BB89: 3.30747536e-07 | BC89: 3.893943635e-06 | BD89: 5.248089243 | BE89: 0.3983238572 | BF89: 0.00218505518 | BG89: -0.001336068885 | CE89: ='Site&Soil'!$F$173*EXP('Site&Soil'!$F$174*CD89) ->  | CG89: 0 | CI89: 0 | CJ89: 0 | CW89: ='Site&Soil'!$G$173*EXP('Site&Soil'!$G$174*CV89) ->  | CY89: 0 | DA89: 0 | DB89: 0 | DO89: ='Site&Soil'!$H$173*EXP('Site&Soil'!$H$174*DN89) ->  | DQ89: 0 | DS89: 0 | DT89: 0
B90: 82 | C90: Oct | H90: 6.154523329 | I90: ='Site&Soil'!$F$173*EXP('Site&Soil'!$F$174*H90) -> 0 | J90: 0.6946875 | K90: 0.7788007831 | L90: 0.005210082001 | M90: 0 | N90: 0 | O90: 20708.70255 | P90: 0.8468465952 | Q90: 0.01078940384 | R90: 0.001565931208 | S90: 0.01327715359 | T90: 6.167800482 | U90: 0.1860376475 | V90: 0.006742604727 | W90: -0.009705953723 | X90: =-'Profit Calculator'!L$29*'Quantity of Lime to Apply'!H$9 -> -0.04009124051 | Z90: 5.279466394 | AA90: ='Site&Soil'!$G$173*EXP('Site&Soil'!$G$174*Z90) -> 0 | AB90: 0.790875 | AC90: 0.852143789 | AD90: 0.04450665168 | AE90: 0 | AF90: 0 | AG90: 0.04578807889 | AH90: 1.87242434e-06 | AI90: 2.037874078e-07 | AJ90: 2.160517353e-08 | AK90: 0.001980228721 | AL90: 5.281446623 | AM90: 0.2225890977 | AN90: 0.001146735862 | AO90: 0.007075541476 | AP90: =-'Profit Calculator'!$L$29*'Quantity of Lime to Apply'!$H$19 -> -0.04009124051 | AR90: 5.246753174 | AS90: ='Site&Soil'!$H$173*EXP('Site&Soil'!$H$174*AR90) -> 0 | AT90: 0.72675 | AU90: 0.9216104473 | AV90: 0.0519234329 | AW90: 0 | AX90: 0 | AY90: 0.4925551482 | AZ90: 2.014219139e-05 | BA90: 2.557515419e-06 | BB90: 2.70026388e-07 | BC90: 3.177288207e-06 | BD90: 5.246756351 | BE90: 0.3973551782 | BF90: 0.002044008123 | BG90: -0.001234636754 | BH90: 0.02 | BJ90: =BJ78+1 -> 7 | BK90: =AVERAGE(H85:H90) -> 6.139872611 | BL90: =AVERAGE(Z85:Z90) -> 5.253240138 | BM90: =AVERAGE(AR85:AR90) -> 5.250457923 | CE90: ='Site&Soil'!$F$173*EXP('Site&Soil'!$F$174*CD90) ->  | CG90: 0 | CI90: 0 | CJ90: 0 | CW90: ='Site&Soil'!$G$173*EXP('Site&Soil'!$G$174*CV90) ->  | CY90: 0 | DA90: 0 | DB90: 0 | DO90: ='Site&Soil'!$H$173*EXP('Site&Soil'!$H$174*DN90) ->  | DQ90: 0 | DS90: 0 | DT90: 0 | EF90: =EF78+1 -> 7 | EG90: =AVERAGE(CD85:CD90) ->  | EH90: =AVERAGE(CV85:CV90) ->  | EI90: =AVERAGE(DN85:DN90) -> 
B91: 83 | C91: Nov | H91: 6.118003288 | I91: ='Site&Soil'!$F$173*EXP('Site&Soil'!$F$174*H91) -> 0 | J91: 0.6946875 | K91: 0.5697828247 | L91: 0.004161981287 | M91: 0 | N91: 0 | O91: 20444.85954 | P91: 0.8360571913 | Q91: 0.008509112283 | R91: 0.001204002956 | S91: 0.01051567694 | T91: 6.128518965 | U91: 0.1587492684 | V91: 0.003845386979 | W91: -0.005535419853 | Z91: 5.248430924 | AA91: ='Site&Soil'!$G$173*EXP('Site&Soil'!$G$174*Z91) -> 0 | AB91: 0.790875 | AC91: 0.6976763261 | AD91: 0.03915460168 | AE91: 0 | AF91: 0 | AG91: 0.04080468185 | AH91: 1.668636932e-06 | AI91: 1.597691065e-07 | AJ91: 1.687211818e-08 | AK91: 0.001522548889 | AL91: 5.249953473 | AM91: 0.1976819526 | AN91: 0.0007754869274 | AO91: 0.003881650136 | AR91: 5.265521714 | AS91: ='Site&Soil'!$H$173*EXP('Site&Soil'!$H$174*AR91) -> 0 | AT91: 0.72675 | AU91: 0.8322075007 | AV91: 0.04489225551 | AW91: 0 | AX91: 0 | AY91: 0.4300139201 | AZ91: 1.758467597e-05 | BA91: 1.930429477e-06 | BB91: 2.04293547e-07 | BC91: 2.398359888e-06 | BD91: 5.265524113 | BE91: 0.410994649 | BF91: 0.001993388305 | BG91: -0.00167581889 | CE91: ='Site&Soil'!$F$173*EXP('Site&Soil'!$F$174*CD91) ->  | CG91: 0 | CI91: 0 | CJ91: 0 | CW91: ='Site&Soil'!$G$173*EXP('Site&Soil'!$G$174*CV91) ->  | CY91: 0 | DA91: 0 | DB91: 0 | DO91: ='Site&Soil'!$H$173*EXP('Site&Soil'!$H$174*DN91) ->  | DQ91: 0 | DS91: 0 | DT91: 0
B92: 84 | C92: Dec | H92: 6.122983545 | I92: ='Site&Soil'!$F$173*EXP('Site&Soil'!$F$174*H92) -> 0 | J92: 0.6946875 | K92: 0.3678794412 | L92: 0.002655211553 | M92: 0 | N92: 0 | O92: 20236.77856 | P92: 0.827548079 | Q92: 0.005373292822 | R92: 0.0007628695301 | S92: 0.0066366867 | T92: 6.129620232 | U92: 0.1595143047 | V92: 0.00250106734 | W92: -0.003600276873 | Z92: 5.253835123 | AA92: ='Site&Soil'!$G$173*EXP('Site&Soil'!$G$174*Z92) -> 0 | AB92: 0.790875 | AC92: 0.527292424 | AD92: 0.02922439397 | AE92: 0 | AF92: 0 | AG92: 0.03689770399 | AH92: 1.508867825e-06 | AI92: 1.078313038e-07 | AJ92: 1.139488883e-08 | AK92: 0.0009647111952 | AL92: 5.254799834 | AM92: 0.2015148186 | AN92: 0.0006041688826 | AO92: 0.002398480743 | AR92: 5.263848294 | AS92: ='Site&Soil'!$H$173*EXP('Site&Soil'!$H$174*AR92) -> 0 | AT92: 0.72675 | AU92: 0.7214222904 | AV92: 0.03906722544 | AW92: 0 | AX92: 0 | AY92: 0.3828073893 | AZ92: 1.565424649e-05 | BA92: 1.495522258e-06 | BB92: 1.582346535e-07 | BC92: 1.855772265e-06 | BD92: 5.26385015 | BE92: 0.4097780963 | BF92: 0.001716281207 | BG92: -0.001530254316 | CE92: ='Site&Soil'!$F$173*EXP('Site&Soil'!$F$174*CD92) ->  | CG92: 0 | CI92: 0 | CJ92: 0 | CW92: ='Site&Soil'!$G$173*EXP('Site&Soil'!$G$174*CV92) ->  | CY92: 0 | DA92: 0 | DB92: 0 | DO92: ='Site&Soil'!$H$173*EXP('Site&Soil'!$H$174*DN92) ->  | DQ92: 0 | DS92: 0 | DT92: 0
A93: =A81+1 -> 8 | B93: 85 | C93: Jan | D93: =OFFSET(Apply_Lime!$H$16,$A93,0) -> 0 | E93: =OFFSET(Apply_Lime!$I$16,$A93,0)*G93 -> 0 | F93: =OFFSET(Apply_Lime!$I$16,$A93,0)*(1-G93) -> 0 | G93: ='Profit Calculator'!M28 -> 0 | H93: 6.126019955 | I93: ='Site&Soil'!$F$173*EXP('Site&Soil'!$F$174*H93) -> 0 | J93: 0.6946875 | K93: 0.04677062238 | L93: 0.0003351172846 | M93: 0 | N93: 0 | O93: 20105.38059 | P93: 0.8221747862 | Q93: 0.0006737660549 | R93: 9.585589049e-05 | S93: 0.0008318994719 | T93: 6.126851854 | U93: 0.1575911476 | V93: 0.0003121453154 | W93: -0.000449331988 | Z93: 5.257198315 | AA93: ='Site&Soil'!$G$173*EXP('Site&Soil'!$G$174*Z93) -> 0 | AB93: 0.790875 | AC93: 0.1408584209 | AD93: 0.007746300522 | AE93: 0 | AF93: 0 | AG93: 0.03426080799 | AH93: 1.401036522e-06 | AI93: 2.653945148e-08 | AJ93: 2.805681716e-09 | AK93: 0.0001212323367 | AL93: 5.257319547 | AM93: 0.2035075967 | AN93: 0.0001639392666 | AO93: 0.0001873950356 | AR93: 5.262319895 | AS93: ='Site&Soil'!$H$173*EXP('Site&Soil'!$H$174*AR93) -> 0 | AT93: 0.72675 | AU93: 0.3678794412 | AV93: 0.01999244168 | AW93: 0 | AX93: 0 | AY93: 0.3462360365 | AZ93: 1.415872423e-05 | BA93: 6.922103767e-07 | BB93: 7.322562713e-08 | BC93: 8.555767888e-07 | BD93: 5.262320751 | BE93: 0.4086666057 | BF93: 0.0008697519672 | BG93: -0.0009711905065 | BZ93: =OFFSET(Apply_Lime!$O$16,$A93,0) -> 0 | CA93: =OFFSET(Apply_Lime!$P$16,$A93,0)*CA$7 -> 0 | CB93: =OFFSET(Apply_Lime!$P$16,$A93,0)*CB$7 -> 0 | CE93: ='Site&Soil'!$F$173*EXP('Site&Soil'!$F$174*CD93) ->  | CG93: 0 | CI93: 0 | CJ93: 0 | CW93: ='Site&Soil'!$G$173*EXP('Site&Soil'!$G$174*CV93) ->  | CY93: 0 | DA93: 0 | DB93: 0 | DO93: ='Site&Soil'!$H$173*EXP('Site&Soil'!$H$174*DN93) ->  | DQ93: 0 | DS93: 0 | DT93: 0
B94: 86 | C94: Feb | H94: 6.126402522 | I94: ='Site&Soil'!$F$173*EXP('Site&Soil'!$F$174*H94) -> 0 | J94: 0.6946875 | K94: 0.1053992246 | L94: 0.0007545041542 | M94: 0 | N94: 0 | O94: 20088.90438 | P94: 0.8215010202 | Q94: 0.001515716181 | R94: 0.0002156955891 | S94: 0.001871374671 | T94: 6.128273897 | U94: 0.1585790228 | V94: 0.0007101613789 | W94: -0.00102227459 | Z94: 5.257506942 | AA94: ='Site&Soil'!$G$173*EXP('Site&Soil'!$G$174*Z94) -> 0 | AB94: 0.790875 | AC94: 0.2369277587 | AD94: 0.01302018244 | AE94: 0 | AF94: 0 | AG94: 0.03361181488 | AH94: 1.37449707e-06 | AI94: 4.376319618e-08 | AJ94: 4.626709038e-09 | AK94: 0.0002727798016 | AL94: 5.257779722 | AM94: 0.2038715375 | AN94: 0.0002765363752 | AO94: 0.0005482851319 | AR94: 5.26134956 | AS94: ='Site&Soil'!$H$173*EXP('Site&Soil'!$H$174*AR94) -> 0 | AT94: 0.72675 | AU94: 0.4796522688 | AV94: 0.02612539092 | AW94: 0 | AX94: 0 | AY94: 0.3293087927 | AZ94: 1.346651386e-05 | BA94: 8.603320943e-07 | BB94: 9.099931199e-08 | BC94: 1.06495974e-06 | BD94: 5.261350625 | BE94: 0.407961567 | BF94: 0.001129526384 | BG94: -0.001173704862 | CE94: ='Site&Soil'!$F$173*EXP('Site&Soil'!$F$174*CD94) ->  | CG94: 0 | CI94: 0 | CJ94: 0 | CW94: ='Site&Soil'!$G$173*EXP('Site&Soil'!$G$174*CV94) ->  | CY94: 0 | DA94: 0 | DB94: 0 | DO94: ='Site&Soil'!$H$173*EXP('Site&Soil'!$H$174*DN94) ->  | DQ94: 0 | DS94: 0 | DT94: 0
B95: 87 | C95: Mar | H95: 6.127251622 | I95: ='Site&Soil'!$F$173*EXP('Site&Soil'!$F$174*H95) -> 0 | J95: 0.6946875 | K95: 0.2096113872 | L95: 0.001497450393 | M95: 0 | N95: 0 | O95: 20051.83921 | P95: 0.819985304 | Q95: 0.003002663451 | R95: 0.0004275457922 | S95: 0.003706872023 | T95: 6.130958494 | U95: 0.1604439791 | V95: 0.00143779441 | W95: -0.002069699555 | Z95: 5.258328007 | AA95: ='Site&Soil'!$G$173*EXP('Site&Soil'!$G$174*Z95) -> 0 | AB95: 0.790875 | AC95: 0.3678794412 | AD95: 0.02017812683 | AE95: 0 | AF95: 0 | AG95: 0.03254163403 | AH95: 1.330733874e-06 | AI95: 6.566292186e-08 | AJ95: 6.942690969e-09 | AK95: 0.0005406726884 | AL95: 5.25886868 | AM95: 0.204732767 | AN95: 0.0004322764276 | AO95: 0.001271399377 | AR95: 5.260176921 | AS95: ='Site&Soil'!$H$173*EXP('Site&Soil'!$H$174*AR95) -> 0 | AT95: 0.72675 | AU95: 0.6003730412 | AV95: 0.03278966019 | AW95: 0 | AX95: 0 | AY95: 0.3082703171 | AZ95: 1.260618176e-05 | BA95: 1.010807895e-06 | BB95: 1.068997518e-07 | BC95: 1.253320721e-06 | BD95: 5.260178174 | BE95: 0.4071094878 | BF95: 0.001407053402 | BG95: -0.001341282386 | CE95: ='Site&Soil'!$F$173*EXP('Site&Soil'!$F$174*CD95) ->  | CG95: 0 | CI95: 0 | CJ95: 0 | CW95: ='Site&Soil'!$G$173*EXP('Site&Soil'!$G$174*CV95) ->  | CY95: 0 | DA95: 0 | DB95: 0 | DO95: ='Site&Soil'!$H$173*EXP('Site&Soil'!$H$174*DN95) ->  | DQ95: 0 | DS95: 0 | DT95: 0
B96: 88 | C96: Apr | H96: 6.128888795 | I96: ='Site&Soil'!$F$173*EXP('Site&Soil'!$F$174*H96) -> 0 | J96: 0.6946875 | K96: 0.3678794412 | L96: 0.002617780964 | M96: 0 | N96: 0 | O96: 19978.41237 | P96: 0.8169826405 | Q96: 0.00522991076 | R96: 0.0007455182606 | S96: 0.006455265856 | T96: 6.135344061 | U96: 0.1634905772 | V96: 0.002597420752 | W96: -0.003738977241 | Z96: 5.260140079 | AA96: ='Site&Soil'!$G$173*EXP('Site&Soil'!$G$174*Z96) -> 0 | AB96: 0.790875 | AC96: 0.527292424 | AD96: 0.02880078464 | AE96: 0 | AF96: 0 | AG96: 0.03093591945 | AH96: 1.265070952e-06 | AI96: 8.909787538e-08 | AJ96: 9.422657693e-09 | AK96: 0.0009427506696 | AL96: 5.26108283 | AM96: 0.2064838829 | AN96: 0.0006280880342 | AO96: 0.002490068238 | AR96: 5.258836891 | AS96: ='Site&Soil'!$H$173*EXP('Site&Soil'!$H$174*AR96) -> 0 | AT96: 0.72675 | AU96: 0.7214222904 | AV96: 0.03952328792 | AW96: 0 | AX96: 0 | AY96: 0.2835521212 | AZ96: 1.159537387e-05 | BA96: 1.120691213e-06 | BB96: 1.18500778e-07 | BC96: 1.391968479e-06 | BD96: 5.258838283 | BE96: 0.4061357225 | BF96: 0.00168150836 | BG96: -0.001449494772 | CE96: ='Site&Soil'!$F$173*EXP('Site&Soil'!$F$174*CD96) ->  | CG96: 0 | CI96: 0 | CJ96: 0 | CW96: ='Site&Soil'!$G$173*EXP('Site&Soil'!$G$174*CV96) ->  | CY96: 0 | DA96: 0 | DB96: 0 | DO96: ='Site&Soil'!$H$173*EXP('Site&Soil'!$H$174*DN96) ->  | DQ96: 0 | DS96: 0 | DT96: 0
B97: 89 | C97: May | H97: 6.131605084 | I97: ='Site&Soil'!$F$173*EXP('Site&Soil'!$F$174*H97) -> 0 | J97: 0.6946875 | K97: 0.5697828247 | L97: 0.004028095384 | M97: 0 | N97: 0 | O97: 19850.52065 | P97: 0.8117527298 | Q97: 0.007995979062 | R97: 0.001141952951 | S97: 0.00986634438 | T97: 6.141471428 | U97: 0.1677471826 | V97: 0.004186354643 | W97: -0.006026241502 | Z97: 5.263572898 | AA97: ='Site&Soil'!$G$173*EXP('Site&Soil'!$G$174*Z97) -> 0 | AB97: 0.790875 | AC97: 0.6976763261 | AD97: 0.03780541432 | AE97: 0 | AF97: 0 | AG97: 0.02875712886 | AH97: 1.175973077e-06 | AI97: 1.087175171e-07 | AJ97: 1.150252373e-08 | AK97: 0.001444033717 | AL97: 5.265016932 | AM97: 0.2095952658 | AN97: 0.0008512407133 | AO97: 0.004216992483 | AR97: 5.257388789 | AS97: ='Site&Soil'!$H$173*EXP('Site&Soil'!$H$174*AR97) -> 0 | AT97: 0.72675 | AU97: 0.8322075007 | AV97: 0.04574583745 | AW97: 0 | AX97: 0 | AY97: 0.2561468496 | AZ97: 1.047468265e-05 | BA97: 1.171765214e-06 | BB97: 1.238789067e-07 | BC97: 1.45770737e-06 | BD97: 5.257390246 | BE97: 0.4050833615 | BF97: 0.001928263042 | BG97: -0.001481970868 | CE97: ='Site&Soil'!$F$173*EXP('Site&Soil'!$F$174*CD97) ->  | CG97: 0 | CI97: 0 | CJ97: 0 | CW97: ='Site&Soil'!$G$173*EXP('Site&Soil'!$G$174*CV97) ->  | CY97: 0 | DA97: 0 | DB97: 0 | DO97: ='Site&Soil'!$H$173*EXP('Site&Soil'!$H$174*DN97) ->  | DQ97: 0 | DS97: 0 | DT97: 0
B98: 90 | C98: Jun | H98: 6.135445186 | I98: ='Site&Soil'!$F$173*EXP('Site&Soil'!$F$174*H98) -> 0 | J98: 0.6946875 | K98: 0.7788007831 | L98: 0.00545511739 | M98: 0 | N98: 0 | O98: 19654.98778 | P98: 0.8037567507 | Q98: 0.01072202656 | R98: 0.001535353079 | S98: 0.01322418135 | T98: 6.148669368 | U98: 0.1727475014 | V98: 0.005991113149 | W98: -0.008624184469 | Z98: 5.269233924 | AA98: ='Site&Soil'!$G$173*EXP('Site&Soil'!$G$174*Z98) -> 0 | AB98: 0.790875 | AC98: 0.852143789 | AD98: 0.04557415426 | AE98: 0 | AF98: 0 | AG98: 0.02609856149 | AH98: 1.06725556e-06 | AI98: 1.189419867e-07 | AJ98: 1.259334666e-08 | AK98: 0.001941469168 | AL98: 5.271175393 | AM98: 0.2144658391 | AN98: 0.001079062009 | AO98: 0.006210907084 | AR98: 5.255908275 | AS98: ='Site&Soil'!$H$173*EXP('Site&Soil'!$H$174*AR98) -> 0 | AT98: 0.72675 | AU98: 0.9216104473 | AV98: 0.05083424311 | AW98: 0 | AX98: 0 | AY98: 0.2274926194 | AZ98: 9.30291744e-06 | BA98: 1.156441512e-06 | BB98: 1.222363751e-07 | BC98: 1.44038319e-06 | BD98: 5.255909716 | BE98: 0.404007386 | BF98: 0.002122493701 | BG98: -0.001435750522 | CE98: ='Site&Soil'!$F$173*EXP('Site&Soil'!$F$174*CD98) ->  | CG98: 0 | CI98: 0 | CJ98: 0 | CW98: ='Site&Soil'!$G$173*EXP('Site&Soil'!$G$174*CV98) ->  | CY98: 0 | DA98: 0 | DB98: 0 | DO98: ='Site&Soil'!$H$173*EXP('Site&Soil'!$H$174*DN98) ->  | DQ98: 0 | DS98: 0 | DT98: 0
B99: 91 | C99: Jul | H99: 6.140045183 | I99: ='Site&Soil'!$F$173*EXP('Site&Soil'!$F$174*H99) -> 0 | J99: 0.6946875 | K99: 0.9394130628 | L99: 0.006507669556 | M99: 0 | N99: 0 | O99: 19392.7924 | P99: 0.7930347241 | Q99: 0.01262018847 | R99: 0.001812967371 | S99: 0.01555695345 | T99: 6.155602137 | U99: 0.1775636094 | V99: 0.007547666391 | W99: -0.01086483691 | Z99: 5.2773863 | AA99: ='Site&Soil'!$G$173*EXP('Site&Soil'!$G$174*Z99) -> 0 | AB99: 0.790875 | AC99: 0.9607894392 | AD99: 0.05042349192 | AE99: 0 | AF99: 0 | AG99: 0.02318996595 | AH99: 9.483135729e-07 | AI99: 1.169319061e-07 | AJ99: 1.239354738e-08 | AK99: 0.002292488585 | AL99: 5.279678789 | AM99: 0.2211909622 | AN99: 0.00127960046 | AO99: 0.007925482449 | AR99: 5.254473965 | AS99: ='Site&Soil'!$H$173*EXP('Site&Soil'!$H$174*AR99) -> 0 | AT99: 0.72675 | AU99: 0.9797986739 | AV99: 0.05422359893 | AW99: 0 | AX99: 0 | AY99: 0.1992131135 | AZ99: 8.146475928e-06 | BA99: 1.080205197e-06 | BB99: 1.141578603e-07 | BC99: 1.346323885e-06 | BD99: 5.254475312 | BE99: 0.4029649328 | BF99: 0.002243258971 | BG99: -0.001325983503 | CE99: ='Site&Soil'!$F$173*EXP('Site&Soil'!$F$174*CD99) ->  | CG99: 0 | CI99: 0 | CJ99: 0 | CW99: ='Site&Soil'!$G$173*EXP('Site&Soil'!$G$174*CV99) ->  | CY99: 0 | DA99: 0 | DB99: 0 | DO99: ='Site&Soil'!$H$173*EXP('Site&Soil'!$H$174*DN99) ->  | DQ99: 0 | DS99: 0 | DT99: 0
B100: 92 | C100: Aug | H100: 6.1447373 | I100: ='Site&Soil'!$F$173*EXP('Site&Soil'!$F$174*H100) -> 0 | J100: 0.6946875 | K100: 1 | L100: 0.006849539523 | M100: 0 | N100: 0 | O100: 19084.17957 | P100: 0.7804145357 | Q100: 0.01307178422 | R100: 0.001884040739 | S100: 0.01610471396 | T100: 6.160842014 | U100: 0.1812036864 | V100: 0.008298680463 | W100: -0.01194591879 | Z100: 5.287604271 | AA100: ='Site&Soil'!$G$173*EXP('Site&Soil'!$G$174*Z100) -> 0 | AB100: 0.790875 | AC100: 1 | AD100: 0.05125360566 | AE100: 0 | AF100: 0 | AG100: 0.02033052473 | AH100: 8.313816668e-07 | AI100: 1.042012698e-07 | AJ100: 1.105909229e-08 | AK100: 0.002382340928 | AL100: 5.289986612 | AM100: 0.229343162 | AN100: 0.001414074883 | AO100: 0.00870504894 | AR100: 5.253149328 | AS100: ='Site&Soil'!$H$173*EXP('Site&Soil'!$H$174*AR100) -> 0 | AT100: 0.72675 | AU100: 1 | AV100: 0.05551159252 | AW100: 0 | AX100: 0 | AY100: 0.1727978828 | AZ100: 7.066270731e-06 | BA100: 9.592285661e-07 | BB100: 1.013562535e-07 | BC100: 1.195640048e-06 | BD100: 5.253150524 | BE100: 0.4020021432 | BF100: 0.002277083164 | BG100: -0.001187489895 | CE100: ='Site&Soil'!$F$173*EXP('Site&Soil'!$F$174*CD100) ->  | CG100: 0 | CI100: 0 | CJ100: 0 | CW100: ='Site&Soil'!$G$173*EXP('Site&Soil'!$G$174*CV100) ->  | CY100: 0 | DA100: 0 | DB100: 0 | DO100: ='Site&Soil'!$H$173*EXP('Site&Soil'!$H$174*DN100) ->  | DQ100: 0 | DS100: 0 | DT100: 0
B101: 93 | C101: Sep | H101: 6.148896095 | I101: ='Site&Soil'!$F$173*EXP('Site&Soil'!$F$174*H101) -> 0 | J101: 0.6946875 | K101: 0.9394130628 | L101: 0.006370392749 | M101: 0 | N101: 0 | O101: 18764.52345 | P101: 0.7673427514 | Q101: 0.01195373842 | R101: 0.001727972224 | S101: 0.01471995133 | T101: 6.163616046 | U101: 0.1831307722 | V101: 0.007929283904 | W101: -0.01141417386 | Z101: 5.298691661 | AA101: ='Site&Soil'!$G$173*EXP('Site&Soil'!$G$174*Z101) -> 0 | AB101: 0.790875 | AC101: 0.9607894392 | AD101: 0.04799499603 | AE101: 0 | AF101: 0 | AG101: 0.01778239723 | AH101: 7.271803971e-07 | AI101: 8.534660844e-08 | AJ101: 9.071541713e-09 | AK101: 0.002184983087 | AL101: 5.300876644 | AM101: 0.2379558161 | AN101: 0.001445443729 | AO101: 0.008198312217 | AR101: 5.251963034 | AS101: ='Site&Soil'!$H$173*EXP('Site&Soil'!$H$174*AR101) -> 0 | AT101: 0.72675 | AU101: 0.9797986739 | AV101: 0.05453980449 | AW101: 0 | AX101: 0 | AY101: 0.1493410027 | AZ101: 6.107042165e-06 | BA101: 8.14502909e-07 | BB101: 8.605132735e-08 | BC101: 1.014823699e-06 | BD101: 5.251964049 | BE101: 0.4011398724 | BF101: 0.002220223668 | BG101: -0.001066088668 | CE101: ='Site&Soil'!$F$173*EXP('Site&Soil'!$F$174*CD101) ->  | CG101: 0 | CI101: 0 | CJ101: 0 | CW101: ='Site&Soil'!$G$173*EXP('Site&Soil'!$G$174*CV101) ->  | CY101: 0 | DA101: 0 | DB101: 0 | DO101: ='Site&Soil'!$H$173*EXP('Site&Soil'!$H$174*DN101) ->  | DQ101: 0 | DS101: 0 | DT101: 0
B102: 94 | C102: Oct | H102: 6.152201872 | I102: ='Site&Soil'!$F$173*EXP('Site&Soil'!$F$174*H102) -> 0 | J102: 0.6946875 | K102: 0.7788007831 | L102: 0.005239326249 | M102: 0 | N102: 0 | O102: 18472.20792 | P102: 0.755389013 | Q102: 0.009678192385 | R102: 0.001402325584 | S102: 0.01191307862 | T102: 6.164114951 | U102: 0.1834773551 | V102: 0.006593618284 | W102: -0.009491488309 | X102: =-'Profit Calculator'!M$29*'Quantity of Lime to Apply'!H$9 -> -0.05036303797 | Z102: 5.309074957 | AA102: ='Site&Soil'!$G$173*EXP('Site&Soil'!$G$174*Z102) -> 0 | AB102: 0.790875 | AC102: 0.852143789 | AD102: 0.04155571884 | AE102: 0 | AF102: 0 | AG102: 0.01569533974 | AH102: 6.418337886e-07 | AI102: 6.522311253e-08 | AJ102: 6.94253102e-09 | AK102: 0.001773205456 | AL102: 5.310848162 | AM102: 0.2458420401 | AN102: 0.001355243073 | AO102: 0.006623518522 | AP102: =-'Profit Calculator'!$M$29*'Quantity of Lime to Apply'!$H$19 -> -0.05036303797 | AR102: 5.25089796 | AS102: ='Site&Soil'!$H$173*EXP('Site&Soil'!$H$174*AR102) -> 0 | AT102: 0.72675 | AU102: 0.9216104473 | AV102: 0.05142747903 | AW102: 0 | AX102: 0 | AY102: 0.1294232295 | AZ102: 5.292539256e-06 | BA102: 6.655910419e-07 | BB102: 7.030974459e-08 | BC102: 8.286533585e-07 | BD102: 5.250898789 | BE102: 0.4003656947 | BF102: 0.002079232409 | BG102: -0.0009962013566 | BH102: 0.02 | BJ102: =BJ90+1 -> 8 | BK102: =AVERAGE(H97:H102) -> 6.14215512 | BL102: =AVERAGE(Z97:Z102) -> 5.284260669 | BM102: =AVERAGE(AR97:AR102) -> 5.253963559 | CE102: ='Site&Soil'!$F$173*EXP('Site&Soil'!$F$174*CD102) ->  | CG102: 0 | CI102: 0 | CJ102: 0 | CW102: ='Site&Soil'!$G$173*EXP('Site&Soil'!$G$174*CV102) ->  | CY102: 0 | DA102: 0 | DB102: 0 | DO102: ='Site&Soil'!$H$173*EXP('Site&Soil'!$H$174*DN102) ->  | DQ102: 0 | DS102: 0 | DT102: 0 | EF102: =EF90+1 -> 8 | EG102: =AVERAGE(CD97:CD102) ->  | EH102: =AVERAGE(CV97:CV102) ->  | EI102: =AVERAGE(DN97:DN102) -> 
B103: 95 | C103: Nov | H103: 6.104260425 | I103: ='Site&Soil'!$F$173*EXP('Site&Soil'!$F$174*H103) -> 0 | J103: 0.6946875 | K103: 0.5697828247 | L103: 0.004301582286 | M103: 0 | N103: 0 | O103: 18235.53837 | P103: 0.7457108206 | Q103: 0.007844166882 | R103: 0.001099777155 | S103: 0.009708523224 | T103: 6.113968948 | U103: 0.1486415536 | V103: 0.003481917989 | W103: -0.005012207631 | Z103: 5.267108643 | AA103: ='Site&Soil'!$G$173*EXP('Site&Soil'!$G$174*Z103) -> 0 | AB103: 0.790875 | AC103: 0.6976763261 | AD103: 0.03749708771 | AE103: 0 | AF103: 0 | AG103: 0.01410038022 | AH103: 5.766106761e-07 | AI103: 5.28723194e-08 | AJ103: 5.596501377e-09 | AK103: 0.001390642555 | AL103: 5.268499285 | AM103: 0.2123493721 | AN103: 0.0008693692057 | AO103: 0.003303364986 | AR103: 5.269902587 | AS103: ='Site&Soil'!$H$173*EXP('Site&Soil'!$H$174*AR103) -> 0 | AT103: 0.72675 | AU103: 0.8322075007 | AV103: 0.04443904741 | AW103: 0 | AX103: 0 | AY103: 0.1131469322 | AZ103: 4.626948214e-06 | BA103: 5.028141885e-07 | BB103: 5.324154426e-08 | BC103: 6.263077339e-07 | BD103: 5.269903214 | BE103: 0.4141771605 | BF103: 0.002029181928 | BG103: -0.001595889539 | CE103: ='Site&Soil'!$F$173*EXP('Site&Soil'!$F$174*CD103) ->  | CG103: 0 | CI103: 0 | CJ103: 0 | CW103: ='Site&Soil'!$G$173*EXP('Site&Soil'!$G$174*CV103) ->  | CY103: 0 | DA103: 0 | DB103: 0 | DO103: ='Site&Soil'!$H$173*EXP('Site&Soil'!$H$174*DN103) ->  | DQ103: 0 | DS103: 0 | DT103: 0
B104: 96 | C104: Dec | H104: 6.10895674 | I104: ='Site&Soil'!$F$173*EXP('Site&Soil'!$F$174*H104) -> 0 | J104: 0.6946875 | K104: 0.3678794412 | L104: 0.002746187941 | M104: 0 | N104: 0 | O104: 18043.71789 | P104: 0.7378666538 | Q104: 0.004955144047 | R104: 0.0006968928689 | S104: 0.006129736289 | T104: 6.115086477 | U104: 0.1494178868 | V104: 0.002265659203 | W104: -0.00326140776 | Z104: 5.27180265 | AA104: ='Site&Soil'!$G$173*EXP('Site&Soil'!$G$174*Z104) -> 0 | AB104: 0.790875 | AC104: 0.527292424 | AD104: 0.02803324077 | AE104: 0 | AF104: 0 | AG104: 0.01280744577 | AH104: 5.237383567e-07 | AI104: 3.590342109e-08 | AJ104: 3.802636482e-09 | AK104: 0.000881207485 | AL104: 5.272683858 | AM104: 0.2156588459 | AN104: 0.0006737560312 | AO104: 0.002012837897 | AR104: 5.268307324 | AS104: ='Site&Soil'!$H$173*EXP('Site&Soil'!$H$174*AR104) -> 0 | AT104: 0.72675 | AU104: 0.7214222904 | AV104: 0.03866583247 | AW104: 0 | AX104: 0 | AY104: 0.100851164 | AZ104: 4.124134025e-06 | BA104: 3.899494211e-07 | BB104: 4.128220247e-08 | BC104: 4.849946406e-07 | BD104: 5.268307809 | BE104: 0.4130177003 | BF104: 0.001747696555 | BG104: -0.001477730339 | CE104: ='Site&Soil'!$F$173*EXP('Site&Soil'!$F$174*CD104) ->  | CG104: 0 | CI104: 0 | CJ104: 0 | CW104: ='Site&Soil'!$G$173*EXP('Site&Soil'!$G$174*CV104) ->  | CY104: 0 | DA104: 0 | DB104: 0 | DO104: ='Site&Soil'!$H$173*EXP('Site&Soil'!$H$174*DN104) ->  | DQ104: 0 | DS104: 0 | DT104: 0
A105: =A93+1 -> 9 | B105: 97 | C105: Jan | D105: =OFFSET(Apply_Lime!$H$16,$A105,0) -> 0 | E105: =OFFSET(Apply_Lime!$I$16,$A105,0)*G105 -> 0 | F105: =OFFSET(Apply_Lime!$I$16,$A105,0)*(1-G105) -> 0 | G105: ='Profit Calculator'!N28 -> 0 | H105: 6.111825069 | I105: ='Site&Soil'!$F$173*EXP('Site&Soil'!$F$174*H105) -> 0 | J105: 0.6946875 | K105: 0.04677062238 | L105: 0.0003467429432 | M105: 0 | N105: 0 | O105: 17922.54529 | P105: 0.7329115097 | Q105: 0.0006214516103 | R105: 8.756848821e-05 | S105: 0.0007685227128 | T105: 6.112593592 | U105: 0.1476861107 | V105: 0.0002830781797 | W105: -0.0004074899573 | Z105: 5.274696695 | AA105: ='Site&Soil'!$G$173*EXP('Site&Soil'!$G$174*Z105) -> 0 | AB105: 0.790875 | AC105: 0.1408584209 | AD105: 0.007438635418 | AE105: 0 | AF105: 0 | AG105: 0.01192946708 | AH105: 4.878349356e-07 | AI105: 8.873895633e-09 | AJ105: 9.402110976e-10 | AK105: 0.0001107335823 | AL105: 5.274807429 | AM105: 0.2173383255 | AN105: 0.0001822747709 | AO105: 0.0001274580797 | AR105: 5.266830079 | AS105: ='Site&Soil'!$H$173*EXP('Site&Soil'!$H$174*AR105) -> 0 | AT105: 0.72675 | AU105: 0.3678794412 | AV105: 0.01978469103 | AW105: 0 | AX105: 0 | AY105: 0.09131537955 | AZ105: 3.734184604e-06 | BA105: 1.806646571e-07 | BB105: 1.912256142e-08 | BC105: 2.235738655e-07 | BD105: 5.266830302 | BE105: 0.4119439222 | BF105: 0.0008858780075 | BG105: -0.0009681503083 | BZ105: =OFFSET(Apply_Lime!$O$16,$A105,0) -> 0 | CA105: =OFFSET(Apply_Lime!$P$16,$A105,0)*CA$7 -> 0 | CB105: =OFFSET(Apply_Lime!$P$16,$A105,0)*CB$7 -> 0 | CE105: ='Site&Soil'!$F$173*EXP('Site&Soil'!$F$174*CD105) ->  | CG105: 0 | CI105: 0 | CJ105: 0 | CW105: ='Site&Soil'!$G$173*EXP('Site&Soil'!$G$174*CV105) ->  | CY105: 0 | DA105: 0 | DB105: 0 | DO105: ='Site&Soil'!$H$173*EXP('Site&Soil'!$H$174*DN105) ->  | DQ105: 0 | DS105: 0 | DT105: 0
B106: 98 | C106: Feb | H106: 6.112186102 | I106: ='Site&Soil'!$F$173*EXP('Site&Soil'!$F$174*H106) -> 0 | J106: 0.6946875 | K106: 0.1053992246 | L106: 0.0007807202762 | M106: 0 | N106: 0 | O106: 17907.34837 | P106: 0.7322900581 | Q106: 0.001398062997 | R106: 0.0001970480418 | S106: 0.001728856435 | T106: 6.113914958 | U106: 0.1486040475 | V106: 0.0006438474976 | W106: -0.0009268160109 | Z106: 5.274934887 | AA106: ='Site&Soil'!$G$173*EXP('Site&Soil'!$G$174*Z106) -> 0 | AB106: 0.790875 | AC106: 0.2369277587 | AD106: 0.01250508897 | AE106: 0 | AF106: 0 | AG106: 0.01171246572 | AH106: 4.7896104e-07 | AI106: 1.464654258e-08 | AJ106: 1.551885088e-09 | AK106: 0.0002491684987 | AL106: 5.275184056 | AM106: 0.21763619 | AN106: 0.0003072777514 | AO106: 0.0004255662983 | AR106: 5.265862152 | AS106: ='Site&Soil'!$H$173*EXP('Site&Soil'!$H$174*AR106) -> 0 | AT106: 0.72675 | AU106: 0.4796522688 | AV106: 0.02585376931 | AW106: 0 | AX106: 0 | AY106: 0.08689742396 | AZ106: 3.553519947e-06 | BA106: 2.246625952e-07 | BB106: 2.377662645e-08 | BC106: 2.785522585e-07 | BD106: 5.265862431 | BE106: 0.4112405214 | BF106: 0.001150495263 | BG106: -0.001160258014 | CE106: ='Site&Soil'!$F$173*EXP('Site&Soil'!$F$174*CD106) ->  | CG106: 0 | CI106: 0 | CJ106: 0 | CW106: ='Site&Soil'!$G$173*EXP('Site&Soil'!$G$174*CV106) ->  | CY106: 0 | DA106: 0 | DB106: 0 | DO106: ='Site&Soil'!$H$173*EXP('Site&Soil'!$H$174*DN106) ->  | DQ106: 0 | DS106: 0 | DT106: 0
B107: 99 | C107: Mar | H107: 6.112988142 | I107: ='Site&Soil'!$F$173*EXP('Site&Soil'!$F$174*H107) -> 0 | J107: 0.6946875 | K107: 0.2096113872 | L107: 0.001549660635 | M107: 0 | N107: 0 | O107: 17873.16028 | P107: 0.7308919951 | Q107: 0.002769733291 | R107: 0.000390585823 | S107: 0.003424773683 | T107: 6.116412916 | U107: 0.1503393474 | V107: 0.001302868093 | W107: -0.001875473639 | Z107: 5.275609622 | AA107: ='Site&Soil'!$G$173*EXP('Site&Soil'!$G$174*Z107) -> 0 | AB107: 0.790875 | AC107: 0.3678794412 | AD107: 0.01938641821 | AE107: 0 | AF107: 0 | AG107: 0.01135430062 | AH107: 4.643144974e-07 | AI107: 2.201192203e-08 | AJ107: 2.332493068e-09 | AK107: 0.0004938903145 | AL107: 5.276103512 | AM107: 0.2183633652 | AN107: 0.000479721087 | AO107: 0.001040805445 | AR107: 5.264702173 | AS107: ='Site&Soil'!$H$173*EXP('Site&Soil'!$H$174*AR107) -> 0 | AT107: 0.72675 | AU107: 0.6003730412 | AV107: 0.03244780509 | AW107: 0 | AX107: 0 | AY107: 0.08140354716 | AZ107: 3.328857352e-06 | BA107: 2.641366432e-07 | BB107: 2.795015817e-08 | BC107: 3.281994883e-07 | BD107: 5.264702501 | BE107: 0.4103975424 | BF107: 0.0014332714 | BG107: -0.001312074734 | CE107: ='Site&Soil'!$F$173*EXP('Site&Soil'!$F$174*CD107) ->  | CG107: 0 | CI107: 0 | CJ107: 0 | CW107: ='Site&Soil'!$G$173*EXP('Site&Soil'!$G$174*CV107) ->  | CY107: 0 | DA107: 0 | DB107: 0 | DO107: ='Site&Soil'!$H$173*EXP('Site&Soil'!$H$174*DN107) ->  | DQ107: 0 | DS107: 0 | DT107: 0
B108: 100 | C108: Apr | H108: 6.114537442 | I108: ='Site&Soil'!$F$173*EXP('Site&Soil'!$F$174*H108) -> 0 | J108: 0.6946875 | K108: 0.3678794412 | L108: 0.002709639747 | M108: 0 | N108: 0 | O108: 17805.42949 | P108: 0.7281222618 | Q108: 0.004824629948 | R108: 0.0006810731498 | S108: 0.005964634167 | T108: 6.120502076 | U108: 0.1531800361 | V108: 0.002351850774 | W108: -0.003385480196 | Z108: 5.277144318 | AA108: ='Site&Soil'!$G$173*EXP('Site&Soil'!$G$174*Z108) -> 0 | AB108: 0.790875 | AC108: 0.527292424 | AD108: 0.02768851533 | AE108: 0 | AF108: 0 | AG108: 0.01081602326 | AH108: 4.423025754e-07 | AI108: 2.994796259e-08 | AJ108: 3.174067902e-09 | AK108: 0.0008611979436 | AL108: 5.278005516 | AM108: 0.2198676122 | AN108: 0.0006953737738 | AO108: 0.002094486486 | AR108: 5.263390426 | AS108: ='Site&Soil'!$H$173*EXP('Site&Soil'!$H$174*AR108) -> 0 | AT108: 0.72675 | AU108: 0.7214222904 | AV108: 0.03910867559 | AW108: 0 | AX108: 0 | AY108: 0.07494437592 | AZ108: 3.064720709e-06 | BA108: 2.930975285e-07 | BB108: 3.100957147e-08 | BC108: 3.649976263e-07 | BD108: 5.263390791 | BE108: 0.4094442574 | BF108: 0.00171307009 | BG108: -0.001400338928 | CE108: ='Site&Soil'!$F$173*EXP('Site&Soil'!$F$174*CD108) ->  | CG108: 0 | CI108: 0 | CJ108: 0 | CW108: ='Site&Soil'!$G$173*EXP('Site&Soil'!$G$174*CV108) ->  | CY108: 0 | DA108: 0 | DB108: 0 | DO108: ='Site&Soil'!$H$173*EXP('Site&Soil'!$H$174*DN108) ->  | DQ108: 0 | DS108: 0 | DT108: 0
B109: 101 | C109: May | H109: 6.117116596 | I109: ='Site&Soil'!$F$173*EXP('Site&Soil'!$F$174*H109) -> 0 | J109: 0.6946875 | K109: 0.5697828247 | L109: 0.004170855664 | M109: 0 | N109: 0 | O109: 17687.44847 | P109: 0.7232976319 | Q109: 0.007377179464 | R109: 0.001043214943 | S109: 0.00911771771 | T109: 6.126234314 | U109: 0.1571621499 | V109: 0.003786967943 | W109: -0.005451325874 | Z109: 5.280100002 | AA109: ='Site&Soil'!$G$173*EXP('Site&Soil'!$G$174*Z109) -> 0 | AB109: 0.790875 | AC109: 0.6976763261 | AD109: 0.03638551942 | AE109: 0 | AF109: 0 | AG109: 0.01008367876 | AH109: 4.123546128e-07 | AI109: 3.668998893e-08 | AJ109: 3.890128851e-09 | AK109: 0.001319105728 | AL109: 5.281419108 | AM109: 0.2225673369 | AN109: 0.0009387166559 | AO109: 0.003601392492 | AR109: 5.261990452 | AS109: ='Site&Soil'!$H$173*EXP('Site&Soil'!$H$174*AR109) -> 0 | AT109: 0.72675 | AU109: 0.8322075007 | AV109: 0.04526091244 | AW109: 0 | AX109: 0 | AY109: 0.06777699806 | AZ109: 2.77162318e-06 | BA109: 3.067648774e-07 | BB109: 3.244984439e-08 | BC109: 3.828072403e-07 | BD109: 5.261990835 | BE109: 0.4084268393 | BF109: 0.001964883177 | BG109: -0.001411993836 | CE109: ='Site&Soil'!$F$173*EXP('Site&Soil'!$F$174*CD109) ->  | CG109: 0 | CI109: 0 | CJ109: 0 | CW109: ='Site&Soil'!$G$173*EXP('Site&Soil'!$G$174*CV109) ->  | CY109: 0 | DA109: 0 | DB109: 0 | DO109: ='Site&Soil'!$H$173*EXP('Site&Soil'!$H$174*DN109) ->  | DQ109: 0 | DS109: 0 | DT109: 0
B110: 102 | C110: Jun | H110: 6.120782988 | I110: ='Site&Soil'!$F$173*EXP('Site&Soil'!$F$174*H110) -> 0 | J110: 0.6946875 | K110: 0.7788007831 | L110: 0.005650888093 | M110: 0 | N110: 0 | O110: 17507.04766 | P110: 0.7159204524 | Q110: 0.009893036715 | R110: 0.001402458287 | S110: 0.01222215518 | T110: 6.133005143 | U110: 0.1618657604 | V110: 0.005414851046 | W110: -0.007794657376 | Z110: 5.2850205 | AA110: ='Site&Soil'!$G$173*EXP('Site&Soil'!$G$174*Z110) -> 0 | AB110: 0.790875 | AC110: 0.852143789 | AD110: 0.04393766477 | AE110: 0 | AF110: 0 | AG110: 0.009186465412 | AH110: 3.756646239e-07 | AI110: 4.036318377e-08 | AJ110: 4.282358489e-09 | AK110: 0.001773345178 | AL110: 5.286793846 | AM110: 0.2268180826 | AN110: 0.00118299907 | AO110: 0.00535084808 | AR110: 5.260578841 | AS110: ='Site&Soil'!$H$173*EXP('Site&Soil'!$H$174*AR110) -> 0 | AT110: 0.72675 | AU110: 0.9216104473 | AV110: 0.05028736431 | AW110: 0 | AX110: 0 | AY110: 0.0602754002 | AZ110: 2.464858303e-06 | BA110: 3.031091009e-07 | BB110: 3.20574472e-08 | BC110: 3.788565699e-07 | BD110: 5.26057922 | BE110: 0.4074009481 | BF110: 0.002163458877 | BG110: -0.001349101902 | CE110: ='Site&Soil'!$F$173*EXP('Site&Soil'!$F$174*CD110) ->  | CG110: 0 | CI110: 0 | CJ110: 0 | CW110: ='Site&Soil'!$G$173*EXP('Site&Soil'!$G$174*CV110) ->  | CY110: 0 | DA110: 0 | DB110: 0 | DO110: ='Site&Soil'!$H$173*EXP('Site&Soil'!$H$174*DN110) ->  | DQ110: 0 | DS110: 0 | DT110: 0
B111: 103 | C111: Jul | H111: 6.125210486 | I111: ='Site&Soil'!$F$173*EXP('Site&Soil'!$F$174*H111) -> 0 | J111: 0.6946875 | K111: 0.9394130628 | L111: 0.006744122245 | M111: 0 | N111: 0 | O111: 17265.12432 | P111: 0.7060274157 | Q111: 0.0116438109 | R111: 0.001655634558 | S111: 0.01437794165 | T111: 6.139588427 | U111: 0.1664390857 | V111: 0.006818680535 | W111: -0.009815464558 | Z111: 5.292144694 | AA111: ='Site&Soil'!$G$173*EXP('Site&Soil'!$G$174*Z111) -> 0 | AB111: 0.790875 | AC111: 0.9607894392 | AD111: 0.04872861414 | AE111: 0 | AF111: 0 | AG111: 0.008199428124 | AH111: 3.353014401e-07 | AI111: 3.995467692e-08 | AJ111: 4.243045844e-09 | AK111: 0.002093466439 | AL111: 5.29423816 | AM111: 0.2327056048 | AN111: 0.001392108946 | AO111: 0.006861478222 | AR111: 5.259230118 | AS111: ='Site&Soil'!$H$173*EXP('Site&Soil'!$H$174*AR111) -> 0 | AT111: 0.72675 | AU111: 0.9797986739 | AV111: 0.05362963721 | AW111: 0 | AX111: 0 | AY111: 0.05286320035 | AZ111: 2.161749202e-06 | BA111: 2.835034257e-07 | BB111: 2.997884506e-08 | BC111: 3.546854165e-07 | BD111: 5.259230473 | BE111: 0.4064207461 | BF111: 0.002287405646 | BG111: -0.001231918404 | CE111: ='Site&Soil'!$F$173*EXP('Site&Soil'!$F$174*CD111) ->  | CG111: 0 | CI111: 0 | CJ111: 0 | CW111: ='Site&Soil'!$G$173*EXP('Site&Soil'!$G$174*CV111) ->  | CY111: 0 | DA111: 0 | DB111: 0 | DO111: ='Site&Soil'!$H$173*EXP('Site&Soil'!$H$174*DN111) ->  | DQ111: 0 | DS111: 0 | DT111: 0
B112: 104 | C112: Aug | H112: 6.129772963 | I112: ='Site&Soil'!$F$173*EXP('Site&Soil'!$F$174*H112) -> 0 | J112: 0.6946875 | K112: 1 | L112: 0.007100751025 | M112: 0 | N112: 0 | O112: 16980.38773 | P112: 0.6943836048 | Q112: 0.01205735056 | R112: 0.001719808122 | S112: 0.01488085281 | T112: 6.144653816 | U112: 0.1699579476 | V112: 0.007498860827 | W112: -0.01079458149 | Z112: 5.301099638 | AA112: ='Site&Soil'!$G$173*EXP('Site&Soil'!$G$174*Z112) -> 0 | AB112: 0.790875 | AC112: 1 | AD112: 0.04967575498 | AE112: 0 | AF112: 0 | AG112: 0.007222380422 | AH112: 2.953467632e-07 | AI112: 3.587772002e-08 | AJ112: 3.814719017e-09 | AK112: 0.002174604312 | AL112: 5.303274243 | AM112: 0.2398520166 | AN112: 0.001524816619 | AO112: 0.007553714819 | AR112: 5.257998554 | AS112: ='Site&Soil'!$H$173*EXP('Site&Soil'!$H$174*AR112) -> 0 | AT112: 0.72675 | AU112: 1 | AV112: 0.05489169994 | AW112: 0 | AX112: 0 | AY112: 0.04593043572 | AZ112: 1.878245776e-06 | BA112: 2.521199696e-07 | BB112: 2.665612533e-08 | BC112: 3.154847792e-07 | BD112: 5.25799887 | BE112: 0.4055256786 | BF112: 0.002322828947 | BG112: -0.001098056179 | CE112: ='Site&Soil'!$F$173*EXP('Site&Soil'!$F$174*CD112) ->  | CG112: 0 | CI112: 0 | CJ112: 0 | CW112: ='Site&Soil'!$G$173*EXP('Site&Soil'!$G$174*CV112) ->  | CY112: 0 | DA112: 0 | DB112: 0 | DO112: ='Site&Soil'!$H$173*EXP('Site&Soil'!$H$174*DN112) ->  | DQ112: 0 | DS112: 0 | DT112: 0
B113: 105 | C113: Sep | H113: 6.133859234 | I113: ='Site&Soil'!$F$173*EXP('Site&Soil'!$F$174*H113) -> 0 | J113: 0.6946875 | K113: 0.9394130628 | L113: 0.006605287597 | M113: 0 | N113: 0 | O113: 16685.53847 | P113: 0.6823262542 | Q113: 0.01102127803 | R113: 0.00157646938 | S113: 0.01359576594 | T113: 6.147455 | U113: 0.1719038954 | V113: 0.007171290457 | W113: -0.01032304519 | Z113: 5.310827957 | AA113: ='Site&Soil'!$G$173*EXP('Site&Soil'!$G$174*Z113) -> 0 | AB113: 0.790875 | AC113: 0.9607894392 | AD113: 0.0466639766 | AE113: 0 | AF113: 0 | AG113: 0.006345030219 | AH113: 2.594690432e-07 | AI113: 2.960843416e-08 | AJ113: 3.152376322e-09 | AK113: 0.001993356517 | AL113: 5.312821314 | AM113: 0.2474025566 | AN113: 0.001544734044 | AO113: 0.007114343497 | AR113: 5.256900814 | AS113: ='Site&Soil'!$H$173*EXP('Site&Soil'!$H$174*AR113) -> 0 | AT113: 0.72675 | AU113: 0.9797986739 | AV113: 0.05391971458 | AW113: 0 | AX113: 0 | AY113: 0.03976511902 | AZ113: 1.626125807e-06 | BA113: 2.144123868e-07 | BB113: 2.266627985e-08 | BC113: 2.681781675e-07 | BD113: 5.256901082 | BE113: 0.4047278612 | BF113: 0.002265692834 | BG113: -0.0009920313593 | CE113: ='Site&Soil'!$F$173*EXP('Site&Soil'!$F$174*CD113) ->  | CG113: 0 | CI113: 0 | CJ113: 0 | CW113: ='Site&Soil'!$G$173*EXP('Site&Soil'!$G$174*CV113) ->  | CY113: 0 | DA113: 0 | DB113: 0 | DO113: ='Site&Soil'!$H$173*EXP('Site&Soil'!$H$174*DN113) ->  | DQ113: 0 | DS113: 0 | DT113: 0
B114: 106 | C114: Oct | H114: 6.137131955 | I114: ='Site&Soil'!$F$173*EXP('Site&Soil'!$F$174*H114) -> 0 | J114: 0.6946875 | K114: 0.7788007831 | L114: 0.005433016526 | M114: 0 | N114: 0 | O114: 16416.02523 | P114: 0.6713049762 | Q114: 0.008918853638 | R114: 0.001278644865 | S114: 0.01099805131 | T114: 6.148130006 | U114: 0.1723728137 | V114: 0.005970698709 | W114: -0.008594797962 | X114: =-'Profit Calculator'!N$29*'Quantity of Lime to Apply'!H$9 -> -0.04009124051 | Z114: 5.319935657 | AA114: ='Site&Soil'!$G$173*EXP('Site&Soil'!$G$174*Z114) -> 0 | AB114: 0.790875 | AC114: 0.852143789 | AD114: 0.04052273761 | AE114: 0 | AF114: 0 | AG114: 0.005620988509 | AH114: 2.29860609e-07 | AI114: 2.277778424e-08 | AJ114: 2.428247458e-09 | AK114: 0.001616772834 | AL114: 5.32155243 | AM114: 0.2543077783 | AN114: 0.001436894746 | AO114: 0.005732642912 | AP114: =-'Profit Calculator'!$N$29*'Quantity of Lime to Apply'!$H$19 -> -0.04009124051 | AR114: 5.25590905 | AS114: ='Site&Soil'!$H$173*EXP('Site&Soil'!$H$174*AR114) -> 0 | AT114: 0.72675 | AU114: 0.9216104473 | AV114: 0.05083415188 | AW114: 0 | AX114: 0 | AY114: 0.0345218998 | AZ114: 1.41171342e-06 | BA114: 1.754891498e-07 | BB114: 1.854928189e-08 | BC114: 2.192887724e-07 | BD114: 5.25590927 | BE114: 0.4040070618 | BF114: 0.002122489817 | BG114: -0.0009433712706 | BH114: 0.02 | BJ114: =BJ102+1 -> 9 | BK114: =AVERAGE(H109:H114) -> 6.12731237 | BL114: =AVERAGE(Z109:Z114) -> 5.298188075 | BM114: =AVERAGE(AR109:AR114) -> 5.258767972 | CE114: ='Site&Soil'!$F$173*EXP('Site&Soil'!$F$174*CD114) ->  | CG114: 0 | CI114: 0 | CJ114: 0 | CW114: ='Site&Soil'!$G$173*EXP('Site&Soil'!$G$174*CV114) ->  | CY114: 0 | DA114: 0 | DB114: 0 | DO114: ='Site&Soil'!$H$173*EXP('Site&Soil'!$H$174*DN114) ->  | DQ114: 0 | DS114: 0 | DT114: 0 | EF114: =EF102+1 -> 9 | EG114: =AVERAGE(CD109:CD114) ->  | EH114: =AVERAGE(CV109:CV114) ->  | EI114: =AVERAGE(DN109:DN114) -> 
B115: 107 | C115: Nov | H115: 6.099443968 | I115: ='Site&Soil'!$F$173*EXP('Site&Soil'!$F$174*H115) -> 0 | J115: 0.6946875 | K115: 0.5697828247 | L115: 0.004351563035 | M115: 0 | N115: 0 | O115: 16197.92447 | P115: 0.6623861226 | Q115: 0.007048628939 | R115: 0.0009851148266 | S115: 0.008728405379 | T115: 6.108172373 | U115: 0.1446147455 | V115: 0.003342676165 | W115: -0.004811769558 | Z115: 5.287193833 | AA115: ='Site&Soil'!$G$173*EXP('Site&Soil'!$G$174*Z115) -> 0 | AB115: 0.790875 | AC115: 0.6976763261 | AD115: 0.03579244609 | AE115: 0 | AF115: 0 | AG115: 0.005063982835 | AH115: 2.070828248e-07 | AI115: 1.812523326e-08 | AJ115: 1.923562811e-09 | AK115: 0.001245621657 | AL115: 5.288439454 | AM115: 0.2281195534 | AN115: 0.0009778133302 | AO115: 0.002990185345 | AR115: 5.274965898 | AS115: ='Site&Soil'!$H$173*EXP('Site&Soil'!$H$174*AR115) -> 0 | AT115: 0.72675 | AU115: 0.8322075007 | AV115: 0.0439209038 | AW115: 0 | AX115: 0 | AY115: 0.03023050556 | AZ115: 1.23622427e-06 | BA115: 1.327751127e-07 | BB115: 1.406834025e-08 | BC115: 1.659860134e-07 | BD115: 5.274966064 | BE115: 0.4178565873 | BF115: 0.002071213858 | BG115: -0.001504507091 | CE115: ='Site&Soil'!$F$173*EXP('Site&Soil'!$F$174*CD115) ->  | CG115: 0 | CI115: 0 | CJ115: 0 | CW115: ='Site&Soil'!$G$173*EXP('Site&Soil'!$G$174*CV115) ->  | CY115: 0 | DA115: 0 | DB115: 0 | DO115: ='Site&Soil'!$H$173*EXP('Site&Soil'!$H$174*DN115) ->  | DQ115: 0 | DS115: 0 | DT115: 0
B116: 108 | C116: Dec | H116: 6.103360604 | I116: ='Site&Soil'!$F$173*EXP('Site&Soil'!$F$174*H116) -> 0 | J116: 0.6946875 | K116: 0.3678794412 | L116: 0.002783311864 | M116: 0 | N116: 0 | O116: 16025.558 | P116: 0.6553374936 | Q116: 0.00446041257 | R116: 0.0006249928772 | S116: 0.005521071983 | T116: 6.108881676 | U116: 0.145107489 | V116: 0.002169087245 | W116: -0.003122392796 | Z116: 5.29142964 | AA116: ='Site&Soil'!$G$173*EXP('Site&Soil'!$G$174*Z116) -> 0 | AB116: 0.790875 | AC116: 0.527292424 | AD116: 0.02678717282 | AE116: 0 | AF116: 0 | AG116: 0.00462075018 | AH116: 1.889575915e-07 | AI116: 1.237768336e-08 | AJ116: 1.314340163e-09 | AK116: 0.0007902689307 | AL116: 5.292219909 | AM116: 0.2311094202 | AN116: 0.000755247138 | AO116: 0.001787690984 | AR116: 5.273461557 | AS116: ='Site&Soil'!$H$173*EXP('Site&Soil'!$H$174*AR116) -> 0 | AT116: 0.72675 | AU116: 0.7214222904 | AV116: 0.03820696484 | AW116: 0 | AX116: 0 | AY116: 0.02698363614 | AZ116: 1.103449158e-06 | BA116: 1.030962837e-07 | BB116: 1.092156235e-08 | BC116: 1.286399196e-07 | BD116: 5.273461686 | BE116: 0.4167632803 | BF116: 0.001784599186 | BG116: -0.001416377087 | CE116: ='Site&Soil'!$F$173*EXP('Site&Soil'!$F$174*CD116) ->  | CG116: 0 | CI116: 0 | CJ116: 0 | CW116: ='Site&Soil'!$G$173*EXP('Site&Soil'!$G$174*CV116) ->  | CY116: 0 | DA116: 0 | DB116: 0 | DO116: ='Site&Soil'!$H$173*EXP('Site&Soil'!$H$174*DN116) ->  | DQ116: 0 | DS116: 0 | DT116: 0
A117: =A105+1 -> 10 | B117: 109 | C117: Jan | D117: =OFFSET(Apply_Lime!$H$16,$A117,0) -> 0 | E117: =OFFSET(Apply_Lime!$I$16,$A117,0)*G117 -> 0 | F117: =OFFSET(Apply_Lime!$I$16,$A117,0)*(1-G117) -> 0 | G117: ='Profit Calculator'!O28 -> 0 | H117: 6.105759283 | I117: ='Site&Soil'!$F$173*EXP('Site&Soil'!$F$174*H117) -> 0 | J117: 0.6946875 | K117: 0.04677062238 | L117: 0.0003518279002 | M117: 0 | N117: 0 | O117: 15916.48351 | P117: 0.6508770811 | Q117: 0.0005599862974 | R117: 7.858969358e-05 | S117: 0.0006929685705 | T117: 6.106452251 | U117: 0.1434197984 | V117: 0.0002710406986 | W117: -0.0003901620493 | Z117: 5.2940076 | AA117: ='Site&Soil'!$G$173*EXP('Site&Soil'!$G$174*Z117) -> 0 | AB117: 0.790875 | AC117: 0.1408584209 | AD117: 0.00711318507 | AE117: 0 | AF117: 0 | AG117: 0.00431806754 | AH117: 1.765799081e-07 | AI117: 3.071521356e-09 | AJ117: 3.262665562e-10 | AK117: 9.937403361e-05 | AL117: 5.294106974 | AM117: 0.2326018527 | AN117: 0.0002039402554 | AO117: 8.484329793e-05 | AR117: 5.272045309 | AS117: ='Site&Soil'!$H$173*EXP('Site&Soil'!$H$174*AR117) -> 0 | AT117: 0.72675 | AU117: 0.3678794412 | AV117: 0.01954713854 | AW117: 0 | AX117: 0 | AY117: 0.02446252985 | AZ117: 1.000352874e-06 | BA117: 4.7817246e-08 | BB117: 5.064622594e-09 | BC117: 5.927607838e-08 | BD117: 5.272045368 | BE117: 0.4157339713 | BF117: 0.0009048287684 | BG117: -0.0009644148787 | BZ117: =OFFSET(Apply_Lime!$O$16,$A117,0) -> 0 | CA117: =OFFSET(Apply_Lime!$P$16,$A117,0)*CA$7 -> 0 | CB117: =OFFSET(Apply_Lime!$P$16,$A117,0)*CB$7 -> 0 | CE117: ='Site&Soil'!$F$173*EXP('Site&Soil'!$F$174*CD117) ->  | CG117: 0 | CI117: 0 | CJ117: 0 | CW117: ='Site&Soil'!$G$173*EXP('Site&Soil'!$G$174*CV117) ->  | CY117: 0 | DA117: 0 | DB117: 0 | DO117: ='Site&Soil'!$H$173*EXP('Site&Soil'!$H$174*DN117) ->  | DQ117: 0 | DS117: 0 | DT117: 0
B118: 110 | C118: Feb | H118: 6.106062089 | I118: ='Site&Soil'!$F$173*EXP('Site&Soil'!$F$174*H118) -> 0 | J118: 0.6946875 | K118: 0.1053992246 | L118: 0.0007922805645 | M118: 0 | N118: 0 | O118: 15902.78966 | P118: 0.6503170948 | Q118: 0.001259947117 | R118: 0.000176859168 | S118: 0.001559100962 | T118: 6.10762119 | U118: 0.1442318456 | V118: 0.0006159135616 | W118: -0.0008866052169 | Z118: 5.294191817 | AA118: ='Site&Soil'!$G$173*EXP('Site&Soil'!$G$174*Z118) -> 0 | AB118: 0.790875 | AC118: 0.2369277587 | AD118: 0.01195946818 | AE118: 0 | AF118: 0 | AG118: 0.004242956862 | AH118: 1.735083868e-07 | AI118: 5.074350759e-09 | AJ118: 5.390267253e-10 | AK118: 0.0002236304136 | AL118: 5.294415447 | AM118: 0.2328458169 | AN118: 0.0003436369324 | AO118: 0.0003442726463 | AR118: 5.271080953 | AS118: ='Site&Soil'!$H$173*EXP('Site&Soil'!$H$174*AR118) -> 0 | AT118: 0.72675 | AU118: 0.4796522688 | AV118: 0.02554313887 | AW118: 0 | AX118: 0 | AY118: 0.02329321167 | AZ118: 9.525356279e-07 | BA118: 5.949817402e-08 | BB118: 6.301041731e-09 | BC118: 7.394036329e-08 | BD118: 5.271081027 | BE118: 0.4150331366 | BF118: 0.001175141877 | BG118: -0.00114414165 | CE118: ='Site&Soil'!$F$173*EXP('Site&Soil'!$F$174*CD118) ->  | CG118: 0 | CI118: 0 | CJ118: 0 | CW118: ='Site&Soil'!$G$173*EXP('Site&Soil'!$G$174*CV118) ->  | CY118: 0 | DA118: 0 | DB118: 0 | DO118: ='Site&Soil'!$H$173*EXP('Site&Soil'!$H$174*DN118) ->  | DQ118: 0 | DS118: 0 | DT118: 0
B119: 111 | C119: Mar | H119: 6.106734585 | I119: ='Site&Soil'!$F$173*EXP('Site&Soil'!$F$174*H119) -> 0 | J119: 0.6946875 | K119: 0.2096113872 | L119: 0.00157309753 | M119: 0 | N119: 0 | O119: 15871.97904 | P119: 0.6490571476 | Q119: 0.002496817103 | R119: 0.0003506351952 | S119: 0.00308942065 | T119: 6.109824006 | U119: 0.1457621139 | V119: 0.001244180917 | W119: -0.001790993672 | Z119: 5.29475972 | AA119: ='Site&Soil'!$G$173*EXP('Site&Soil'!$G$174*Z119) -> 0 | AB119: 0.790875 | AC119: 0.3678794412 | AD119: 0.01854513404 | AE119: 0 | AF119: 0 | AG119: 0.004118869193 | AH119: 1.68434036e-07 | AI119: 7.638498125e-09 | AJ119: 8.114674338e-10 | AK119: 0.0004433595982 | AL119: 5.29520308 | AM119: 0.2334687355 | AN119: 0.0005359661093 | AO119: 0.0008954826078 | AR119: 5.269936886 | AS119: ='Site&Soil'!$H$173*EXP('Site&Soil'!$H$174*AR119) -> 0 | AT119: 0.72675 | AU119: 0.6003730412 | AV119: 0.0320567726 | AW119: 0 | AX119: 0 | AY119: 0.02183824923 | AZ119: 8.930374539e-07 | BA119: 7.000637894e-08 | BB119: 7.412806111e-09 | BC119: 8.724463744e-08 | BD119: 5.269936973 | BE119: 0.414201695 | BF119: 0.001464097595 | BG119: -0.001277098708 | CE119: ='Site&Soil'!$F$173*EXP('Site&Soil'!$F$174*CD119) ->  | CG119: 0 | CI119: 0 | CJ119: 0 | CW119: ='Site&Soil'!$G$173*EXP('Site&Soil'!$G$174*CV119) ->  | CY119: 0 | DA119: 0 | DB119: 0 | DO119: ='Site&Soil'!$H$173*EXP('Site&Soil'!$H$174*DN119) ->  | DQ119: 0 | DS119: 0 | DT119: 0
B120: 112 | C120: Apr | H120: 6.108033012 | I120: ='Site&Soil'!$F$173*EXP('Site&Soil'!$F$174*H120) -> 0 | J120: 0.6946875 | K120: 0.3678794412 | L120: 0.002752282899 | M120: 0 | N120: 0 | O120: 15810.92213 | P120: 0.6465603305 | Q120: 0.004351613058 | R120: 0.0006116363434 | S120: 0.00538368218 | T120: 6.113416694 | U120: 0.1482579097 | V120: 0.002239443372 | W120: -0.003223670171 | Z120: 5.296098562 | AA120: ='Site&Soil'!$G$173*EXP('Site&Soil'!$G$174*Z120) -> 0 | AB120: 0.790875 | AC120: 0.527292424 | AD120: 0.0264989543 | AE120: 0 | AF120: 0 | AG120: 0.003932078118 | AH120: 1.607955379e-07 | AI120: 1.041959584e-08 | AJ120: 1.107114837e-09 | AK120: 0.0007733784175 | AL120: 5.296871941 | AM120: 0.234788596 | AN120: 0.0007755333368 | AO120: 0.001851000519 | AR120: 5.268659874 | AS120: ='Site&Soil'!$H$173*EXP('Site&Soil'!$H$174*AR120) -> 0 | AT120: 0.72675 | AU120: 0.7214222904 | AV120: 0.03863427208 | AW120: 0 | AX120: 0 | AY120: 0.02012632019 | AZ120: 8.23031075e-07 | BA120: 7.775657301e-08 | BB120: 8.232111268e-09 | BC120: 9.718827186e-08 | BD120: 5.268659971 | BE120: 0.4132736342 | BF120: 0.001750198179 | BG120: -0.001341128093 | CE120: ='Site&Soil'!$F$173*EXP('Site&Soil'!$F$174*CD120) ->  | CG120: 0 | CI120: 0 | CJ120: 0 | CW120: ='Site&Soil'!$G$173*EXP('Site&Soil'!$G$174*CV120) ->  | CY120: 0 | DA120: 0 | DB120: 0 | DO120: ='Site&Soil'!$H$173*EXP('Site&Soil'!$H$174*DN120) ->  | DQ120: 0 | DS120: 0 | DT120: 0
B121: 113 | C121: May | H121: 6.110193024 | I121: ='Site&Soil'!$F$173*EXP('Site&Soil'!$F$174*H121) -> 0 | J121: 0.6946875 | K121: 0.5697828247 | L121: 0.004240776248 | M121: 0 | N121: 0 | O121: 15704.50821 | P121: 0.6422087175 | Q121: 0.006659930542 | R121: 0.0009374261023 | S121: 0.008237523259 | T121: 6.118430547 | U121: 0.1517409708 | V121: 0.003591226189 | W121: -0.005169556367 | Z121: 5.298722941 | AA121: ='Site&Soil'!$G$173*EXP('Site&Soil'!$G$174*Z121) -> 0 | AB121: 0.790875 | AC121: 0.6976763261 | AD121: 0.03484899419 | AE121: 0 | AF121: 0 | AG121: 0.003677278356 | AH121: 1.50375942e-07 | AI121: 1.281494521e-08 | AJ121: 1.362113945e-09 | AK121: 0.001185316966 | AL121: 5.299908258 | AM121: 0.2371899436 | AN121: 0.001043899084 | AO121: 0.003220897241 | AR121: 5.267318843 | AS121: ='Site&Soil'!$H$173*EXP('Site&Soil'!$H$174*AR121) -> 0 | AT121: 0.72675 | AU121: 0.8322075007 | AV121: 0.04470578654 | AW121: 0 | AX121: 0 | AY121: 0.01822486867 | AZ121: 7.452745019e-07 | BA121: 8.147570886e-08 | BB121: 8.624382682e-09 | BC121: 1.021168767e-07 | BD121: 5.267318945 | BE121: 0.4122990435 | BF121: 0.002007996255 | BG121: -0.001326587095 | CE121: ='Site&Soil'!$F$173*EXP('Site&Soil'!$F$174*CD121) ->  | CG121: 0 | CI121: 0 | CJ121: 0 | CW121: ='Site&Soil'!$G$173*EXP('Site&Soil'!$G$174*CV121) ->  | CY121: 0 | DA121: 0 | DB121: 0 | DO121: ='Site&Soil'!$H$173*EXP('Site&Soil'!$H$174*DN121) ->  | DQ121: 0 | DS121: 0 | DT121: 0
B122: 114 | C122: Jun | H122: 6.113260991 | I122: ='Site&Soil'!$F$173*EXP('Site&Soil'!$F$174*H122) -> 0 | J122: 0.6946875 | K122: 0.7788007831 | L122: 0.005753916898 | M122: 0 | N122: 0 | O122: 15541.64693 | P122: 0.6355487869 | Q122: 0.008942534491 | R122: 0.001261300395 | S122: 0.01105710711 | T122: 6.124318098 | U122: 0.1558309787 | V122: 0.005109733805 | W122: -0.007355442275 | Z122: 5.303129155 | AA122: ='Site&Soil'!$G$173*EXP('Site&Soil'!$G$174*Z122) -> 0 | AB122: 0.790875 | AC122: 0.852143789 | AD122: 0.04213227325 | AE122: 0 | AF122: 0 | AG122: 0.003363902958 | AH122: 1.375609968e-07 | AI122: 1.417288786e-08 | AJ122: 1.507360309e-09 | AK122: 0.001594832382 | AL122: 5.304723988 | AM122: 0.2409985838 | AN122: 0.001309939871 | AO122: 0.004804544251 | AR122: 5.265992358 | AS122: ='Site&Soil'!$H$173*EXP('Site&Soil'!$H$174*AR122) -> 0 | AT122: 0.72675 | AU122: 0.9216104473 | AV122: 0.04966080843 | AW122: 0 | AX122: 0 | AY122: 0.01623246978 | AZ122: 6.637987931e-07 | BA122: 8.061175719e-08 | BB122: 8.531492795e-09 | BC122: 1.012557616e-07 | BD122: 5.26599246 | BE122: 0.41133502 | BF122: 0.002211747446 | BG122: -0.001240877297 | CE122: ='Site&Soil'!$F$173*EXP('Site&Soil'!$F$174*CD122) ->  | CG122: 0 | CI122: 0 | CJ122: 0 | CW122: ='Site&Soil'!$G$173*EXP('Site&Soil'!$G$174*CV122) ->  | CY122: 0 | DA122: 0 | DB122: 0 | DO122: ='Site&Soil'!$H$173*EXP('Site&Soil'!$H$174*DN122) ->  | DQ122: 0 | DS122: 0 | DT122: 0
B123: 115 | C123: Jul | H123: 6.116962656 | I123: ='Site&Soil'!$F$173*EXP('Site&Soil'!$F$174*H123) -> 0 | J123: 0.6946875 | K123: 0.9394130628 | L123: 0.006879121677 | M123: 0 | N123: 0 | O123: 15322.96708 | P123: 0.6266062525 | Q123: 0.0105408555 | R123: 0.001490439102 | S123: 0.0130280398 | T123: 6.129990696 | U123: 0.1597716613 | V123: 0.006402462471 | W123: -0.009216320246 | Z123: 5.309528532 | AA123: ='Site&Soil'!$G$173*EXP('Site&Soil'!$G$174*Z123) -> 0 | AB123: 0.790875 | AC123: 0.9607894392 | AD123: 0.04680471649 | AE123: 0 | AF123: 0 | AG123: 0.003017320566 | AH123: 1.23388109e-07 | AI123: 1.412248336e-08 | AJ123: 1.503331814e-09 | AK123: 0.001884560419 | AL123: 5.311413092 | AM123: 0.2462888294 | AN123: 0.001532801892 | AO123: 0.006157307513 | AR123: 5.264751582 | AS123: ='Site&Soil'!$H$173*EXP('Site&Soil'!$H$174*AR123) -> 0 | AT123: 0.72675 | AU123: 0.9797986739 | AV123: 0.05294821095 | AW123: 0 | AX123: 0 | AY123: 0.01426119787 | AZ123: 5.831870359e-07 | BA123: 7.551049132e-08 | BB123: 7.990346781e-09 | BC123: 9.497554366e-08 | BD123: 5.264751677 | BE123: 0.4104332814 | BF123: 0.002339543337 | BG123: -0.001110067348 | CE123: ='Site&Soil'!$F$173*EXP('Site&Soil'!$F$174*CD123) ->  | CG123: 0 | CI123: 0 | CJ123: 0 | CW123: ='Site&Soil'!$G$173*EXP('Site&Soil'!$G$174*CV123) ->  | CY123: 0 | DA123: 0 | DB123: 0 | DO123: ='Site&Soil'!$H$173*EXP('Site&Soil'!$H$174*DN123) ->  | DQ123: 0 | DS123: 0 | DT123: 0
B124: 116 | C124: Aug | H124: 6.120774375 | I124: ='Site&Soil'!$F$173*EXP('Site&Soil'!$F$174*H124) -> 0 | J124: 0.6946875 | K124: 1 | L124: 0.007256034105 | M124: 0 | N124: 0 | O124: 15065.20205 | P124: 0.616065397 | Q124: 0.01093136198 | R124: 0.00154964447 | S124: 0.01350494649 | T124: 6.134279322 | U124: 0.1627509164 | V124: 0.007011368034 | W124: -0.01009283748 | Z124: 5.3175704 | AA124: ='Site&Soil'!$G$173*EXP('Site&Soil'!$G$174*Z124) -> 0 | AB124: 0.790875 | AC124: 1 | AD124: 0.0478152948 | AE124: 0 | AF124: 0 | AG124: 0.00267197076 | AH124: 1.092656256e-07 | AI124: 1.277610696e-08 | AJ124: 1.361550691e-09 | AK124: 0.001959419485 | AL124: 5.319529819 | AM124: 0.2527081459 | AN124: 0.001667819552 | AO124: 0.006756501954 | AR124: 5.26364161 | AS124: ='Site&Soil'!$H$173*EXP('Site&Soil'!$H$174*AR124) -> 0 | AT124: 0.72675 | AU124: 1 | AV124: 0.05417898972 | AW124: 0 | AX124: 0 | AY124: 0.01241467181 | AZ124: 5.076765446e-07 | BA124: 6.726143765e-08 | BB124: 7.116452037e-09 | BC124: 8.46323169e-08 | BD124: 5.263641694 | BE124: 0.4096266015 | BF124: 0.00237700364 | BG124: -0.000975829499 | CE124: ='Site&Soil'!$F$173*EXP('Site&Soil'!$F$174*CD124) ->  | CG124: 0 | CI124: 0 | CJ124: 0 | CW124: ='Site&Soil'!$G$173*EXP('Site&Soil'!$G$174*CV124) ->  | CY124: 0 | DA124: 0 | DB124: 0 | DO124: ='Site&Soil'!$H$173*EXP('Site&Soil'!$H$174*DN124) ->  | DQ124: 0 | DS124: 0 | DT124: 0
B125: 117 | C125: Sep | H125: 6.124186484 | I125: ='Site&Soil'!$F$173*EXP('Site&Soil'!$F$174*H125) -> 0 | J125: 0.6946875 | K125: 0.9394130628 | L125: 0.006760743908 | M125: 0 | N125: 0 | O125: 14797.88761 | P125: 0.605134035 | Q125: 0.01000447285 | R125: 0.001421542876 | S125: 0.01235509488 | T125: 6.136541579 | U125: 0.1643224783 | V125: 0.006684903623 | W125: -0.009622893204 | Z125: 5.326286321 | AA125: ='Site&Soil'!$G$173*EXP('Site&Soil'!$G$174*Z125) -> 0 | AB125: 0.790875 | AC125: 0.9607894392 | AD125: 0.04502159821 | AE125: 0 | AF125: 0 | AG125: 0.002359545109 | AH125: 9.648951866e-08 | AI125: 1.062304918e-08 | AJ125: 1.133514021e-09 | AK125: 0.001797442536 | AL125: 5.328083764 | AM125: 0.2594732467 | AN125: 0.001678048739 | AO125: 0.006330779054 | AR125: 5.262665865 | AS125: ='Site&Soil'!$H$173*EXP('Site&Soil'!$H$174*AR125) -> 0 | AT125: 0.72675 | AU125: 0.9797986739 | AV125: 0.05320460011 | AW125: 0 | AX125: 0 | AY125: 0.0107698673 | AZ125: 4.404151069e-07 | BA125: 5.730064827e-08 | BB125: 6.061825879e-09 | BC125: 7.206375839e-08 | BD125: 5.262665937 | BE125: 0.4089174697 | BF125: 0.002319735396 | BG125: -0.0008829537765 | CE125: ='Site&Soil'!$F$173*EXP('Site&Soil'!$F$174*CD125) ->  | CG125: 0 | CI125: 0 | CJ125: 0 | CW125: ='Site&Soil'!$G$173*EXP('Site&Soil'!$G$174*CV125) ->  | CY125: 0 | DA125: 0 | DB125: 0 | DO125: ='Site&Soil'!$H$173*EXP('Site&Soil'!$H$174*DN125) ->  | DQ125: 0 | DS125: 0 | DT125: 0
B126: 118 | C126: Oct | H126: 6.126918686 | I126: ='Site&Soil'!$F$173*EXP('Site&Soil'!$F$174*H126) -> 0 | J126: 0.6946875 | K126: 0.7788007831 | L126: 0.005568158893 | M126: 0 | N126: 0 | O126: 14553.23922 | P126: 0.5951295621 | Q126: 0.008103474839 | R126: 0.001153581225 | S126: 0.01000434528 | T126: 6.136923031 | U126: 0.1645874683 | V126: 0.005555794528 | W126: -0.007997544979 | X126: =-'Profit Calculator'!O$29*'Quantity of Lime to Apply'!H$9 -> -0.04009124051 | Z126: 5.334414543 | AA126: ='Site&Soil'!$G$173*EXP('Site&Soil'!$G$174*Z126) -> 0 | AB126: 0.790875 | AC126: 0.852143789 | AD126: 0.03918519163 | AE126: 0 | AF126: 0 | AG126: 0.002099770119 | AH126: 8.586646948e-08 | AI126: 8.227989449e-09 | AJ126: 8.789953157e-10 | AK126: 0.001458623138 | AL126: 5.335873166 | AM126: 0.2656336902 | AN126: 0.00155120503 | AO126: 0.005063492331 | AP126: =-'Profit Calculator'!$O$29*'Quantity of Lime to Apply'!$H$19 -> -0.04009124051 | AR126: 5.261782983 | AS126: ='Site&Soil'!$H$173*EXP('Site&Soil'!$H$174*AR126) -> 0 | AT126: 0.72675 | AU126: 0.9216104473 | AV126: 0.05014732174 | AW126: 0 | AX126: 0 | AY126: 0.009368642932 | AZ126: 3.831144586e-07 | BA126: 4.698123514e-08 | BB126: 4.969584494e-09 | BC126: 5.90170567e-08 | BD126: 5.261783042 | BE126: 0.408275826 | BF126: 0.002174122936 | BG126: -0.0008571281806 | BH126: 0.02 | BJ126: =BJ114+1 -> 10 | BK126: =AVERAGE(H121:H126) -> 6.118716036 | BL126: =AVERAGE(Z121:Z126) -> 5.314941982 | BM126: =AVERAGE(AR121:AR126) -> 5.264358874 | CE126: ='Site&Soil'!$F$173*EXP('Site&Soil'!$F$174*CD126) ->  | CG126: 0 | CI126: 0 | CJ126: 0 | CW126: ='Site&Soil'!$G$173*EXP('Site&Soil'!$G$174*CV126) ->  | CY126: 0 | DA126: 0 | DB126: 0 | DO126: ='Site&Soil'!$H$173*EXP('Site&Soil'!$H$174*DN126) ->  | DQ126: 0 | DS126: 0 | DT126: 0 | EF126: =EF114+1 -> 10 | EG126: =AVERAGE(CD121:CD126) ->  | EH126: =AVERAGE(CV121:CV126) ->  | EI126: =AVERAGE(DN121:DN126) -> 
B127: 119 | C127: Nov | H127: 6.088834246 | I127: ='Site&Soil'!$F$173*EXP('Site&Soil'!$F$174*H127) -> 0 | J127: 0.6946875 | K127: 0.5697828247 | L127: 0.004463635969 | M127: 0 | N127: 0 | O127: 14355.07765 | P127: 0.5870260873 | Q127: 0.006407584094 | R127: 0.000889374115 | S127: 0.007943442165 | T127: 6.096777688 | U127: 0.1366990001 | V127: 0.003077884934 | W127: -0.004430603593 | Z127: 5.300845418 | AA127: ='Site&Soil'!$G$173*EXP('Site&Soil'!$G$174*Z127) -> 0 | AB127: 0.790875 | AC127: 0.6976763261 | AD127: 0.03467802066 | AE127: 0 | AF127: 0 | AG127: 0.001898563682 | AH127: 7.763848003e-08 | AI127: 6.583843059e-09 | AJ127: 7.000064921e-10 | AK127: 0.001124551919 | AL127: 5.30196997 | AM127: 0.2388204998 | AN127: 0.001056076939 | AO127: 0.002556419149 | AR127: 5.280925914 | AS127: ='Site&Soil'!$H$173*EXP('Site&Soil'!$H$174*AR127) -> 0 | AT127: 0.72675 | AU127: 0.8322075007 | AV127: 0.0433186879 | AW127: 0 | AX127: 0 | AY127: 0.008219768473 | AZ127: 3.361332235e-07 | BA127: 3.560695851e-08 | BB127: 3.775706907e-09 | BC127: 4.476265304e-08 | BD127: 5.280925959 | BE127: 0.4221879406 | BF127: 0.002121599521 | BG127: -0.001466147343 | CE127: ='Site&Soil'!$F$173*EXP('Site&Soil'!$F$174*CD127) ->  | CG127: 0 | CI127: 0 | CJ127: 0 | CW127: ='Site&Soil'!$G$173*EXP('Site&Soil'!$G$174*CV127) ->  | CY127: 0 | DA127: 0 | DB127: 0 | DO127: ='Site&Soil'!$H$173*EXP('Site&Soil'!$H$174*DN127) ->  | DQ127: 0 | DS127: 0 | DT127: 0
B128: 120 | C128: Dec | H128: 6.092347084 | I128: ='Site&Soil'!$F$173*EXP('Site&Soil'!$F$174*H128) -> 0 | J128: 0.6946875 | K128: 0.3678794412 | L128: 0.002857785938 | M128: 0 | N128: 0 | O128: 14198.38723 | P128: 0.5806185032 | Q128: 0.004057595136 | R128: 0.0005644737177 | S128: 0.005028334925 | T128: 6.097375419 | U128: 0.1371142366 | V128: 0.00199601356 | W128: -0.002873253887 | Z128: 5.304526389 | AA128: ='Site&Soil'!$G$173*EXP('Site&Soil'!$G$174*Z128) -> 0 | AB128: 0.790875 | AC128: 0.527292424 | AD128: 0.02598647402 | AE128: 0 | AF128: 0 | AG128: 0.001737563037 | AH128: 7.105463697e-08 | AI128: 4.515313673e-09 | AJ128: 4.803195543e-10 | AK128: 0.000713738268 | AL128: 5.305240127 | AM128: 0.2414067856 | AN128: 0.0008129075031 | AO128: 0.001495945702 | AR128: 5.279459812 | AS128: ='Site&Soil'!$H$173*EXP('Site&Soil'!$H$174*AR128) -> 0 | AT128: 0.72675 | AU128: 0.7214222904 | AV128: 0.03767976791 | AW128: 0 | AX128: 0 | AY128: 0.007349039445 | AZ128: 3.00526265e-07 | BA128: 2.769101006e-08 | BB128: 2.935748432e-09 | BC128: 3.472388192e-08 | BD128: 5.279459846 | BE128: 0.4211224433 | BF128: 0.001828343493 | BG128: -0.001397228744 | CE128: ='Site&Soil'!$F$173*EXP('Site&Soil'!$F$174*CD128) ->  | CG128: 0 | CI128: 0 | CJ128: 0 | CW128: ='Site&Soil'!$G$173*EXP('Site&Soil'!$G$174*CV128) ->  | CY128: 0 | DA128: 0 | DB128: 0 | DO128: ='Site&Soil'!$H$173*EXP('Site&Soil'!$H$174*DN128) ->  | DQ128: 0 | DS128: 0 | DT128: 0
A129: =A117+1 -> 11 | B129: 121 | C129: Jan | D129: =OFFSET(Apply_Lime!$H$16,$A129,0) -> 0 | E129: =OFFSET(Apply_Lime!$I$16,$A129,0)*E$7 -> 0 | F129: =OFFSET(Apply_Lime!$I$16,$A129,0)*F$7 -> 0 | H129: 6.094502165 | I129: ='Site&Soil'!$F$173*EXP('Site&Soil'!$F$174*H129) -> 0 | J129: 0.6946875 | K129: 0.04677062238 | L129: 0.0003614550442 | M129: 0 | N129: 0 | O129: 14099.1632 | P129: 0.576560908 | Q129: 0.0005096213657 | R129: 7.099531193e-05 | S129: 0.0006314005272 | T129: 6.095133566 | U129: 0.1355568491 | V129: 0.0002495905744 | W129: -0.0003592846775 | Z129: 5.306736073 | AA129: ='Site&Soil'!$G$173*EXP('Site&Soil'!$G$174*Z129) -> 0 | AB129: 0.790875 | AC129: 0.1408584209 | AD129: 0.006906447918 | AE129: 0 | AF129: 0 | AG129: 0.001627146005 | AH129: 6.653932329e-08 | AI129: 1.123779914e-09 | AJ129: 1.195793981e-10 | AK129: 8.976932655e-05 | AL129: 5.306825842 | AM129: 0.242660888 | AN129: 0.0002190828794 | AO129: 3.857461042e-05 | AR129: 5.278062618 | AS129: ='Site&Soil'!$H$173*EXP('Site&Soil'!$H$174*AR129) -> 0 | AT129: 0.72675 | AU129: 0.3678794412 | AV129: 0.01927657267 | AW129: 0 | AX129: 0 | AY129: 0.006671886234 | AZ129: 2.728352549e-07 | BA129: 1.286110999e-08 | BB129: 1.363261912e-09 | BC129: 1.598545232e-08 | BD129: 5.278062633 | BE129: 0.4201070189 | BF129: 0.0009271032193 | BG129: -0.0009742281938 | BZ129: =OFFSET(Apply_Lime!$O$16,$A129,0) -> 0 | CA129: =OFFSET(Apply_Lime!$P$16,$A129,0)*CA$7 -> 0 | CB129: =OFFSET(Apply_Lime!$P$16,$A129,0)*CB$7 -> 0 | CE129: ='Site&Soil'!$F$173*EXP('Site&Soil'!$F$174*CD129) ->  | CG129: 0 | CI129: 0 | CJ129: 0 | CW129: ='Site&Soil'!$G$173*EXP('Site&Soil'!$G$174*CV129) ->  | CY129: 0 | DA129: 0 | DB129: 0 | DO129: ='Site&Soil'!$H$173*EXP('Site&Soil'!$H$174*DN129) ->  | DQ129: 0 | DS129: 0 | DT129: 0
B130: 122 | C130: Feb | H130: 6.094774281 | I130: ='Site&Soil'!$F$173*EXP('Site&Soil'!$F$174*H130) -> 0 | J130: 0.6946875 | K130: 0.1053992246 | L130: 0.0008140204253 | M130: 0 | N130: 0 | O130: 14086.70097 | P130: 0.5760512867 | Q130: 0.001146686231 | R130: 0.0001597730199 | S130: 0.001420657794 | T130: 6.096194939 | U130: 0.1362941717 | V130: 0.0005669041542 | W130: -0.0008160563623 | Z130: 5.306864417 | AA130: ='Site&Soil'!$G$173*EXP('Site&Soil'!$G$174*Z130) -> 0 | AB130: 0.790875 | AC130: 0.2369277587 | AD130: 0.01161338169 | AE130: 0 | AF130: 0 | AG130: 0.001599665203 | AH130: 6.541554338e-08 | AI130: 1.857752257e-09 | AJ130: 1.976835928e-10 | AK130: 0.0002020226711 | AL130: 5.30706644 | AM130: 0.2428511703 | AN130: 0.0003689967885 | AO130: 0.0002502384899 | AR130: 5.277088405 | AS130: ='Site&Soil'!$H$173*EXP('Site&Soil'!$H$174*AR130) -> 0 | AT130: 0.72675 | AU130: 0.4796522688 | AV130: 0.0251901579 | AW130: 0 | AX130: 0 | AY130: 0.006357381928 | AZ130: 2.59974145e-07 | BA130: 1.601434546e-08 | BB130: 1.697285756e-09 | BC130: 1.9972127e-08 | BD130: 5.277088425 | BE130: 0.4193990131 | BF130: 0.00120404393 | BG130: -0.001149015674 | CE130: ='Site&Soil'!$F$173*EXP('Site&Soil'!$F$174*CD130) ->  | CG130: 0 | CI130: 0 | CJ130: 0 | CW130: ='Site&Soil'!$G$173*EXP('Site&Soil'!$G$174*CV130) ->  | CY130: 0 | DA130: 0 | DB130: 0 | DO130: ='Site&Soil'!$H$173*EXP('Site&Soil'!$H$174*DN130) ->  | DQ130: 0 | DS130: 0 | DT130: 0
B131: 123 | C131: Mar | H131: 6.095378883 | I131: ='Site&Soil'!$F$173*EXP('Site&Soil'!$F$174*H131) -> 0 | J131: 0.6946875 | K131: 0.2096113872 | L131: 0.001616528567 | M131: 0 | N131: 0 | O131: 14058.66002 | P131: 0.5749046004 | Q131: 0.002272622553 | R131: 0.0003167793946 | S131: 0.002815428748 | T131: 6.098194311 | U131: 0.1376831107 | V131: 0.001144168147 | W131: -0.001647025673 | Z131: 5.307316678 | AA131: ='Site&Soil'!$G$173*EXP('Site&Soil'!$G$174*Z131) -> 0 | AB131: 0.790875 | AC131: 0.3678794412 | AD131: 0.0180132921 | AE131: 0 | AF131: 0 | AG131: 0.001554235913 | AH131: 6.355779112e-08 | AI131: 2.79969055e-09 | AJ131: 2.979340338e-10 | AK131: 0.0004005460994 | AL131: 5.307717224 | AM131: 0.2433658596 | AN131: 0.0005750192656 | AO131: 0.0007196445471 | AR131: 5.27593941 | AS131: ='Site&Soil'!$H$173*EXP('Site&Soil'!$H$174*AR131) -> 0 | AT131: 0.72675 | AU131: 0.6003730412 | AV131: 0.03161414745 | AW131: 0 | AX131: 0 | AY131: 0.005965768714 | AZ131: 2.439597995e-07 | BA131: 1.886026918e-08 | BB131: 1.998613671e-09 | BC131: 2.361140631e-08 | BD131: 5.275939433 | BE131: 0.4185639831 | BF131: 0.001500107806 | BG131: -0.001272911648 | CE131: ='Site&Soil'!$F$173*EXP('Site&Soil'!$F$174*CD131) ->  | CG131: 0 | CI131: 0 | CJ131: 0 | CW131: ='Site&Soil'!$G$173*EXP('Site&Soil'!$G$174*CV131) ->  | CY131: 0 | DA131: 0 | DB131: 0 | DO131: ='Site&Soil'!$H$173*EXP('Site&Soil'!$H$174*DN131) ->  | DQ131: 0 | DS131: 0 | DT131: 0
B132: 124 | C132: Apr | H132: 6.096547286 | I132: ='Site&Soil'!$F$173*EXP('Site&Soil'!$F$174*H132) -> 0 | J132: 0.6946875 | K132: 0.3678794412 | L132: 0.002829160916 | M132: 0 | N132: 0 | O132: 14003.08553 | P132: 0.5726319779 | Q132: 0.003961698229 | R132: 0.0005526389562 | S132: 0.004907327788 | T132: 6.101454614 | U132: 0.1399480018 | V132: 0.002056491097 | W132: -0.002960311071 | Z132: 5.308436869 | AA132: ='Site&Soil'!$G$173*EXP('Site&Soil'!$G$174*Z132) -> 0 | AB132: 0.790875 | AC132: 0.527292424 | AD132: 0.02575204191 | AE132: 0 | AF132: 0 | AG132: 0.001485772559 | AH132: 6.075810057e-08 | AI132: 3.826167721e-09 | AJ132: 4.072318305e-10 | AK132: 0.0006987733525 | AL132: 5.309135642 | AM132: 0.2444876509 | AN132: 0.0008306997911 | AO132: 0.001549917883 | AR132: 5.274666522 | AS132: ='Site&Soil'!$H$173*EXP('Site&Soil'!$H$174*AR132) -> 0 | AT132: 0.72675 | AU132: 0.7214222904 | AV132: 0.03810047321 | AW132: 0 | AX132: 0 | AY132: 0.005504561564 | AZ132: 2.250995303e-07 | BA132: 2.097264004e-08 | BB132: 2.222094192e-09 | BC132: 2.63608912e-08 | BD132: 5.274666548 | BE132: 0.4176389137 | BF132: 0.001793316987 | BG132: -0.001324550665 | CE132: ='Site&Soil'!$F$173*EXP('Site&Soil'!$F$174*CD132) ->  | CG132: 0 | CI132: 0 | CJ132: 0 | CW132: ='Site&Soil'!$G$173*EXP('Site&Soil'!$G$174*CV132) ->  | CY132: 0 | DA132: 0 | DB132: 0 | DO132: ='Site&Soil'!$H$173*EXP('Site&Soil'!$H$174*DN132) ->  | DQ132: 0 | DS132: 0 | DT132: 0
B133: 125 | C133: May | H133: 6.098494302 | I133: ='Site&Soil'!$F$173*EXP('Site&Soil'!$F$174*H133) -> 0 | J133: 0.6946875 | K133: 0.5697828247 | L133: 0.004361483376 | M133: 0 | N133: 0 | O133: 13906.20656 | P133: 0.5686702797 | Q133: 0.006065168871 | R133: 0.0008471399218 | S133: 0.00751133272 | T133: 6.106005635 | U133: 0.1431095397 | V133: 0.003291422048 | W133: -0.004737989452 | Z133: 5.31068556 | AA133: ='Site&Soil'!$G$173*EXP('Site&Soil'!$G$174*Z133) -> 0 | AB133: 0.790875 | AC133: 0.6976763261 | AD133: 0.03389618614 | AE133: 0 | AF133: 0 | AG133: 0.001392207833 | AH133: 5.693193285e-08 | AI133: 4.719053586e-09 | AJ133: 5.024222624e-10 | AK133: 0.001071147954 | AL133: 5.311756708 | AM133: 0.2465605863 | AN133: 0.001115152721 | AO133: 0.002751723505 | AR133: 5.273341997 | AS133: ='Site&Soil'!$H$173*EXP('Site&Soil'!$H$174*AR133) -> 0 | AT133: 0.72675 | AU133: 0.8322075007 | AV133: 0.04408642485 | AW133: 0 | AX133: 0 | AY133: 0.004991698707 | AZ133: 2.041268903e-07 | BA133: 2.200661499e-08 | BB133: 2.331247085e-09 | BC133: 2.776441716e-08 | BD133: 5.273342025 | BE133: 0.4166763167 | BF133: 0.002057654561 | BG133: -0.001296872157 | CE133: ='Site&Soil'!$F$173*EXP('Site&Soil'!$F$174*CD133) ->  | CG133: 0 | CI133: 0 | CJ133: 0 | CW133: ='Site&Soil'!$G$173*EXP('Site&Soil'!$G$174*CV133) ->  | CY133: 0 | DA133: 0 | DB133: 0 | DO133: ='Site&Soil'!$H$173*EXP('Site&Soil'!$H$174*DN133) ->  | DQ133: 0 | DS133: 0 | DT133: 0
B134: 126 | C134: Jun | H134: 6.101267646 | I134: ='Site&Soil'!$F$173*EXP('Site&Soil'!$F$174*H134) -> 0 | J134: 0.6946875 | K134: 0.7788007831 | L134: 0.005921925641 | M134: 0 | N134: 0 | O134: 13757.88952 | P134: 0.5626051108 | Q134: 0.008147319871 | R134: 0.001140030751 | S134: 0.01008696589 | T134: 6.111354612 | U134: 0.1468254068 | V134: 0.004672853912 | W134: -0.006726555339 | Z134: 5.314508431 | AA134: ='Site&Soil'!$G$173*EXP('Site&Soil'!$G$174*Z134) -> 0 | AB134: 0.790875 | AC134: 0.852143789 | AD134: 0.04103570205 | AE134: 0 | AF134: 0 | AG134: 0.001276808565 | AH134: 5.221287927e-08 | AI134: 5.239473586e-09 | AJ134: 5.581292498e-10 | AK134: 0.001441486243 | AL134: 5.315949918 | AM134: 0.2498768911 | AN134: 0.001393762882 | AO134: 0.004146155878 | AR134: 5.272045153 | AS134: ='Site&Soil'!$H$173*EXP('Site&Soil'!$H$174*AR134) -> 0 | AT134: 0.72675 | AU134: 0.9216104473 | AV134: 0.04896944919 | AW134: 0 | AX134: 0 | AY134: 0.004453551129 | AZ134: 1.821202753e-07 | BA134: 2.180879457e-08 | BB134: 2.309905333e-09 | BC134: 2.759823665e-08 | BD134: 5.27204518 | BE134: 0.4157338349 | BF134: 0.002266772531 | BG134: -0.001201251667 | CE134: ='Site&Soil'!$F$173*EXP('Site&Soil'!$F$174*CD134) ->  | CG134: 0 | CI134: 0 | CJ134: 0 | CW134: ='Site&Soil'!$G$173*EXP('Site&Soil'!$G$174*CV134) ->  | CY134: 0 | DA134: 0 | DB134: 0 | DO134: ='Site&Soil'!$H$173*EXP('Site&Soil'!$H$174*DN134) ->  | DQ134: 0 | DS134: 0 | DT134: 0
B135: 127 | C135: Jul | H135: 6.104628056 | I135: ='Site&Soil'!$F$173*EXP('Site&Soil'!$F$174*H135) -> 0 | J135: 0.6946875 | K135: 0.9394130628 | L135: 0.007085857899 | M135: 0 | N135: 0 | O135: 13558.65577 | P135: 0.5544577909 | Q135: 0.009607470807 | R135: 0.001347325076 | S135: 0.01189044819 | T135: 6.116518504 | U135: 0.1504126986 | V135: 0.005843319086 | W135: -0.008411435481 | Z135: 5.320096073 | AA135: ='Site&Soil'!$G$173*EXP('Site&Soil'!$G$174*Z135) -> 0 | AB135: 0.790875 | AC135: 0.9607894392 | AD135: 0.04567227366 | AE135: 0 | AF135: 0 | AG135: 0.001148682998 | AH135: 4.697340568e-08 | AI135: 5.246296426e-09 | AJ135: 5.59299248e-10 | AK135: 0.001703593821 | AL135: 5.321799667 | AM135: 0.2545033119 | AN135: 0.001622263236 | AO135: 0.005337197218 | AR135: 5.270843929 | AS135: ='Site&Soil'!$H$173*EXP('Site&Soil'!$H$174*AR135) -> 0 | AT135: 0.72675 | AU135: 0.9797986739 | AV135: 0.0522063151 | AW135: 0 | AX135: 0 | AY135: 0.003920241032 | AZ135: 1.603114807e-07 | BA135: 2.046613386e-08 | BB135: 2.167361328e-09 | BC135: 2.594849918e-08 | BD135: 5.270843955 | BE135: 0.4148608441 | BF135: 0.002398188128 | BG135: -0.00106766411 | CE135: ='Site&Soil'!$F$173*EXP('Site&Soil'!$F$174*CD135) ->  | CG135: 0 | CI135: 0 | CJ135: 0 | CW135: ='Site&Soil'!$G$173*EXP('Site&Soil'!$G$174*CV135) ->  | CY135: 0 | DA135: 0 | DB135: 0 | DO135: ='Site&Soil'!$H$173*EXP('Site&Soil'!$H$174*DN135) ->  | DQ135: 0 | DS135: 0 | DT135: 0
B136: 128 | C136: Aug | H136: 6.108107069 | I136: ='Site&Soil'!$F$173*EXP('Site&Soil'!$F$174*H136) -> 0 | J136: 0.6946875 | K136: 1 | L136: 0.007480151018 | M136: 0 | N136: 0 | O136: 13323.71563 | P136: 0.5448503201 | Q136: 0.009966340503 | R136: 0.001400877312 | S136: 0.01232995151 | T136: 6.120437021 | U136: 0.1531348427 | V136: 0.006390149772 | W136: -0.009198596163 | Z136: 5.327136864 | AA136: ='Site&Soil'!$G$173*EXP('Site&Soil'!$G$174*Z136) -> 0 | AB136: 0.790875 | AC136: 1 | AD136: 0.04676666473 | AE136: 0 | AF136: 0 | AG136: 0.001020390587 | AH136: 4.172710925e-08 | AI136: 4.772026446e-09 | AJ136: 5.09253506e-10 | AK136: 0.001771305927 | AL136: 5.32890817 | AM136: 0.2601252493 | AN136: 0.001754246747 | AO136: 0.005861739245 | AR136: 5.269776291 | AS136: ='Site&Soil'!$H$173*EXP('Site&Soil'!$H$174*AR136) -> 0 | AT136: 0.72675 | AU136: 1 | AV136: 0.05341462203 | AW136: 0 | AX136: 0 | AY136: 0.003419764227 | AZ136: 1.398453469e-07 | BA136: 1.826654136e-08 | BB136: 1.934160114e-09 | BC136: 2.317390403e-08 | BD136: 5.269776314 | BE136: 0.4140849361 | BF136: 0.002437057328 | BG136: -0.0009395398436 | CE136: ='Site&Soil'!$F$173*EXP('Site&Soil'!$F$174*CD136) ->  | CG136: 0 | CI136: 0 | CJ136: 0 | CW136: ='Site&Soil'!$G$173*EXP('Site&Soil'!$G$174*CV136) ->  | CY136: 0 | DA136: 0 | DB136: 0 | DO136: ='Site&Soil'!$H$173*EXP('Site&Soil'!$H$174*DN136) ->  | DQ136: 0 | DS136: 0 | DT136: 0
B137: 129 | C137: Sep | H137: 6.111238424 | I137: ='Site&Soil'!$F$173*EXP('Site&Soil'!$F$174*H137) -> 0 | J137: =((0.66+45*Soil_OC_A+0.63*I137)*0.5)*Soil_BD_A*(1-Gravel_Pct_A) -> 0.6946875 | K137: 0.9394130628 | L137: =k*(10^-H137-10^-pH_Equil)*K137*10000 -> 0.006974333761 | M137: =D137*Lime_NV_A -> 0 | N137: =D137*CaCO3_SA_A -> 0 | O137: 13079.99973 | P137: 0.5348839796 | Q137: =MAX(0,MIN(L137*O137*0.0001,(pH_Equil-H137)*J137,P137)) -> 0.009122428369 | R137: =(Lime_Leak*Q137)+MIN(Lime_Leach_Max,10^(H137-pH_Leach_A)/10^(pH_Equil-pH_Leach_A))*Q137 -> 0.001284933821 | S137: =(Q137-R137)/J137 -> 0.01128204344 | T137: =H137+S137 -> 6.122520468 | U137: =MAX(0,(T137-MAX(pH_Leach_A,pH_Initial_A))*J137) -> 0.1545821875 | V137: =K137*(MIN(Alkali_Leach_Max,(10^(T137-pH_Leach_A)/10^(pH_Equil-pH_Leach_A)))*U137) -> 0.00608886733 | W137: =-V137/J137 -> -0.008764901239 | Z137: 5.33476991 | AA137: ='Site&Soil'!$G$173*EXP('Site&Soil'!$G$174*Z137) -> 0 | AB137: =((0.66+45*Soil_OC_B+0.63*AA137)*0.5)*Soil_BD_B*(1-Gravel_Pct_B) -> 0.790875 | AC137: 0.9607894392 | AD137: =k*(10^-Z137-10^-pH_Equil)*AC137*10000 -> 0.04414479468 | AE137: =E137*Lime_NV_A -> 0 | AF137: =E137*CaCO3_SA_A -> 0 | AG137: 0.0009036959257 | AH137: 3.695508281e-08 | AI137: =MAX(0,MIN(AD137*AG137*0.0001,(pH_Equil-Z137)*AB137,AH137)) -> 3.989347109e-09 | AJ137: =(Lime_Leak*AI137)+MIN(Lime_Leach_Max,10^(Z137-pH_Leach_B)/10^(pH_Equil-pH_Leach_B))*AI137 -> 4.262038694e-10 | AK137: =(R137+AI137-AJ137)/AB137 -> 0.001624703504 | AL137: =Z137+AK137 -> 5.336394613 | AM137: =MAX(0,(AL137-MAX(pH_Leach_B,pH_Initial_B))*AB137) -> 0.2660460897 | AN137: =AC137*(MIN(Alkali_Leach_Max,(10^(AL137-pH_Leach_B)/10^(pH_Equil-pH_Leach_B)))*AM137) -> 0.00175379858 | AO137: =(V137-AN137)/AB137 -> 0.005481357673 | AR137: 5.268836774 | AS137: ='Site&Soil'!$H$173*EXP('Site&Soil'!$H$174*AR137) -> 0 | AT137: =((0.66+45*Soil_OC_C+0.63*AS137)*0.5)*Soil_BD_C*(1-Gravel_Pct_C) -> 0.72675 | AU137: 0.9797986739 | AV137: =k*(10^-AR137-10^-pH_Equil)*AU137*10000 -> 0.05244958784 | AW137: =F137*Lime_NV_A -> 0 | AX137: =F137*CaCO3_SA_A -> 0 | AY137: 0.002973076038 | AZ137: 1.215788055e-07 | BA137: =MAX(0,MIN(AV137*AY137*0.0001,(pH_Equil-AR137)*AT137,AZ137)) -> 1.559366128e-08 | BB137: =(Lime_Leak*BA137)+MIN(Lime_Leach_Max,10^(AR137-pH_Leach_C)/10^(pH_Equil-pH_Leach_C))*BA137 -> 1.650942803e-09 | BC137: =(AJ137+BA137-BB137)/AT137 -> 1.977147898e-08 | BD137: =AR137+BC137 -> 5.268836794 | BE137: =MAX(0,(BD137-MAX(pH_Leach_C,pH_Initial_C))*AT137) -> 0.4134021398 | BF137: =AU137*(MIN(Alkali_Leach_Max,(10^(BD137-pH_Leach_C)/10^(pH_Equil-pH_Leach_C)))*BE137) -> 0.002378736636 | BG137: =(AN137-BF137)/AT137 -> -0.0008599078859 | CE137: ='Site&Soil'!$F$173*EXP('Site&Soil'!$F$174*CD137) ->  | CF137: =((0.66+45*Soil_OC_A+0.63*CE137)*0.5)*Soil_BD_A*(1-Gravel_Pct_A) ->  | CG137: 0 | CH137: =k*(10^-CD137-10^-pH_Equil)*CG137*10000 ->  | CI137: =BZ137*Lime_NV_B -> 0 | CJ137: =BZ137*CaCO3_SA_B -> 0 | CM137: =MAX(0,MIN(CH137*CK137*0.0001,(pH_Equil-CD137)*CF137,CL137)) ->  | CN137: =(Lime_Leak*CM137)+MIN(Lime_Leach_Max,10^(CD137-pH_Leach_A)/10^(pH_Equil-pH_Leach_A))*CM137 ->  | CO137: =(CM137-CN137)/CF137 ->  | CP137: =CD137+CO137 ->  | CQ137: =MAX(0,(CP137-MAX(pH_Leach_A,pH_Initial_A))*CF137) ->  | CR137: =CG137*(MIN(Alkali_Leach_Max,(10^(CP137-pH_Leach_A)/10^(pH_Equil-pH_Leach_A)))*CQ137) ->  | CS137: =-CR137/CF137 ->  | CW137: ='Site&Soil'!$G$173*EXP('Site&Soil'!$G$174*CV137) ->  | CX137: =((0.66+45*Soil_OC_B+0.63*CW137)*0.5)*Soil_BD_B*(1-Gravel_Pct_B) ->  | CY137: 0 | CZ137: =k*(10^-CV137-10^-pH_Equil)*CY137*10000 ->  | DA137: =CA137*Lime_NV_B -> 0 | DB137: =CA137*CaCO3_SA_B -> 0 | DE137: =MAX(0,MIN(CZ137*DC137*0.0001,(pH_Equil-CV137)*CX137,DD137)) ->  | DF137: =(Lime_Leak*DE137)+MIN(Lime_Leach_Max,10^(CV137-pH_Leach_B)/10^(pH_Equil-pH_Leach_B))*DE137 ->  | DG137: =(CN137+DE137-DF137)/CX137 ->  | DH137: =CV137+DG137 ->  | DI137: =MAX(0,(DH137-MAX(pH_Leach_B,pH_Initial_B))*CX137) ->  | DJ137: =CY137*(MIN(Alkali_Leach_Max,(10^(DH137-pH_Leach_B)/10^(pH_Equil-pH_Leach_B)))*DI137) ->  | DK137: =(CR137-DJ137)/CX137 ->  | DO137: ='Site&Soil'!$H$173*EXP('Site&Soil'!$H$174*DN137) ->  | DP137: =((0.66+45*Soil_OC_C+0.63*DO137)*0.5)*Soil_BD_C*(1-Gravel_Pct_C) ->  | DQ137: 0 | DR137: =k*(10^-DN137-10^-pH_Equil)*DQ137*10000 ->  | DS137: =CB137*Lime_NV_B -> 0 | DT137: =CB137*CaCO3_SA_B -> 0 | DW137: =MAX(0,MIN(DR137*DU137*0.0001,(pH_Equil-DN137)*DP137,DV137)) ->  | DX137: =(Lime_Leak*DW137)+MIN(Lime_Leach_Max,10^(DN137-pH_Leach_C)/10^(pH_Equil-pH_Leach_C))*DW137 ->  | DY137: =(DF137+DW137-DX137)/DP137 ->  | DZ137: =DN137+DY137 ->  | EA137: =MAX(0,(DZ137-MAX(pH_Leach_C,pH_Initial_C))*DP137) ->  | EB137: =DQ137*(MIN(Alkali_Leach_Max,(10^(DZ137-pH_Leach_C)/10^(pH_Equil-pH_Leach_C)))*EA137) ->  | EC137: =(DJ137-EB137)/DP137 -> 
B138: 130 | C138: Oct | H138: 6.113755567 | I138: ='Site&Soil'!$F$173*EXP('Site&Soil'!$F$174*H138) -> 0 | J138: 0.6946875 | K138: 0.7788007831 | L138: 0.00574708775 | M138: 0 | N138: 0 | O138: =N138+IF(P137-Q137=0,0,(O137*(1-Q137/P137))) -> 12856.92077 | P138: =P137-Q137+M138 -> 0.5257615512 | Q138: 0.007388985187 | R138: 0.0010425255 | S138: 0.009135704452 | T138: 6.122891271 | U138: 0.1548397798 | V138: 0.005060578845 | W138: -0.007284683897 | X138: =-'Profit Calculator'!P$29*'Quantity of Lime to Apply'!H$9 -> 0 | Z138: 5.341875971 | AA138: ='Site&Soil'!$G$173*EXP('Site&Soil'!$G$174*Z138) -> 0 | AB138: 0.790875 | AC138: 0.852143789 | AD138: 0.03851312768 | AE138: 0 | AF138: 0 | AG138: =AF138+IF(AH137-AI137=0,0,(AG137*(1-AI137/AH137))) -> 0.0008061408276 | AH138: =AH137-AI137+AE138 -> 3.29657357e-08 | AI138: 3.104700462e-09 | AJ138: 3.320423077e-10 | AK138: 0.001318196015 | AL138: 5.343194167 | AM138: 0.2714236867 | AN138: 0.001611961983 | AO138: 0.004360508123 | AP138: =-'Profit Calculator'!$P$29*'Quantity of Lime to Apply'!$H$19 -> 0 | AR138: 5.267976886 | AS138: ='Site&Soil'!$H$173*EXP('Site&Soil'!$H$174*AR138) -> 0 | AT138: 0.72675 | AU138: 0.9216104473 | AV138: 0.04943307018 | AW138: 0 | AX138: 0 | AY138: =AX138+IF(AZ137-BA137=0,0,(AY137*(1-BA137/AZ137))) -> 0.002591750193 | AZ138: =AZ137-BA137+AW138 -> 1.059851442e-07 | BA138: 1.281181692e-08 | BB138: 1.356272644e-09 | BC138: 1.621958938e-08 | BD138: 5.267976902 | BE138: 0.4127772136 | BF138: 0.002229667001 | BG138: -0.0008499553057 | BH138: 0.02 | BJ138: =BJ126+1 -> 11 | BK138: =AVERAGE(H133:H138) -> 6.106248511 | BL138: =AVERAGE(Z133:Z138) -> 5.324845468 | BM138: =AVERAGE(AR133:AR138) -> 5.270470172 | CD138: =CP137+CS137+CT137 ->  | CE138: ='Site&Soil'!$F$173*EXP('Site&Soil'!$F$174*CD138) ->  | CG138: 0 | CI138: 0 | CJ138: 0 | CK138: =CJ138+IF(CL137-CM137=0,0,(CK137*(1-CM137/CL137))) ->  | CL138: =CL137-CM137+CI138 ->  | CV138: =DH137+DK137+DL137 ->  | CW138: ='Site&Soil'!$G$173*EXP('Site&Soil'!$G$174*CV138) ->  | CY138: 0 | DA138: 0 | DB138: 0 | DC138: =DB138+IF(DD137-DE137=0,0,(DC137*(1-DE137/DD137))) ->  | DD138: =DD137-DE137+DA138 ->  | DN138: =DZ137+EC137+ED137 ->  | DO138: ='Site&Soil'!$H$173*EXP('Site&Soil'!$H$174*DN138) ->  | DQ138: 0 | DS138: 0 | DT138: 0 | DU138: =DT138+IF(DV137-DW137=0,0,(DU137*(1-DW137/DV137))) ->  | DV138: =DV137-DW137+DS138 ->  | EF138: =EF126+1 -> 11 | EG138: =AVERAGE(CD133:CD138) ->  | EH138: =AVERAGE(CV133:CV138) ->  | EI138: =AVERAGE(DN133:DN138) -> 
B139: 131 | C139: Nov | H139: =T138+W138+X138 -> 6.115606587 | I139: ='Site&Soil'!$F$173*EXP('Site&Soil'!$F$174*H139) -> 0 | J139: 0.6946875 | K139: 0.5697828247 | L139: 0.004186010219 | M139: 0 | N139: 0 | O139: 12676.23126 | P139: 0.5183725661 | Q139: 0.00530628336 | R139: 0.0007496045915 | S139: 0.006559321664 | T139: 6.122165909 | U139: 0.1543358797 | V139: 0.003684191231 | W139: -0.00530337919 | Z139: =AL138+AO138+AP138 -> 5.347554675 | AA139: ='Site&Soil'!$G$173*EXP('Site&Soil'!$G$174*Z139) -> 0 | AB139: 0.790875 | AC139: 0.6976763261 | AD139: 0.03111939842 | AE139: 0 | AF139: 0 | AG139: 0.0007302187908 | AH139: 2.986103524e-08 | AI139: 2.272396949e-09 | AJ139: 2.432367069e-10 | AK139: 0.0009478193402 | AL139: 5.348502494 | AM139: 0.2756219102 | AN139: 0.001356657497 | AO139: 0.002942985597 | AR139: =BD138+BG138+BH138 -> 5.287126947 | AS139: ='Site&Soil'!$H$173*EXP('Site&Soil'!$H$174*AR139) -> 0 | AT139: 0.72675 | AU139: 0.8322075007 | AV139: 0.04270083002 | AW139: 0 | AX139: 0 | AY139: 0.002278451294 | AZ139: 9.317332729e-08 | BA139: 9.729176144e-09 | BB139: 1.03251168e-09 | BC139: 1.23012056e-08 | BD139: 5.287126959 | BE139: 0.4266945175 | BF139: 0.002175082066 | BG139: -0.001126143198 | CE139: ='Site&Soil'!$F$173*EXP('Site&Soil'!$F$174*CD139) ->  | CG139: 0 | CI139: 0 | CJ139: 0 | CW139: ='Site&Soil'!$G$173*EXP('Site&Soil'!$G$174*CV139) ->  | CY139: 0 | DA139: 0 | DB139: 0 | DO139: ='Site&Soil'!$H$173*EXP('Site&Soil'!$H$174*DN139) ->  | DQ139: 0 | DS139: 0 | DT139: 0
B140: 132 | C140: Dec | H140: 6.11686253 | I140: ='Site&Soil'!$F$173*EXP('Site&Soil'!$F$174*H140) -> 0 | J140: 0.6946875 | K140: 0.3678794412 | L140: 0.002694550727 | M140: 0 | N140: 0 | O140: 12546.47193 | P140: 0.5130662827 | Q140: 0.003380710508 | R140: 0.0004779880599 | S140: 0.004178457865 | T140: 6.121040987 | U140: 0.153554411 | V140: 0.002360526074 | W140: -0.003397968258 | Z140: 5.35144548 | AA140: ='Site&Soil'!$G$173*EXP('Site&Soil'!$G$174*Z140) -> 0 | AB140: 0.790875 | AC140: 0.527292424 | AD140: 0.02330827986 | AE140: 0 | AF140: 0 | AG140: 0.0006746498214 | AH140: 2.758863829e-08 | AI140: 1.572492684e-09 | AJ140: 1.684187782e-10 | AK140: 0.0006043805455 | AL140: 5.35204986 | AM140: 0.2784274334 | AN140: 0.001044271477 | AO140: 0.001664301687 | AR140: 5.286000816 | AS140: ='Site&Soil'!$H$173*EXP('Site&Soil'!$H$174*AR140) -> 0 | AT140: 0.72675 | AU140: 0.7214222904 | AV140: 0.03711310671 | AW140: 0 | AX140: 0 | AY140: 0.002040534987 | AZ140: 8.344415115e-08 | BA140: 7.573059272e-09 | BB140: 8.035730158e-10 | BC140: 9.546480956e-09 | BD140: 5.286000825 | BE140: 0.4258760999 | BF140: 0.001877040531 | BG140: -0.001145881051 | CE140: ='Site&Soil'!$F$173*EXP('Site&Soil'!$F$174*CD140) ->  | CG140: 0 | CI140: 0 | CJ140: 0 | CW140: ='Site&Soil'!$G$173*EXP('Site&Soil'!$G$174*CV140) ->  | CY140: 0 | DA140: 0 | DB140: 0 | DO140: ='Site&Soil'!$H$173*EXP('Site&Soil'!$H$174*DN140) ->  | DQ140: 0 | DS140: 0 | DT140: 0
A141: =A129+1 -> 12 | B141: 133 | C141: Jan | D141: =OFFSET(Apply_Lime!$H$16,$A141,0) -> 0 | E141: =OFFSET(Apply_Lime!$I$16,$A141,0)*E$7 -> 0 | F141: =OFFSET(Apply_Lime!$I$16,$A141,0)*F$7 -> 0 | H141: 6.117643019 | I141: ='Site&Soil'!$F$173*EXP('Site&Soil'!$F$174*H141) -> 0 | J141: 0.6946875 | K141: 0.04677062238 | L141: 0.0003419320242 | M141: 0 | N141: 0 | O141: 12463.80038 | P141: 0.5096855722 | Q141: 0.0004261772491 | R141: 6.028759193e-05 | S141: 0.0005266967625 | T141: 6.118169716 | U141: 0.1515597745 | V141: 0.0002942570086 | W141: -0.0004235818388 | Z141: 5.353714162 | AA141: ='Site&Soil'!$G$173*EXP('Site&Soil'!$G$174*Z141) -> 0 | AB141: 0.790875 | AC141: 0.1408584209 | AD141: 0.00619379109 | AE141: 0 | AF141: 0 | AG141: 0.0006361962414 | AH141: 2.60161456e-08 | AI141: 3.940466611e-10 | AJ141: 4.221826261e-11 | AK141: 7.622942154e-05 | AL141: 5.353790392 | AM141: 0.2798039759 | AN141: 0.0002814667435 | AO141: 1.617229669e-05 | AR141: 5.284854944 | AS141: ='Site&Soil'!$H$173*EXP('Site&Soil'!$H$174*AR141) -> 0 | AT141: 0.72675 | AU141: 0.3678794412 | AV141: 0.01897562885 | AW141: 0 | AX141: 0 | AY141: 0.001855344147 | AZ141: 7.587109188e-08 | BA141: 3.520632194e-09 | BB141: 3.735156053e-10 | BC141: 4.388489647e-09 | BD141: 5.284854949 | BE141: 0.425043334 | BF141: 0.0009527822907 | BG141: -0.0009237228031 | BZ141: =OFFSET(Apply_Lime!$O$16,$A141,0) -> 0 | CA141: =OFFSET(Apply_Lime!$P$16,$A141,0)*CA$7 -> 0 | CB141: =OFFSET(Apply_Lime!$P$16,$A141,0)*CB$7 -> 0 | CE141: ='Site&Soil'!$F$173*EXP('Site&Soil'!$F$174*CD141) ->  | CG141: 0 | CI141: 0 | CJ141: 0 | CW141: ='Site&Soil'!$G$173*EXP('Site&Soil'!$G$174*CV141) ->  | CY141: 0 | DA141: 0 | DB141: 0 | DO141: ='Site&Soil'!$H$173*EXP('Site&Soil'!$H$174*DN141) ->  | DQ141: 0 | DS141: 0 | DT141: 0
B142: 134 | C142: Feb | H142: 6.117746134 | I142: ='Site&Soil'!$F$173*EXP('Site&Soil'!$F$174*H142) -> 0 | J142: 0.6946875 | K142: 0.1053992246 | L142: 0.0007703648667 | M142: 0 | N142: 0 | O142: 12453.37868 | P142: 0.5092593949 | Q142: 0.0009593645406 | R142: 0.0001357224099 | S142: 0.001185629698 | T142: 6.118931764 | U142: 0.1520891597 | V142: 0.0006666032701 | W142: -0.0009595728585 | Z142: 5.353806564 | AA142: ='Site&Soil'!$G$173*EXP('Site&Soil'!$G$174*Z142) -> 0 | AB142: 0.790875 | AC142: 0.2369277587 | AD142: 0.01041589558 | AE142: 0 | AF142: 0 | AG142: 0.0006265602635 | AH142: 2.562209894e-08 | AI142: 6.526186277e-10 | AJ142: 6.992272246e-11 | AK142: 0.0001716111808 | AL142: 5.353978175 | AM142: 0.2799524892 | AN142: 0.0004738909931 | AO142: 0.0002436697038 | AR142: 5.283931226 | AS142: ='Site&Soil'!$H$173*EXP('Site&Soil'!$H$174*AR142) -> 0 | AT142: 0.72675 | AU142: 0.4796522688 | AV142: 0.02479399662 | AW142: 0 | AX142: 0 | AY142: 0.001769250957 | AZ142: 7.235045968e-08 | BA142: 4.386680226e-09 | BB142: 4.653407363e-10 | BC142: 5.491932869e-09 | BD142: 5.283931231 | BE142: 0.4243720224 | BF142: 0.001237668902 | BG142: -0.001050949995 | CE142: ='Site&Soil'!$F$173*EXP('Site&Soil'!$F$174*CD142) ->  | CG142: 0 | CI142: 0 | CJ142: 0 | CW142: ='Site&Soil'!$G$173*EXP('Site&Soil'!$G$174*CV142) ->  | CY142: 0 | DA142: 0 | DB142: 0 | DO142: ='Site&Soil'!$H$173*EXP('Site&Soil'!$H$174*DN142) ->  | DQ142: 0 | DS142: 0 | DT142: 0
B143: 135 | C143: Mar | H143: 6.117972191 | I143: ='Site&Soil'!$F$173*EXP('Site&Soil'!$F$174*H143) -> 0 | J143: 0.6946875 | K143: 0.2096113872 | L143: 0.001531221733 | M143: 0 | N143: 0 | O143: 12429.91847 | P143: 0.5083000304 | Q143: 0.00190329613 | R143: 0.0002693025984 | S143: 0.002352127442 | T143: 6.120324318 | U143: 0.1530565499 | V143: 0.00133841597 | W143: -0.001926644671 | Z143: 5.354221845 | AA143: ='Site&Soil'!$G$173*EXP('Site&Soil'!$G$174*Z143) -> 0 | AB143: 0.790875 | AC143: 0.3678794412 | AD143: 0.01615726767 | AE143: 0 | AF143: 0 | AG143: 0.0006106011924 | AH143: 2.496948032e-08 | AI143: 9.865646904e-10 | AJ143: 1.057090392e-10 | AK143: 0.0003405133292 | AL143: 5.354562358 | AM143: 0.280414505 | AN143: 0.0007380203731 | AO143: 0.0007591535919 | AR143: 5.282880281 | AS143: ='Site&Soil'!$H$173*EXP('Site&Soil'!$H$174*AR143) -> 0 | AT143: 0.72675 | AU143: 0.6003730412 | AV143: 0.03110989772 | AW143: 0 | AX143: 0 | AY143: 0.001661979515 | AZ143: 6.796377946e-08 | BA143: 5.170401271e-09 | BB143: 5.484021835e-10 | BC143: 6.505274341e-09 | BD143: 5.282880288 | BE143: 0.4236082493 | BF143: 0.001542644587 | BG143: -0.001107154061 | CE143: ='Site&Soil'!$F$173*EXP('Site&Soil'!$F$174*CD143) ->  | CG143: 0 | CI143: 0 | CJ143: 0 | CW143: ='Site&Soil'!$G$173*EXP('Site&Soil'!$G$174*CV143) ->  | CY143: 0 | DA143: 0 | DB143: 0 | DO143: ='Site&Soil'!$H$173*EXP('Site&Soil'!$H$174*DN143) ->  | DQ143: 0 | DS143: 0 | DT143: 0
B144: 136 | C144: Apr | H144: 6.118397674 | I144: ='Site&Soil'!$F$173*EXP('Site&Soil'!$F$174*H144) -> 0 | J144: 0.6946875 | K144: 0.3678794412 | L144: 0.002684632353 | M144: 0 | N144: 0 | O144: 12383.37546 | P144: 0.5063967343 | Q144: 0.00332448104 | R144: 0.0004705251649 | S144: 0.004108258569 | T144: 6.122505932 | U144: 0.1545720898 | V144: 0.002384199151 | W144: -0.003432045562 | Z144: 5.355321512 | AA144: ='Site&Soil'!$G$173*EXP('Site&Soil'!$G$174*Z144) -> 0 | AB144: 0.790875 | AC144: 0.527292424 | AD144: 0.02309969994 | AE144: 0 | AF144: 0 | AG144: 0.0005864758374 | AH144: 2.398291562e-08 | AI144: 1.354741587e-09 | AJ144: 1.451832363e-10 | AK144: 0.0005949440486 | AL144: 5.355916456 | AM144: 0.2814854269 | AN144: 0.001065182206 | AO144: 0.001667794463 | AR144: 5.281773134 | AS144: ='Site&Soil'!$H$173*EXP('Site&Soil'!$H$174*AR144) -> 0 | AT144: 0.72675 | AU144: 0.7214222904 | AV144: 0.03747838369 | AW144: 0 | AX144: 0 | AY144: 0.001535543035 | AZ144: 6.279337819e-08 | BA144: 5.754967105e-09 | BB144: 6.103156852e-10 | BC144: 7.278754256e-09 | BD144: 5.281773141 | BE144: 0.4228036303 | BF144: 0.001845446272 | BG144: -0.001073634766 | CE144: ='Site&Soil'!$F$173*EXP('Site&Soil'!$F$174*CD144) ->  | CG144: 0 | CI144: 0 | CJ144: 0 | CW144: ='Site&Soil'!$G$173*EXP('Site&Soil'!$G$174*CV144) ->  | CY144: 0 | DA144: 0 | DB144: 0 | DO144: ='Site&Soil'!$H$173*EXP('Site&Soil'!$H$174*DN144) ->  | DQ144: 0 | DS144: 0 | DT144: 0
B145: 137 | C145: May | H145: 6.119073887 | I145: ='Site&Soil'!$F$173*EXP('Site&Soil'!$F$174*H145) -> 0 | J145: 0.6946875 | K145: 0.5697828247 | L145: 0.00415129041 | M145: 0 | N145: 0 | O145: 12302.07893 | P145: 0.5030722532 | Q145: 0.005106950229 | R145: 0.000723134641 | S145: 0.006310485776 | T145: 6.125384373 | U145: 0.1565717063 | V145: 0.003765364388 | W145: -0.005420227639 | Z145: 5.35758425 | AA145: ='Site&Soil'!$G$173*EXP('Site&Soil'!$G$174*Z145) -> 0 | AB145: 0.790875 | AC145: 0.6976763261 | AD145: 0.03040392682 | AE145: 0 | AF145: 0 | AG145: 0.0005533471212 | AH145: 2.262817404e-08 | AI145: 1.682392538e-09 | AJ145: 1.803595039e-10 | AK145: 0.0009143494775 | AL145: 5.3584986 | AM145: 0.28352758 | AN145: 0.001428064743 | AO145: 0.002955333833 | AR145: 5.280699506 | AS145: ='Site&Soil'!$H$173*EXP('Site&Soil'!$H$174*AR145) -> 0 | AT145: 0.72675 | AU145: 0.8322075007 | AV145: 0.04334141405 | AW145: 0 | AX145: 0 | AY145: 0.001394811641 | AZ145: 5.703841108e-08 | BA145: 6.045310887e-09 | BB145: 6.410164075e-10 | BC145: 7.684422405e-09 | BD145: 5.280699514 | BE145: 0.4220233719 | BF145: 0.002119667021 | BG145: -0.0009516371213 | CE145: ='Site&Soil'!$F$173*EXP('Site&Soil'!$F$174*CD145) ->  | CG145: 0 | CI145: 0 | CJ145: 0 | CW145: ='Site&Soil'!$G$173*EXP('Site&Soil'!$G$174*CV145) ->  | CY145: 0 | DA145: 0 | DB145: 0 | DO145: ='Site&Soil'!$H$173*EXP('Site&Soil'!$H$174*DN145) ->  | DQ145: 0 | DS145: 0 | DT145: 0
B146: 138 | C146: Jun | H146: 6.119964145 | I146: ='Site&Soil'!$F$173*EXP('Site&Soil'!$F$174*H146) -> 0 | J146: 0.6946875 | K146: 0.7788007831 | L146: 0.005662017429 | M146: 0 | N146: 0 | O146: 12177.19408 | P146: 0.497965303 | Q146: 0.006894748509 | R146: 0.0009768720786 | S146: 0.008518760494 | T146: 6.128482905 | U146: 0.1587242183 | V146: 0.005254755118 | W146: -0.007564199899 | Z146: 5.361453933 | AA146: ='Site&Soil'!$G$173*EXP('Site&Soil'!$G$174*Z146) -> 0 | AB146: 0.790875 | AC146: 0.852143789 | AD146: 0.03680363246 | AE146: 0 | AF146: 0 | AG146: 0.0005122060611 | AH146: 2.09457815e-08 | AI146: 1.885104362e-09 | AJ146: 2.022126056e-10 | AK146: 0.001235180985 | AL146: 5.362689114 | AM146: 0.2868417534 | AN146: 0.001781740148 | AO146: 0.004391357635 | AR146: 5.279747877 | AS146: ='Site&Soil'!$H$173*EXP('Site&Soil'!$H$174*AR146) -> 0 | AT146: 0.72675 | AU146: 0.9216104473 | AV146: 0.04810345177 | AW146: 0 | AX146: 0 | AY146: 0.001246980209 | AZ146: 5.09931002e-08 | BA146: 5.998405234e-09 | BB146: 6.359635124e-10 | BC146: 7.656903099e-09 | BD146: 5.279747885 | BE146: 0.4213317751 | BF146: 0.002338403686 | BG146: -0.0007659629013 | CE146: ='Site&Soil'!$F$173*EXP('Site&Soil'!$F$174*CD146) ->  | CG146: 0 | CI146: 0 | CJ146: 0 | CW146: ='Site&Soil'!$G$173*EXP('Site&Soil'!$G$174*CV146) ->  | CY146: 0 | DA146: 0 | DB146: 0 | DO146: ='Site&Soil'!$H$173*EXP('Site&Soil'!$H$174*DN146) ->  | DQ146: 0 | DS146: 0 | DT146: 0
B147: 139 | C147: Jul | H147: 6.120918705 | I147: ='Site&Soil'!$F$173*EXP('Site&Soil'!$F$174*H147) -> 0 | J147: 0.6946875 | K147: 0.9394130628 | L147: 0.006814049574 | M147: 0 | N147: 0 | O147: 12008.59058 | P147: 0.4910705545 | Q147: 0.008182713153 | R147: 0.001160105926 | S147: 0.01010901625 | T147: 6.131027722 | U147: 0.1604920704 | V147: 0.006446706467 | W147: -0.00928000931 | Z147: 5.367080472 | AA147: ='Site&Soil'!$G$173*EXP('Site&Soil'!$G$174*Z147) -> 0 | AB147: 0.790875 | AC147: 0.9607894392 | AD147: 0.0409579317 | AE147: 0 | AF147: 0 | AG147: 0.0004661079062 | AH147: 1.906067714e-08 | AI147: 1.909081579e-09 | AJ147: 2.049655564e-10 | AK147: 0.001466865977 | AL147: 5.368547338 | AM147: 0.291474876 | AN147: 0.002069077152 | AO147: 0.005535172202 | AR147: 5.278981922 | AS147: ='Site&Soil'!$H$173*EXP('Site&Soil'!$H$174*AR147) -> 0 | AT147: 0.72675 | AU147: 0.9797986739 | AV147: 0.05123140791 | AW147: 0 | AX147: 0 | AY147: 0.001100295803 | AZ147: 4.499469496e-08 | BA147: 5.636970311e-09 | BB147: 5.975836055e-10 | BC147: 7.216170982e-09 | BD147: 5.278981929 | BE147: 0.4207751169 | BF147: 0.002478385306 | BG147: -0.0005632035135 | CE147: ='Site&Soil'!$F$173*EXP('Site&Soil'!$F$174*CD147) ->  | CG147: 0 | CI147: 0 | CJ147: 0 | CW147: ='Site&Soil'!$G$173*EXP('Site&Soil'!$G$174*CV147) ->  | CY147: 0 | DA147: 0 | DB147: 0 | DO147: ='Site&Soil'!$H$173*EXP('Site&Soil'!$H$174*DN147) ->  | DQ147: 0 | DS147: 0 | DT147: 0
B148: 140 | C148: Aug | H148: 6.121747712 | I148: ='Site&Soil'!$F$173*EXP('Site&Soil'!$F$174*H148) -> 0 | J148: 0.6946875 | K148: 1 | L148: 0.007239082219 | M148: 0 | N148: 0 | O148: 11808.49133 | P148: 0.4828878413 | Q148: 0.008548263959 | R148: 0.001212614286 | S148: 0.01055963966 | T148: 6.132307352 | U148: 0.1613810136 | V148: 0.006920855647 | W148: -0.009962545242 | Z148: 5.37408251 | AA148: ='Site&Soil'!$G$173*EXP('Site&Soil'!$G$174*Z148) -> 0 | AB148: 0.790875 | AC148: 1 | AD148: 0.04194260427 | AE148: 0 | AF148: 0 | AG148: 0.0004194234148 | AH148: 1.715159556e-08 | AI148: 1.759171031e-09 | AJ148: 1.89081185e-10 | AK148: 0.00153325855 | AL148: 5.375615769 | AM148: 0.2970651212 | AN148: 0.002230834912 | AO148: 0.005930166885 | AR148: 5.278418725 | AS148: ='Site&Soil'!$H$173*EXP('Site&Soil'!$H$174*AR148) -> 0 | AT148: 0.72675 | AU148: 1 | AV148: 0.05235594996 | AW148: 0 | AX148: 0 | AY148: 0.0009624498907 | AZ148: 3.935772465e-08 | BA148: 5.038997832e-09 | BB148: 5.341523965e-10 | BC148: 6.458791359e-09 | BD148: 5.278418732 | BE148: 0.4203658134 | BF148: 0.002523748776 | BG148: -0.0004030462518 | CE148: ='Site&Soil'!$F$173*EXP('Site&Soil'!$F$174*CD148) ->  | CG148: 0 | CI148: 0 | CJ148: 0 | CW148: ='Site&Soil'!$G$173*EXP('Site&Soil'!$G$174*CV148) ->  | CY148: 0 | DA148: 0 | DB148: 0 | DO148: ='Site&Soil'!$H$173*EXP('Site&Soil'!$H$174*DN148) ->  | DQ148: 0 | DS148: 0 | DT148: 0
B149: 141 | C149: Sep | H149: 6.122344807 | I149: ='Site&Soil'!$F$173*EXP('Site&Soil'!$F$174*H149) -> 0 | J149: 0.6946875 | K149: =K137 -> 0.9394130628 | L149: 0.006790736952 | M149: 0 | N149: 0 | O149: 11599.45293 | P149: 0.4743395774 | Q149: 0.007876883362 | R149: 0.001117829153 | S149: 0.00972963269 | T149: 6.13207444 | U149: 0.1612192122 | V149: 0.006491541368 | W149: -0.009344548977 | Z149: 5.381545936 | AA149: ='Site&Soil'!$G$173*EXP('Site&Soil'!$G$174*Z149) -> 0 | AB149: 0.790875 | AC149: =AC137 -> 0.9607894392 | AD149: 0.03960622291 | AE149: 0 | AF149: 0 | AG149: 0.0003764048211 | AH149: 1.539242453e-08 | AI149: 1.490797325e-09 | AJ149: 1.60428914e-10 | AK149: 0.00141340981 | AL149: 5.382959346 | AM149: 0.3028729724 | AN149: 0.002222532324 | AO149: 0.005397830306 | AR149: 5.278015686 | AS149: ='Site&Soil'!$H$173*EXP('Site&Soil'!$H$174*AR149) -> 0 | AT149: 0.72675 | AU149: =AU137 -> 0.9797986739 | AV149: 0.05134620664 | AW149: 0 | AX149: 0 | AY149: 0.0008392267381 | AZ149: 3.431872682e-08 | BA149: 4.309110951e-09 | BB149: 4.567576915e-10 | BC149: 5.521544098e-09 | BD149: 5.278015691 | BE149: 0.4200729035 | BF149: 0.002468750535 | BG149: -0.0003387935476 | CE149: ='Site&Soil'!$F$173*EXP('Site&Soil'!$F$174*CD149) ->  | CG149: =CG137 -> 0 | CI149: 0 | CJ149: 0 | CW149: ='Site&Soil'!$G$173*EXP('Site&Soil'!$G$174*CV149) ->  | CY149: =CY137 -> 0 | DA149: 0 | DB149: 0 | DO149: ='Site&Soil'!$H$173*EXP('Site&Soil'!$H$174*DN149) ->  | DQ149: =DQ137 -> 0 | DS149: 0 | DT149: 0
B150: 142 | C150: Oct | H150: 6.122729891 | I150: ='Site&Soil'!$F$173*EXP('Site&Soil'!$F$174*H150) -> 0 | J150: 0.6946875 | K150: 0.7788007831 | L150: 0.0056245108 | M150: 0 | N150: 0 | O150: 11406.8324 | P150: 0.466462694 | Q150: 0.006415785205 | R150: 0.0009107194242 | S150: 0.007924521143 | T150: 6.130654412 | U150: 0.1602327366 | V150: 0.005331286738 | W150: -0.007674366874 | X150: 0.02 | Z150: 5.388357176 | AA150: ='Site&Soil'!$G$173*EXP('Site&Soil'!$G$174*Z150) -> 0 | AB150: 0.790875 | AC150: 0.852143789 | AD150: 0.03457675111 | AE150: 0 | AF150: 0 | AG150: 0.0003399490113 | AH150: 1.39016272e-08 | AI150: 1.175433236e-09 | AJ150: 1.266331406e-10 | AK150: 0.001151535291 | AL150: 5.389508711 | AM150: 0.3080527019 | AN150: 0.002035385219 | AO150: 0.004167411435 | AP150: 0.02 | AR150: 5.277676898 | AS150: ='Site&Soil'!$H$173*EXP('Site&Soil'!$H$174*AR150) -> 0 | AT150: 0.72675 | AU150: 0.9216104473 | AV150: 0.04833477906 | AW150: 0 | AX150: 0 | AY150: 0.0007338521668 | AZ150: 3.000961587e-08 | BA150: 3.547058234e-09 | BB150: 3.759649401e-10 | BC150: 4.537635273e-09 | BD150: 5.277676902 | BE150: 0.4198266886 | BF150: 0.002318965753 | BG150: -0.0003902036924 | BH150: 0.02 | BJ150: =BJ138+1 -> 12 | BK150: =AVERAGE(H145:H150) -> 6.121129858 | BL150: =AVERAGE(Z145:Z150) -> 5.371684046 | BM150: =AVERAGE(AR145:AR150) -> 5.278923436 | CE150: ='Site&Soil'!$F$173*EXP('Site&Soil'!$F$174*CD150) ->  | CG150: 0 | CI150: 0 | CJ150: 0 | CW150: ='Site&Soil'!$G$173*EXP('Site&Soil'!$G$174*CV150) ->  | CY150: 0 | DA150: 0 | DB150: 0 | DO150: ='Site&Soil'!$H$173*EXP('Site&Soil'!$H$174*DN150) ->  | DQ150: 0 | DS150: 0 | DT150: 0 | EF150: =EF138+1 -> 12 | EG150: =AVERAGE(CD145:CD150) ->  | EH150: =AVERAGE(CV145:CV150) ->  | EI150: =AVERAGE(DN145:DN150) -> 
B151: 143 | C151: Nov | H151: 6.142980045 | I151: ='Site&Soil'!$F$173*EXP('Site&Soil'!$F$174*H151) -> 0 | J151: 0.6946875 | K151: 0.5697828247 | L151: 0.003919303921 | M151: 0 | N151: 0 | O151: 11249.94143 | P151: 0.4600469088 | Q151: 0.004409193955 | R151: 0.0006347129142 | S151: 0.005433351026 | T151: 6.148413396 | U151: 0.1725696809 | V151: 0.004376100082 | W151: -0.006299379335 | Z151: 5.413676123 | AA151: ='Site&Soil'!$G$173*EXP('Site&Soil'!$G$174*Z151) -> 0 | AB151: 0.790875 | AC151: 0.6976763261 | AD151: 0.02669335157 | AE151: 0 | AF151: 0 | AG151: 0.0003112050837 | AH151: 1.272619397e-08 | AI151: 8.30710671e-10 | AJ151: 8.988073467e-11 | AK151: 0.0008025461103 | AL151: 5.414478669 | AM151: 0.3278008171 | AN151: 0.001878203679 | AO151: 0.003158395957 | AR151: 5.297286698 | AS151: ='Site&Soil'!$H$173*EXP('Site&Soil'!$H$174*AR151) -> 0 | AT151: 0.72675 | AU151: 0.8322075007 | AV151: 0.04170740867 | AW151: 0 | AX151: 0 | AY151: 0.0006471127569 | AZ151: 2.646255763e-08 | BA151: 2.698939621e-09 | BB151: 2.8681706e-10 | BC151: 3.442728993e-09 | BD151: 5.297286702 | BE151: 0.4340781106 | BF151: 0.002265093917 | BG151: -0.000532356708 | CE151: ='Site&Soil'!$F$173*EXP('Site&Soil'!$F$174*CD151) ->  | CG151: 0 | CI151: 0 | CJ151: 0 | CW151: ='Site&Soil'!$G$173*EXP('Site&Soil'!$G$174*CV151) ->  | CY151: 0 | DA151: 0 | DB151: 0 | DO151: ='Site&Soil'!$H$173*EXP('Site&Soil'!$H$174*DN151) ->  | DQ151: 0 | DS151: 0 | DT151: 0
B152: 144 | C152: Dec | H152: 6.142114016 | I152: ='Site&Soil'!$F$173*EXP('Site&Soil'!$F$174*H152) -> 0 | J152: 0.6946875 | K152: 0.3678794412 | L152: 0.002535776114 | M152: 0 | N152: 0 | O152: 11142.11944 | P152: 0.4556377149 | Q152: 0.002825392033 | R152: 0.0004064738499 | S152: 0.003482023476 | T152: 6.14559604 | U152: 0.170612499 | V152: 0.002775315763 | W152: -0.003995056429 | Z152: 5.417637065 | AA152: ='Site&Soil'!$G$173*EXP('Site&Soil'!$G$174*Z152) -> 0 | AB152: 0.790875 | AC152: 0.527292424 | AD152: 0.01998972505 | AE152: 0 | AF152: 0 | AG152: 0.0002908909675 | AH152: 1.18954833e-08 | AI152: 5.814830459e-10 | AJ152: 6.295862629e-11 | AK152: 0.0005139552628 | AL152: 5.41815102 | AM152: 0.3307051879 | AN152: 0.001444253935 | AO152: 0.001683024281 | AR152: 5.296754345 | AS152: ='Site&Soil'!$H$173*EXP('Site&Soil'!$H$174*AR152) -> 0 | AT152: 0.72675 | AU152: 0.7214222904 | AV152: 0.0361998565 | AW152: 0 | AX152: 0 | AY152: 0.0005811131554 | AZ152: 2.376361801e-08 | BA152: 2.103621283e-09 | BB152: 2.23536257e-10 | BC152: 2.673606677e-09 | BD152: 5.296754348 | BE152: 0.4336912223 | BF152: 0.001959406467 | BG152: -0.000708844214 | CE152: ='Site&Soil'!$F$173*EXP('Site&Soil'!$F$174*CD152) ->  | CG152: 0 | CI152: 0 | CJ152: 0 | CW152: ='Site&Soil'!$G$173*EXP('Site&Soil'!$G$174*CV152) ->  | CY152: 0 | DA152: 0 | DB152: 0 | DO152: ='Site&Soil'!$H$173*EXP('Site&Soil'!$H$174*DN152) ->  | DQ152: 0 | DS152: 0 | DT152: 0
A153: =A141+1 -> 13 | B153: 145 | C153: Jan | D153: =OFFSET(Apply_Lime!$H$16,$A153,0) -> 0 | E153: =OFFSET(Apply_Lime!$I$16,$A153,0)*E$7 -> 0 | F153: =OFFSET(Apply_Lime!$I$16,$A153,0)*F$7 -> 0 | H153: 6.141600984 | I153: ='Site&Soil'!$F$173*EXP('Site&Soil'!$F$174*H153) -> 0 | J153: 0.6946875 | K153: 0.04677062238 | L153: 0.0003227862991 | M153: 0 | N153: 0 | O153: 11073.02758 | P153: 0.4528123228 | Q153: 0.0003574221593 | R153: 5.14018806e-05 | S153: 0.0004405150211 | T153: 6.142041499 | U153: 0.1681432035 | V153: 0.0003449006122 | W153: -0.0004964831125 | Z153: 5.419834044 | AA153: ='Site&Soil'!$G$173*EXP('Site&Soil'!$G$174*Z153) -> 0 | AB153: 0.790875 | AC153: 0.1408584209 | AD153: 0.005312791251 | AE153: 0 | AF153: 0 | AG153: 0.0002766714388 | AH153: 1.131400025e-08 | AI153: 1.469897599e-10 | AJ153: 1.592111646e-11 | AK153: 6.499385069e-05 | AL153: 5.419899038 | AM153: 0.3320876517 | AN153: 0.0003889865461 | AO153: -5.574323877e-05 | AR153: 5.296045504 | AS153: ='Site&Soil'!$H$173*EXP('Site&Soil'!$H$174*AR153) -> 0 | AT153: 0.72675 | AU153: 0.3678794412 | AV153: 0.01848996611 | AW153: 0 | AX153: 0 | AY153: 0.0005296714094 | AZ153: 2.165999673e-08 | BA153: 9.793606408e-10 | BB153: 1.040594009e-10 | BC153: 1.226312152e-09 | BD153: 5.296045505 | BE153: 0.4331760707 | BF153: 0.0009963581566 | BG153: -0.0008357366501 | BZ153: =OFFSET(Apply_Lime!$O$16,$A153,0) -> 0 | CA153: =OFFSET(Apply_Lime!$P$16,$A153,0)*CA$7 -> 0 | CB153: =OFFSET(Apply_Lime!$P$16,$A153,0)*CB$7 -> 0 | CE153: ='Site&Soil'!$F$173*EXP('Site&Soil'!$F$174*CD153) ->  | CG153: 0 | CI153: 0 | CJ153: 0 | CW153: ='Site&Soil'!$G$173*EXP('Site&Soil'!$G$174*CV153) ->  | CY153: 0 | DA153: 0 | DB153: 0 | DO153: ='Site&Soil'!$H$173*EXP('Site&Soil'!$H$174*DN153) ->  | DQ153: 0 | DS153: 0 | DT153: 0
B154: 146 | C154: Feb | H154: 6.141545015 | I154: ='Site&Soil'!$F$173*EXP('Site&Soil'!$F$174*H154) -> 0 | J154: 0.6946875 | K154: 0.1053992246 | L154: 0.0007275081978 | M154: 0 | N154: 0 | O154: 11064.28722 | P154: 0.4524549007 | Q154: 0.0008049359653 | R154: 0.0001157555484 | S154: 0.000992072575 | T154: 6.142537088 | U154: 0.1684874833 | V154: 0.0007797262353 | W154: -0.001122412934 | Z154: 5.419843295 | AA154: ='Site&Soil'!$G$173*EXP('Site&Soil'!$G$174*Z154) -> 0 | AB154: 0.790875 | AC154: 0.2369277587 | AD154: 0.008936069842 | AE154: 0 | AF154: 0 | AG154: 0.0002730769658 | AH154: 1.116701049e-08 | AI154: 2.440234839e-10 | AJ154: 2.643131508e-11 | AK154: 0.0001463641738 | AL154: 5.419989659 | AM154: 0.3321593215 | AN154: 0.0006545639 | AO154: 0.00015825805 | AR154: 5.295209768 | AS154: ='Site&Soil'!$H$173*EXP('Site&Soil'!$H$174*AR154) -> 0 | AT154: 0.72675 | AU154: 0.4796522688 | AV154: 0.02415450204 | AW154: 0 | AX154: 0 | AY154: 0.0005057222215 | AZ154: 2.068063609e-08 | BA154: 1.221546843e-09 | BB154: 1.297775785e-10 | BC154: 1.538631689e-09 | BD154: 5.29520977 | BE154: 0.4325687002 | BF154: 0.001294766232 | BG154: -0.0008809113618 | CE154: ='Site&Soil'!$F$173*EXP('Site&Soil'!$F$174*CD154) ->  | CG154: 0 | CI154: 0 | CJ154: 0 | CW154: ='Site&Soil'!$G$173*EXP('Site&Soil'!$G$174*CV154) ->  | CY154: 0 | DA154: 0 | DB154: 0 | DO154: ='Site&Soil'!$H$173*EXP('Site&Soil'!$H$174*DN154) ->  | DQ154: 0 | DS154: 0 | DT154: 0
B155: 147 | C155: Mar | H155: 6.141414675 | I155: ='Site&Soil'!$F$173*EXP('Site&Soil'!$F$174*H155) -> 0 | J155: 0.6946875 | K155: 0.2096113872 | L155: 0.001447276994 | M155: 0 | N155: 0 | O155: 11044.60339 | P155: 0.4516499647 | Q155: 0.00159846004 | R155: 0.0002298489728 | S155: 0.001970110398 | T155: 6.143384785 | U155: 0.1690763682 | V155: 0.001559130861 | W155: -0.002244362913 | Z155: 5.420147917 | AA155: ='Site&Soil'!$G$173*EXP('Site&Soil'!$G$174*Z155) -> 0 | AB155: 0.790875 | AC155: 0.3678794412 | AD155: 0.01386528974 | AE155: 0 | AF155: 0 | AG155: 0.0002671096397 | AH155: 1.092298701e-08 | AI155: 3.703552547e-10 | AJ155: 4.011705567e-11 | AK155: 0.0002906265883 | AL155: 5.420438544 | AM155: 0.3325143332 | AN155: 0.001018484519 | AO155: 0.0006836053001 | AR155: 5.294328858 | AS155: ='Site&Soil'!$H$173*EXP('Site&Soil'!$H$174*AR155) -> 0 | AT155: 0.72675 | AU155: 0.6003730412 | AV155: 0.03029557531 | AW155: 0 | AX155: 0 | AY155: 0.0004758506363 | AZ155: 1.945908925e-08 | BA155: 1.441616879e-09 | BB155: 1.531396696e-10 | BC155: 1.828131084e-09 | BD155: 5.29432886 | BE155: 0.4319284992 | BF155: 0.001614960495 | BG155: -0.000820744377 | CE155: ='Site&Soil'!$F$173*EXP('Site&Soil'!$F$174*CD155) ->  | CG155: 0 | CI155: 0 | CJ155: 0 | CW155: ='Site&Soil'!$G$173*EXP('Site&Soil'!$G$174*CV155) ->  | CY155: 0 | DA155: 0 | DB155: 0 | DO155: ='Site&Soil'!$H$173*EXP('Site&Soil'!$H$174*DN155) ->  | DQ155: 0 | DS155: 0 | DT155: 0
B156: 148 | C156: Apr | H156: 6.141140423 | I156: ='Site&Soil'!$F$173*EXP('Site&Soil'!$F$174*H156) -> 0 | J156: 0.6946875 | K156: 0.3678794412 | L156: 0.002541728237 | M156: 0 | N156: 0 | O156: 11005.51481 | P156: 0.4500515047 | Q156: 0.002797302776 | R156: 0.0004021580363 | S156: 0.003447801694 | T156: 6.144588224 | U156: 0.169912382 | V156: 0.002757520633 | W156: -0.003969440408 | Z156: 5.421122149 | AA156: ='Site&Soil'!$G$173*EXP('Site&Soil'!$G$174*Z156) -> 0 | AB156: 0.790875 | AC156: 0.527292424 | AD156: 0.01982862263 | AE156: 0 | AF156: 0 | AG156: 0.0002580530091 | AH156: 1.055263175e-08 | AI156: 5.116835737e-10 | AJ156: 5.543536701e-11 | AK156: 0.0005084981729 | AL156: 5.421630647 | AM156: 0.333457138 | AN156: 0.001467986958 | AO156: 0.001630515158 | AR156: 5.293508116 | AS156: ='Site&Soil'!$H$173*EXP('Site&Soil'!$H$174*AR156) -> 0 | AT156: 0.72675 | AU156: 0.7214222904 | AV156: 0.03647316568 | AW156: 0 | AX156: 0 | AY156: 0.0004405974803 | AZ156: 1.801747237e-08 | BA156: 1.60699849e-09 | BB156: 1.706888851e-10 | BC156: 2.05262466e-09 | BD156: 5.293508118 | BE156: 0.4313320247 | BF156: 0.001934235629 | BG156: -0.0006415530394 | CE156: ='Site&Soil'!$F$173*EXP('Site&Soil'!$F$174*CD156) ->  | CG156: 0 | CI156: 0 | CJ156: 0 | CW156: ='Site&Soil'!$G$173*EXP('Site&Soil'!$G$174*CV156) ->  | CY156: 0 | DA156: 0 | DB156: 0 | DO156: ='Site&Soil'!$H$173*EXP('Site&Soil'!$H$174*DN156) ->  | DQ156: 0 | DS156: 0 | DT156: 0
B157: 149 | C157: May | H157: 6.140618784 | I157: ='Site&Soil'!$F$173*EXP('Site&Soil'!$F$174*H157) -> 0 | J157: 0.6946875 | K157: 0.5697828247 | L157: 0.003941653541 | M157: 0 | N157: 0 | O157: 10937.10984 | P157: 0.4472542019 | Q157: 0.004311029775 | R157: 0.0006195545675 | S157: 0.005313864446 | T157: 6.145932648 | U157: 0.1708463366 | V157: 0.004307722048 | W157: -0.006200949417 | Z157: 5.423261162 | AA157: ='Site&Soil'!$G$173*EXP('Site&Soil'!$G$174*Z157) -> 0 | AB157: 0.790875 | AC157: 0.6976763261 | AD157: 0.02610585713 | AE157: 0 | AF157: 0 | AG157: 0.0002455403498 | AH157: 1.004094818e-08 | AI157: 6.410041291e-10 | AJ157: 6.947223956e-11 | AK157: 0.0007833793445 | AL157: 5.424044542 | AM157: 0.3353662268 | AN157: 0.001964345394 | AO157: 0.002963017739 | AR157: 5.292866565 | AS157: ='Site&Soil'!$H$173*EXP('Site&Soil'!$H$174*AR157) -> 0 | AT157: 0.72675 | AU157: 0.8322075007 | AV157: 0.0421367552 | AW157: 0 | AX157: 0 | AY157: 0.0004013000988 | AZ157: 1.641047388e-08 | BA157: 1.690948402e-09 | BB157: 1.795901901e-10 | BC157: 2.1752053e-09 | BD157: 5.292866567 | BE157: 0.4308657776 | BF157: 0.002225564542 | BG157: -0.000359434673 | CE157: ='Site&Soil'!$F$173*EXP('Site&Soil'!$F$174*CD157) ->  | CG157: 0 | CI157: 0 | CJ157: 0 | CW157: ='Site&Soil'!$G$173*EXP('Site&Soil'!$G$174*CV157) ->  | CY157: 0 | DA157: 0 | DB157: 0 | DO157: ='Site&Soil'!$H$173*EXP('Site&Soil'!$H$174*DN157) ->  | DQ157: 0 | DS157: 0 | DT157: 0
B158: 150 | C158: Jun | H158: 6.139731699 | I158: ='Site&Soil'!$F$173*EXP('Site&Soil'!$F$174*H158) -> 0 | J158: 0.6946875 | K158: 0.7788007831 | L158: 0.005399121071 | M158: 0 | N158: 0 | O158: 10831.68835 | P158: 0.4429431721 | Q158: 0.00584815968 | R158: 0.0008399397364 | S158: 0.00720931346 | T158: 6.146941012 | U158: 0.1715468345 | V158: 0.005925842446 | W158: -0.008530227543 | Z158: 5.427007559 | AA158: ='Site&Soil'!$G$173*EXP('Site&Soil'!$G$174*Z158) -> 0 | AB158: 0.790875 | AC158: 0.852143789 | AD158: 0.031609575 | AE158: 0 | AF158: 0 | AG158: 0.0002298652985 | AH158: 9.399944051e-09 | AI158: 7.265944392e-10 | AJ158: 7.880129991e-11 | AK158: 0.001062039367 | AL158: 5.428069599 | AM158: 0.3385495439 | AN158: 0.002444582591 | AO158: 0.004401782653 | AR158: 5.292507132 | AS158: ='Site&Soil'!$H$173*EXP('Site&Soil'!$H$174*AR158) -> 0 | AT158: 0.72675 | AU158: 0.9216104473 | AV158: 0.04670232793 | AW158: 0 | AX158: 0 | AY158: 0.0003599498144 | AZ158: 1.471952547e-08 | BA158: 1.681049427e-09 | BB158: 1.7853022e-10 | BC158: 2.175879611e-09 | BD158: 5.292507135 | BE158: 0.43060456 | BF158: 0.002461122033 | BG158: -2.275809008e-05 | CE158: ='Site&Soil'!$F$173*EXP('Site&Soil'!$F$174*CD158) ->  | CG158: 0 | CI158: 0 | CJ158: 0 | CW158: ='Site&Soil'!$G$173*EXP('Site&Soil'!$G$174*CV158) ->  | CY158: 0 | DA158: 0 | DB158: 0 | DO158: ='Site&Soil'!$H$173*EXP('Site&Soil'!$H$174*DN158) ->  | DQ158: 0 | DS158: 0 | DT158: 0
B159: 151 | C159: Jul | H159: 6.138410785 | I159: ='Site&Soil'!$F$173*EXP('Site&Soil'!$F$174*H159) -> 0 | J159: 0.6946875 | K159: 0.9394130628 | L159: 0.006533326357 | M159: 0 | N159: 0 | O159: 10688.67803 | P159: 0.4370950124 | Q159: 0.006983262192 | R159: 0.001002043241 | S159: 0.00860994181 | T159: 6.147020727 | U159: 0.171602211 | V159: 0.007151550352 | W159: -0.01029462939 | Z159: 5.432471381 | AA159: ='Site&Soil'!$G$173*EXP('Site&Soil'!$G$174*Z159) -> 0 | AB159: 0.790875 | AC159: 0.9607894392 | AD159: 0.03519032653 | AE159: 0 | AF159: 0 | AG159: 0.0002120972302 | AH159: 8.673349611e-09 | AI159: 7.463770787e-10 | AJ159: 8.10266606e-11 | AK159: 0.001267006678 | AL159: 5.433738388 | AM159: 0.3430328476 | AN159: 0.002829451912 | AO159: 0.005464957724 | AR159: 5.292484376 | AS159: ='Site&Soil'!$H$173*EXP('Site&Soil'!$H$174*AR159) -> 0 | AT159: 0.72675 | AU159: 0.9797986739 | AV159: 0.04965361642 | AW159: 0 | AX159: 0 | AY159: 0.0003188415987 | AZ159: 1.303847605e-08 | BA159: 1.583163844e-09 | BB159: 1.681340953e-10 | BC159: 2.058557151e-09 | BD159: 5.292484379 | BE159: 0.4305880221 | BF159: 0.00261627367 | BG159: 0.0002933309153 | CE159: ='Site&Soil'!$F$173*EXP('Site&Soil'!$F$174*CD159) ->  | CG159: 0 | CI159: 0 | CJ159: 0 | CW159: ='Site&Soil'!$G$173*EXP('Site&Soil'!$G$174*CV159) ->  | CY159: 0 | DA159: 0 | DB159: 0 | DO159: ='Site&Soil'!$H$173*EXP('Site&Soil'!$H$174*DN159) ->  | DQ159: 0 | DS159: 0 | DT159: 0
B160: 152 | C160: Aug | H160: 6.136726097 | I160: ='Site&Soil'!$F$173*EXP('Site&Soil'!$F$174*H160) -> 0 | J160: 0.6946875 | K160: 1 | L160: 0.006982949363 | M160: 0 | N160: 0 | O160: 10517.91003 | P160: 0.4301117502 | Q160: 0.007344603317 | R160: 0.001052656131 | S160: 0.009057233916 | T160: 6.145783331 | U160: 0.1707426079 | V160: 0.00755310012 | W160: -0.01087265874 | Z160: 5.439203346 | AA160: ='Site&Soil'!$G$173*EXP('Site&Soil'!$G$174*Z160) -> 0 | AB160: 0.790875 | AC160: 1 | AD160: 0.03605824057 | AE160: 0 | AF160: 0 | AG160: 0.0001938453992 | AH160: 7.926972533e-09 | AI160: 6.98972404e-10 | AJ160: 7.597387854e-11 | AK160: 0.001331002692 | AL160: 5.440534348 | AM160: 0.3484076028 | AN160: 0.003038239264 | AO160: 0.005708690825 | AR160: 5.292777709 | AS160: ='Site&Soil'!$H$173*EXP('Site&Soil'!$H$174*AR160) -> 0 | AT160: 0.72675 | AU160: 1 | AV160: 0.05064293576 | AW160: 0 | AX160: 0 | AY160: 0.0002801270672 | AZ160: 1.14553122e-08 | BA160: 1.418645707e-09 | BB160: 1.506679955e-10 | BC160: 1.849262594e-09 | BD160: 5.292777711 | BE160: 0.4308012017 | BF160: 0.00267334259 | BG160: 0.0005020938065 | CE160: ='Site&Soil'!$F$173*EXP('Site&Soil'!$F$174*CD160) ->  | CG160: 0 | CI160: 0 | CJ160: 0 | CW160: ='Site&Soil'!$G$173*EXP('Site&Soil'!$G$174*CV160) ->  | CY160: 0 | DA160: 0 | DB160: 0 | DO160: ='Site&Soil'!$H$173*EXP('Site&Soil'!$H$174*DN160) ->  | DQ160: 0 | DS160: 0 | DT160: 0
B161: 153 | C161: Sep | H161: 6.134910672 | I161: ='Site&Soil'!$F$173*EXP('Site&Soil'!$F$174*H161) -> 0 | J161: 0.6946875 | K161: 0.9394130628 | L161: 0.006588597026 | M161: 0 | N161: 0 | O161: 10338.30583 | P161: 0.4227671469 | Q161: 0.006811493107 | R161: 0.0009750177821 | S161: 0.008401583914 | T161: 6.143312256 | U161: 0.1690259831 | V161: 0.006984290931 | W161: -0.01005386009 | Z161: 5.446243039 | AA161: ='Site&Soil'!$G$173*EXP('Site&Soil'!$G$174*Z161) -> 0 | AB161: 0.790875 | AC161: 0.9607894392 | AD161: 0.03408245061 | AE161: 0 | AF161: 0 | AG161: 0.0001767527975 | AH161: 7.228000129e-09 | AI161: 6.02416849e-10 | AJ161: 6.556448492e-11 | AK161: 0.001232834922 | AL161: 5.447475874 | AM161: 0.353897482 | AN161: 0.003012878148 | AO161: 0.005021542954 | AR161: 5.293279805 | AS161: ='Site&Soil'!$H$173*EXP('Site&Soil'!$H$174*AR161) -> 0 | AT161: 0.72675 | AU161: 0.9797986739 | AV161: 0.04956219 | AW161: 0 | AX161: 0 | AY161: 0.000245435646 | AZ161: 1.00366665e-08 | BA161: 1.216432812e-09 | BB161: 1.292006033e-10 | BC161: 1.58623556e-09 | BD161: 5.293279807 | BE161: 0.4311660995 | BF161: 0.002624588738 | BG161: 0.0005342819533 | CE161: ='Site&Soil'!$F$173*EXP('Site&Soil'!$F$174*CD161) ->  | CG161: 0 | CI161: 0 | CJ161: 0 | CW161: ='Site&Soil'!$G$173*EXP('Site&Soil'!$G$174*CV161) ->  | CY161: 0 | DA161: 0 | DB161: 0 | DO161: ='Site&Soil'!$H$173*EXP('Site&Soil'!$H$174*DN161) ->  | DQ161: 0 | DS161: 0 | DT161: 0
B162: 154 | C162: Oct | H162: 6.133258396 | I162: ='Site&Soil'!$F$173*EXP('Site&Soil'!$F$174*H162) -> 0 | J162: 0.6946875 | K162: 0.7788007831 | L162: 0.005483897858 | M162: 0 | N162: 0 | O162: 10171.73826 | P162: 0.4159556538 | Q162: 0.005578077364 | R162: 0.0007975490771 | S162: 0.00688155219 | T162: 6.140139948 | U162: 0.1668222204 | V162: 0.005673097209 | W162: -0.008166401741 | X162: 0.02 | Z162: 5.452497417 | AA162: ='Site&Soil'!$G$173*EXP('Site&Soil'!$G$174*Z162) -> 0 | AB162: 0.790875 | AC162: 0.852143789 | AD162: 0.02979236202 | AE162: 0 | AF162: 0 | AG162: 0.0001620213557 | AH162: 6.62558328e-09 | AI162: 4.826998883e-10 | AJ162: 5.259686648e-11 | AK162: 0.001008439396 | AL162: 5.453505857 | AM162: 0.3586664443 | AN162: 0.002746056615 | AO162: 0.00370101545 | AP162: 0.02 | AR162: 5.293814089 | AS162: ='Site&Soil'!$H$173*EXP('Site&Soil'!$H$174*AR162) -> 0 | AT162: 0.72675 | AU162: 0.9216104473 | AV162: 0.0465611185 | AW162: 0 | AX162: 0 | AY162: 0.0002156891188 | AZ162: 8.820233685e-09 | BA162: 1.004272662e-09 | BB162: 1.066741831e-10 | BC162: 1.307458335e-09 | BD162: 5.29381409 | BE162: 0.4315543899 | BF162: 0.002473984748 | BG162: 0.0003743678944 | BH162: 0.02 | BJ162: =BJ150+1 -> 13 | BK162: =AVERAGE(H157:H162) -> 6.137276072 | BL162: =AVERAGE(Z157:Z162) -> 5.436780651 | BM162: =AVERAGE(AR157:AR162) -> 5.292954946 | CE162: ='Site&Soil'!$F$173*EXP('Site&Soil'!$F$174*CD162) ->  | CG162: 0 | CI162: 0 | CJ162: 0 | CW162: ='Site&Soil'!$G$173*EXP('Site&Soil'!$G$174*CV162) ->  | CY162: 0 | DA162: 0 | DB162: 0 | DO162: ='Site&Soil'!$H$173*EXP('Site&Soil'!$H$174*DN162) ->  | DQ162: 0 | DS162: 0 | DT162: 0 | EF162: =EF150+1 -> 13 | EG162: =AVERAGE(CD157:CD162) ->  | EH162: =AVERAGE(CV157:CV162) ->  | EI162: =AVERAGE(DN157:DN162) -> 
B163: 155 | C163: Nov | H163: 6.151973547 | I163: ='Site&Soil'!$F$173*EXP('Site&Soil'!$F$174*H163) -> 0 | J163: 0.6946875 | K163: 0.5697828247 | L163: 0.003835283503 | M163: 0 | N163: 0 | O163: 10035.33251 | P163: 0.4103775765 | Q163: 0.003848834521 | R163: 0.000557587607 | S163: 0.004737737349 | T163: 6.156711284 | U163: 0.1783341201 | V163: 0.004609513394 | W163: -0.006635376906 | Z163: 5.477206872 | AA163: ='Site&Soil'!$G$173*EXP('Site&Soil'!$G$174*Z163) -> 0 | AB163: 0.790875 | AC163: 0.6976763261 | AD163: 0.02303066867 | AE163: 0 | AF163: 0 | AG163: 0.0001502174605 | AH163: 6.142883391e-09 | AI163: 3.459608562e-10 | AJ163: 3.787880558e-11 | AK163: 0.0007050266036 | AL163: 5.477911899 | AM163: 0.3779685728 | AN163: 0.00250623376 | AO163: 0.002659433708 | AR163: 5.314188458 | AS163: ='Site&Soil'!$H$173*EXP('Site&Soil'!$H$174*AR163) -> 0 | AT163: 0.72675 | AU163: 0.8322075007 | AV163: 0.04010538453 | AW163: 0 | AX163: 0 | AY163: 0.0001911307348 | AZ163: 7.815961023e-09 | BA163: 7.665371614e-10 | BB163: 8.165085793e-11 | BC163: 9.945168339e-10 | BD163: 5.314188459 | BE163: 0.4463614624 | BF163: 0.002421624358 | BG163: 0.0001164216057 | CE163: ='Site&Soil'!$F$173*EXP('Site&Soil'!$F$174*CD163) ->  | CG163: 0 | CI163: 0 | CJ163: 0 | CW163: ='Site&Soil'!$G$173*EXP('Site&Soil'!$G$174*CV163) ->  | CY163: 0 | DA163: 0 | DB163: 0 | DO163: ='Site&Soil'!$H$173*EXP('Site&Soil'!$H$174*DN163) ->  | DQ163: 0 | DS163: 0 | DT163: 0
